Workbook

Sheet README
B3: FRAME Report: 2022/23 Budget
B5: All pages of the FRAME report containing the tables of financial and statistical data are included in this file.
B7: In most cases, formulas have been left intact to show how statistics such as percentages and average costs per pupil are derived.
B10: Each worksheet tab is numbered to match the corresponding page found in the published document so for example to see page 15, click the worksheet tab - 15 - .
B13: This file is unprotected for data analysis by the user. Data can also be copied to other files or additional data copied to this one. In cases of dispute however, the published FRAME reports and the corresponding files located on the Manitoba Govenment web site remain the final authority.
B20: http://www.edu.gov.mb.ca/k12/finance/frame_report/index.html
B23: * Pages 45 & 46 revised to reflect Total portioned assessment for 2023

Sheet i
A1: PROVINCIAL CONTRIBUTION TO PUBLIC EDUCATION | BD1: PROVINCIAL CONTRIBUTION TO PUBLIC EDUCATION | BE1: CONTRIBUTION PROVINCIALE À L'ÉDUCATION PUBLIQUE
A3: The total cost of public education in Manitoba includes direct expenditures for the operation of schools (e. g. educator and administrator salaries, teaching supplies, pupil transportation, utilities, building maintenance) and capital expenditures for school building construction and major building repairs and renovations. Also included are provincial expenditures for pensions for retired teachers and the provincial education tax credit programs for homeowners, tenants and farmers which results in reduced property tax bills. The total provincial contribution to public education accounts for 78.5% of the total of these expenditures.
L7: .
C12: 2022/2023 ($ millions)
C14: Total Expenditure | D14: Provincial | E14: Provincial
C15: on Public Education | D15: Contribution | E15: Contribution as %
A17: 1 | B17: FRAME Operating Fund | C17: 2663.111725 | D17: 1538.008851 | E17: =D17/C17 -> 0.5775232171
A18: 2 | B18: School division capital (net transfers to capital fund) | C18: 14.753732 | D18: 0 | E18: 0
A19: 3 | B19: Provincial Capital Grant Funding and Other | C19: 144.394838 | D19: 144.394838 | E19: =D19/C19 -> 1
A20: 4 | B20: Manitoba Education Property Tax Credit (1) | C20: n/a | D20: =-34.562579+90 -> 55.437421 | E20: n/a | P20: =IF('- 3 -'!$I$48=0,"","check updated file with W drive") -> 
A21: 5 | B21: Farmland School Tax Rebate | C21: n/a | D21: 32.731 | E21: n/a | P21: =IF('- 43 -'!$I$63298=0,"","check updated file with W drive") -> 
A22: 6 | B22: School Tax Assistance for Tenants and Homeowners (55+) | C22: n/a | D22: 0.55 | E22: n/a
A23: 7 | B23: Teachers' Retirement Allowances Fund | C23: 319.119 | D23: 319.119 | E23: =D23/C23 -> 1
A24: 8 | B24: Education Property Tax Rebate | C24: n/a | D24: 376.1 | E24: n/a
B26: Adjusted Total | C26: =SUM(C17:C24) -> 3141.379295 | D26: =SUM(D17:D24) -> 2466.34111 | E26: =D26/C26 -> 0.7851140784
A28: (1) | B28: The portion of the Education Property Tax Credit (EPTC) delivered through the income tax system directly to homeowners and renters.
B29: Starting in the 2022 taxation year, the renters component of the EPTC has been replaced with a new Residential Renters Tax Credit. EPTC reported by school divisions of $155.9 million is adjusted by $55.4 million to equal the Total EPTC as per the Manitoba 2022 Estimates of Expenditure of $211.3 million. See page 41 for more information.
B31: Note: Effective 2022/23, Manitoba Institute of Trades and Technology (MITT) reports under Advanced Education, Skills and Immigration, and is not included in this FRAME Report. In-year additional funding such as $7 million increase in Additional Funding for Special Needs, $20 million Strengthening Student Support and Learning, and $0.9 million Additional Intensive Newcomer Support are not included in the Provincial Contribution or anywhere in this FRAME Report, as these were announced after the school divisions' 2022/23 Budget submission.
A33: Source:
A35: 1 | B35: FRAME 2022/2023 Budget page 3, page 41
A36: 2 | B36: FRAME 2022/2023 Budget, page 44
A37: 3 | B37: 2022/2023 Funding Announcement February 2022
A38: 4 | B38: Manitoba 2022 Estimates of Expenditure for the fiscal year ending March 31, 2023
A39: 5 | B39: =B38 -> Manitoba 2022 Estimates of Expenditure for the fiscal year ending March 31, 2023
A40: 6 | B40: =B39 -> Manitoba 2022 Estimates of Expenditure for the fiscal year ending March 31, 2023
A41: 7 | B41: Department of Finance
A42: 8 | B42: Department of Finance
C48: `

Sheet - 1 -
U3: YEAR | V3: 1968 | W3: 1969 | X3: 1970 | Y3: 1971 | Z3: 1972 | AA3: 1973 | AB3: 1974 | AC3: 1975 | AD3: 1976 | AE3: 1977 | AF3: 1978 | AG3: 1979 | AH3: 1980 | AI3: 1981 | AJ3: 1982 | AK3: 1983 | AL3: 1984 | AM3: 1985 | AN3: 1986 | AO3: 1987 | AP3: 1988 | AQ3: 1989 | AR3: 1990 | AS3: 1991 | AT3: 1992 | AU3: 1993 | AV3: 1994 | AW3: 1995 | AX3: 1996 | AY3: 1997 | AZ3: 1998 | BA3: 1999 | BB3: 2000 | BC3: 2001 | BD3: 2002 | BE3: 2003 | BF3: 2004 | BG3: 2005 | BH3: 2006 | BI3: 2007 | BJ3: 2008 | BK3: 2009 | BL3: 2010 | BM3: 2011 | BN3: 2012 | BO3: =+BN3+1 -> 2013 | BP3: =+BO3+1 -> 2014 | BQ3: =+BP3+1 -> 2015 | BR3: =+BQ3+1 -> 2016 | BS3: =+BR3+1 -> 2017 | BT3: =+BS3+1 -> 2018 | BU3: 2019 | BV3: 2020 | BW3: =+BV3+1 -> 2021 | BX3: 2022 | BY3: 2023
U4: ENROLMENT | V4: 232.2 | W4: 245.5 | X4: 247.5 | Y4: 245.6 | Z4: 239.7 | AA4: 231.4 | AB4: 227.5 | AC4: 225.6 | AD4: 223.2 | AE4: 219.2 | AF4: 213.4 | AG4: 206.7 | AH4: 202.4 | AI4: 199.1 | AJ4: 199 | AK4: 198.2 | AL4: 198 | AM4: 197.6 | AN4: 197.7 | AO4: 198.3 | AP4: 197.7 | AQ4: 196.7 | AR4: 196.4 | AS4: 195.9 | AT4: 195.6 | AU4: 195.2 | AV4: 194.2 | AW4: 194.7 | AX4: 194.7 | AY4: 194.3 | AZ4: 194.7 | BA4: =199-7.2 -> 191.8 | BB4: 191.9 | BC4: 190.7 | BD4: 188.8 | BE4: 188.1 | BF4: 186.3 | BG4: 184.3 | BH4: 182 | BI4: 181.2 | BJ4: 179.892 | BK4: 179.593 | BL4: 179.784 | BM4: 181.147 | BN4: 181.561 | BO4: 181.278 | BP4: 181.901 | BQ4: 183.13 | BR4: 185.225 | BS4: 186.8 | BT4: 188.5 | BU4: 189.9 | BV4: 180.9 | BW4: =+'- 8 -'!D48/1000 -> 182.354 | BX4: =+'- 8 -'!E48/1000 -> 179.56159

Sheet - 2 -
S24: - 2 -

Sheet - 3 -
A2: RECONCILIATION OF EXPENSES | BA2: RECONCILIATION OF EXPENSES | BB2: CONCILIATION DES DÉPENSES
A3: OPERATING FUND 2022/2023 BUDGET | BA3: ="OPERATING FUND "&YEAR&"/"&YEAR+1&" BUDGET" ->  | BB3: ="FONDS DE FONCTIONNEMENT – BUDGET "&YEAR&" - "&YEAR+1 -> 
C6: LESS OPERATING FUND TRANSFERS (2) | D6: EXPENSES NET OF TRANSFERS (3) | E6: LESS NON K-12 EDUCATION & SERVICES (4) | F6: TOTAL EXPENSES FOR PER PUPIL COSTS (5)
B8: TOTAL EXPENSES (1)
A9: DIVISION / DISTRICT
A11: BEAUTIFUL PLAINS | B11: 24840387 | C11: -92000 | D11: =B11+C11 -> 24748387 | E11: =-'- 15 -'!H11-'- 16 -'!B11 -> -33320 | F11: =D11+E11 -> 24715067
A12: BORDER LAND | B12: 37164727 | C12: -575000 | D12: =B12+C12 -> 36589727 | E12: =-'- 15 -'!H12-'- 16 -'!B12 -> -436080 | F12: =D12+E12 -> 36153647
A13: BRANDON | B13: 114491500 | C13: -89100 | D13: 114402400 | E13: =-'- 15 -'!H13-'- 16 -'!B13 -> -438600 | F13: 113963800
A14: DSFM | B14: 105870787 | C14: -966404 | D14: 104904383 | E14: =-'- 15 -'!H14-'- 16 -'!B14 -> -1308864 | F14: 103595519
A15: EVERGREEN | B15: 22182090 | C15: -53000 | D15: 22129090 | E15: =-'- 15 -'!H15-'- 16 -'!B15 -> -59750 | F15: 22069340
A16: FLIN FLON | B16: 16118845 | C16: -3900 | D16: 16114945 | E16: =-'- 15 -'!H16-'- 16 -'!B16 -> -111661 | F16: 16003284
A17: FORT LA BOSSE | B17: 20413319 | C17: -110850 | D17: 20302469 | E17: =-'- 15 -'!H17-'- 16 -'!B17 -> -231730 | F17: 20070739
A18: FRONTIER | B18: 160247398 | C18: -5260328 | D18: 154987070 | E18: =-'- 15 -'!H18-'- 16 -'!B18 -> -4908919 | F18: 150078151
A19: GARDEN VALLEY | B19: 52055000 | C19: -502200 | D19: 51552800 | E19: =-'- 15 -'!H19-'- 16 -'!B19 -> -85400 | F19: 51467400
A20: HANOVER | B20: 99126100 | C20: -2638200 | D20: 96487900 | E20: =-'- 15 -'!H20-'- 16 -'!B20 -> -109800 | F20: 96378100
A21: INTERLAKE | B21: 40470000 | C21: -278800 | D21: 40191200 | E21: =-'- 15 -'!H21-'- 16 -'!B21 -> 0 | F21: 40191200
A22: KELSEY | B22: 20986284 | C22: -16500 | D22: 20969784 | E22: =-'- 15 -'!H22-'- 16 -'!B22 -> -777093 | F22: 20192691
A23: LAKESHORE | B23: 16755851 | C23: -80700 | D23: 16675151 | E23: =-'- 15 -'!H23-'- 16 -'!B23 -> -386850 | F23: 16288301
A24: LORD SELKIRK | B24: 61866644 | C24: -182000 | D24: 61684644 | E24: =-'- 15 -'!H24-'- 16 -'!B24 -> -824356 | F24: 60860288
A25: LOUIS RIEL | B25: 208309565 | C25: -916000 | D25: 207393565 | E25: =-'- 15 -'!H25-'- 16 -'!B25 -> -2256974 | F25: 205136591
A26: MOUNTAIN VIEW | B26: 44526270 | C26: -5000 | D26: 44521270 | E26: =-'- 15 -'!H26-'- 16 -'!B26 -> -100485 | F26: 44420785
A27: MYSTERY LAKE | B27: 45197387 | C27: -9200 | D27: 45188187 | E27: =-'- 15 -'!H27-'- 16 -'!B27 -> -60491 | F27: 45127696
A28: PARK WEST | B28: 31426590 | C28: -155000 | D28: 31271590 | E28: =-'- 15 -'!H28-'- 16 -'!B28 -> -198310 | F28: 31073280
A29: PEMBINA TRAILS | B29: 195021850 | C29: -2368000 | D29: 192653850 | E29: =-'- 15 -'!H29-'- 16 -'!B29 -> -253134 | F29: 192400716
A30: PINE CREEK | B30: 16541941 | C30: -35084 | D30: 16506857 | E30: =-'- 15 -'!H30-'- 16 -'!B30 -> -14790 | F30: 16492067
A31: PORTAGE LA PRAIRIE | B31: 43654389 | C31: -45000 | D31: 43609389 | E31: =-'- 15 -'!H31-'- 16 -'!B31 -> -62343 | F31: 43547046
A32: PRAIRIE ROSE | B32: 33214262 | C32: -173585 | D32: 33040677 | E32: =-'- 15 -'!H32-'- 16 -'!B32 -> -347793 | F32: 32692884
A33: PRAIRIE SPIRIT | B33: 30137477 | C33: -116000 | D33: 30021477 | E33: =-'- 15 -'!H33-'- 16 -'!B33 -> -31500 | F33: 29989977
A34: RED RIVER VALLEY | B34: 34633002 | C34: -420868 | D34: 34212134 | E34: =-'- 15 -'!H34-'- 16 -'!B34 -> -65372 | F34: 34146762
A35: RIVER EAST TRANSCONA | B35: 215076981 | C35: -57800 | D35: 215019181 | E35: =-'- 15 -'!H35-'- 16 -'!B35 -> -2259062 | F35: 212760119
A36: ROLLING RIVER | B36: 25988475 | C36: -416500 | D36: 25571975 | E36: =-'- 15 -'!H36-'- 16 -'!B36 -> -29430 | F36: 25542545
A37: SEINE RIVER | B37: 59291080 | C37: -534600 | D37: 58756480 | E37: =-'- 15 -'!H37-'- 16 -'!B37 -> -1022543 | F37: 57733937
A38: SEVEN OAKS | B38: 161446407 | C38: -1165250 | D38: 160281157 | E38: =-'- 15 -'!H38-'- 16 -'!B38 -> -4908782 | F38: 155372375
A39: SOUTHWEST HORIZON | B39: 24811600 | C39: -279000 | D39: 24532600 | E39: =-'- 15 -'!H39-'- 16 -'!B39 -> -174900 | F39: 24357700
A40: ST. JAMES-ASSINIBOIA | B40: 118092259 | C40: -390500 | D40: 117701759 | E40: =-'- 15 -'!H40-'- 16 -'!B40 -> -915803 | F40: 116785956
A41: SUNRISE | B41: 72101960 | C41: -774000 | D41: 71327960 | E41: =-'- 15 -'!H41-'- 16 -'!B41 -> -1107224 | F41: 70220736
A42: SWAN VALLEY | B42: 23716694 | C42: -62600 | D42: 23654094 | E42: =-'- 15 -'!H42-'- 16 -'!B42 -> -104594 | F42: 23549500
A43: TURTLE MOUNTAIN | B43: 14528569 | C43: -26000 | D43: 14502569 | E43: =-'- 15 -'!H43-'- 16 -'!B43 -> -221753 | F43: 14280816
A44: TURTLE RIVER | B44: 12211182 | C44: -149853 | D44: 12061329 | E44: =-'- 15 -'!H44-'- 16 -'!B44 -> -29468 | F44: 12031861
A45: WESTERN | B45: 25150653 | C45: -122300 | D45: 25028353 | E45: =-'- 15 -'!H45-'- 16 -'!B45 -> -466294 | F45: 24562059
A46: WINNIPEG | B46: 435444200 | C46: -2554550 | D46: 432889650 | E46: =-'- 15 -'!H46-'- 16 -'!B46 -> -9130679 | F46: 423758971
A48: PROVINCE | B48: =SUM(B11:B46) -> 2663111725 | C48: =SUM(C11:C46) -> -21625672 | D48: =SUM(D11:D46) -> 2641486053 | E48: =SUM(E11:E46) -> -33474147 | F48: =SUM(F11:F46) -> 2608011906 | I48: 0
A50: WHITESHELL | B50: 3781429.73 | C50: -24495 | D50: =B50+C50 -> 3756934.73 | E50: =-'- 15 -'!H50-'- 16 -'!B50 -> -188842 | F50: =D50+E50 -> 3568092.73
A52: (1) Total operating expenses as reported on the Schedule of Revenues and Expenses in each school division's budget.
A53: (2) Operating fund transfers are payments to other school divisions, organizations and individuals. These are removed to provide more
A54: accurate per pupil costs.
A55: (3) As reported on pages 10 and 13 (on a provincial basis).
A56: (4) Expenses for Adult Learning Centres and Community Education and Services (Functions 300 and 400).
A57: (5) As reported on page 4.

Sheet - 4 -
A2: OPERATING FUND EXPENSE PER PUPIL | BA2: OPERATING FUND EXPENSE PER PUPIL | BB2: DÉPENSES DU FONDS DE FONCTIONNEMENT PAR ÉLÈVE
B7: 2021/2022 BUDGET | D7: 2022/2023 BUDGET
A9: DIVISION / DISTRICT | B9: EXPENSES (1) | C9: PER PUPIL | D9: EXPENSES (1) | E9: PER PUPIL
A11: BEAUTIFUL PLAINS | B11: 23300777 | C11: 11246 | D11: ='- 3 -'!F11 -> 24715067 | E11: =ROUND(D11/'- 7 -'!E11,0) -> 12053 | F11: =IF(B11=D11,"Check","") -> 
A12: BORDER LAND | B12: 34333097 | C12: 15896 | D12: ='- 3 -'!F12 -> 36153647 | E12: =ROUND(D12/'- 7 -'!E12,0) -> 17046 | F12: =IF(B12=D12,"Check","") -> 
A13: BRANDON | B13: 109261200 | C13: 12491 | D13: ='- 3 -'!F13 -> 113963800 | E13: =ROUND(D13/'- 7 -'!E13,0) -> 13028
A14: DSFM | B14: 98525575 | C14: 16250 | D14: ='- 3 -'!F14 -> 103595519 | E14: =ROUND(D14/'- 7 -'!E14,0) -> 17520
A15: EVERGREEN | B15: 21398174 | C15: 15909 | D15: ='- 3 -'!F15 -> 22069340 | E15: =ROUND(D15/'- 7 -'!E15,0) -> 15958
A16: FLIN FLON | B16: 15456995 | C16: 16305 | D16: ='- 3 -'!F16 -> 16003284 | E16: =ROUND(D16/'- 7 -'!E16,0) -> 16881
A17: FORT LA BOSSE | B17: 19263311 | C17: 13628 | D17: ='- 3 -'!F17 -> 20070739 | E17: =ROUND(D17/'- 7 -'!E17,0) -> 13593
A18: FRONTIER | B18: 140706670 | C18: 23877 | D18: ='- 3 -'!F18 -> 150078151 | E18: =ROUND(D18/'- 7 -'!E18,0) -> 23930
A19: GARDEN VALLEY | B19: 52171930 | C19: 12241 | D19: ='- 3 -'!F19 -> 51467400 | E19: =ROUND(D19/'- 7 -'!E19,0) -> 12474
A20: HANOVER | B20: 93834900 | C20: 11509 | D20: ='- 3 -'!F20 -> 96378100 | E20: =ROUND(D20/'- 7 -'!E20,0) -> 12145
A21: INTERLAKE | B21: 38594700 | C21: 13514 | D21: ='- 3 -'!F21 -> 40191200 | E21: =ROUND(D21/'- 7 -'!E21,0) -> 13792
A22: KELSEY | B22: 19873890 | C22: 13716 | D22: ='- 3 -'!F22 -> 20192691 | E22: =ROUND(D22/'- 7 -'!E22,0) -> 13936
A23: LAKESHORE | B23: 15839815 | C23: 16996 | D23: ='- 3 -'!F23 -> 16288301 | E23: =ROUND(D23/'- 7 -'!E23,0) -> 17724
A24: LORD SELKIRK | B24: 58438692 | C24: 15709 | D24: ='- 3 -'!F24 -> 60860288 | E24: =ROUND(D24/'- 7 -'!E24,0) -> 16360
A25: LOUIS RIEL | B25: 195283961 | C25: 12637 | D25: ='- 3 -'!F25 -> 205136591 | E25: =ROUND(D25/'- 7 -'!E25,0) -> 13458
A26: MOUNTAIN VIEW | B26: 42739738 | C26: 14096 | D26: ='- 3 -'!F26 -> 44420785 | E26: =ROUND(D26/'- 7 -'!E26,0) -> 14631
A27: MYSTERY LAKE | B27: 43926150 | C27: 15633 | D27: ='- 3 -'!F27 -> 45127696 | E27: =ROUND(D27/'- 7 -'!E27,0) -> 16192
A28: PARK WEST | B28: 28731211 | C28: 14136 | D28: ='- 3 -'!F28 -> 31073280 | E28: =ROUND(D28/'- 7 -'!E28,0) -> 14982
A29: PEMBINA TRAILS | B29: 180961705 | C29: 12328 | D29: ='- 3 -'!F29 -> 192400716 | E29: =ROUND(D29/'- 7 -'!E29,0) -> 12985
A30: PINE CREEK | B30: 15763879 | C30: 14830 | D30: ='- 3 -'!F30 -> 16492067 | E30: =ROUND(D30/'- 7 -'!E30,0) -> 14925
A31: PORTAGE LA PRAIRIE | B31: 41526216 | C31: 12363 | D31: ='- 3 -'!F31 -> 43547046 | E31: =ROUND(D31/'- 7 -'!E31,0) -> 12827
A32: PRAIRIE ROSE | B32: 31788093 | C32: 13424 | D32: ='- 3 -'!F32 -> 32692884 | E32: =ROUND(D32/'- 7 -'!E32,0) -> 13498
A33: PRAIRIE SPIRIT | B33: 29116360 | C33: 13875 | D33: ='- 3 -'!F33 -> 29989977 | E33: =ROUND(D33/'- 7 -'!E33,0) -> 14384
A34: RED RIVER VALLEY | B34: 32585057 | C34: 14458 | D34: ='- 3 -'!F34 -> 34146762 | E34: =ROUND(D34/'- 7 -'!E34,0) -> 15335
A35: RIVER EAST TRANSCONA | B35: 198760960 | C35: 12197 | D35: ='- 3 -'!F35 -> 212760119 | E35: =ROUND(D35/'- 7 -'!E35,0) -> 12902
A36: ROLLING RIVER | B36: 24594150 | C36: 13562 | D36: ='- 3 -'!F36 -> 25542545 | E36: =ROUND(D36/'- 7 -'!E36,0) -> 14390
A37: SEINE RIVER | B37: 55472977 | C37: 12711 | D37: ='- 3 -'!F37 -> 57733937 | E37: =ROUND(D37/'- 7 -'!E37,0) -> 13211
A38: SEVEN OAKS | B38: 148581334 | C38: 12705 | D38: ='- 3 -'!F38 -> 155372375 | E38: =ROUND(D38/'- 7 -'!E38,0) -> 13472
A39: SOUTHWEST HORIZON | B39: 23691400 | C39: 15705 | D39: ='- 3 -'!F39 -> 24357700 | E39: =ROUND(D39/'- 7 -'!E39,0) -> 16826
A40: ST. JAMES-ASSINIBOIA | B40: 110940812 | C40: 13549 | D40: ='- 3 -'!F40 -> 116785956 | E40: =ROUND(D40/'- 7 -'!E40,0) -> 14661
A41: SUNRISE | B41: 67263368 | C41: 14875 | D41: ='- 3 -'!F41 -> 70220736 | E41: =ROUND(D41/'- 7 -'!E41,0) -> 15613
A42: SWAN VALLEY | B42: 21760756 | C42: 16060 | D42: ='- 3 -'!F42 -> 23549500 | E42: =ROUND(D42/'- 7 -'!E42,0) -> 18101
A43: TURTLE MOUNTAIN | B43: 13757275 | C43: 13917 | D43: ='- 3 -'!F43 -> 14280816 | E43: =ROUND(D43/'- 7 -'!E43,0) -> 14692
A44: TURTLE RIVER | B44: 11476028 | C44: 17052 | D44: ='- 3 -'!F44 -> 12031861 | E44: =ROUND(D44/'- 7 -'!E44,0) -> 18539
A45: WESTERN | B45: 23235660 | C45: 11429 | D45: ='- 3 -'!F45 -> 24562059 | E45: =ROUND(D45/'- 7 -'!E45,0) -> 11970
A46: WINNIPEG | B46: 408260346 | C46: 13399 | D46: ='- 3 -'!F46 -> 423758971 | E46: =ROUND(D46/'- 7 -'!E46,0) -> 15499
A48: PROVINCE | B48: 2491217162 | C48: 13608 | D48: =SUM(D11:D46) -> 2608011906 | E48: =ROUND(D48/'- 7 -'!E48,0) -> 14524
A50: WHITESHELL | B50: 3415941.31 | C50: 19409 | D50: ='- 3 -'!F50 -> 3568092.73 | E50: =ROUND(D50/'- 7 -'!E50,0) -> 19713
A52: (1) Operating fund transfers (i.e. payments to other school divisions, organizations and individuals) are excluded to provide more accurate per pupil costs. Also excluded are expenditures on educational services not provided to K-12 pupils: Function 300 (Adult Learning Centres) and Function 400 (Community Education and Services).

Sheet - 5 -
S24: - 5 -
W33: .

Sheet - 6 -
B2: FRAME STUDENT STATISTICS | H2: PAGE 1 OF 2 | BA2: FRAME STUDENT STATISTICS | BB2: STATISTIQUES SUR LES ÉLÈVES (SYSTÈME COMPTABLE FRAME)
B3: ESTIMATE SEPTEMBER 30, 2022 | BA3: ="ESTIMATE SEPTEMBER 30, "&YEAR ->  | BB3: ="PRÉVISIONS AU 30 SEPTEMBRE "&YEAR -> 
B6: REGULAR INSTRUCTION
B7: SINGLE TRACK (1) | E7: DUAL TRACK (2)
B8: ENGLISH LANGUAGE | C8: FRANÇAIS | D8: FRENCH IMMERSION | E8: ENGLISH LANGUAGE | F8: FRANÇAIS | G8: FRENCH IMMERSION | H8: OTHER BILINGUAL
A9: DIVISION / DISTRICT
A11: BEAUTIFUL PLAINS | B11: 2050.5 | C11: 0 | D11: 0 | E11: 0 | F11: 0 | G11: 0 | H11: 0
A12: BORDER LAND | B12: 1412.29 | C12: 0 | D12: 0 | E12: 442 | F12: 0 | G12: 125 | H12: 0
A13: BRANDON | B13: 6863.5 | C13: 0 | D13: 317 | E13: 682 | F13: 0 | G13: 494 | H13: 0
A14: DSFM | B14: 0 | C14: 5885.29 | D14: 0 | E14: 0 | F14: 0 | G14: 0 | H14: 0
A15: EVERGREEN | B15: 1363 | C15: 0 | D15: 0 | E15: 0 | F15: 0 | G15: 0 | H15: 0
A16: FLIN FLON | B16: 593 | C16: 0 | D16: 0 | E16: 235 | F16: 0 | G16: 120 | H16: 0
A17: FORT LA BOSSE | B17: 1451.5 | C17: 0 | D17: 0 | E17: 0 | F17: 0 | G17: 0 | H17: 0
A18: FRONTIER | B18: 6212.5 | C18: 0 | D18: 0 | E18: 0 | F18: 0 | G18: 0 | H18: 0
A19: GARDEN VALLEY | B19: 4000 | C19: 0 | D19: 0 | E19: 0 | F19: 0 | G19: 0 | H19: 0
A20: HANOVER | B20: 7422.6 | C20: 0 | D20: 0 | E20: 0 | F20: 0 | G20: 0 | H20: 0
A21: INTERLAKE | B21: 1608 | C21: 0 | D21: 0 | E21: 931 | F21: 0 | G21: 375 | H21: 0
A22: KELSEY | B22: 820 | C22: 0 | D22: 0 | E22: 509 | F22: 0 | G22: 120 | H22: 0
A23: LAKESHORE | B23: 905 | C23: 0 | D23: 0 | E23: 0 | F23: 0 | G23: 0 | H23: 0
A24: LORD SELKIRK | B24: 2584 | C24: 0 | D24: 220 | E24: 529.5 | F24: 0 | G24: 96 | H24: 86.5
A25: LOUIS RIEL | B25: 9609.4 | C25: 0 | D25: 4854 | E25: 248 | F25: 0 | G25: 416 | H25: 0
A26: MOUNTAIN VIEW | B26: 2239.9 | C26: 0 | D26: 133.5 | E26: 382 | F26: 0 | G26: 70 | H26: 59
A27: MYSTERY LAKE | B27: 2288.5 | C27: 0 | D27: 0 | E27: 140 | F27: 0 | G27: 198.5 | H27: 0
A28: PARK WEST | B28: 2074 | C28: 0 | D28: 0 | E28: 0 | F28: 0 | G28: 0 | H28: 0
A29: PEMBINA TRAILS | B29: 8687.5 | C29: 0 | D29: 1414 | E29: 2688.9 | F29: 0 | G29: 2027 | H29: 0
A30: PINE CREEK | B30: 1052 | C30: 0 | D30: 0 | E30: 0 | F30: 0 | G30: 0 | H30: 0
A31: PORTAGE LA PRAIRIE | B31: 2372 | C31: 0 | D31: 0 | E31: 513.5 | F31: 0 | G31: 395.5 | H31: 0
A32: PRAIRIE ROSE | B32: 1769 | C32: 0 | D32: 124 | E32: 383 | F32: 0 | G32: 146 | H32: 0
A33: PRAIRIE SPIRIT | B33: 1627.5 | C33: 0 | D33: 0 | E33: 238 | F33: 105 | G33: 114.5 | H33: 0
A34: RED RIVER VALLEY | B34: 1628 | C34: 0 | D34: 347 | E34: 84 | F34: 142.5 | G34: 0 | H34: 0
A35: RIVER EAST TRANSCONA | B35: 7902 | C35: 0 | D35: 1504 | E35: 3716 | F35: 0 | G35: 1953.5 | H35: 529.5
A36: ROLLING RIVER | B36: 1763.4 | C36: 0 | D36: 0 | E36: 0 | F36: 0 | G36: 0 | H36: 0
A37: SEINE RIVER | B37: 2118 | C37: 0 | D37: 822 | E37: 762 | F37: 0 | G37: 668 | H37: 0
A38: SEVEN OAKS | B38: 6877.8 | C38: 0 | D38: 1071.1 | E38: 1863.5 | F38: 0 | G38: 1250.5 | H38: 270.8
A39: SOUTHWEST HORIZON | B39: 1447.6 | C39: 0 | D39: 0 | E39: 0 | F39: 0 | G39: 0 | H39: 0
A40: ST. JAMES-ASSINIBOIA | B40: 5366.5 | C40: 0 | D40: 1382.5 | E40: 538.29 | F40: 0 | G40: 443 | H40: 0
A41: SUNRISE | B41: 2042 | C41: 0 | D41: 0 | E41: 1619 | F41: 0 | G41: 762.5 | H41: 74
A42: SWAN VALLEY | B42: 928.1 | C42: 0 | D42: 0 | E42: 194.1 | F42: 0 | G42: 48.9 | H42: 0
A43: TURTLE MOUNTAIN | B43: 946 | C43: 0 | D43: 0 | E43: 0 | F43: 0 | G43: 0 | H43: 0
A44: TURTLE RIVER | B44: 615 | C44: 0 | D44: 34 | E44: 0 | F44: 0 | G44: 0 | H44: 0
A45: WESTERN | B45: 926 | C45: 0 | D45: 0 | E45: 798 | F45: 0 | G45: 293 | H45: 0
A46: WINNIPEG | B46: 17176.5 | C46: 0 | D46: 1406 | E46: 4735 | F46: 0 | G46: 2879 | H46: 447
A48: PROVINCE | B48: =SUM(B11:B46) -> 118742.59 | C48: =SUM(C11:C46) -> 5885.29 | D48: 13629.1 | E48: 22231.79 | F48: 247.5 | G48: 12995.9 | H48: 1466.8
A50: WHITESHELL | B50: 181 | C50: 0 | D50: 0 | E50: 0 | F50: 0 | G50: 0 | H50: 0
A52: (1) 90% or more of Regular Instruction enrolment is in one language program.
A53: (2) No one language program comprises 90% or more of Regular Instruction enrolment.

Sheet - 7 -
B2: =+'- 6 -'!B2 -> FRAME STUDENT STATISTICS | F2: PAGE 2 OF 2
B3: =+STATDATE -> ESTIMATE SEPTEMBER 30, 2022
B6: REGULAR INSTRUCTION (1) | E6: TOTAL
B8: SENIOR YEARS TECHNOLOGY | C8: TOTAL | E8: K-12 FTE ENROLMENT
A9: DIVISION / DISTRICT
A11: BEAUTIFUL PLAINS | B11: 0 | C11: =SUM('- 6 -'!$B11:H11,B11) -> 2050.5 | E11: =C11 -> 2050.5
A12: BORDER LAND | B12: 141.7 | C12: =SUM('- 6 -'!$B12:H12,B12) -> 2120.99 | E12: =C12 -> 2120.99
A13: BRANDON | B13: 391 | C13: =SUM('- 6 -'!$B13:H13,B13) -> 8747.5 | E13: 8747.5
A14: DSFM | B14: 27.71 | C14: =SUM('- 6 -'!$B14:H14,B14) -> 5913 | E14: 5913
A15: EVERGREEN | B15: 20 | C15: =SUM('- 6 -'!$B15:H15,B15) -> 1383 | E15: 1383
A16: FLIN FLON | B16: 0 | C16: =SUM('- 6 -'!$B16:H16,B16) -> 948 | E16: 948
A17: FORT LA BOSSE | B17: 25 | C17: =SUM('- 6 -'!$B17:H17,B17) -> 1476.5 | E17: 1476.5
A18: FRONTIER | B18: 59 | C18: =SUM('- 6 -'!$B18:H18,B18) -> 6271.5 | E18: 6271.5
A19: GARDEN VALLEY | B19: 126 | C19: =SUM('- 6 -'!$B19:H19,B19) -> 4126 | E19: 4126
A20: HANOVER | B20: 512.9 | C20: =SUM('- 6 -'!$B20:H20,B20) -> 7935.5 | E20: 7935.5
A21: INTERLAKE | B21: 0 | C21: =SUM('- 6 -'!$B21:H21,B21) -> 2914 | E21: 2914
A22: KELSEY | B22: 0 | C22: =SUM('- 6 -'!$B22:H22,B22) -> 1449 | E22: 1449
A23: LAKESHORE | B23: 14 | C23: =SUM('- 6 -'!$B23:H23,B23) -> 919 | E23: 919
A24: LORD SELKIRK | B24: 204 | C24: =SUM('- 6 -'!$B24:H24,B24) -> 3720 | E24: 3720
A25: LOUIS RIEL | B25: 115.6 | C25: =SUM('- 6 -'!$B25:H25,B25) -> 15243 | E25: 15243
A26: MOUNTAIN VIEW | B26: 151.6 | C26: =SUM('- 6 -'!$B26:H26,B26) -> 3036 | E26: 3036
A27: MYSTERY LAKE | B27: 160 | C27: =SUM('- 6 -'!$B27:H27,B27) -> 2787 | E27: 2787
A28: PARK WEST | B28: 0 | C28: =SUM('- 6 -'!$B28:H28,B28) -> 2074 | E28: 2074
A29: PEMBINA TRAILS | B29: 0 | C29: =SUM('- 6 -'!$B29:H29,B29) -> 14817.4 | E29: 14817.4
A30: PINE CREEK | B30: 53 | C30: =SUM('- 6 -'!$B30:H30,B30) -> 1105 | E30: 1105
A31: PORTAGE LA PRAIRIE | B31: 114 | C31: =SUM('- 6 -'!$B31:H31,B31) -> 3395 | E31: 3395
A32: PRAIRIE ROSE | B32: 0 | C32: =SUM('- 6 -'!$B32:H32,B32) -> 2422 | E32: 2422
A33: PRAIRIE SPIRIT | B33: 0 | C33: =SUM('- 6 -'!$B33:H33,B33) -> 2085 | E33: 2085
A34: RED RIVER VALLEY | B34: 25.2 | C34: =SUM('- 6 -'!$B34:H34,B34) -> 2226.7 | E34: 2226.7
A35: RIVER EAST TRANSCONA | B35: 886 | C35: =SUM('- 6 -'!$B35:H35,B35) -> 16491 | E35: 16491
A36: ROLLING RIVER | B36: 11.6 | C36: =SUM('- 6 -'!$B36:H36,B36) -> 1775 | E36: 1775
A37: SEINE RIVER | B37: 0 | C37: =SUM('- 6 -'!$B37:H37,B37) -> 4370 | E37: 4370
A38: SEVEN OAKS | B38: 199.7 | C38: =SUM('- 6 -'!$B38:H38,B38) -> 11533.4 | E38: 11533.4
A39: SOUTHWEST HORIZON | B39: 0 | C39: =SUM('- 6 -'!$B39:H39,B39) -> 1447.6 | E39: 1447.6
A40: ST. JAMES-ASSINIBOIA | B40: 235.71 | C40: =SUM('- 6 -'!$B40:H40,B40) -> 7966 | E40: 7966
A41: SUNRISE | B41: 0 | C41: =SUM('- 6 -'!$B41:H41,B41) -> 4497.5 | E41: 4497.5
A42: SWAN VALLEY | B42: 129.9 | C42: =SUM('- 6 -'!$B42:H42,B42) -> 1301 | E42: 1301
A43: TURTLE MOUNTAIN | B43: 26 | C43: =SUM('- 6 -'!$B43:H43,B43) -> 972 | E43: 972
A44: TURTLE RIVER | B44: 0 | C44: =SUM('- 6 -'!$B44:H44,B44) -> 649 | E44: 649
A45: WESTERN | B45: 35 | C45: =SUM('- 6 -'!$B45:H45,B45) -> 2052 | E45: 2052
A46: WINNIPEG | B46: 698 | C46: =SUM('- 6 -'!$B46:H46,B46) -> 27341.5 | E46: 27341.5
A48: PROVINCE | B48: =SUM(B11:B46) -> 4362.62 | C48: =SUM(C11:C46) -> 179561.59 | E48: =SUM(E11:E46) -> 179561.59
A50: WHITESHELL | B50: 0 | C50: =SUM('- 6 -'!$B50:H50,B50) -> 181 | E50: =C50 -> 181
A52: (1) Special Placement students are not reported separately. They are included in Regular Instruction Enrolment. As a result, total enrolment in Regular Instruction is equal to Total K-12 FTE enrolment.

Sheet - 8 -
B2: ENROLMENTS - HEADCOUNT, FRAME AND ELIGIBLE | BA2: ENROLMENTS - HEADCOUNT, FRAME AND ELIGIBLE | BB2: INSCRIPTIONS – ÉLÈVES PRÉSENTS, SELON LE SYSTÈME COMPTABLE FRAME, ET ADMISSIBLES
B3: ACTUAL AND ESTIMATES AS OF SEPTEMBER 30 | BA3: ACTUAL AND ESTIMATES AS OF SEPTEMBER 30 | BB3: CHIFFRES RÉELS ET PRÉVISIONS AU 30 SEPTEMBRE
B5: HEADCOUNT (1) | E5: FRAME (2) | F5: ELIGIBLE (3) | G5: ELIGIBLE (3)
B6: ACTUAL SEP. 30, 2021 | E6: ESTIMATE SEP. 30, 2022 | F6: ACTUAL SEP. 30, 2021 | G6: ACTUAL SEP. 30, 2020
B8: N-12 ENROLMENT | C8: NURSERY ENROLMENT | D8: K-12 ENROLMENT | E8: K-12 FTE ENROLMENT | F8: K-12 ENROLMENT | G8: K-12 ENROLMENT
A9: DIVISION / DISTRICT
A11: BEAUTIFUL PLAINS | B11: 1991 | C11: 0 | D11: 1991 | E11: ='- 7 -'!E11 -> 2050.5 | F11: 1911 | G11: 1900.3
A12: BORDER LAND | B12: 1993 | C12: 0 | D12: 1993 | E12: ='- 7 -'!E12 -> 2120.99 | F12: 1845.1 | G12: 1892
A13: BRANDON | B13: 9038 | C13: 0 | D13: 9038 | E13: ='- 7 -'!E13 -> 8747.5 | F13: 8650 | G13: 8478.9
A14: DSFM | B14: 5835 | C14: 43 | D14: 5792 | E14: ='- 7 -'!E14 -> 5913 | F14: 5530.1 | G14: 5514.5
A15: EVERGREEN | B15: 1443 | C15: 0 | D15: 1443 | E15: ='- 7 -'!E15 -> 1383 | F15: 1361.3 | G15: 1313.3
A16: FLIN FLON | B16: 930 | C16: 0 | D16: 930 | E16: ='- 7 -'!E16 -> 948 | F16: 869.6 | G16: 845.1
A17: FORT LA BOSSE | B17: 1486 | C17: 0 | D17: 1486 | E17: ='- 7 -'!E17 -> 1476.5 | F17: 1367 | G17: 1340.9
A18: FRONTIER | B18: 6679 | C18: 375 | D18: 6304 | E18: ='- 7 -'!E18 -> 6271.5 | F18: 2028.2 | G18: 2034.4
A19: GARDEN VALLEY | B19: 3644 | C19: 0 | D19: 3644 | E19: ='- 7 -'!E19 -> 4126 | F19: 3516.3 | G19: 3952.6
A20: HANOVER | B20: 7793 | C20: 0 | D20: 7793 | E20: ='- 7 -'!E20 -> 7935.5 | F20: 7511.3 | G20: 7470.9
A21: INTERLAKE | B21: 3025 | C21: 0 | D21: 3025 | E21: ='- 7 -'!E21 -> 2914 | F21: 2915 | G21: 2805.6
A22: KELSEY | B22: 1446 | C22: 0 | D22: 1446 | E22: ='- 7 -'!E22 -> 1449 | F22: 1388 | G22: 1411.6
A23: LAKESHORE | B23: 956 | C23: 0 | D23: 956 | E23: ='- 7 -'!E23 -> 919 | F23: 906.5 | G23: 874.5
A24: LORD SELKIRK | B24: 3805 | C24: 0 | D24: 3805 | E24: ='- 7 -'!E24 -> 3720 | F24: 3621.1 | G24: 3578.8
A25: LOUIS RIEL | B25: 15512 | C25: 0 | D25: 15512 | E25: ='- 7 -'!E25 -> 15243 | F25: 14773.1 | G25: 14509.4
A26: MOUNTAIN VIEW | B26: 3081 | C26: 0 | D26: 3081 | E26: ='- 7 -'!E26 -> 3036 | F26: 2874.4 | G26: 2846.7
A27: MYSTERY LAKE | B27: 2896 | C27: 0 | D27: 2896 | E27: ='- 7 -'!E27 -> 2787 | F27: 2750.1 | G27: 2803.3
A28: PARK WEST | B28: 2131 | C28: 41 | D28: 2090 | E28: ='- 7 -'!E28 -> 2074 | F28: 1522 | G28: 1440.5
A29: PEMBINA TRAILS | B29: 15276 | C29: 0 | D29: 15276 | E29: ='- 7 -'!E29 -> 14817.4 | F29: 14564.5 | G29: 14168.3
A30: PINE CREEK | B30: 1106 | C30: 0 | D30: 1106 | E30: ='- 7 -'!E30 -> 1105 | F30: 1045.9 | G30: 997.5
A31: PORTAGE LA PRAIRIE | B31: 3349 | C31: 0 | D31: 3349 | E31: ='- 7 -'!E31 -> 3395 | F31: 3002.6 | G31: 2955.6
A32: PRAIRIE ROSE | B32: 2345 | C32: 0 | D32: 2345 | E32: ='- 7 -'!E32 -> 2422 | F32: 2246.2 | G32: 2213.9
A33: PRAIRIE SPIRIT | B33: 2195 | C33: 0 | D33: 2195 | E33: ='- 7 -'!E33 -> 2085 | F33: 2038 | G33: 1956.5
A34: RED RIVER VALLEY | B34: 2276 | C34: 0 | D34: 2276 | E34: ='- 7 -'!E34 -> 2226.7 | F34: 2191.5 | G34: 2159.9
A35: RIVER EAST TRANSCONA | B35: 16934 | C35: 0 | D35: 16934 | E35: ='- 7 -'!E35 -> 16491 | F35: 16259.7 | G35: 15754.1
A36: ROLLING RIVER | B36: 1828 | C36: 0 | D36: 1828 | E36: ='- 7 -'!E36 -> 1775 | F36: 1642.5 | G36: 1600.5
A37: SEINE RIVER | B37: 4431 | C37: 0 | D37: 4431 | E37: ='- 7 -'!E37 -> 4370 | F37: 4250.4 | G37: 4073.7
A38: SEVEN OAKS | B38: 11667 | C38: 0 | D38: 11667 | E38: ='- 7 -'!E38 -> 11533.4 | F38: 11154.1 | G38: 11007.1
A39: SOUTHWEST HORIZON | B39: 1533 | C39: 0 | D39: 1533 | E39: ='- 7 -'!E39 -> 1447.6 | F39: 1464.7 | G39: 1460.3
A40: ST. JAMES-ASSINIBOIA | B40: 8304 | C40: 0 | D40: 8304 | E40: ='- 7 -'!E40 -> 7966 | F40: 7917.4 | G40: 7881.9
A41: SUNRISE | B41: 4668 | C41: 0 | D41: 4668 | E41: ='- 7 -'!E41 -> 4497.5 | F41: 4466.4 | G41: 4308.5
A42: SWAN VALLEY | B42: 1363 | C42: 0 | D42: 1363 | E42: ='- 7 -'!E42 -> 1301 | F42: 1281.5 | G42: 1265.2
A43: TURTLE MOUNTAIN | B43: 1051 | C43: 0 | D43: 1051 | E43: ='- 7 -'!E43 -> 972 | F43: 1010.5 | G43: 964.9
A44: TURTLE RIVER | B44: 673 | C44: 5 | D44: 668 | E44: ='- 7 -'!E44 -> 649 | F44: 643 | G44: 648
A45: WESTERN | B45: 1867 | C45: 0 | D45: 1867 | E45: ='- 7 -'!E45 -> 2052 | F45: 1807.1 | G45: 1783
A46: WINNIPEG | B46: 29511 | C46: 1243 | D46: 28268 | E46: ='- 7 -'!E46 -> 27341.5 | F46: 26729.6 | G46: 26958.2
A48: PROVINCE | B48: =SUM(B11:B46) -> 184061 | C48: 1707 | D48: 182354 | E48: 179561.59 | F48: 169055.7 | G48: 167170.4
A50: WHITESHELL | B50: 197 | C50: 18 | D50: 179 | E50: ='- 7 -'!E50 -> 181 | F50: 173 | G50: 184
A52: (1) Pupils taught in schools, whether or not they are counted for grant purposes.
A53: (2) The total number of pupils enrolled in schools adjusted for full time equivalence (FTE). Full time equivalent means pupils are counted on the basis of time attending school - eg. Kindergarten as 1/2. This total is the same as reported on page 7.
A55: (3) Provincially supported pupils (actual September 30, 2021 for 2022/23 and actual September 30, 2020 for 2021/22).

Sheet - 9 -
B2: PUPIL / TEACHER RATIOS | BA2: PUPIL / TEACHER RATIOS | BB2: RAPPORTS ÉLÈVES-ENSEIGNANT
B3: ESTIMATE SEPTEMBER 30, 2022
B7: FRAME PUPIL / TEACHER RATIOS
B8: REGULAR INSTRUCTION (1) | C8: EDUCATOR (2)
A9: DIVISION / DISTRICT
A11: BEAUTIFUL PLAINS | B11: 16.40662506 | C11: 14.19227575
A12: BORDER LAND | B12: 13.65649346 | C12: 11.0537315
A13: BRANDON | B13: 16.50970104 | C13: 12.93453992
A14: DSFM | B14: 14.46747082 | C14: 11.57595928
A15: EVERGREEN | B15: 14.39275679 | C15: 11.80134824
A16: FLIN FLON | B16: 14.54880295 | C16: 12
A17: FORT LA BOSSE | B17: 15.04790053 | C17: 12.97223687
A18: FRONTIER | B18: 14.67635496 | C18: 11.54695929
A19: GARDEN VALLEY | B19: 19.10185185 | C19: 15.19145803
A20: HANOVER | B20: 17.24752497 | C20: 13.93708947
A21: INTERLAKE | B21: 17.51096689 | C21: 13.10959151
A22: KELSEY | B22: 16.11970186 | C22: 12.43349923
A23: LAKESHORE | B23: 14.76305221 | C23: 11.44458281
A24: LORD SELKIRK | B24: 14.74727453 | C24: 11.74427782
A25: LOUIS RIEL | B25: 18.22283431 | C25: 13.81672691
A26: MOUNTAIN VIEW | B26: 16.24832754 | C26: 13.02612949
A27: MYSTERY LAKE | B27: 15.10569106 | C27: 12.01293103
A28: PARK WEST | B28: 14.8312357 | C28: 12.2222877
A29: PEMBINA TRAILS | B29: 18.07462887 | C29: 14.43192333
A30: PINE CREEK | B30: 15.17857143 | C30: 12.48587571
A31: PORTAGE LA PRAIRIE | B31: 16.49900374 | C31: 12.97485286
A32: PRAIRIE ROSE | B32: 15.64599483 | C32: 12.69791339
A33: PRAIRIE SPIRIT | B33: 15.76261576 | C33: 12.87394647
A34: RED RIVER VALLEY | B34: 15.97918909 | C34: 12.50884782
A35: RIVER EAST TRANSCONA | B35: 17.79194718 | C35: 13.91199447
A36: ROLLING RIVER | B36: 16.19895049 | C36: 13.27301279
A37: SEINE RIVER | B37: 17.91350687 | C37: 13.77896894
A38: SEVEN OAKS | B38: 17.05745766 | C38: 13.94944364
A39: SOUTHWEST HORIZON | B39: 13.72522992 | C39: 11.5484643
A40: ST. JAMES-ASSINIBOIA | B40: 17.17328504 | C40: 13.06394214
A41: SUNRISE | B41: 16.09641745 | C41: 12.50312752
A42: SWAN VALLEY | B42: 14.68397291 | C42: 11.69858826
A43: TURTLE MOUNTAIN | B43: 15.69007264 | C43: 12.73751802
A44: TURTLE RIVER | B44: 11.84738956 | C44: 10.00616713
A45: WESTERN | B45: 17.3237653 | C45: 14.41973227
A46: WINNIPEG | B46: 17.56386949 | C46: 12.76226796
A48: PROVINCE | B48: 16.76478154 | C48: 13.11247786
A50: WHITESHELL | B50: 11.67741935 | C50: 10.1971831
A52: (1) Based on object code 330 instructional-teaching personnel and FTE students in Function 100. Included are teachers in physical education, music, EAL, etc. in addition to regular classroom teachers. School-based administrative personnel and Special Placement classroom teachers are excluded.
A55: (2) Based on total instructional-teaching (excluding Community Education and Adult Learning Centres) as well as school-based administrative staff - eg. department heads, coordinators, principals and vice-principals - and K-12 FTE enrolment. Division administrators (Function 500) are excluded.

Sheet - 10 -
C2: =OPYEAR -> OPERATING FUND 2022/2023 BUDGET
C5: EXPENSE BY FUNCTION AND OBJECT | BA5: EXPENSE BY FUNCTION AND OBJECT | BB5: DÉPENSES PAR FONCTION ET PAR OBJET
C10: OBJECT
C12: SALARIES | D12: EMPLOYEE BENEFITS | E12: SERVICES | F12: SUPPLIES AND MATERIALS | G12: DEBT SERVICES | H12: BAD DEBT EXPENSE | I12: TRANSFERS | K12: TOTALS
A13: FUNCTION | N13: =IF($N$27=0,"","Variance") -> 
A15: 100 | B15: REGULAR INSTRUCTION | C15: ='- 12 -'!B22 -> 1278262691 | D15: ='- 12 -'!B23 -> 82778746 | E15: ='- 12 -'!B40 -> 33325024 | F15: ='- 12 -'!B46 -> 78676042 | K15: =SUM(C15:F15) -> 1473042503 | N15: =IF($N$27=0,"",K15-'- 12 -'!$B$51) -> 
A16: 200 | B16: STUDENT SUPPORT SERVICES | C16: ='- 12 -'!D22 -> 446162678 | D16: ='- 12 -'!D23 -> 47239179 | E16: ='- 12 -'!D40 -> 11788886 | F16: ='- 12 -'!D46 -> 5007210 | K16: =SUM(C16:F16) -> 510197953 | N16: =IF($N$27=0,"",K16-'- 12 -'!$D$51) -> 
A17: 300 | B17: ADULT LEARNING CENTRES | C17: ='- 12 -'!F22 -> 9981275 | D17: ='- 12 -'!F23 -> 704004 | E17: ='- 12 -'!F40 -> 1108670 | F17: ='- 12 -'!F46 -> 415747 | I17: ='- 12 -'!F48 -> 27000 | J17: (1) | K17: =SUM(C17:F17,I17) -> 12236696 | N17: =IF($N$27=0,"",K17-'- 12 -'!$F$51) -> 
A18: 400 | B18: COMMUNITY EDUCATION & SERVICES | C18: ='- 12 -'!H22 -> 16296894 | D18: ='- 12 -'!H23 -> 1671635 | E18: ='- 12 -'!H40 -> 1684803 | F18: ='- 12 -'!H46 -> 1584119 | K18: =SUM(C18:F18) -> 21237451 | N18: =IF($N$27=0,"",K18-'- 12 -'!$H$51) -> 
A19: 500 | B19: DIVISIONAL ADMINISTRATION | C19: ='- 12 -'!J22 -> 53020685 | D19: ='- 12 -'!J23 -> 7755720 | E19: ='- 12 -'!J40 -> 19588565 | F19: ='- 12 -'!J46 -> 2830726 | I19: ='- 12 -'!J48 -> -27000 | J19: (1) | K19: =SUM(C19:F19,I19) -> 83168696 | N19: =IF($N$27=0,"",K19-'- 12 -'!$J$51) -> 
L20: - 10 -
A21: 600 | B21: INSTRUCTIONAL AND OTHER SUPPORT SERVICES | C21: ='- 13 -'!B22 -> 55643440 | D21: ='- 13 -'!B23 -> 5965978 | E21: ='- 13 -'!B40 -> 15211927 | F21: ='- 13 -'!B46 -> 8036493 | K21: =SUM(C21:F21) -> 84857838 | N21: =IF($N$27=0,"",K21-'- 13 -'!$B$54) -> 
A22: 700 | B22: TRANSPORTATION OF PUPILS | C22: ='- 13 -'!D22 -> 52795096 | D22: ='- 13 -'!D23 -> 8459421 | E22: ='- 13 -'!D40 -> 32330707 | F22: ='- 13 -'!D46 -> 21918847 | K22: =SUM(C22:F22) -> 115504071 | N22: =IF($N$27=0,"",K22-'- 13 -'!$D$54) -> 
A23: 800 | B23: OPERATIONS AND MAINTENANCE | C23: ='- 13 -'!F22 -> 133522129 | D23: ='- 13 -'!F23 -> 23364512 | E23: ='- 13 -'!F40 -> 111856811 | F23: ='- 13 -'!F46 -> 27406321 | I23: ='- 13 -'!F52 -> 0 | K23: =SUM(C23:F23,I23) -> 296149773 | N23: =IF($N$27=0,"",K23-'- 13 -'!$F$54) -> 
A24: 900 | B24: FISCAL | G24: 2163384 | H24: 8000 | I24: 42919688 | J24: (2) | K24: =SUM(G24:I24) -> 45091072 | N24: =IF($N$27=0,"",K24-'- 13 -'!$H$54) -> 
B27: TOTALS | C27: =SUM(C15:C24) -> 2045684888 | D27: =SUM(D15:D24) -> 177939195 | E27: =SUM(E15:E24) -> 226895393 | F27: =SUM(F15:F24) -> 145875505 | G27: =G24 -> 2163384 | H27: =H24 -> 8000 | I27: =SUM(I15:I24) -> 42919688 | K27: =SUM(K15:K24) -> 2641486053 | N27: =K27-'- 3 -'!D48 -> 0
A30: (1) | B30: Reallocation of administration costs associated with Adult Learning Centre operations from Function 500 to Function 300.
A31: (2) | B31: Health and Post Secondary Education Tax Levy

Sheet - 11 -
U23: - 11 -
G25: 2794500

Sheet - 12 -
D2: =OPYEAR -> OPERATING FUND 2022/2023 BUDGET | K2: PAGE 1 OF 2
B4: EXPENSE BY 2ND LEVEL OBJECT | BA4: EXPENSE BY 2ND LEVEL OBJECT | BB4: DÉPENSES PAR OBJET DE DEUXIÈME CATÉGORIE EXPRIMÉES
B5: AS A PERCENTAGE OF TOTAL OPERATING FUND EXPENSES | BA5: AS A PERCENTAGE OF TOTAL OPERATING FUND EXPENSES | BB5: EN POURCENTAGE DU TOTAL DES DÉPENSES DU FONDS DE FONCTIONNEMENT
B7: FUNCTION
B9: REGULAR INSTRUCTION | D9: STUDENT SUPPORTSERVICES | F9: ADULT LEARNING CENTRES | H9: COMMUNITY EDUCATION | J9: DIVISIONAL ADMINISTRATION
A11: OBJECT | B11: AMOUNT | C11: % | D11: AMOUNT | E11: % | F11: AMOUNT | G11: % | H11: AMOUNT | I11: % | J11: AMOUNT | K11: %
A13: SALARIES
A14: TRUSTEES REMUNERATION | J14: 4238088
A15: EXECUTIVE MANAGERIAL, & SUPERVISORY | B15: 108162456 | C15: =B15/'- 13 -'!$J$54*100 -> 4.094757793 | D15: 12652576 | E15: =D15/'- 13 -'!$J$54*100 -> 0.4789946169 | F15: 1077234 | G15: =F15/'- 13 -'!$J$54*100 -> 0.0407813624 | H15: 841935 | I15: =H15/'- 13 -'!$J$54*100 -> 0.0318735357 | J15: 21732694 | K15: =J15/'- 13 -'!$J$54*100 -> 0.8227449838
A16: INSTRUCTIONAL - TEACHING | B16: 1077396524 | C16: =B16/'- 13 -'!$J$54*100 -> 40.78751515 | D16: 180327925 | E16: =D16/'- 13 -'!$J$54*100 -> 6.826760444 | F16: 7952157 | G16: =F16/'- 13 -'!$J$54*100 -> 0.3010486083 | H16: 8612412 | I16: =H16/'- 13 -'!$J$54*100 -> 0.3260441974 | K16: =J16/'- 13 -'!$J$54*100 -> 0
A17: INSTRUCTIONAL - OTHER | B17: 24698347 | C17: =B17/'- 13 -'!$J$54*100 -> 0.9350171269 | D17: 198714296 | E17: =D17/'- 13 -'!$J$54*100 -> 7.522822079 | F17: 395627 | G17: =F17/'- 13 -'!$J$54*100 -> 0.01497744043 | H17: 4346419 | I17: =H17/'- 13 -'!$J$54*100 -> 0.1645444614 | K17: =J17/'- 13 -'!$J$54*100 -> 0
A18: TECHNICAL, SPECIALIZED AND SERVICE | B18: 9029651 | C18: =B18/'- 13 -'!$J$54*100 -> 0.3418398136 | D18: 2137150 | E18: =D18/'- 13 -'!$J$54*100 -> 0.080907109 | F18: 21758 | G18: =F18/'- 13 -'!$J$54*100 -> 0.0008237030052 | H18: 1366979 | I18: =H18/'- 13 -'!$J$54*100 -> 0.05175037735 | J18: 8164253 | K18: =J18/'- 13 -'!$J$54*100 -> 0.3090780279
A19: SECRETARIAL, CLERICAL AND OTHER | B19: 44829360 | C19: =B19/'- 13 -'!$J$54*100 -> 1.697126508 | D19: 2839679 | E19: =D19/'- 13 -'!$J$54*100 -> 0.1075030851 | F19: 534499 | G19: =F19/'- 13 -'!$J$54*100 -> 0.02023478411 | H19: 614821 | I19: =H19/'- 13 -'!$J$54*100 -> 0.02327557245 | J19: 16852373 | K19: =J19/'- 13 -'!$J$54*100 -> 0.6379883392
A20: CLINICIAN | D20: 49331399 | E20: =D20/'- 13 -'!$J$54*100 -> 1.86756235 | H20: 513828
A21: INFORMATION TECHNOLOGY | B21: 14146353 | C21: =B21/'- 13 -'!$J$54*100 -> 0.5355452467 | D21: 159653 | E21: =D21/'- 13 -'!$J$54*100 -> 0.006044059927 | F21: 0 | G21: =F21/'- 13 -'!$J$54*100 -> 0 | H21: 500 | I21: =H21/'- 13 -'!$J$54*100 -> 1.892873897e-05 | J21: 2033277 | K21: =J21/'- 13 -'!$J$54*100 -> 0.07697473919
A22: TOTAL SALARIES | B22: =SUM(B14:B21) -> 1278262691 | C22: =B22/'- 13 -'!$J$54*100 -> 48.39180164 | D22: =SUM(D14:D21) -> 446162678 | E22: =D22/'- 13 -'!$J$54*100 -> 16.89059374 | F22: =SUM(F14:F21) -> 9981275 | G22: =F22/'- 13 -'!$J$54*100 -> 0.3778658982 | H22: =SUM(H14:H21) -> 16296894 | I22: =H22/'- 13 -'!$J$54*100 -> 0.6169593052 | J22: =SUM(J14:J21) -> 53020685 | K22: =J22/'- 13 -'!$J$54*100 -> 2.007229413
A23: EMPLOYEE BENEFITS AND ALLOWANCES | B23: 82778746 | C23: =B23/'- 13 -'!$J$54*100 -> 3.133794551 | D23: 47239179 | E23: =D23/'- 13 -'!$J$54*100 -> 1.788356177 | F23: 704004 | G23: =F23/'- 13 -'!$J$54*100 -> 0.0266518159 | H23: 1671635 | I23: =H23/'- 13 -'!$J$54*100 -> 0.06328388515 | J23: 7755720 | K23: =J23/'- 13 -'!$J$54*100 -> 0.2936119989
A24: SERVICES
A25: PROFESSIONAL, TECHNICAL & SPECIALIZED | B25: 5133194 | C25: =B25/'- 13 -'!$J$54*100 -> 0.1943297787 | D25: 7204403 | E25: =D25/'- 13 -'!$J$54*100 -> 0.2727405277 | F25: 47949 | G25: =F25/'- 13 -'!$J$54*100 -> 0.00181522821 | H25: 904484 | I25: =H25/'- 13 -'!$J$54*100 -> 0.03424148308 | J25: 5380633 | K25: =J25/'- 13 -'!$J$54*100 -> 0.2036971951
A26: COMMUNICATIONS | B26: 3819062 | C26: =B26/'- 13 -'!$J$54*100 -> 0.1445800554 | D26: 335910 | E26: =D26/'- 13 -'!$J$54*100 -> 0.01271670542 | F26: 65615 | G26: =F26/'- 13 -'!$J$54*100 -> 0.002484018416 | H26: 19887 | I26: =H26/'- 13 -'!$J$54*100 -> 0.0007528716639 | J26: 1215305 | K26: =J26/'- 13 -'!$J$54*100 -> 0.04600838224 | L26: - 12 -
A27: UTILITY SERVICES | C27: =B27/'- 13 -'!$J$54*100 -> 0 | E27: =D27/'- 13 -'!$J$54*100 -> 0 | F27: 66578 | G27: =F27/'- 13 -'!$J$54*100 -> 0.002520475167 | I27: =H27/'- 13 -'!$J$54*100 -> 0 | K27: =J27/'- 13 -'!$J$54*100 -> 0
A28: TRAVEL AND MEETINGS | B28: 2669081 | C28: =B28/'- 13 -'!$J$54*100 -> 0.1010446751 | D28: 2324155 | E28: =D28/'- 13 -'!$J$54*100 -> 0.08798664666 | F28: 70779 | G28: =F28/'- 13 -'!$J$54*100 -> 0.002679514432 | H28: 79913 | I28: =H28/'- 13 -'!$J$54*100 -> 0.003025304635 | J28: 1909752 | K28: =J28/'- 13 -'!$J$54*100 -> 0.07229839423
A29: TRANSPORTATION OF PUPILS | C29: =B29/'- 13 -'!$J$54*100 -> 0 | E29: =D29/'- 13 -'!$J$54*100 -> 0 | G29: =F29/'- 13 -'!$J$54*100 -> 0 | I29: =H29/'- 13 -'!$J$54*100 -> 0 | K29: =J29/'- 13 -'!$J$54*100 -> 0
A30: TUITION | B30: 1047553 | C30: =B30/'- 13 -'!$J$54*100 -> 0.0396577146 | D30: 1028120 | E30: =D30/'- 13 -'!$J$54*100 -> 0.03892203023 | F30: 0 | G30: =F30/'- 13 -'!$J$54*100 -> 0 | I30: =H30/'- 13 -'!$J$54*100 -> 0 | K30: =J30/'- 13 -'!$J$54*100 -> 0
A31: PRINTING AND BINDING | B31: 309274 | C31: =B31/'- 13 -'!$J$54*100 -> 0.01170833363 | D31: 25500 | E31: =D31/'- 13 -'!$J$54*100 -> 0.0009653656877 | F31: 4215 | G31: =F31/'- 13 -'!$J$54*100 -> 0.0001595692695 | H31: 25050 | I31: =H31/'- 13 -'!$J$54*100 -> 0.0009483298226 | J31: 191900 | K31: =J31/'- 13 -'!$J$54*100 -> 0.007264850018
A32: INSURANCE AND BOND PREMIUMS | B32: 186731 | C32: =B32/'- 13 -'!$J$54*100 -> 0.007069164715 | D32: 47177 | E32: =D32/'- 13 -'!$J$54*100 -> 0.001786002237 | F32: 10895 | G32: =F32/'- 13 -'!$J$54*100 -> 0.0004124572222 | H32: 0 | I32: =H32/'- 13 -'!$J$54*100 -> 0 | J32: 2465259 | K32: =J32/'- 13 -'!$J$54*100 -> 0.09332848823
A33: MAINTENANCE AND REPAIR SERVICES | B33: 3080121 | C33: =B33/'- 13 -'!$J$54*100 -> 0.1166056128 | D33: 87940 | E33: =D33/'- 13 -'!$J$54*100 -> 0.003329186611 | F33: 52392 | G33: =F33/'- 13 -'!$J$54*100 -> 0.001983428985 | H33: 4060 | I33: =H33/'- 13 -'!$J$54*100 -> 0.0001537013605 | J33: 184367 | K33: =J33/'- 13 -'!$J$54*100 -> 0.006979669637
A34: RENTALS | B34: 3211031 | C34: =B34/'- 13 -'!$J$54*100 -> 0.1215615353 | D34: 190281 | E34: =D34/'- 13 -'!$J$54*100 -> 0.007203558761 | F34: 686078 | G34: =F34/'- 13 -'!$J$54*100 -> 0.02597318276 | H34: 587644 | I34: =H34/'- 13 -'!$J$54*100 -> 0.02224671977 | J34: 388106 | K34: =J34/'- 13 -'!$J$54*100 -> 0.01469271434
A35: PROPERTY TAXES | C35: =B35/'- 13 -'!$J$54*100 -> 0 | E35: =D35/'- 13 -'!$J$54*100 -> 0 | F35: 19075 | G35: =F35/'- 13 -'!$J$54*100 -> 0.0007221313918 | I35: =H35/'- 13 -'!$J$54*100 -> 0 | K35: =J35/'- 13 -'!$J$54*100 -> 0
A36: ADVERTISING | B36: 330256 | C36: =B36/'- 13 -'!$J$54*100 -> 0.01250265924 | D36: 30530 | E36: =D36/'- 13 -'!$J$54*100 -> 0.001155788802 | F36: 32721 | G36: =F36/'- 13 -'!$J$54*100 -> 0.001238734536 | H36: 21810 | I36: =H36/'- 13 -'!$J$54*100 -> 0.000825671594 | J36: 683195 | K36: =J36/'- 13 -'!$J$54*100 -> 0.02586403965
A37: DUES AND FEES | B37: 740936 | C37: =B37/'- 13 -'!$J$54*100 -> 0.02804996828 | D37: 145930 | E37: =D37/'- 13 -'!$J$54*100 -> 0.005524541757 | F37: 84 | G37: =F37/'- 13 -'!$J$54*100 -> 3.180028148e-06 | H37: 10355 | I37: =H37/'- 13 -'!$J$54*100 -> 0.0003920141841 | J37: 3208354 | K37: =J37/'- 13 -'!$J$54*100 -> 0.1214601908
A38: PROFESSIONAL AND STAFF DEVELOPMENT | B38: 484677 | C38: =B38/'- 13 -'!$J$54*100 -> 0.01834864884 | D38: 153154 | E38: =D38/'- 13 -'!$J$54*100 -> 0.005798024178 | F38: 45145 | G38: =F38/'- 13 -'!$J$54*100 -> 0.001709075842 | H38: 23700 | I38: =H38/'- 13 -'!$J$54*100 -> 0.0008972222274 | J38: 1244039 | K38: =J38/'- 13 -'!$J$54*100 -> 0.04709617901
A39: INFORMATION TECHNOLOGY SERVICES | B39: 12313108 | C39: =B39/'- 13 -'!$J$54*100 -> 0.4661432146 | D39: 215786 | E39: =D39/'- 13 -'!$J$54*100 -> 0.008169113736 | F39: 7144 | G39: =F39/'- 13 -'!$J$54*100 -> 0.0002704538225 | H39: 7900 | I39: =H39/'- 13 -'!$J$54*100 -> 0.0002990740758 | J39: 2717655 | K39: =J39/'- 13 -'!$J$54*100 -> 0.1028835642
A40: TOTAL SERVICES | B40: =SUM(B25:B39) -> 33325024 | C40: =B40/'- 13 -'!$J$54*100 -> 1.261601361 | D40: =SUM(D25:D39) -> 11788886 | E40: =D40/'- 13 -'!$J$54*100 -> 0.4462974918 | F40: =SUM(F25:F39) -> 1108670 | G40: =F40/'- 13 -'!$J$54*100 -> 0.04197145008 | H40: =SUM(H25:H39) -> 1684803 | I40: =H40/'- 13 -'!$J$54*100 -> 0.06378239242 | J40: =SUM(J25:J39) -> 19588565 | K40: =J40/'- 13 -'!$J$54*100 -> 0.7415736675
A41: SUPPLIES AND EQUIPMENT
A42: SUPPLIES | B42: 38561805 | C42: =B42/'- 13 -'!$J$54*100 -> 1.459852682 | D42: 3381253 | E42: =D42/'- 13 -'!$J$54*100 -> 0.1280057109 | F42: 200954 | G42: =F42/'- 13 -'!$J$54*100 -> 0.007607611623 | H42: 1511443 | I42: =H42/'- 13 -'!$J$54*100 -> 0.05721942004 | J42: 1224941 | K42: =J42/'- 13 -'!$J$54*100 -> 0.04637317689
A43: CURRICULAR AND MEDIA MATERIALS | B43: 10768594 | C43: =B43/'- 13 -'!$J$54*100 -> 0.4076718099 | D43: 609809 | E43: =D43/'- 13 -'!$J$54*100 -> 0.02308583077 | F43: 58376 | G43: =F43/'- 13 -'!$J$54*100 -> 0.002209968133 | H43: 42840 | I43: =H43/'- 13 -'!$J$54*100 -> 0.001621814355 | J43: 91660 | K43: =J43/'- 13 -'!$J$54*100 -> 0.003470016429
A44: MINOR EQUIPMENT | B44: 9306438 | C44: =B44/'- 13 -'!$J$54*100 -> 0.3523182714 | D44: 377031 | E44: =D44/'- 13 -'!$J$54*100 -> 0.01427344277 | F44: 37645 | G44: =F44/'- 13 -'!$J$54*100 -> 0.001425144757 | H44: 10580 | I44: =H44/'- 13 -'!$J$54*100 -> 0.0004005321167 | J44: 292274 | K44: =J44/'- 13 -'!$J$54*100 -> 0.01106475651
A45: INFORMATION TECHNOLOGY EQUIPMENT | B45: 20039205 | C45: =B45/'- 13 -'!$J$54*100 -> 0.7586337614 | D45: 639117 | E45: =D45/'- 13 -'!$J$54*100 -> 0.02419535773 | F45: 118772 | G45: =F45/'- 13 -'!$J$54*100 -> 0.004496408371 | H45: 19256 | I45: =H45/'- 13 -'!$J$54*100 -> 0.0007289835954 | J45: 1221851 | K45: =J45/'- 13 -'!$J$54*100 -> 0.04625619729
A46: TOTAL SUPPLIES AND EQUIPMENT | B46: =SUM(B42:B45) -> 78676042 | C46: =B46/'- 13 -'!$J$54*100 -> 2.978476525 | D46: =SUM(D42:D45) -> 5007210 | E46: =D46/'- 13 -'!$J$54*100 -> 0.1895603422 | F46: =SUM(F42:F45) -> 415747 | G46: =F46/'- 13 -'!$J$54*100 -> 0.01573913288 | H46: =SUM(H42:H45) -> 1584119 | I46: =H46/'- 13 -'!$J$54*100 -> 0.05997075011 | J46: =SUM(J42:J45) -> 2830726 | K46: =J46/'- 13 -'!$J$54*100 -> 0.1071641471
A47: TRANSFERS
A48: RECHARGE (1) | F48: 27000 | J48: -27000 | M48: =F48+J48+'- 13 -'!F48 -> 0
A49: TOTAL TRANSFERS | F49: =F48 -> 27000 | J49: =J48 -> -27000
A51: PROVINCE | B51: =SUM(B47,B46,B40,B23,B22) -> 1473042503 | C51: =B51/'- 13 -'!$J$54*100 -> 55.76567407 | D51: =SUM(D47,D46,D40,D23,D22) -> 510197953 | E51: =D51/'- 13 -'!$J$54*100 -> 19.31480775 | F51: =SUM(F49,F46,F40,F23,F22) -> 12236696 | G51: =F51/'- 13 -'!$J$54*100 -> 0.463250449 | H51: =SUM(H47,H46,H40,H23,H22) -> 21237451 | I51: =H51/'- 13 -'!$J$54*100 -> 0.8039963329 | J51: =SUM(J49,J46,J40,J23,J22) -> 83168696 | K51: =J51/'- 13 -'!$J$54*100 -> 3.148557075
A52: (1) Reallocation of administration costs associated with Adult Learning Centre operations from Function 500 to Function 300.

Sheet - 13 -
C2: =OPYEAR -> OPERATING FUND 2022/2023 BUDGET | K2: PAGE 2 OF 2
B4: =+'- 12 -'!B4 -> EXPENSE BY 2ND LEVEL OBJECT
B5: =+'- 12 -'!B5 -> AS A PERCENTAGE OF TOTAL OPERATING FUND EXPENSES
B7: FUNCTION
B9: INSTRUCTIONAL & OTHER SUPPORT SERVICES | D9: TRANSPORTATION OF PUPILS | F9: OPERATIONS AND MAINTENANCE | H9: FISCAL | J9: TOTAL
A11: OBJECT | B11: AMOUNT | C11: % | D11: AMOUNT | E11: % | F11: AMOUNT | G11: % | H11: AMOUNT | I11: % | J11: AMOUNT | K11: %
A13: SALARIES | M13: SALARIES | N13: =K22 -> 77.44447053
A14: TRUSTEES REMUNERATION | J14: =SUM(F14,D14,B14,'- 12 -'!J14,'- 12 -'!H14,'- 12 -'!F14,'- 12 -'!D14,'- 12 -'!B14) -> 4238088 | K14: =J14/$J$54*100 -> 0.160443323 | M14: EMPLOYEE BENEFITS | N14: =K23 -> 6.736329151
A15: EXECUTIVE MANAGERIAL, & SUPERVISORY | B15: 5245853 | C15: =B15/$J$54*100 -> 0.1985947643 | D15: 3493877 | E15: =D15/$J$54*100 -> 0.1322693715 | F15: 5602678 | G15: =F15/$J$54*100 -> 0.2121032588 | J15: =SUM(F15,D15,B15,'- 12 -'!J15,'- 12 -'!H15,'- 12 -'!F15,'- 12 -'!D15,'- 12 -'!B15) -> 158809303 | K15: 6.012119686 | M15: SERVICES | N15: =K40 -> 8.589687337
A16: INSTRUCTIONAL - TEACHING | B16: 25858605 | C16: =B16/$J$54*100 -> 0.9789415685 | E16: =D16/$J$54*100 -> 0 | G16: =F16/$J$54*100 -> 0 | J16: =SUM(F16,D16,B16,'- 12 -'!J16,'- 12 -'!H16,'- 12 -'!F16,'- 12 -'!D16,'- 12 -'!B16) -> 1300147623 | K16: 49.22030997 | M16: SUPPLIES & MATERIALS | N16: =K46 -> 5.522478714
A17: INSTRUCTIONAL - OTHER | B17: 16562223 | C17: =B17/$J$54*100 -> 0.627003992 | D17: 489009 | E17: =D17/$J$54*100 -> 0.01851264743 | G17: =F17/$J$54*100 -> 0 | J17: =SUM(F17,D17,B17,'- 12 -'!J17,'- 12 -'!H17,'- 12 -'!F17,'- 12 -'!D17,'- 12 -'!B17) -> 245205921 | K17: 9.282877747 | M17: DEBT SERVICES | N17: =K49 -> 0.08190026207
A18: TECHNICAL, SPECIALIZED AND SERVICE | B18: 5183547 | C18: =B18/$J$54*100 -> 0.1962360162 | D18: 46637813 | E18: =D18/$J$54*100 -> 1.765589977 | F18: 125813845 | G18: =F18/$J$54*100 -> 4.762994863 | J18: =SUM(F18,D18,B18,'- 12 -'!J18,'- 12 -'!H18,'- 12 -'!F18,'- 12 -'!D18,'- 12 -'!B18) -> 198354996 | K18: 7.509219887 | M18: TRANSFERS | N18: =K52-N17 -> 1.625134002
A19: SECRETARIAL, CLERICAL AND OTHER | B19: 2589990 | C19: =B19/$J$54*100 -> 0.09805048931 | D19: 2174397 | E19: =D19/$J$54*100 -> 0.08231718648 | F19: 2105606 | G19: =F19/$J$54*100 -> 0.07971293271 | J19: =SUM(F19,D19,B19,'- 12 -'!J19,'- 12 -'!H19,'- 12 -'!F19,'- 12 -'!D19,'- 12 -'!B19) -> 72540725 | K19: 2.746208897
A20: CLINICIAN | J20: =SUM(F20,D20,B20,'- 12 -'!J20,'- 12 -'!H20,'- 12 -'!F20,'- 12 -'!D20,'- 12 -'!B20) -> 49845227 | K20: 1.887014582 | N20: =SUM(N13:N18) -> 100
A21: INFORMATION TECHNOLOGY | B21: 203222 | C21: =B21/'- 13 -'!$J$54*100 -> 0.007693472383 | D21: 0 | E21: =D21/'- 13 -'!$J$54*100 -> 0 | F21: 0 | G21: =F21/'- 13 -'!$J$54*100 -> 0 | J21: =SUM(F21,D21,B21,'- 12 -'!J21,'- 12 -'!H21,'- 12 -'!F21,'- 12 -'!D21,'- 12 -'!B21) -> 16543005 | K21: 0.626276447
A22: TOTAL SALARIES | B22: =SUM(B14:B21) -> 55643440 | C22: =B22/$J$54*100 -> 2.106520303 | D22: =SUM(D14:D21) -> 52795096 | E22: =D22/$J$54*100 -> 1.998689183 | F22: =SUM(F14:F21) -> 133522129 | G22: =F22/$J$54*100 -> 5.054811054 | J22: =SUM(F22,D22,B22,'- 12 -'!J22,'- 12 -'!H22,'- 12 -'!F22,'- 12 -'!D22,'- 12 -'!B22) -> 2045684888 | K22: 77.44447053
A23: EMPLOYEE BENEFITS AND ALLOWANCES | B23: 5965978 | C23: =B23/$J$54*100 -> 0.2258568806 | D23: 8459421 | E23: =D23/$J$54*100 -> 0.320252344 | F23: 23364512 | G23: =F23/$J$54*100 -> 0.8845214978 | J23: =SUM(F23,D23,B23,'- 12 -'!J23,'- 12 -'!H23,'- 12 -'!F23,'- 12 -'!D23,'- 12 -'!B23) -> 177939195 | K23: 6.736329151
A24: SERVICES | M24: REGULAR INSTRUCTION | N24: ='- 12 -'!C51 -> 55.76567407
A25: PROFESSIONAL, TECHNICAL & SPECIALIZED | B25: 2314393 | C25: =B25/$J$54*100 -> 0.08761708196 | D25: 368015 | E25: =D25/$J$54*100 -> 0.01393211975 | F25: 5549831 | G25: =F25/$J$54*100 -> 0.2101026047 | J25: =SUM(F25,D25,B25,'- 12 -'!J25,'- 12 -'!H25,'- 12 -'!F25,'- 12 -'!D25,'- 12 -'!B25) -> 26902902 | K25: =J25/$J$54*100 -> 1.018476019 | L25: - 13 - | M25: STUDENT SUPPORT SERVICES | N25: ='- 12 -'!E51 -> 19.31480775
A26: COMMUNICATIONS | B26: 99885 | C26: 0.003781394185 | D26: 355905 | E26: 0.01347366569 | F26: 693409 | G26: 0.02625071593 | J26: =SUM(F26,D26,B26,'- 12 -'!J26,'- 12 -'!H26,'- 12 -'!F26,'- 12 -'!D26,'- 12 -'!B26) -> 6604978 | K26: 0.250047809 | M26: ADULT LEARNING CENTRES | N26: ='- 12 -'!G51 -> 0.463250449
A27: UTILITY SERVICES | C27: 0 | E27: 0 | F27: 50897687 | G27: 1.926858063 | J27: =SUM(F27,D27,B27,'- 12 -'!J27,'- 12 -'!H27,'- 12 -'!F27,'- 12 -'!D27,'- 12 -'!B27) -> 50964265 | K27: 1.929378538 | M27: COMMUNITY EDUCATION | N27: ='- 12 -'!I51 -> 0.8039963329
A28: TRAVEL AND MEETINGS | B28: 1146336 | C28: 0.04339738984 | D28: 1843038 | E28: 0.06977277044 | F28: 905356 | G28: 0.0342744948 | J28: =SUM(F28,D28,B28,'- 12 -'!J28,'- 12 -'!H28,'- 12 -'!F28,'- 12 -'!D28,'- 12 -'!B28) -> 10948410 | K28: 0.4144791901 | M28: DIVISIONAL ADMINISTRATION | N28: ='- 12 -'!K51 -> 3.148557075
A29: TRANSPORTATION OF PUPILS | C29: 0 | D29: 22843258 | E29: 0.864788136 | G29: 0 | J29: =SUM(F29,D29,B29,'- 12 -'!J29,'- 12 -'!H29,'- 12 -'!F29,'- 12 -'!D29,'- 12 -'!B29) -> 22843258 | K29: 0.864788136 | M29: INSTRUCTIONAL & PUPIL SUPPORT SERVICES | N29: =C54 -> 3.212503731
A30: TUITION | B30: 6600 | C30: 0.0002498593545 | E30: 0 | G30: 0 | J30: =SUM(F30,D30,B30,'- 12 -'!J30,'- 12 -'!H30,'- 12 -'!F30,'- 12 -'!D30,'- 12 -'!B30) -> 2082273 | K30: 0.07882960418 | M30: TRANSPORTATION OF PUPILS | N30: =E54 -> 4.372692821
A31: PRINTING AND BINDING | B31: 26425 | C31: 0.001000383855 | D31: 28500 | E31: 0.001078938122 | F31: 7500 | G31: 0.0002839310846 | J31: =SUM(F31,D31,B31,'- 12 -'!J31,'- 12 -'!H31,'- 12 -'!F31,'- 12 -'!D31,'- 12 -'!B31) -> 618364 | K31: 0.02340970149 | M31: OPERATIONS & MAINTENANCE | N31: =G54 -> 11.2114835
A32: INSURANCE AND BOND PREMIUMS | B32: 160554 | C32: 0.006078169514 | D32: 1397650 | E32: 0.05291150405 | F32: 12715603 | G32: 0.4813806602 | J32: =SUM(F32,D32,B32,'- 12 -'!J32,'- 12 -'!H32,'- 12 -'!F32,'- 12 -'!D32,'- 12 -'!B32) -> 16983869 | K32: 0.6429664461 | M32: FISCAL | N32: =I54 -> 1.707034264
A33: MAINTENANCE AND REPAIR SERVICES | B33: 41980 | C33: 0.001589256924 | D33: 3455220 | E33: 0.130805915 | F33: 31447333 | G33: 1.190516716 | J33: =SUM(F33,D33,B33,'- 12 -'!J33,'- 12 -'!H33,'- 12 -'!F33,'- 12 -'!D33,'- 12 -'!B33) -> 38353413 | K33: 1.451963487
A34: RENTALS | B34: 193357 | C34: 0.007320008363 | D34: 1073139 | E34: 0.04062633603 | F34: 3293300 | G34: 0.1246760321 | J34: =SUM(F34,D34,B34,'- 12 -'!J34,'- 12 -'!H34,'- 12 -'!F34,'- 12 -'!D34,'- 12 -'!B34) -> 9622936 | K34: 0.3643000874 | N34: =SUM(N24:N32) -> 100
A35: PROPERTY TAXES | C35: 0 | E35: 0 | F35: 5500689 | G35: 0.2082422125 | J35: =SUM(F35,D35,B35,'- 12 -'!J35,'- 12 -'!H35,'- 12 -'!F35,'- 12 -'!D35,'- 12 -'!B35) -> 5519764 | K35: 0.2089643439
A36: ADVERTISING | B36: 14900 | C36: =B36/J54 -> 5.640764214e-06 | D36: 26225 | E36: =D36/J54 -> 9.928123592e-06 | F36: 45225 | G36: =F36/J54 -> 1.71210444e-05 | J36: =SUM(F36,D36,B36,'- 12 -'!J36,'- 12 -'!H36,'- 12 -'!F36,'- 12 -'!D36,'- 12 -'!B36) -> 1184862 | K36: 0.04485588704
A37: DUES AND FEES | B37: 182327 | C37: =B37/$J$54*100 -> 0.006902440382 | D37: 66255 | E37: =D37/$J$54*100 -> 0.002508247201 | F37: 119482 | G37: =F37/$J$54*100 -> 0.00452328718 | J37: =SUM(F37,D37,B37,'- 12 -'!J37,'- 12 -'!H37,'- 12 -'!F37,'- 12 -'!D37,'- 12 -'!B37) -> 4473723 | K37: 0.1693638698
A38: PROFESSIONAL AND STAFF DEVELOPMENT | B38: 10165859 | C38: =B38/'- 13 -'!$J$54*100 -> 0.3848537829 | D38: 257384 | E38: =D38/'- 13 -'!$J$54*100 -> 0.009743909104 | F38: 351424 | G38: =F38/'- 13 -'!$J$54*100 -> 0.01330402633 | J38: =SUM(F38,D38,B38,'- 12 -'!J38,'- 12 -'!H38,'- 12 -'!F38,'- 12 -'!D38,'- 12 -'!B38) -> 12725382 | K38: 0.4817508684
A39: INFORMATION TECHNOLOGY SERVICES | B39: 859311 | C39: =B39/$J$54*100 -> 0.03253134723 | D39: 616118 | E39: =D39/$J$54*100 -> 0.0233246736 | F39: 329972 | G39: =F39/$J$54*100 -> 0.01249190771 | J39: =SUM(F39,D39,B39,'- 12 -'!J39,'- 12 -'!H39,'- 12 -'!F39,'- 12 -'!D39,'- 12 -'!B39) -> 17066994 | K39: 0.646113349
A40: TOTAL SERVICES | B40: =SUM(B25:B39) -> 15211927 | C40: =B40/$J$54*100 -> 0.5758851909 | D40: =SUM(D25:D39) -> 32330707 | E40: =D40/$J$54*100 -> 1.223959027 | F40: =SUM(F25:F39) -> 111856811 | G40: =F40/$J$54*100 -> 4.234616756 | J40: =SUM(F40,D40,B40,'- 12 -'!J40,'- 12 -'!H40,'- 12 -'!F40,'- 12 -'!D40,'- 12 -'!B40) -> 226895393 | K40: 8.589687337
A41: SUPPLIES AND EQUIPMENT
A42: SUPPLIES | B42: 4557494 | C42: =B42/$J$54*100 -> 0.1725352286 | D42: 21296131 | E42: =D42/$J$54*100 -> 0.8062178097 | F42: 23593167 | G42: =F42/$J$54*100 -> 0.8931777994 | J42: =SUM(F42,D42,B42,'- 12 -'!J42,'- 12 -'!H42,'- 12 -'!F42,'- 12 -'!D42,'- 12 -'!B42) -> 94327188 | K42: =J42/$J$54*100 -> 3.57098944
A43: CURRICULAR AND MEDIA MATERIALS | B43: 2892060 | C43: =B43/$J$54*100 -> 0.1094860977 | D43: 28470 | E43: =D43/$J$54*100 -> 0.001077802397 | F43: 169600 | G43: =F43/$J$54*100 -> 0.00642062826 | J43: =SUM(F43,D43,B43,'- 12 -'!J43,'- 12 -'!H43,'- 12 -'!F43,'- 12 -'!D43,'- 12 -'!B43) -> 14661409 | K43: =J43/$J$54*100 -> 0.5550439679
A44: MINOR EQUIPMENT | B44: 229768 | C44: =B44/$J$54*100 -> 0.008698436993 | D44: 399946 | E44: =D44/$J$54*100 -> 0.01514094688 | F44: 3514339 | G44: =F44/$J$54*100 -> 0.1330440112 | J44: =SUM(F44,D44,B44,'- 12 -'!J44,'- 12 -'!H44,'- 12 -'!F44,'- 12 -'!D44,'- 12 -'!B44) -> 14168021 | K44: =J44/$J$54*100 -> 0.5363655426
A45: INFORMATION TECHNOLOGY EQUIPMENT | B45: 357171 | C45: =B45/$J$54*100 -> 0.01352159326 | D45: 194300 | E45: =D45/$J$54*100 -> 0.007355707965 | F45: 129215 | G45: =F45/$J$54*100 -> 0.004891754013 | J45: =SUM(F45,D45,B45,'- 12 -'!J45,'- 12 -'!H45,'- 12 -'!F45,'- 12 -'!D45,'- 12 -'!B45) -> 22718887 | K45: =J45/$J$54*100 -> 0.8600797636
A46: TOTAL SUPPLIES AND EQUIPMENT | B46: =SUM(B42:B45) -> 8036493 | C46: =B46/$J$54*100 -> 0.3042413565 | D46: =SUM(D42:D45) -> 21918847 | E46: =D46/$J$54*100 -> 0.8297922669 | F46: =SUM(F42:F45) -> 27406321 | G46: =F46/$J$54*100 -> 1.037534193 | J46: =SUM(F46,D46,B46,'- 12 -'!J46,'- 12 -'!H46,'- 12 -'!F46,'- 12 -'!D46,'- 12 -'!B46) -> 145875505 | K46: =J46/$J$54*100 -> 5.522478714
A47: TRANSFERS
A48: RECHARGE | F48: 0 | J48: ='- 12 -'!F48+'- 12 -'!J48+'- 13 -'!F48 -> 0
A49: DEBT SERVICES | H49: ='- 10 -'!G24 -> 2163384 | I49: =H49/$J$54*100 -> 0.08190026207 | J49: =H49 -> 2163384 | K49: =J49/$J$54*100 -> 0.08190026207
A50: BAD DEBT EXPENSE | H50: ='- 10 -'!H24 -> 8000 | J50: =H50 -> 8000
A51: OTHER GOVERNMENT AUTHORITIES | H51: ='- 10 -'!I24 -> 42919688 | I51: =H51/$J$54*100 -> 1.624831142 | J51: =H51 -> 42919688 | K51: =J51/$J$54*100 -> 1.624831142
A52: TOTAL TRANSFERS | F52: =F48 -> 0 | H52: =SUM(H49:H51) -> 45091072 | I52: =H52/$J$54*100 -> 1.707034264 | J52: =SUM(J48:J51) -> 45091072 | K52: =J52/$J$54*100 -> 1.707034264
A54: PROVINCE | B54: =SUM(B52,B46,B40,B23,B22) -> 84857838 | C54: =B54/$J$54*100 -> 3.212503731 | D54: =SUM(D52,D46,D40,D23,D22) -> 115504071 | E54: =D54/$J$54*100 -> 4.372692821 | F54: =SUM(F52,F46,F40,F23,F22) -> 296149773 | G54: =F54/$J$54*100 -> 11.2114835 | H54: =SUM(H52,H46,H40,H23,H22) -> 45091072 | I54: =H54/$J$54*100 -> 1.707034264 | J54: =SUM(J52,J46,J40,J23,J22) -> 2641486053 | K54: =J54/$J$54*100 -> 100

Sheet - 14 -
U23: - 14 -

Sheet - 15 -
B2: ANALYSIS OF EXPENSE BY FUNCTION | I2: PAGE 1 OF 3 | BA2: ANALYSIS OF EXPENSE BY FUNCTION | BB2: ANALYSE DES DÉPENSES PAR FONCTION
B3: OPERATING FUND 2022/2023 BUDGET
B6: REGULAR INSTRUCTION | E6: STUDENT SUPPORT SERVICES | H6: ADULT LEARNING CENTRES
D8: PER PUPIL | G8: PER PUPIL
A9: DIVISION / DISTRICT | B9: AMOUNT | C9: % | E9: AMOUNT | F9: % | H9: AMOUNT | I9: %
A11: BEAUTIFUL PLAINS | B11: =SUM('- 18 -'!B11,'- 18 -'!E11,'- 19 -'!B11,'- 19 -'!E11,'- 19 -'!H11,'- 20 -'!B11) -> 15943257 | C11: =B11/'- 3 -'!D11*100 -> 64.42139845 | D11: =B11/'- 7 -'!C11 -> 7775.302121 | E11: =SUM('- 21 -'!B11,'- 21 -'!E11,'- 21 -'!H11,'- 22 -'!B11,'- 22 -'!E11,'- 22 -'!H11) -> 3142424 | F11: =E11/'- 3 -'!D11*100 -> 12.69749014 | G11: =E11/'- 7 -'!E11 -> 1532.515972 | H11: =SUM('- 23 -'!D11,'- 23 -'!B11) -> 0 | I11: =H11/'- 3 -'!D11*100 -> 0
A12: BORDER LAND | B12: =SUM('- 18 -'!B12,'- 18 -'!E12,'- 19 -'!B12,'- 19 -'!E12,'- 19 -'!H12,'- 20 -'!B12) -> 21165456 | C12: =B12/'- 3 -'!D12*100 -> 57.84535096 | D12: =B12/'- 7 -'!C12 -> 9979.045634 | E12: =SUM('- 21 -'!B12,'- 21 -'!E12,'- 21 -'!H12,'- 22 -'!B12,'- 22 -'!E12,'- 22 -'!H12) -> 5909236 | F12: =E12/'- 3 -'!D12*100 -> 16.14998658 | G12: =E12/'- 7 -'!E12 -> 2786.074428 | H12: =SUM('- 23 -'!D12,'- 23 -'!B12) -> 378697 | I12: =H12/'- 3 -'!D12*100 -> 1.034981759
A13: BRANDON | B13: =SUM('- 18 -'!B13,'- 18 -'!E13,'- 19 -'!B13,'- 19 -'!E13,'- 19 -'!H13,'- 20 -'!B13) -> 70004600 | C13: =B13/'- 3 -'!D13*100 -> 61.19154843 | D13: =B13/'- 7 -'!C13 -> 8002.812232 | E13: =SUM('- 21 -'!B13,'- 21 -'!E13,'- 21 -'!H13,'- 22 -'!B13,'- 22 -'!E13,'- 22 -'!H13) -> 23331100 | F13: =E13/'- 3 -'!D13*100 -> 20.39389034 | G13: =E13/'- 7 -'!E13 -> 2667.173478 | H13: =SUM('- 23 -'!D13,'- 23 -'!B13) -> 0 | I13: =H13/'- 3 -'!D13*100 -> 0
A14: DSFM | B14: =SUM('- 18 -'!B14,'- 18 -'!E14,'- 19 -'!B14,'- 19 -'!E14,'- 19 -'!H14,'- 20 -'!B14) -> 59025132 | C14: =B14/'- 3 -'!D14*100 -> 56.26564907 | D14: =B14/'- 7 -'!C14 -> 9982.26484 | E14: =SUM('- 21 -'!B14,'- 21 -'!E14,'- 21 -'!H14,'- 22 -'!B14,'- 22 -'!E14,'- 22 -'!H14) -> 12111662 | F14: =E14/'- 3 -'!D14*100 -> 11.5454299 | G14: =E14/'- 7 -'!E14 -> 2048.310841 | H14: =SUM('- 23 -'!D14,'- 23 -'!B14) -> 260580 | I14: =H14/'- 3 -'!D14*100 -> 0.2483976289
A15: EVERGREEN | B15: =SUM('- 18 -'!B15,'- 18 -'!E15,'- 19 -'!B15,'- 19 -'!E15,'- 19 -'!H15,'- 20 -'!B15) -> 12263390 | C15: =B15/'- 3 -'!D15*100 -> 55.417507 | D15: =B15/'- 7 -'!C15 -> 8867.237889 | E15: =SUM('- 21 -'!B15,'- 21 -'!E15,'- 21 -'!H15,'- 22 -'!B15,'- 22 -'!E15,'- 22 -'!H15) -> 3542600 | F15: =E15/'- 3 -'!D15*100 -> 16.00879205 | G15: =E15/'- 7 -'!E15 -> 2561.532899 | H15: =SUM('- 23 -'!D15,'- 23 -'!B15) -> 0 | I15: =H15/'- 3 -'!D15*100 -> 0
A16: FLIN FLON | B16: =SUM('- 18 -'!B16,'- 18 -'!E16,'- 19 -'!B16,'- 19 -'!E16,'- 19 -'!H16,'- 20 -'!B16) -> 9280726 | C16: =B16/'- 3 -'!D16*100 -> 57.59080158 | D16: =B16/'- 7 -'!C16 -> 9789.795359 | E16: =SUM('- 21 -'!B16,'- 21 -'!E16,'- 21 -'!H16,'- 22 -'!B16,'- 22 -'!E16,'- 22 -'!H16) -> 2653639 | F16: =E16/'- 3 -'!D16*100 -> 16.46694419 | G16: =E16/'- 7 -'!E16 -> 2799.197257 | H16: =SUM('- 23 -'!D16,'- 23 -'!B16) -> 94000 | I16: =H16/'- 3 -'!D16*100 -> 0.5833094683
A17: FORT LA BOSSE | B17: =SUM('- 18 -'!B17,'- 18 -'!E17,'- 19 -'!B17,'- 19 -'!E17,'- 19 -'!H17,'- 20 -'!B17) -> 12334837 | C17: =B17/'- 3 -'!D17*100 -> 60.75535443 | D17: =B17/'- 7 -'!C17 -> 8354.105655 | E17: =SUM('- 21 -'!B17,'- 21 -'!E17,'- 21 -'!H17,'- 22 -'!B17,'- 22 -'!E17,'- 22 -'!H17) -> 2549270 | F17: =E17/'- 3 -'!D17*100 -> 12.55645311 | G17: =E17/'- 7 -'!E17 -> 1726.562817 | H17: =SUM('- 23 -'!D17,'- 23 -'!B17) -> 0 | I17: =H17/'- 3 -'!D17*100 -> 0
A18: FRONTIER | B18: =SUM('- 18 -'!B18,'- 18 -'!E18,'- 19 -'!B18,'- 19 -'!E18,'- 19 -'!H18,'- 20 -'!B18) -> 66480365 | C18: =B18/'- 3 -'!D18*100 -> 42.89413627 | D18: =B18/'- 7 -'!C18 -> 10600.39305 | E18: =SUM('- 21 -'!B18,'- 21 -'!E18,'- 21 -'!H18,'- 22 -'!B18,'- 22 -'!E18,'- 22 -'!H18) -> 25917729 | F18: =E18/'- 3 -'!D18*100 -> 16.72251046 | G18: =E18/'- 7 -'!E18 -> 4132.620426 | H18: =SUM('- 23 -'!D18,'- 23 -'!B18) -> 2373491 | I18: =H18/'- 3 -'!D18*100 -> 1.531412266
A19: GARDEN VALLEY | B19: =SUM('- 18 -'!B19,'- 18 -'!E19,'- 19 -'!B19,'- 19 -'!E19,'- 19 -'!H19,'- 20 -'!B19) -> 28759500 | C19: =B19/'- 3 -'!D19*100 -> 55.78649462 | D19: =B19/'- 7 -'!C19 -> 6970.310228 | E19: =SUM('- 21 -'!B19,'- 21 -'!E19,'- 21 -'!H19,'- 22 -'!B19,'- 22 -'!E19,'- 22 -'!H19) -> 10425100 | F19: =E19/'- 3 -'!D19*100 -> 20.22217998 | G19: =E19/'- 7 -'!E19 -> 2526.68444 | H19: =SUM('- 23 -'!D19,'- 23 -'!B19) -> 0 | I19: =H19/'- 3 -'!D19*100 -> 0
A20: HANOVER | B20: =SUM('- 18 -'!B20,'- 18 -'!E20,'- 19 -'!B20,'- 19 -'!E20,'- 19 -'!H20,'- 20 -'!B20) -> 59513800 | C20: =B20/'- 3 -'!D20*100 -> 61.68006558 | D20: =B20/'- 7 -'!C20 -> 7499.691261 | E20: =SUM('- 21 -'!B20,'- 21 -'!E20,'- 21 -'!H20,'- 22 -'!B20,'- 22 -'!E20,'- 22 -'!H20) -> 16499900 | F20: =E20/'- 3 -'!D20*100 -> 17.10048617 | G20: =E20/'- 7 -'!E20 -> 2079.251465 | H20: =SUM('- 23 -'!D20,'- 23 -'!B20) -> 0 | I20: =H20/'- 3 -'!D20*100 -> 0
A21: INTERLAKE | B21: =SUM('- 18 -'!B21,'- 18 -'!E21,'- 19 -'!B21,'- 19 -'!E21,'- 19 -'!H21,'- 20 -'!B21) -> 23103000 | C21: =B21/'- 3 -'!D21*100 -> 57.48273254 | D21: =B21/'- 7 -'!C21 -> 7928.277282 | E21: =SUM('- 21 -'!B21,'- 21 -'!E21,'- 21 -'!H21,'- 22 -'!B21,'- 22 -'!E21,'- 22 -'!H21) -> 7755000 | F21: =E21/'- 3 -'!D21*100 -> 19.29526862 | G21: =E21/'- 7 -'!E21 -> 2661.290323 | H21: =SUM('- 23 -'!D21,'- 23 -'!B21) -> 0 | I21: =H21/'- 3 -'!D21*100 -> 0
A22: KELSEY | B22: =SUM('- 18 -'!B22,'- 18 -'!E22,'- 19 -'!B22,'- 19 -'!E22,'- 19 -'!H22,'- 20 -'!B22) -> 11127387 | C22: =B22/'- 3 -'!D22*100 -> 53.06390853 | D22: =B22/'- 7 -'!C22 -> 7679.356108 | E22: =SUM('- 21 -'!B22,'- 21 -'!E22,'- 21 -'!H22,'- 22 -'!B22,'- 22 -'!E22,'- 22 -'!H22) -> 4285559 | F22: =E22/'- 3 -'!D22*100 -> 20.43682949 | G22: =E22/'- 7 -'!E22 -> 2957.597654 | H22: =SUM('- 23 -'!D22,'- 23 -'!B22) -> 709312 | I22: =H22/'- 3 -'!D22*100 -> 3.382543187
A23: LAKESHORE | B23: =SUM('- 18 -'!B23,'- 18 -'!E23,'- 19 -'!B23,'- 19 -'!E23,'- 19 -'!H23,'- 20 -'!B23) -> 8545334 | C23: =B23/'- 3 -'!D23*100 -> 51.24591675 | D23: =B23/'- 7 -'!C23 -> 9298.513602 | E23: =SUM('- 21 -'!B23,'- 21 -'!E23,'- 21 -'!H23,'- 22 -'!B23,'- 22 -'!E23,'- 22 -'!H23) -> 2957550 | F23: =E23/'- 3 -'!D23*100 -> 17.73627117 | G23: =E23/'- 7 -'!E23 -> 3218.226333 | H23: =SUM('- 23 -'!D23,'- 23 -'!B23) -> 275650 | I23: =H23/'- 3 -'!D23*100 -> 1.653058494
A24: LORD SELKIRK | B24: =SUM('- 18 -'!B24,'- 18 -'!E24,'- 19 -'!B24,'- 19 -'!E24,'- 19 -'!H24,'- 20 -'!B24) -> 36428831 | C24: =B24/'- 3 -'!D24*100 -> 59.05656358 | D24: =B24/'- 7 -'!C24 -> 9792.696505 | E24: =SUM('- 21 -'!B24,'- 21 -'!E24,'- 21 -'!H24,'- 22 -'!B24,'- 22 -'!E24,'- 22 -'!H24) -> 10772181 | F24: =E24/'- 3 -'!D24*100 -> 17.46331064 | G24: =E24/'- 7 -'!E24 -> 2895.747581 | H24: =SUM('- 23 -'!D24,'- 23 -'!B24) -> 374006 | I24: =H24/'- 3 -'!D24*100 -> 0.6063194593
A25: LOUIS RIEL | B25: =SUM('- 18 -'!B25,'- 18 -'!E25,'- 19 -'!B25,'- 19 -'!E25,'- 19 -'!H25,'- 20 -'!B25) -> 116467368 | C25: =B25/'- 3 -'!D25*100 -> 56.15765754 | D25: =B25/'- 7 -'!C25 -> 7640.711671 | E25: =SUM('- 21 -'!B25,'- 21 -'!E25,'- 21 -'!H25,'- 22 -'!B25,'- 22 -'!E25,'- 22 -'!H25) -> 42785928 | F25: =E25/'- 3 -'!D25*100 -> 20.63030644 | G25: =E25/'- 7 -'!E25 -> 2806.923047 | H25: =SUM('- 23 -'!D25,'- 23 -'!B25) -> 673708 | I25: =H25/'- 3 -'!D25*100 -> 0.3248451802
A26: MOUNTAIN VIEW | B26: =SUM('- 18 -'!B26,'- 18 -'!E26,'- 19 -'!B26,'- 19 -'!E26,'- 19 -'!H26,'- 20 -'!B26) -> 25413974 | C26: =B26/'- 3 -'!D26*100 -> 57.08276965 | D26: =B26/'- 7 -'!C26 -> 8370.874177 | E26: =SUM('- 21 -'!B26,'- 21 -'!E26,'- 21 -'!H26,'- 22 -'!B26,'- 22 -'!E26,'- 22 -'!H26) -> 6617710 | F26: =E26/'- 3 -'!D26*100 -> 14.8641537 | G26: =E26/'- 7 -'!E26 -> 2179.746377 | H26: =SUM('- 23 -'!D26,'- 23 -'!B26) -> 0 | I26: =H26/'- 3 -'!D26*100 -> 0
A27: MYSTERY LAKE | B27: =SUM('- 18 -'!B27,'- 18 -'!E27,'- 19 -'!B27,'- 19 -'!E27,'- 19 -'!H27,'- 20 -'!B27) -> 25240455 | C27: =B27/'- 3 -'!D27*100 -> 55.85631262 | D27: =B27/'- 7 -'!C27 -> 9056.496233 | E27: =SUM('- 21 -'!B27,'- 21 -'!E27,'- 21 -'!H27,'- 22 -'!B27,'- 22 -'!E27,'- 22 -'!H27) -> 9157594 | F27: =E27/'- 3 -'!D27*100 -> 20.26546009 | G27: =E27/'- 7 -'!E27 -> 3285.824901 | H27: =SUM('- 23 -'!D27,'- 23 -'!B27) -> 0 | I27: =H27/'- 3 -'!D27*100 -> 0
A28: PARK WEST | B28: =SUM('- 18 -'!B28,'- 18 -'!E28,'- 19 -'!B28,'- 19 -'!E28,'- 19 -'!H28,'- 20 -'!B28) -> 18731350 | C28: =B28/'- 3 -'!D28*100 -> 59.89893702 | D28: =B28/'- 7 -'!C28 -> 9031.509161 | E28: =SUM('- 21 -'!B28,'- 21 -'!E28,'- 21 -'!H28,'- 22 -'!B28,'- 22 -'!E28,'- 22 -'!H28) -> 4251394 | F28: =E28/'- 3 -'!D28*100 -> 13.59506824 | G28: =E28/'- 7 -'!E28 -> 2049.852459 | H28: =SUM('- 23 -'!D28,'- 23 -'!B28) -> 78457 | I28: =H28/'- 3 -'!D28*100 -> 0.2508890658
A29: PEMBINA TRAILS | B29: =SUM('- 18 -'!B29,'- 18 -'!E29,'- 19 -'!B29,'- 19 -'!E29,'- 19 -'!H29,'- 20 -'!B29) -> 112219745 | C29: =B29/'- 3 -'!D29*100 -> 58.24941728 | D29: =B29/'- 7 -'!C29 -> 7573.51121 | E29: =SUM('- 21 -'!B29,'- 21 -'!E29,'- 21 -'!H29,'- 22 -'!B29,'- 22 -'!E29,'- 22 -'!H29) -> 38333551 | F29: =E29/'- 3 -'!D29*100 -> 19.89763039 | G29: =E29/'- 7 -'!E29 -> 2587.06325 | H29: =SUM('- 23 -'!D29,'- 23 -'!B29) -> 0 | I29: =H29/'- 3 -'!D29*100 -> 0
A30: PINE CREEK | B30: =SUM('- 18 -'!B30,'- 18 -'!E30,'- 19 -'!B30,'- 19 -'!E30,'- 19 -'!H30,'- 20 -'!B30) -> 9829127 | C30: =B30/'- 3 -'!D30*100 -> 59.54572091 | D30: =B30/'- 7 -'!C30 -> 8895.137557 | E30: =SUM('- 21 -'!B30,'- 21 -'!E30,'- 21 -'!H30,'- 22 -'!B30,'- 22 -'!E30,'- 22 -'!H30) -> 2019161 | F30: =E30/'- 3 -'!D30*100 -> 12.23225596 | G30: =E30/'- 7 -'!E30 -> 1827.295023 | H30: =SUM('- 23 -'!D30,'- 23 -'!B30) -> 0 | I30: =H30/'- 3 -'!D30*100 -> 0
A31: PORTAGE LA PRAIRIE | B31: =SUM('- 18 -'!B31,'- 18 -'!E31,'- 19 -'!B31,'- 19 -'!E31,'- 19 -'!H31,'- 20 -'!B31) -> 26172258 | C31: =B31/'- 3 -'!D31*100 -> 60.01519077 | D31: =B31/'- 7 -'!C31 -> 7709.059794 | E31: =SUM('- 21 -'!B31,'- 21 -'!E31,'- 21 -'!H31,'- 22 -'!B31,'- 22 -'!E31,'- 22 -'!H31) -> 8205918 | F31: =E31/'- 3 -'!D31*100 -> 18.81686075 | G31: =E31/'- 7 -'!E31 -> 2417.059794 | H31: =SUM('- 23 -'!D31,'- 23 -'!B31) -> 0 | I31: =H31/'- 3 -'!D31*100 -> 0
A32: PRAIRIE ROSE | B32: =SUM('- 18 -'!B32,'- 18 -'!E32,'- 19 -'!B32,'- 19 -'!E32,'- 19 -'!H32,'- 20 -'!B32) -> 19878636 | C32: =B32/'- 3 -'!D32*100 -> 60.16413041 | D32: =B32/'- 7 -'!C32 -> 8207.529315 | E32: =SUM('- 21 -'!B32,'- 21 -'!E32,'- 21 -'!H32,'- 22 -'!B32,'- 22 -'!E32,'- 22 -'!H32) -> 4785252 | F32: =E32/'- 3 -'!D32*100 -> 14.48291147 | G32: =E32/'- 7 -'!E32 -> 1975.744013 | H32: =SUM('- 23 -'!D32,'- 23 -'!B32) -> 309232 | I32: =H32/'- 3 -'!D32*100 -> 0.9359130262
A33: PRAIRIE SPIRIT | B33: =SUM('- 18 -'!B33,'- 18 -'!E33,'- 19 -'!B33,'- 19 -'!E33,'- 19 -'!H33,'- 20 -'!B33) -> 17407687 | C33: =B33/'- 3 -'!D33*100 -> 57.98411251 | D33: =B33/'- 7 -'!C33 -> 8349.010552 | E33: =SUM('- 21 -'!B33,'- 21 -'!E33,'- 21 -'!H33,'- 22 -'!B33,'- 22 -'!E33,'- 22 -'!H33) -> 4472315 | F33: =E33/'- 3 -'!D33*100 -> 14.89705187 | G33: =E33/'- 7 -'!E33 -> 2144.995204 | H33: =SUM('- 23 -'!D33,'- 23 -'!B33) -> 0 | I33: =H33/'- 3 -'!D33*100 -> 0
A34: RED RIVER VALLEY | B34: =SUM('- 18 -'!B34,'- 18 -'!E34,'- 19 -'!B34,'- 19 -'!E34,'- 19 -'!H34,'- 20 -'!B34) -> 19530410 | C34: =B34/'- 3 -'!D34*100 -> 57.08620807 | D34: =B34/'- 7 -'!C34 -> 8771.010913 | E34: =SUM('- 21 -'!B34,'- 21 -'!E34,'- 21 -'!H34,'- 22 -'!B34,'- 22 -'!E34,'- 22 -'!H34) -> 6209843 | F34: =E34/'- 3 -'!D34*100 -> 18.15099578 | G34: =E34/'- 7 -'!E34 -> 2788.809898 | H34: =SUM('- 23 -'!D34,'- 23 -'!B34) -> 0 | I34: =H34/'- 3 -'!D34*100 -> 0
A35: RIVER EAST TRANSCONA | B35: =SUM('- 18 -'!B35,'- 18 -'!E35,'- 19 -'!B35,'- 19 -'!E35,'- 19 -'!H35,'- 20 -'!B35) -> 123809780 | C35: =B35/'- 3 -'!D35*100 -> 57.58080717 | D35: =B35/'- 7 -'!C35 -> 7507.718149 | E35: =SUM('- 21 -'!B35,'- 21 -'!E35,'- 21 -'!H35,'- 22 -'!B35,'- 22 -'!E35,'- 22 -'!H35) -> 42144258 | F35: =E35/'- 3 -'!D35*100 -> 19.60023185 | G35: =E35/'- 7 -'!E35 -> 2555.591413 | H35: =SUM('- 23 -'!D35,'- 23 -'!B35) -> 1664024 | I35: =H35/'- 3 -'!D35*100 -> 0.7738956089
A36: ROLLING RIVER | B36: =SUM('- 18 -'!B36,'- 18 -'!E36,'- 19 -'!B36,'- 19 -'!E36,'- 19 -'!H36,'- 20 -'!B36) -> 15298075 | C36: =B36/'- 3 -'!D36*100 -> 59.82359595 | D36: =B36/'- 7 -'!C36 -> 8618.633803 | E36: =SUM('- 21 -'!B36,'- 21 -'!E36,'- 21 -'!H36,'- 22 -'!B36,'- 22 -'!E36,'- 22 -'!H36) -> 3406055 | F36: =E36/'- 3 -'!D36*100 -> 13.31948354 | G36: =E36/'- 7 -'!E36 -> 1918.904225 | H36: =SUM('- 23 -'!D36,'- 23 -'!B36) -> 0 | I36: =H36/'- 3 -'!D36*100 -> 0
A37: SEINE RIVER | B37: =SUM('- 18 -'!B37,'- 18 -'!E37,'- 19 -'!B37,'- 19 -'!E37,'- 19 -'!H37,'- 20 -'!B37) -> 33016019 | C37: =B37/'- 3 -'!D37*100 -> 56.19128137 | D37: =B37/'- 7 -'!C37 -> 7555.153089 | E37: =SUM('- 21 -'!B37,'- 21 -'!E37,'- 21 -'!H37,'- 22 -'!B37,'- 22 -'!E37,'- 22 -'!H37) -> 10761780 | F37: =E37/'- 3 -'!D37*100 -> 18.3159032 | G37: =E37/'- 7 -'!E37 -> 2462.649886 | H37: =SUM('- 23 -'!D37,'- 23 -'!B37) -> 316499 | I37: =H37/'- 3 -'!D37*100 -> 0.5386622888
A38: SEVEN OAKS | B38: =SUM('- 18 -'!B38,'- 18 -'!E38,'- 19 -'!B38,'- 19 -'!E38,'- 19 -'!H38,'- 20 -'!B38) -> 94190251 | C38: =B38/'- 3 -'!D38*100 -> 58.76564205 | D38: =B38/'- 7 -'!C38 -> 8166.737562 | E38: =SUM('- 21 -'!B38,'- 21 -'!E38,'- 21 -'!H38,'- 22 -'!B38,'- 22 -'!E38,'- 22 -'!H38) -> 29197880 | F38: =E38/'- 3 -'!D38*100 -> 18.21666411 | G38: =E38/'- 7 -'!E38 -> 2531.593459 | H38: =SUM('- 23 -'!D38,'- 23 -'!B38) -> 2279985 | I38: =H38/'- 3 -'!D38*100 -> 1.422490979
A39: SOUTHWEST HORIZON | B39: =SUM('- 18 -'!B39,'- 18 -'!E39,'- 19 -'!B39,'- 19 -'!E39,'- 19 -'!H39,'- 20 -'!B39) -> 13823200 | C39: =B39/'- 3 -'!D39*100 -> 56.34624948 | D39: =B39/'- 7 -'!C39 -> 9549.046698 | E39: =SUM('- 21 -'!B39,'- 21 -'!E39,'- 21 -'!H39,'- 22 -'!B39,'- 22 -'!E39,'- 22 -'!H39) -> 3863100 | F39: =E39/'- 3 -'!D39*100 -> 15.74680221 | G39: =E39/'- 7 -'!E39 -> 2668.623929 | H39: =SUM('- 23 -'!D39,'- 23 -'!B39) -> 0 | I39: =H39/'- 3 -'!D39*100 -> 0
A40: ST. JAMES-ASSINIBOIA | B40: =SUM('- 18 -'!B40,'- 18 -'!E40,'- 19 -'!B40,'- 19 -'!E40,'- 19 -'!H40,'- 20 -'!B40) -> 65309532 | C40: =B40/'- 3 -'!D40*100 -> 55.4873033 | D40: =B40/'- 7 -'!C40 -> 8198.535275 | E40: =SUM('- 21 -'!B40,'- 21 -'!E40,'- 21 -'!H40,'- 22 -'!B40,'- 22 -'!E40,'- 22 -'!H40) -> 27315571 | F40: =E40/'- 3 -'!D40*100 -> 23.20744501 | G40: =E40/'- 7 -'!E40 -> 3429.019709 | H40: =SUM('- 23 -'!D40,'- 23 -'!B40) -> 0 | I40: =H40/'- 3 -'!D40*100 -> 0
A41: SUNRISE | B41: =SUM('- 18 -'!B41,'- 18 -'!E41,'- 19 -'!B41,'- 19 -'!E41,'- 19 -'!H41,'- 20 -'!B41) -> 38938009 | C41: =B41/'- 3 -'!D41*100 -> 54.59010604 | D41: =B41/'- 7 -'!C41 -> 8657.700723 | E41: =SUM('- 21 -'!B41,'- 21 -'!E41,'- 21 -'!H41,'- 22 -'!B41,'- 22 -'!E41,'- 22 -'!H41) -> 13812475 | F41: =E41/'- 3 -'!D41*100 -> 19.3647414 | G41: =E41/'- 7 -'!E41 -> 3071.145081 | H41: =SUM('- 23 -'!D41,'- 23 -'!B41) -> 1039094 | I41: =H41/'- 3 -'!D41*100 -> 1.456783567
A42: SWAN VALLEY | B42: =SUM('- 18 -'!B42,'- 18 -'!E42,'- 19 -'!B42,'- 19 -'!E42,'- 19 -'!H42,'- 20 -'!B42) -> 12376910 | C42: =B42/'- 3 -'!D42*100 -> 52.32459971 | D42: =B42/'- 7 -'!C42 -> 9513.382014 | E42: =SUM('- 21 -'!B42,'- 21 -'!E42,'- 21 -'!H42,'- 22 -'!B42,'- 22 -'!E42,'- 22 -'!H42) -> 4855724 | F42: =E42/'- 3 -'!D42*100 -> 20.52804897 | G42: =E42/'- 7 -'!E42 -> 3732.301307 | H42: =SUM('- 23 -'!D42,'- 23 -'!B42) -> 0 | I42: =H42/'- 3 -'!D42*100 -> 0
A43: TURTLE MOUNTAIN | B43: =SUM('- 18 -'!B43,'- 18 -'!E43,'- 19 -'!B43,'- 19 -'!E43,'- 19 -'!H43,'- 20 -'!B43) -> 8219973 | C43: =B43/'- 3 -'!D43*100 -> 56.67942693 | D43: =B43/'- 7 -'!C43 -> 8456.762346 | E43: =SUM('- 21 -'!B43,'- 21 -'!E43,'- 21 -'!H43,'- 22 -'!B43,'- 22 -'!E43,'- 22 -'!H43) -> 2574292 | F43: =E43/'- 3 -'!D43*100 -> 17.75059302 | G43: =E43/'- 7 -'!E43 -> 2648.44856 | H43: =SUM('- 23 -'!D43,'- 23 -'!B43) -> 206622 | I43: =H43/'- 3 -'!D43*100 -> 1.424726888
A44: TURTLE RIVER | B44: =SUM('- 18 -'!B44,'- 18 -'!E44,'- 19 -'!B44,'- 19 -'!E44,'- 19 -'!H44,'- 20 -'!B44) -> 6713098 | C44: =B44/'- 3 -'!D44*100 -> 55.65802906 | D44: =B44/'- 7 -'!C44 -> 10343.75655 | E44: =SUM('- 21 -'!B44,'- 21 -'!E44,'- 21 -'!H44,'- 22 -'!B44,'- 22 -'!E44,'- 22 -'!H44) -> 2008881 | F44: =E44/'- 3 -'!D44*100 -> 16.65555263 | G44: =E44/'- 7 -'!E44 -> 3095.348228 | H44: =SUM('- 23 -'!D44,'- 23 -'!B44) -> 0 | I44: =H44/'- 3 -'!D44*100 -> 0
A45: WESTERN | B45: =SUM('- 18 -'!B45,'- 18 -'!E45,'- 19 -'!B45,'- 19 -'!E45,'- 19 -'!H45,'- 20 -'!B45) -> 15438538 | C45: =B45/'- 3 -'!D45*100 -> 61.68419472 | D45: =B45/'- 7 -'!C45 -> 7523.653996 | E45: =SUM('- 21 -'!B45,'- 21 -'!E45,'- 21 -'!H45,'- 22 -'!B45,'- 22 -'!E45,'- 22 -'!H45) -> 3905866 | F45: =E45/'- 3 -'!D45*100 -> 15.60576519 | G45: =E45/'- 7 -'!E45 -> 1903.44347 | H45: =SUM('- 23 -'!D45,'- 23 -'!B45) -> 418639 | I45: =H45/'- 3 -'!D45*100 -> 1.672659004
A46: WINNIPEG | B46: =SUM('- 18 -'!B46,'- 18 -'!E46,'- 19 -'!B46,'- 19 -'!E46,'- 19 -'!H46,'- 20 -'!B46) -> 221042493 | C46: =B46/'- 3 -'!D46*100 -> 51.06208776 | D46: =B46/'- 7 -'!C46 -> 8084.504983 | E46: =SUM('- 21 -'!B46,'- 21 -'!E46,'- 21 -'!H46,'- 22 -'!B46,'- 22 -'!E46,'- 22 -'!H46) -> 107660455 | F46: =E46/'- 3 -'!D46*100 -> 24.87018458 | G46: =E46/'- 7 -'!E46 -> 3937.62065 | H46: =SUM('- 23 -'!D46,'- 23 -'!B46) -> 784700 | I46: =H46/'- 3 -'!D46*100 -> 0.1812702152
A48: PROVINCE | B48: =SUM(B11:B46) -> 1473042503 | C48: =B48/'- 3 -'!D48*100 -> 55.76567407 | D48: =B48/'- 7 -'!C48 -> 8203.550119 | E48: =SUM(E11:E46) -> 510197953 | F48: =E48/'- 3 -'!D48*100 -> 19.31480775 | G48: =E48/'- 7 -'!E48 -> 2841.353504 | H48: =SUM(H11:H46) -> 12236696 | I48: =H48/'- 3 -'!D48*100 -> 0.463250449
A50: WHITESHELL | B50: =SUM('- 18 -'!B50,'- 18 -'!E50,'- 19 -'!B50,'- 19 -'!E50,'- 19 -'!H50,'- 20 -'!B50) -> 2139554.73 | C50: =B50/'- 3 -'!D50*100 -> 56.94947833 | D50: =B50/'- 7 -'!C50 -> 11820.74436 | E50: =SUM('- 21 -'!B50,'- 21 -'!E50,'- 21 -'!H50,'- 22 -'!B50,'- 22 -'!E50,'- 22 -'!H50) -> 441435 | F50: =E50/'- 3 -'!D50*100 -> 11.74987142 | G50: =E50/'- 7 -'!E50 -> 2438.867403 | H50: =SUM('- 23 -'!D50,'- 23 -'!B50) -> 0 | I50: =H50/'- 3 -'!D50*100 -> 0

Sheet - 16 -
B2: =AEXP_BF -> ANALYSIS OF EXPENSE BY FUNCTION | I2: PAGE 2 OF 3
B3: =+'- 15 -'!B3 -> OPERATING FUND 2022/2023 BUDGET
B6: COMMUNITY EDUCATION AND SERVICES | D6: DIVISIONAL ADMINISTRATION | G6: INSTRUCTIONAL & OTHER SUPPORT SERVICES
F8: PER PUPIL | I8: PER PUPIL
A9: DIVISION / DISTRICT | B9: AMOUNT | C9: % | D9: AMOUNT | E9: % | G9: AMOUNT | H9: %
A11: BEAUTIFUL PLAINS | B11: =SUM('- 24 -'!H11,'- 24 -'!F11,'- 24 -'!D11,'- 24 -'!B11) -> 33320 | C11: =B11/'- 3 -'!D11*100 -> 0.134635037 | D11: =SUM('- 25 -'!B11,'- 25 -'!E11,'- 25 -'!H11,'- 26 -'!B11) -> 775441 | E11: =D11/'- 3 -'!D11*100 -> 3.133299152 | F11: =D11/'- 7 -'!E11 -> 378.1716654 | G11: =SUM('- 27 -'!B11,'- 27 -'!E11,'- 27 -'!H11,'- 28 -'!B11,'- 28 -'!E11) -> 583282 | H11: =G11/'- 3 -'!D11*100 -> 2.356848549 | I11: =G11/'- 7 -'!E11 -> 284.4584248
A12: BORDER LAND | B12: =SUM('- 24 -'!H12,'- 24 -'!F12,'- 24 -'!D12,'- 24 -'!B12) -> 57383 | C12: =B12/'- 3 -'!D12*100 -> 0.156828172 | D12: =SUM('- 25 -'!B12,'- 25 -'!E12,'- 25 -'!H12,'- 26 -'!B12) -> 1158421 | E12: =D12/'- 3 -'!D12*100 -> 3.165973335 | F12: =D12/'- 7 -'!E12 -> 546.1699489 | G12: =SUM('- 27 -'!B12,'- 27 -'!E12,'- 27 -'!H12,'- 28 -'!B12,'- 28 -'!E12) -> 797380 | H12: =G12/'- 3 -'!D12*100 -> 2.179245557 | I12: =G12/'- 7 -'!E12 -> 375.9470813
A13: BRANDON | B13: =SUM('- 24 -'!H13,'- 24 -'!F13,'- 24 -'!D13,'- 24 -'!B13) -> 438600 | C13: =B13/'- 3 -'!D13*100 -> 0.3833835654 | D13: =SUM('- 25 -'!B13,'- 25 -'!E13,'- 25 -'!H13,'- 26 -'!B13) -> 3165100 | E13: =D13/'- 3 -'!D13*100 -> 2.766637763 | F13: =D13/'- 7 -'!E13 -> 361.829094 | G13: =SUM('- 27 -'!B13,'- 27 -'!E13,'- 27 -'!H13,'- 28 -'!B13,'- 28 -'!E13) -> 2842100 | H13: =G13/'- 3 -'!D13*100 -> 2.484301029 | I13: =G13/'- 7 -'!E13 -> 324.9042584
A14: DSFM | B14: =SUM('- 24 -'!H14,'- 24 -'!F14,'- 24 -'!D14,'- 24 -'!B14) -> 1048284 | C14: =B14/'- 3 -'!D14*100 -> 0.9992756928 | D14: =SUM('- 25 -'!B14,'- 25 -'!E14,'- 25 -'!H14,'- 26 -'!B14) -> 3800494 | E14: =D14/'- 3 -'!D14*100 -> 3.622817171 | F14: =D14/'- 7 -'!E14 -> 642.7353289 | G14: =SUM('- 27 -'!B14,'- 27 -'!E14,'- 27 -'!H14,'- 28 -'!B14,'- 28 -'!E14) -> 4182511 | H14: =G14/'- 3 -'!D14*100 -> 3.9869745 | I14: =G14/'- 7 -'!E14 -> 707.3416202
A15: EVERGREEN | B15: =SUM('- 24 -'!H15,'- 24 -'!F15,'- 24 -'!D15,'- 24 -'!B15) -> 59750 | C15: =B15/'- 3 -'!D15*100 -> 0.2700065841 | D15: =SUM('- 25 -'!B15,'- 25 -'!E15,'- 25 -'!H15,'- 26 -'!B15) -> 840526 | E15: =D15/'- 3 -'!D15*100 -> 3.798285424 | F15: =D15/'- 7 -'!E15 -> 607.7556038 | G15: =SUM('- 27 -'!B15,'- 27 -'!E15,'- 27 -'!H15,'- 28 -'!B15,'- 28 -'!E15) -> 477553 | H15: =G15/'- 3 -'!D15*100 -> 2.158032707 | I15: =G15/'- 7 -'!E15 -> 345.3022415
A16: FLIN FLON | B16: =SUM('- 24 -'!H16,'- 24 -'!F16,'- 24 -'!D16,'- 24 -'!B16) -> 17661 | C16: =B16/'- 3 -'!D16*100 -> 0.1095939204 | D16: =SUM('- 25 -'!B16,'- 25 -'!E16,'- 25 -'!H16,'- 26 -'!B16) -> 701426 | E16: =D16/'- 3 -'!D16*100 -> 4.352642842 | F16: =D16/'- 7 -'!E16 -> 739.9008439 | G16: =SUM('- 27 -'!B16,'- 27 -'!E16,'- 27 -'!H16,'- 28 -'!B16,'- 28 -'!E16) -> 257554 | H16: =G16/'- 3 -'!D16*100 -> 1.598230711 | I16: =G16/'- 7 -'!E16 -> 271.6814346
A17: FORT LA BOSSE | B17: =SUM('- 24 -'!H17,'- 24 -'!F17,'- 24 -'!D17,'- 24 -'!B17) -> 231730 | C17: =B17/'- 3 -'!D17*100 -> 1.141388272 | D17: =SUM('- 25 -'!B17,'- 25 -'!E17,'- 25 -'!H17,'- 26 -'!B17) -> 779711 | E17: =D17/'- 3 -'!D17*100 -> 3.840473787 | F17: =D17/'- 7 -'!E17 -> 528.080596 | G17: =SUM('- 27 -'!B17,'- 27 -'!E17,'- 27 -'!H17,'- 28 -'!B17,'- 28 -'!E17) -> 414380 | H17: =G17/'- 3 -'!D17*100 -> 2.041032546 | I17: =G17/'- 7 -'!E17 -> 280.6501863
A18: FRONTIER | B18: =SUM('- 24 -'!H18,'- 24 -'!F18,'- 24 -'!D18,'- 24 -'!B18) -> 2535428 | C18: =B18/'- 3 -'!D18*100 -> 1.635896465 | D18: =SUM('- 25 -'!B18,'- 25 -'!E18,'- 25 -'!H18,'- 26 -'!B18) -> 8164612 | E18: =D18/'- 3 -'!D18*100 -> 5.26793106 | F18: =D18/'- 7 -'!E18 -> 1301.859523 | G18: =SUM('- 27 -'!B18,'- 27 -'!E18,'- 27 -'!H18,'- 28 -'!B18,'- 28 -'!E18) -> 8558690 | H18: =G18/'- 3 -'!D18*100 -> 5.522196142 | I18: =G18/'- 7 -'!E18 -> 1364.695846
A19: GARDEN VALLEY | B19: =SUM('- 24 -'!H19,'- 24 -'!F19,'- 24 -'!D19,'- 24 -'!B19) -> 85400 | C19: =B19/'- 3 -'!D19*100 -> 0.1656554057 | D19: =SUM('- 25 -'!B19,'- 25 -'!E19,'- 25 -'!H19,'- 26 -'!B19) -> 1415000 | E19: =D19/'- 3 -'!D19*100 -> 2.744758772 | F19: =D19/'- 7 -'!E19 -> 342.9471643 | G19: =SUM('- 27 -'!B19,'- 27 -'!E19,'- 27 -'!H19,'- 28 -'!B19,'- 28 -'!E19) -> 1633900 | H19: =G19/'- 3 -'!D19*100 -> 3.169371984 | I19: =G19/'- 7 -'!E19 -> 396.0009695
A20: HANOVER | B20: =SUM('- 24 -'!H20,'- 24 -'!F20,'- 24 -'!D20,'- 24 -'!B20) -> 109800 | C20: =B20/'- 3 -'!D20*100 -> 0.1137966522 | D20: =SUM('- 25 -'!B20,'- 25 -'!E20,'- 25 -'!H20,'- 26 -'!B20) -> 2368500 | E20: =D20/'- 3 -'!D20*100 -> 2.454711938 | F20: =D20/'- 7 -'!E20 -> 298.4689056 | G20: =SUM('- 27 -'!B20,'- 27 -'!E20,'- 27 -'!H20,'- 28 -'!B20,'- 28 -'!E20) -> 2136900 | H20: =G20/'- 3 -'!D20*100 -> 2.214681841 | I20: =G20/'- 7 -'!E20 -> 269.283599
A21: INTERLAKE | B21: =SUM('- 24 -'!H21,'- 24 -'!F21,'- 24 -'!D21,'- 24 -'!B21) -> 0 | C21: =B21/'- 3 -'!D21*100 -> 0 | D21: =SUM('- 25 -'!B21,'- 25 -'!E21,'- 25 -'!H21,'- 26 -'!B21) -> 1350000 | E21: =D21/'- 3 -'!D21*100 -> 3.358944247 | F21: =D21/'- 7 -'!E21 -> 463.2807138 | G21: =SUM('- 27 -'!B21,'- 27 -'!E21,'- 27 -'!H21,'- 28 -'!B21,'- 28 -'!E21) -> 1086200 | H21: =G21/'- 3 -'!D21*100 -> 2.70258166 | I21: =G21/'- 7 -'!E21 -> 372.7522306
A22: KELSEY | B22: =SUM('- 24 -'!H22,'- 24 -'!F22,'- 24 -'!D22,'- 24 -'!B22) -> 67781 | C22: =B22/'- 3 -'!D22*100 -> 0.323231751 | D22: =SUM('- 25 -'!B22,'- 25 -'!E22,'- 25 -'!H22,'- 26 -'!B22) -> 866298 | E22: =D22/'- 3 -'!D22*100 -> 4.131172739 | F22: =D22/'- 7 -'!E22 -> 597.8592133 | G22: =SUM('- 27 -'!B22,'- 27 -'!E22,'- 27 -'!H22,'- 28 -'!B22,'- 28 -'!E22) -> 370809 | H22: =G22/'- 3 -'!D22*100 -> 1.768301476 | I22: =G22/'- 7 -'!E22 -> 255.9068323
A23: LAKESHORE | B23: =SUM('- 24 -'!H23,'- 24 -'!F23,'- 24 -'!D23,'- 24 -'!B23) -> 111200 | C23: =B23/'- 3 -'!D23*100 -> 0.666860528 | D23: =SUM('- 25 -'!B23,'- 25 -'!E23,'- 25 -'!H23,'- 26 -'!B23) -> 601200 | E23: =D23/'- 3 -'!D23*100 -> 3.605364653 | F23: =D23/'- 7 -'!E23 -> 654.1893362 | G23: =SUM('- 27 -'!B23,'- 27 -'!E23,'- 27 -'!H23,'- 28 -'!B23,'- 28 -'!E23) -> 401300 | H23: =G23/'- 3 -'!D23*100 -> 2.406574909 | I23: =G23/'- 7 -'!E23 -> 436.6702938
A24: LORD SELKIRK | B24: =SUM('- 24 -'!H24,'- 24 -'!F24,'- 24 -'!D24,'- 24 -'!B24) -> 450350 | C24: =B24/'- 3 -'!D24*100 -> 0.7300844599 | D24: =SUM('- 25 -'!B24,'- 25 -'!E24,'- 25 -'!H24,'- 26 -'!B24) -> 2027911 | E24: =D24/'- 3 -'!D24*100 -> 3.287545925 | F24: =D24/'- 7 -'!E24 -> 545.1373656 | G24: =SUM('- 27 -'!B24,'- 27 -'!E24,'- 27 -'!H24,'- 28 -'!B24,'- 28 -'!E24) -> 1077436 | H24: =G24/'- 3 -'!D24*100 -> 1.746684313 | I24: =G24/'- 7 -'!E24 -> 289.6333333
A25: LOUIS RIEL | B25: =SUM('- 24 -'!H25,'- 24 -'!F25,'- 24 -'!D25,'- 24 -'!B25) -> 1583266 | C25: =B25/'- 3 -'!D25*100 -> 0.7634113431 | D25: =SUM('- 25 -'!B25,'- 25 -'!E25,'- 25 -'!H25,'- 26 -'!B25) -> 6365518 | E25: =D25/'- 3 -'!D25*100 -> 3.069293881 | F25: =D25/'- 7 -'!E25 -> 417.6027029 | G25: =SUM('- 27 -'!B25,'- 27 -'!E25,'- 27 -'!H25,'- 28 -'!B25,'- 28 -'!E25) -> 8961475 | H25: =G25/'- 3 -'!D25*100 -> 4.320999545 | I25: =G25/'- 7 -'!E25 -> 587.9075641
A26: MOUNTAIN VIEW | B26: =SUM('- 24 -'!H26,'- 24 -'!F26,'- 24 -'!D26,'- 24 -'!B26) -> 100485 | C26: =B26/'- 3 -'!D26*100 -> 0.2257011087 | D26: =SUM('- 25 -'!B26,'- 25 -'!E26,'- 25 -'!H26,'- 26 -'!B26) -> 1383545 | E26: =D26/'- 3 -'!D26*100 -> 3.107604523 | F26: =D26/'- 7 -'!E26 -> 455.7131094 | G26: =SUM('- 27 -'!B26,'- 27 -'!E26,'- 27 -'!H26,'- 28 -'!B26,'- 28 -'!E26) -> 1620847 | H26: =G26/'- 3 -'!D26*100 -> 3.640612678 | I26: =G26/'- 7 -'!E26 -> 533.8758235
A27: MYSTERY LAKE | B27: =SUM('- 24 -'!H27,'- 24 -'!F27,'- 24 -'!D27,'- 24 -'!B27) -> 60491 | C27: =B27/'- 3 -'!D27*100 -> 0.1338646315 | D27: =SUM('- 25 -'!B27,'- 25 -'!E27,'- 25 -'!H27,'- 26 -'!B27) -> 1875020 | E27: =D27/'- 3 -'!D27*100 -> 4.149358769 | F27: =D27/'- 7 -'!E27 -> 672.7735917 | G27: =SUM('- 27 -'!B27,'- 27 -'!E27,'- 27 -'!H27,'- 28 -'!B27,'- 28 -'!E27) -> 1726123 | H27: =G27/'- 3 -'!D27*100 -> 3.819854512 | I27: =G27/'- 7 -'!E27 -> 619.3480445
A28: PARK WEST | B28: =SUM('- 24 -'!H28,'- 24 -'!F28,'- 24 -'!D28,'- 24 -'!B28) -> 119853 | C28: =B28/'- 3 -'!D28*100 -> 0.38326481 | D28: =SUM('- 25 -'!B28,'- 25 -'!E28,'- 25 -'!H28,'- 26 -'!B28) -> 1128867 | E28: =D28/'- 3 -'!D28*100 -> 3.609880406 | F28: =D28/'- 7 -'!E28 -> 544.2945998 | G28: =SUM('- 27 -'!B28,'- 27 -'!E28,'- 27 -'!H28,'- 28 -'!B28,'- 28 -'!E28) -> 714642 | H28: =G28/'- 3 -'!D28*100 -> 2.285275549 | I28: =G28/'- 7 -'!E28 -> 344.5718419
A29: PEMBINA TRAILS | B29: =SUM('- 24 -'!H29,'- 24 -'!F29,'- 24 -'!D29,'- 24 -'!B29) -> 253134 | C29: =B29/'- 3 -'!D29*100 -> 0.1313931697 | D29: =SUM('- 25 -'!B29,'- 25 -'!E29,'- 25 -'!H29,'- 26 -'!B29) -> 5898940 | E29: =D29/'- 3 -'!D29*100 -> 3.061937252 | F29: =D29/'- 7 -'!E29 -> 398.10898 | G29: =SUM('- 27 -'!B29,'- 27 -'!E29,'- 27 -'!H29,'- 28 -'!B29,'- 28 -'!E29) -> 7281478 | H29: =G29/'- 3 -'!D29*100 -> 3.779565267 | I29: =G29/'- 7 -'!E29 -> 491.4140133
A30: PINE CREEK | B30: =SUM('- 24 -'!H30,'- 24 -'!F30,'- 24 -'!D30,'- 24 -'!B30) -> 14790 | C30: =B30/'- 3 -'!D30*100 -> 0.08959912841 | D30: =SUM('- 25 -'!B30,'- 25 -'!E30,'- 25 -'!H30,'- 26 -'!B30) -> 568599 | E30: =D30/'- 3 -'!D30*100 -> 3.444623044 | F30: =D30/'- 7 -'!E30 -> 514.5692308 | G30: =SUM('- 27 -'!B30,'- 27 -'!E30,'- 27 -'!H30,'- 28 -'!B30,'- 28 -'!E30) -> 565634 | H30: =G30/'- 3 -'!D30*100 -> 3.426660811 | I30: =G30/'- 7 -'!E30 -> 511.8859729
A31: PORTAGE LA PRAIRIE | B31: =SUM('- 24 -'!H31,'- 24 -'!F31,'- 24 -'!D31,'- 24 -'!B31) -> 62343 | C31: =B31/'- 3 -'!D31*100 -> 0.142957747 | D31: =SUM('- 25 -'!B31,'- 25 -'!E31,'- 25 -'!H31,'- 26 -'!B31) -> 1116973 | E31: =D31/'- 3 -'!D31*100 -> 2.561313115 | F31: =D31/'- 7 -'!E31 -> 329.0053019 | G31: =SUM('- 27 -'!B31,'- 27 -'!E31,'- 27 -'!H31,'- 28 -'!B31,'- 28 -'!E31) -> 1746000 | H31: =G31/'- 3 -'!D31*100 -> 4.003724978 | I31: =G31/'- 7 -'!E31 -> 514.2857143
A32: PRAIRIE ROSE | B32: =SUM('- 24 -'!H32,'- 24 -'!F32,'- 24 -'!D32,'- 24 -'!B32) -> 38561 | C32: =B32/'- 3 -'!D32*100 -> 0.116707657 | D32: =SUM('- 25 -'!B32,'- 25 -'!E32,'- 25 -'!H32,'- 26 -'!B32) -> 1026910 | E32: =D32/'- 3 -'!D32*100 -> 3.10801743 | F32: =D32/'- 7 -'!E32 -> 423.9925681 | G32: =SUM('- 27 -'!B32,'- 27 -'!E32,'- 27 -'!H32,'- 28 -'!B32,'- 28 -'!E32) -> 769296 | H32: =G32/'- 3 -'!D32*100 -> 2.328330016 | I32: =G32/'- 7 -'!E32 -> 317.6284063
A33: PRAIRIE SPIRIT | B33: =SUM('- 24 -'!H33,'- 24 -'!F33,'- 24 -'!D33,'- 24 -'!B33) -> 31500 | C33: =B33/'- 3 -'!D33*100 -> 0.1049248843 | D33: =SUM('- 25 -'!B33,'- 25 -'!E33,'- 25 -'!H33,'- 26 -'!B33) -> 913500 | E33: =D33/'- 3 -'!D33*100 -> 3.042821644 | F33: =D33/'- 7 -'!E33 -> 438.1294964 | G33: =SUM('- 27 -'!B33,'- 27 -'!E33,'- 27 -'!H33,'- 28 -'!B33,'- 28 -'!E33) -> 735915 | H33: =G33/'- 3 -'!D33*100 -> 2.451295118 | I33: =G33/'- 7 -'!E33 -> 352.9568345
A34: RED RIVER VALLEY | B34: =SUM('- 24 -'!H34,'- 24 -'!F34,'- 24 -'!D34,'- 24 -'!B34) -> 65372 | C34: =B34/'- 3 -'!D34*100 -> 0.1910784051 | D34: =SUM('- 25 -'!B34,'- 25 -'!E34,'- 25 -'!H34,'- 26 -'!B34) -> 1205797 | E34: =D34/'- 3 -'!D34*100 -> 3.524471756 | F34: =D34/'- 7 -'!E34 -> 541.5174923 | G34: =SUM('- 27 -'!B34,'- 27 -'!E34,'- 27 -'!H34,'- 28 -'!B34,'- 28 -'!E34) -> 599244 | H34: =G34/'- 3 -'!D34*100 -> 1.751553995 | I34: =G34/'- 7 -'!E34 -> 269.1175282
A35: RIVER EAST TRANSCONA | B35: =SUM('- 24 -'!H35,'- 24 -'!F35,'- 24 -'!D35,'- 24 -'!B35) -> 595038 | C35: =B35/'- 3 -'!D35*100 -> 0.2767371716 | D35: =SUM('- 25 -'!B35,'- 25 -'!E35,'- 25 -'!H35,'- 26 -'!B35) -> 5537624 | E35: =D35/'- 3 -'!D35*100 -> 2.575409307 | F35: =D35/'- 7 -'!E35 -> 335.7967376 | G35: =SUM('- 27 -'!B35,'- 27 -'!E35,'- 27 -'!H35,'- 28 -'!B35,'- 28 -'!E35) -> 9011746 | H35: =G35/'- 3 -'!D35*100 -> 4.19113586 | I35: =G35/'- 7 -'!E35 -> 546.4644958
A36: ROLLING RIVER | B36: =SUM('- 24 -'!H36,'- 24 -'!F36,'- 24 -'!D36,'- 24 -'!B36) -> 29430 | C36: =B36/'- 3 -'!D36*100 -> 0.1150869262 | D36: =SUM('- 25 -'!B36,'- 25 -'!E36,'- 25 -'!H36,'- 26 -'!B36) -> 943290 | E36: =D36/'- 3 -'!D36*100 -> 3.688764751 | F36: =D36/'- 7 -'!E36 -> 531.4309859 | G36: =SUM('- 27 -'!B36,'- 27 -'!E36,'- 27 -'!H36,'- 28 -'!B36,'- 28 -'!E36) -> 515970 | H36: =G36/'- 3 -'!D36*100 -> 2.017716661 | I36: =G36/'- 7 -'!E36 -> 290.6873239
A37: SEINE RIVER | B37: =SUM('- 24 -'!H37,'- 24 -'!F37,'- 24 -'!D37,'- 24 -'!B37) -> 706044 | C37: =B37/'- 3 -'!D37*100 -> 1.201644482 | D37: =SUM('- 25 -'!B37,'- 25 -'!E37,'- 25 -'!H37,'- 26 -'!B37) -> 1785763 | E37: =D37/'- 3 -'!D37*100 -> 3.039261372 | F37: =D37/'- 7 -'!E37 -> 408.6414188 | G37: =SUM('- 27 -'!B37,'- 27 -'!E37,'- 27 -'!H37,'- 28 -'!B37,'- 28 -'!E37) -> 1861347 | H37: =G37/'- 3 -'!D37*100 -> 3.1679008 | I37: =G37/'- 7 -'!E37 -> 425.9375286
A38: SEVEN OAKS | B38: =SUM('- 24 -'!H38,'- 24 -'!F38,'- 24 -'!D38,'- 24 -'!B38) -> 2628797 | C38: =B38/'- 3 -'!D38*100 -> 1.640116062 | D38: =SUM('- 25 -'!B38,'- 25 -'!E38,'- 25 -'!H38,'- 26 -'!B38) -> 4352690 | E38: =D38/'- 3 -'!D38*100 -> 2.715659209 | F38: =D38/'- 7 -'!E38 -> 377.3986856 | G38: =SUM('- 27 -'!B38,'- 27 -'!E38,'- 27 -'!H38,'- 28 -'!B38,'- 28 -'!E38) -> 5750077 | H38: =G38/'- 3 -'!D38*100 -> 3.587494068 | I38: =G38/'- 7 -'!E38 -> 498.5587078
A39: SOUTHWEST HORIZON | B39: =SUM('- 24 -'!H39,'- 24 -'!F39,'- 24 -'!D39,'- 24 -'!B39) -> 174900 | C39: =B39/'- 3 -'!D39*100 -> 0.7129289191 | D39: =SUM('- 25 -'!B39,'- 25 -'!E39,'- 25 -'!H39,'- 26 -'!B39) -> 810400 | E39: =D39/'- 3 -'!D39*100 -> 3.303359611 | F39: =D39/'- 7 -'!E39 -> 559.8231556 | G39: =SUM('- 27 -'!B39,'- 27 -'!E39,'- 27 -'!H39,'- 28 -'!B39,'- 28 -'!E39) -> 486600 | H39: =G39/'- 3 -'!D39*100 -> 1.983483202 | I39: =G39/'- 7 -'!E39 -> 336.1425808
A40: ST. JAMES-ASSINIBOIA | B40: =SUM('- 24 -'!H40,'- 24 -'!F40,'- 24 -'!D40,'- 24 -'!B40) -> 915803 | C40: =B40/'- 3 -'!D40*100 -> 0.7780707848 | D40: =SUM('- 25 -'!B40,'- 25 -'!E40,'- 25 -'!H40,'- 26 -'!B40) -> 3494650 | E40: =D40/'- 3 -'!D40*100 -> 2.969072026 | F40: =D40/'- 7 -'!E40 -> 438.6957068 | G40: =SUM('- 27 -'!B40,'- 27 -'!E40,'- 27 -'!H40,'- 28 -'!B40,'- 28 -'!E40) -> 4265846 | H40: =G40/'- 3 -'!D40*100 -> 3.624283984 | I40: =G40/'- 7 -'!E40 -> 535.5066533
A41: SUNRISE | B41: =SUM('- 24 -'!H41,'- 24 -'!F41,'- 24 -'!D41,'- 24 -'!B41) -> 68130 | C41: =B41/'- 3 -'!D41*100 -> 0.09551654078 | D41: =SUM('- 25 -'!B41,'- 25 -'!E41,'- 25 -'!H41,'- 26 -'!B41) -> 2159258 | E41: =D41/'- 3 -'!D41*100 -> 3.027225228 | F41: =D41/'- 7 -'!E41 -> 480.1018344 | G41: =SUM('- 27 -'!B41,'- 27 -'!E41,'- 27 -'!H41,'- 28 -'!B41,'- 28 -'!E41) -> 1602463 | H41: =G41/'- 3 -'!D41*100 -> 2.246612689 | I41: =G41/'- 7 -'!E41 -> 356.3008338
A42: SWAN VALLEY | B42: =SUM('- 24 -'!H42,'- 24 -'!F42,'- 24 -'!D42,'- 24 -'!B42) -> 104594 | C42: =B42/'- 3 -'!D42*100 -> 0.4421813831 | D42: =SUM('- 25 -'!B42,'- 25 -'!E42,'- 25 -'!H42,'- 26 -'!B42) -> 774191 | E42: =D42/'- 3 -'!D42*100 -> 3.272968307 | F42: =D42/'- 7 -'!E42 -> 595.0737894 | G42: =SUM('- 27 -'!B42,'- 27 -'!E42,'- 27 -'!H42,'- 28 -'!B42,'- 28 -'!E42) -> 440529 | H42: =G42/'- 3 -'!D42*100 -> 1.86237951 | I42: =G42/'- 7 -'!E42 -> 338.6079939
A43: TURTLE MOUNTAIN | B43: =SUM('- 24 -'!H43,'- 24 -'!F43,'- 24 -'!D43,'- 24 -'!B43) -> 15131 | C43: =B43/'- 3 -'!D43*100 -> 0.1043332392 | D43: =SUM('- 25 -'!B43,'- 25 -'!E43,'- 25 -'!H43,'- 26 -'!B43) -> 491932 | E43: =D43/'- 3 -'!D43*100 -> 3.392033508 | F43: =D43/'- 7 -'!E43 -> 506.1028807 | G43: =SUM('- 27 -'!B43,'- 27 -'!E43,'- 27 -'!H43,'- 28 -'!B43,'- 28 -'!E43) -> 340156 | H43: =G43/'- 3 -'!D43*100 -> 2.345487893 | I43: =G43/'- 7 -'!E43 -> 349.9547325
A44: TURTLE RIVER | B44: =SUM('- 24 -'!H44,'- 24 -'!F44,'- 24 -'!D44,'- 24 -'!B44) -> 29468 | C44: =B44/'- 3 -'!D44*100 -> 0.2443180184 | D44: =SUM('- 25 -'!B44,'- 25 -'!E44,'- 25 -'!H44,'- 26 -'!B44) -> 408071 | E44: =D44/'- 3 -'!D44*100 -> 3.383300464 | F44: =D44/'- 7 -'!E44 -> 628.7688752 | G44: =SUM('- 27 -'!B44,'- 27 -'!E44,'- 27 -'!H44,'- 28 -'!B44,'- 28 -'!E44) -> 251670 | H44: =G44/'- 3 -'!D44*100 -> 2.086585981 | I44: =G44/'- 7 -'!E44 -> 387.7812018
A45: WESTERN | B45: =SUM('- 24 -'!H45,'- 24 -'!F45,'- 24 -'!D45,'- 24 -'!B45) -> 47655 | C45: =B45/'- 3 -'!D45*100 -> 0.1904040589 | D45: =SUM('- 25 -'!B45,'- 25 -'!E45,'- 25 -'!H45,'- 26 -'!B45) -> 831554 | E45: =D45/'- 3 -'!D45*100 -> 3.322447945 | F45: =D45/'- 7 -'!E45 -> 405.2407407 | G45: =SUM('- 27 -'!B45,'- 27 -'!E45,'- 27 -'!H45,'- 28 -'!B45,'- 28 -'!E45) -> 585094 | H45: =G45/'- 3 -'!D45*100 -> 2.33772474 | I45: =G45/'- 7 -'!E45 -> 285.1335283
A46: WINNIPEG | B46: =SUM('- 24 -'!H46,'- 24 -'!F46,'- 24 -'!D46,'- 24 -'!B46) -> 8345979 | C46: =B46/'- 3 -'!D46*100 -> 1.927969172 | D46: =SUM('- 25 -'!B46,'- 25 -'!E46,'- 25 -'!H46,'- 26 -'!B46) -> 12080964 | E46: =D46/'- 3 -'!D46*100 -> 2.790772198 | F46: =D46/'- 7 -'!E46 -> 441.8544703 | G46: =SUM('- 27 -'!B46,'- 27 -'!E46,'- 27 -'!H46,'- 28 -'!B46,'- 28 -'!E46) -> 10205691 | H46: =G46/'- 3 -'!D46*100 -> 2.357573345 | I46: =G46/'- 7 -'!E46 -> 373.267414
A48: PROVINCE | B48: =SUM(B11:B46) -> 21237451 | C48: =B48/'- 3 -'!D48*100 -> 0.8039963329 | D48: =SUM(D11:D46) -> 83168696 | E48: =D48/'- 3 -'!D48*100 -> 3.148557075 | F48: =D48/'- 7 -'!E48 -> 463.1764288 | G48: =SUM(G11:G46) -> 84857838 | H48: =G48/'- 3 -'!D48*100 -> 3.212503731 | I48: =G48/'- 7 -'!E48 -> 472.5834629
A50: WHITESHELL | B50: =SUM('- 24 -'!H50,'- 24 -'!F50,'- 24 -'!D50,'- 24 -'!B50) -> 188842 | C50: =B50/'- 3 -'!D50*100 -> 5.026491371 | D50: =SUM('- 25 -'!B50,'- 25 -'!E50,'- 25 -'!H50,'- 26 -'!B50) -> 147620 | E50: =D50/'- 3 -'!D50*100 -> 3.929267092 | F50: =D50/'- 7 -'!E50 -> 815.5801105 | G50: =SUM('- 27 -'!B50,'- 27 -'!E50,'- 27 -'!H50,'- 28 -'!B50,'- 28 -'!E50) -> 144287 | H50: =G50/'- 3 -'!D50*100 -> 3.840551151 | I50: =G50/'- 7 -'!E50 -> 797.1657459

Sheet - 17 -
B2: =AEXP_BF -> ANALYSIS OF EXPENSE BY FUNCTION | J2: PAGE 3 OF 3
B3: =+'- 16 -'!B3 -> OPERATING FUND 2022/2023 BUDGET
B6: TRANSPORTATION OF PUPILS | E6: OPERATIONS AND MAINTENANCE | H6: FISCAL
D8: PER PUPIL | G8: PER PUPIL | J8: PER PUPIL
A9: DIVISION / DISTRICT | B9: AMOUNT | C9: % | E9: AMOUNT | F9: % | H9: AMOUNT | I9: %
A11: BEAUTIFUL PLAINS | B11: =SUM('- 30 -'!D11,'- 30 -'!B11,'- 29 -'!F11,'- 29 -'!D11,'- 29 -'!B11) -> 1480879 | C11: =B11/'- 3 -'!D11*100 -> 5.983739466 | D11: =B11/'- 7 -'!E11 -> 722.2038527 | E11: =SUM('- 32 -'!D11,'- 32 -'!B11,'- 31 -'!F11,'- 31 -'!D11,'- 31 -'!B11) -> 2368636 | F11: =E11/'- 3 -'!D11*100 -> 9.570870215 | G11: =E11/'- 7 -'!E11 -> 1155.150451 | H11: =SUM('- 33 -'!B11,'- 33 -'!D11) -> 421148 | I11: =H11/'- 3 -'!D11*100 -> 1.701718985 | J11: =H11/'- 7 -'!E11 -> 205.3879542
A12: BORDER LAND | B12: =SUM('- 30 -'!D12,'- 30 -'!B12,'- 29 -'!F12,'- 29 -'!D12,'- 29 -'!B12) -> 2629911 | C12: =B12/'- 3 -'!D12*100 -> 7.187566609 | D12: =B12/'- 7 -'!E12 -> 1239.945026 | E12: =SUM('- 32 -'!D12,'- 32 -'!B12,'- 31 -'!F12,'- 31 -'!D12,'- 31 -'!B12) -> 3883243 | F12: =E12/'- 3 -'!D12*100 -> 10.61293242 | G12: =E12/'- 7 -'!E12 -> 1830.863418 | H12: =SUM('- 33 -'!B12,'- 33 -'!D12) -> 610000 | I12: =H12/'- 3 -'!D12*100 -> 1.667134603 | J12: =H12/'- 7 -'!E12 -> 287.6015446
A13: BRANDON | B13: =SUM('- 30 -'!D13,'- 30 -'!B13,'- 29 -'!F13,'- 29 -'!D13,'- 29 -'!B13) -> 2908200 | C13: =B13/'- 3 -'!D13*100 -> 2.542079537 | D13: =B13/'- 7 -'!E13 -> 332.4607031 | E13: =SUM('- 32 -'!D13,'- 32 -'!B13,'- 31 -'!F13,'- 31 -'!D13,'- 31 -'!B13) -> 9701400 | F13: =E13/'- 3 -'!D13*100 -> 8.480066852 | G13: =E13/'- 7 -'!E13 -> 1109.0483 | H13: =SUM('- 33 -'!B13,'- 33 -'!D13) -> 2011300 | I13: =H13/'- 3 -'!D13*100 -> 1.758092488 | J13: =H13/'- 7 -'!E13 -> 229.928551
A14: DSFM | B14: =SUM('- 30 -'!D14,'- 30 -'!B14,'- 29 -'!F14,'- 29 -'!D14,'- 29 -'!B14) -> 11241612 | C14: =B14/'- 3 -'!D14*100 -> 10.71605559 | D14: =B14/'- 7 -'!E14 -> 1901.16895 | E14: =SUM('- 32 -'!D14,'- 32 -'!B14,'- 31 -'!F14,'- 31 -'!D14,'- 31 -'!B14) -> 11673334 | F14: =E14/'- 3 -'!D14*100 -> 11.12759416 | G14: =E14/'- 7 -'!E14 -> 1974.181295 | H14: =SUM('- 33 -'!B14,'- 33 -'!D14) -> 1560774 | I14: =H14/'- 3 -'!D14*100 -> 1.487806282 | J14: =H14/'- 7 -'!E14 -> 263.9563673
A15: EVERGREEN | B15: =SUM('- 30 -'!D15,'- 30 -'!B15,'- 29 -'!F15,'- 29 -'!D15,'- 29 -'!B15) -> 1804908 | C15: =B15/'- 3 -'!D15*100 -> 8.156268514 | D15: =B15/'- 7 -'!E15 -> 1305.067245 | E15: =SUM('- 32 -'!D15,'- 32 -'!B15,'- 31 -'!F15,'- 31 -'!D15,'- 31 -'!B15) -> 2785620 | F15: =E15/'- 3 -'!D15*100 -> 12.58804587 | G15: =E15/'- 7 -'!E15 -> 2014.186551 | H15: =SUM('- 33 -'!B15,'- 33 -'!D15) -> 354743 | I15: =H15/'- 3 -'!D15*100 -> 1.603061852 | J15: =H15/'- 7 -'!E15 -> 256.5025307
A16: FLIN FLON | B16: =SUM('- 30 -'!D16,'- 30 -'!B16,'- 29 -'!F16,'- 29 -'!D16,'- 29 -'!B16) -> 557360 | C16: =B16/'- 3 -'!D16*100 -> 3.458652822 | D16: =B16/'- 7 -'!E16 -> 587.9324895 | E16: =SUM('- 32 -'!D16,'- 32 -'!B16,'- 31 -'!F16,'- 31 -'!D16,'- 31 -'!B16) -> 2277597 | F16: =E16/'- 3 -'!D16*100 -> 14.13344569 | G16: =E16/'- 7 -'!E16 -> 2402.528481 | H16: =SUM('- 33 -'!B16,'- 33 -'!D16) -> 274982 | I16: =H16/'- 3 -'!D16*100 -> 1.706378768 | J16: =H16/'- 7 -'!E16 -> 290.0654008
A17: FORT LA BOSSE | B17: =SUM('- 30 -'!D17,'- 30 -'!B17,'- 29 -'!F17,'- 29 -'!D17,'- 29 -'!B17) -> 1552297 | C17: =B17/'- 3 -'!D17*100 -> 7.64585332 | D17: =B17/'- 7 -'!E17 -> 1051.335591 | E17: =SUM('- 32 -'!D17,'- 32 -'!B17,'- 31 -'!F17,'- 31 -'!D17,'- 31 -'!B17) -> 2027244 | F17: =E17/'- 3 -'!D17*100 -> 9.985209188 | G17: =E17/'- 7 -'!E17 -> 1373.006434 | H17: =SUM('- 33 -'!B17,'- 33 -'!D17) -> 413000 | I17: =H17/'- 3 -'!D17*100 -> 2.034235343 | J17: =H17/'- 7 -'!E17 -> 279.7155435
A18: FRONTIER | B18: =SUM('- 30 -'!D18,'- 30 -'!B18,'- 29 -'!F18,'- 29 -'!D18,'- 29 -'!B18) -> 12524729 | C18: =B18/'- 3 -'!D18*100 -> 8.081144446 | D18: =B18/'- 7 -'!E18 -> 1997.086662 | E18: =SUM('- 32 -'!D18,'- 32 -'!B18,'- 31 -'!F18,'- 31 -'!D18,'- 31 -'!B18) -> 27157026 | F18: =E18/'- 3 -'!D18*100 -> 17.52212362 | G18: =E18/'- 7 -'!E18 -> 4330.228175 | H18: =SUM('- 33 -'!B18,'- 33 -'!D18) -> 1275000 | I18: =H18/'- 3 -'!D18*100 -> 0.82264927 | J18: =H18/'- 7 -'!E18 -> 203.3006458
A19: GARDEN VALLEY | B19: =SUM('- 30 -'!D19,'- 30 -'!B19,'- 29 -'!F19,'- 29 -'!D19,'- 29 -'!B19) -> 3334850 | C19: =B19/'- 3 -'!D19*100 -> 6.468804798 | D19: =B19/'- 7 -'!E19 -> 808.2525448 | E19: =SUM('- 32 -'!D19,'- 32 -'!B19,'- 31 -'!F19,'- 31 -'!D19,'- 31 -'!B19) -> 5007050 | F19: =E19/'- 3 -'!D19*100 -> 9.712469546 | G19: =E19/'- 7 -'!E19 -> 1213.536112 | H19: =SUM('- 33 -'!B19,'- 33 -'!D19) -> 892000 | I19: =H19/'- 3 -'!D19*100 -> 1.730264893 | J19: =H19/'- 7 -'!E19 -> 216.1900145
A20: HANOVER | B20: =SUM('- 30 -'!D20,'- 30 -'!B20,'- 29 -'!F20,'- 29 -'!D20,'- 29 -'!B20) -> 4324700 | C20: =B20/'- 3 -'!D20*100 -> 4.48211641 | D20: =B20/'- 7 -'!E20 -> 544.9814126 | E20: =SUM('- 32 -'!D20,'- 32 -'!B20,'- 31 -'!F20,'- 31 -'!D20,'- 31 -'!B20) -> 9712500 | F20: =E20/'- 3 -'!D20*100 -> 10.066029 | G20: =E20/'- 7 -'!E20 -> 1223.930439 | H20: =SUM('- 33 -'!B20,'- 33 -'!D20) -> 1821800 | I20: =H20/'- 3 -'!D20*100 -> 1.888112395 | J20: =H20/'- 7 -'!E20 -> 229.5759561
A21: INTERLAKE | B21: =SUM('- 30 -'!D21,'- 30 -'!B21,'- 29 -'!F21,'- 29 -'!D21,'- 29 -'!B21) -> 2441000 | C21: =B21/'- 3 -'!D21*100 -> 6.073468819 | D21: =B21/'- 7 -'!E21 -> 837.6801647 | E21: =SUM('- 32 -'!D21,'- 32 -'!B21,'- 31 -'!F21,'- 31 -'!D21,'- 31 -'!B21) -> 3686000 | F21: =E21/'- 3 -'!D21*100 -> 9.171161846 | G21: =E21/'- 7 -'!E21 -> 1264.927934 | H21: =SUM('- 33 -'!B21,'- 33 -'!D21) -> 770000 | I21: =H21/'- 3 -'!D21*100 -> 1.915842274 | J21: =H21/'- 7 -'!E21 -> 264.2415923
A22: KELSEY | B22: =SUM('- 30 -'!D22,'- 30 -'!B22,'- 29 -'!F22,'- 29 -'!D22,'- 29 -'!B22) -> 567858 | C22: =B22/'- 3 -'!D22*100 -> 2.707982114 | D22: =B22/'- 7 -'!E22 -> 391.8964803 | E22: =SUM('- 32 -'!D22,'- 32 -'!B22,'- 31 -'!F22,'- 31 -'!D22,'- 31 -'!B22) -> 2598388 | F22: =E22/'- 3 -'!D22*100 -> 12.39110522 | G22: =E22/'- 7 -'!E22 -> 1793.228433 | H22: =SUM('- 33 -'!B22,'- 33 -'!D22) -> 376392 | I22: =H22/'- 3 -'!D22*100 -> 1.794925499 | J22: =H22/'- 7 -'!E22 -> 259.7598344
A23: LAKESHORE | B23: =SUM('- 30 -'!D23,'- 30 -'!B23,'- 29 -'!F23,'- 29 -'!D23,'- 29 -'!B23) -> 1787990 | C23: =B23/'- 3 -'!D23*100 -> 10.72248161 | D23: =B23/'- 7 -'!E23 -> 1945.582155 | E23: =SUM('- 32 -'!D23,'- 32 -'!B23,'- 31 -'!F23,'- 31 -'!D23,'- 31 -'!B23) -> 1744927 | F23: =E23/'- 3 -'!D23*100 -> 10.46423508 | G23: =E23/'- 7 -'!E23 -> 1898.723613 | H23: =SUM('- 33 -'!B23,'- 33 -'!D23) -> 250000 | I23: =H23/'- 3 -'!D23*100 -> 1.499236799 | J23: =H23/'- 7 -'!E23 -> 272.0348205
A24: LORD SELKIRK | B24: =SUM('- 30 -'!D24,'- 30 -'!B24,'- 29 -'!F24,'- 29 -'!D24,'- 29 -'!B24) -> 2924633 | C24: =B24/'- 3 -'!D24*100 -> 4.741265914 | D24: =B24/'- 7 -'!E24 -> 786.1916667 | E24: =SUM('- 32 -'!D24,'- 32 -'!B24,'- 31 -'!F24,'- 31 -'!D24,'- 31 -'!B24) -> 6525596 | F24: =E24/'- 3 -'!D24*100 -> 10.57896354 | G24: =E24/'- 7 -'!E24 -> 1754.192473 | H24: =SUM('- 33 -'!B24,'- 33 -'!D24) -> 1103700 | I24: =H24/'- 3 -'!D24*100 -> 1.78926217 | J24: =H24/'- 7 -'!E24 -> 296.6935484
A25: LOUIS RIEL | B25: =SUM('- 30 -'!D25,'- 30 -'!B25,'- 29 -'!F25,'- 29 -'!D25,'- 29 -'!B25) -> 5739496 | C25: =B25/'- 3 -'!D25*100 -> 2.7674417 | D25: =B25/'- 7 -'!E25 -> 376.5332284 | E25: =SUM('- 32 -'!D25,'- 32 -'!B25,'- 31 -'!F25,'- 31 -'!D25,'- 31 -'!B25) -> 21140392 | F25: =E25/'- 3 -'!D25*100 -> 10.19336931 | G25: =E25/'- 7 -'!E25 -> 1386.891819 | H25: =SUM('- 33 -'!B25,'- 33 -'!D25) -> 3676414 | I25: =H25/'- 3 -'!D25*100 -> 1.772675059 | J25: =H25/'- 7 -'!E25 -> 241.1870367
A26: MOUNTAIN VIEW | B26: =SUM('- 30 -'!D26,'- 30 -'!B26,'- 29 -'!F26,'- 29 -'!D26,'- 29 -'!B26) -> 3171551 | C26: =B26/'- 3 -'!D26*100 -> 7.123675942 | D26: =B26/'- 7 -'!E26 -> 1044.647892 | E26: =SUM('- 32 -'!D26,'- 32 -'!B26,'- 31 -'!F26,'- 31 -'!D26,'- 31 -'!B26) -> 5427983 | F26: =E26/'- 3 -'!D26*100 -> 12.19188716 | G26: =E26/'- 7 -'!E26 -> 1787.873188 | H26: =SUM('- 33 -'!B26,'- 33 -'!D26) -> 785175 | I26: =H26/'- 3 -'!D26*100 -> 1.763595243 | J26: =H26/'- 7 -'!E26 -> 258.6215415
A27: MYSTERY LAKE | B27: =SUM('- 30 -'!D27,'- 30 -'!B27,'- 29 -'!F27,'- 29 -'!D27,'- 29 -'!B27) -> 390000 | C27: =B27/'- 3 -'!D27*100 -> 0.8630574181 | D27: =B27/'- 7 -'!E27 -> 139.9354144 | E27: =SUM('- 32 -'!D27,'- 32 -'!B27,'- 31 -'!F27,'- 31 -'!D27,'- 31 -'!B27) -> 5955002 | F27: =E27/'- 3 -'!D27*100 -> 13.17822731 | G27: =E27/'- 7 -'!E27 -> 2136.706853 | H27: =SUM('- 33 -'!B27,'- 33 -'!D27) -> 783502 | I27: =H27/'- 3 -'!D27*100 -> 1.733864649 | J27: =H27/'- 7 -'!E27 -> 281.1273771
A28: PARK WEST | B28: =SUM('- 30 -'!D28,'- 30 -'!B28,'- 29 -'!F28,'- 29 -'!D28,'- 29 -'!B28) -> 2097067 | C28: =B28/'- 3 -'!D28*100 -> 6.705981372 | D28: =B28/'- 7 -'!E28 -> 1011.121986 | E28: =SUM('- 32 -'!D28,'- 32 -'!B28,'- 31 -'!F28,'- 31 -'!D28,'- 31 -'!B28) -> 3643360 | F28: =E28/'- 3 -'!D28*100 -> 11.65070276 | G28: =E28/'- 7 -'!E28 -> 1756.682739 | H28: =SUM('- 33 -'!B28,'- 33 -'!D28) -> 506600 | I28: =H28/'- 3 -'!D28*100 -> 1.620000774 | J28: =H28/'- 7 -'!E28 -> 244.2622951
A29: PEMBINA TRAILS | B29: =SUM('- 30 -'!D29,'- 30 -'!B29,'- 29 -'!F29,'- 29 -'!D29,'- 29 -'!B29) -> 4033520 | C29: =B29/'- 3 -'!D29*100 -> 2.093661767 | D29: =B29/'- 7 -'!E29 -> 272.2150985 | E29: =SUM('- 32 -'!D29,'- 32 -'!B29,'- 31 -'!F29,'- 31 -'!D29,'- 31 -'!B29) -> 21141532 | F29: =E29/'- 3 -'!D29*100 -> 10.9738435 | G29: =E29/'- 7 -'!E29 -> 1426.804433 | H29: =SUM('- 33 -'!B29,'- 33 -'!D29) -> 3491950 | I29: =H29/'- 3 -'!D29*100 -> 1.812551371 | J29: =H29/'- 7 -'!E29 -> 235.6655014
A30: PINE CREEK | B30: =SUM('- 30 -'!D30,'- 30 -'!B30,'- 29 -'!F30,'- 29 -'!D30,'- 29 -'!B30) -> 1533772 | C30: =B30/'- 3 -'!D30*100 -> 9.291726463 | D30: =B30/'- 7 -'!E30 -> 1388.028959 | E30: =SUM('- 32 -'!D30,'- 32 -'!B30,'- 31 -'!F30,'- 31 -'!D30,'- 31 -'!B30) -> 1711597 | F30: =E30/'- 3 -'!D30*100 -> 10.36900604 | G30: =E30/'- 7 -'!E30 -> 1548.956561 | H30: =SUM('- 33 -'!B30,'- 33 -'!D30) -> 264177 | I30: =H30/'- 3 -'!D30*100 -> 1.600407637 | J30: =H30/'- 7 -'!E30 -> 239.0742081
A31: PORTAGE LA PRAIRIE | B31: =SUM('- 30 -'!D31,'- 30 -'!B31,'- 29 -'!F31,'- 29 -'!D31,'- 29 -'!B31) -> 1335048 | C31: =B31/'- 3 -'!D31*100 -> 3.061377448 | D31: =B31/'- 7 -'!E31 -> 393.2394698 | E31: =SUM('- 32 -'!D31,'- 32 -'!B31,'- 31 -'!F31,'- 31 -'!D31,'- 31 -'!B31) -> 4207736 | F31: =E31/'- 3 -'!D31*100 -> 9.648692854 | G31: =E31/'- 7 -'!E31 -> 1239.392047 | H31: =SUM('- 33 -'!B31,'- 33 -'!D31) -> 763113 | I31: =H31/'- 3 -'!D31*100 -> 1.749882348 | J31: =H31/'- 7 -'!E31 -> 224.7755523
A32: PRAIRIE ROSE | B32: =SUM('- 30 -'!D32,'- 30 -'!B32,'- 29 -'!F32,'- 29 -'!D32,'- 29 -'!B32) -> 2398026 | C32: =B32/'- 3 -'!D32*100 -> 7.257799227 | D32: =B32/'- 7 -'!E32 -> 990.101569 | E32: =SUM('- 32 -'!D32,'- 32 -'!B32,'- 31 -'!F32,'- 31 -'!D32,'- 31 -'!B32) -> 3218319 | F32: =E32/'- 3 -'!D32*100 -> 9.740475354 | G32: =E32/'- 7 -'!E32 -> 1328.785714 | H32: =SUM('- 33 -'!B32,'- 33 -'!D32) -> 616445 | I32: =H32/'- 3 -'!D32*100 -> 1.865715403 | J32: =H32/'- 7 -'!E32 -> 254.5189926
A33: PRAIRIE SPIRIT | B33: =SUM('- 30 -'!D33,'- 30 -'!B33,'- 29 -'!F33,'- 29 -'!D33,'- 29 -'!B33) -> 2520575 | C33: =B33/'- 3 -'!D33*100 -> 8.395906038 | D33: =B33/'- 7 -'!E33 -> 1208.908873 | E33: =SUM('- 32 -'!D33,'- 32 -'!B33,'- 31 -'!F33,'- 31 -'!D33,'- 31 -'!B33) -> 3432985 | F33: =E33/'- 3 -'!D33*100 -> 11.43509695 | G33: =E33/'- 7 -'!E33 -> 1646.515588 | H33: =SUM('- 33 -'!B33,'- 33 -'!D33) -> 507000 | I33: =H33/'- 3 -'!D33*100 -> 1.688790995 | J33: =H33/'- 7 -'!E33 -> 243.1654676
A34: RED RIVER VALLEY | B34: =SUM('- 30 -'!D34,'- 30 -'!B34,'- 29 -'!F34,'- 29 -'!D34,'- 29 -'!B34) -> 2892546 | C34: =B34/'- 3 -'!D34*100 -> 8.454737141 | D34: =B34/'- 7 -'!E34 -> 1299.028158 | E34: =SUM('- 32 -'!D34,'- 32 -'!B34,'- 31 -'!F34,'- 31 -'!D34,'- 31 -'!B34) -> 3022806 | F34: =E34/'- 3 -'!D34*100 -> 8.835479248 | G34: =E34/'- 7 -'!E34 -> 1357.527283 | H34: =SUM('- 33 -'!B34,'- 33 -'!D34) -> 686116 | I34: =H34/'- 3 -'!D34*100 -> 2.005475601 | J34: =H34/'- 7 -'!E34 -> 308.1313154
A35: RIVER EAST TRANSCONA | B35: =SUM('- 30 -'!D35,'- 30 -'!B35,'- 29 -'!F35,'- 29 -'!D35,'- 29 -'!B35) -> 5327910 | C35: =B35/'- 3 -'!D35*100 -> 2.477876613 | D35: =B35/'- 7 -'!E35 -> 323.0798617 | E35: =SUM('- 32 -'!D35,'- 32 -'!B35,'- 31 -'!F35,'- 31 -'!D35,'- 31 -'!B35) -> 23198801 | F35: =E35/'- 3 -'!D35*100 -> 10.78917745 | G35: =E35/'- 7 -'!E35 -> 1406.75526 | H35: =SUM('- 33 -'!B35,'- 33 -'!D35) -> 3730000 | I35: =H35/'- 3 -'!D35*100 -> 1.734728959 | J35: =H35/'- 7 -'!E35 -> 226.1839791
A36: ROLLING RIVER | B36: =SUM('- 30 -'!D36,'- 30 -'!B36,'- 29 -'!F36,'- 29 -'!D36,'- 29 -'!B36) -> 1824825 | C36: =B36/'- 3 -'!D36*100 -> 7.136034663 | D36: =B36/'- 7 -'!E36 -> 1028.070423 | E36: =SUM('- 32 -'!D36,'- 32 -'!B36,'- 31 -'!F36,'- 31 -'!D36,'- 31 -'!B36) -> 3078230 | F36: =E36/'- 3 -'!D36*100 -> 12.03751372 | G36: =E36/'- 7 -'!E36 -> 1734.214085 | H36: =SUM('- 33 -'!B36,'- 33 -'!D36) -> 476100 | I36: =H36/'- 3 -'!D36*100 -> 1.861803791 | J36: =H36/'- 7 -'!E36 -> 268.2253521
A37: SEINE RIVER | B37: =SUM('- 30 -'!D37,'- 30 -'!B37,'- 29 -'!F37,'- 29 -'!D37,'- 29 -'!B37) -> 3818128 | C37: =B37/'- 3 -'!D37*100 -> 6.498224536 | D37: =B37/'- 7 -'!E37 -> 873.7135011 | E37: =SUM('- 32 -'!D37,'- 32 -'!B37,'- 31 -'!F37,'- 31 -'!D37,'- 31 -'!B37) -> 5560900 | F37: =E37/'- 3 -'!D37*100 -> 9.464317808 | G37: =E37/'- 7 -'!E37 -> 1272.517162 | H37: =SUM('- 33 -'!B37,'- 33 -'!D37) -> 930000 | I37: =H37/'- 3 -'!D37*100 -> 1.582804143 | J37: =H37/'- 7 -'!E37 -> 212.8146453
A38: SEVEN OAKS | B38: =SUM('- 30 -'!D38,'- 30 -'!B38,'- 29 -'!F38,'- 29 -'!D38,'- 29 -'!B38) -> 4269214 | C38: =B38/'- 3 -'!D38*100 -> 2.663578227 | D38: =B38/'- 7 -'!E38 -> 370.1609239 | E38: =SUM('- 32 -'!D38,'- 32 -'!B38,'- 31 -'!F38,'- 31 -'!D38,'- 31 -'!B38) -> 14712580 | F38: =E38/'- 3 -'!D38*100 -> 9.179232466 | G38: =E38/'- 7 -'!E38 -> 1275.649852 | H38: =SUM('- 33 -'!B38,'- 33 -'!D38) -> 2899683 | I38: =H38/'- 3 -'!D38*100 -> 1.809122828 | J38: =H38/'- 7 -'!E38 -> 251.4161479
A39: SOUTHWEST HORIZON | B39: =SUM('- 30 -'!D39,'- 30 -'!B39,'- 29 -'!F39,'- 29 -'!D39,'- 29 -'!B39) -> 2409700 | C39: =B39/'- 3 -'!D39*100 -> 9.822440345 | D39: =B39/'- 7 -'!E39 -> 1664.617298 | E39: =SUM('- 32 -'!D39,'- 32 -'!B39,'- 31 -'!F39,'- 31 -'!D39,'- 31 -'!B39) -> 2530500 | F39: =E39/'- 3 -'!D39*100 -> 10.31484637 | G39: =E39/'- 7 -'!E39 -> 1748.065764 | H39: =SUM('- 33 -'!B39,'- 33 -'!D39) -> 434200 | I39: =H39/'- 3 -'!D39*100 -> 1.769889861 | J39: =H39/'- 7 -'!E39 -> 299.9447361
A40: ST. JAMES-ASSINIBOIA | B40: =SUM('- 30 -'!D40,'- 30 -'!B40,'- 29 -'!F40,'- 29 -'!D40,'- 29 -'!B40) -> 2673097 | C40: =B40/'- 3 -'!D40*100 -> 2.27107651 | D40: =B40/'- 7 -'!E40 -> 335.5632689 | E40: =SUM('- 32 -'!D40,'- 32 -'!B40,'- 31 -'!F40,'- 31 -'!D40,'- 31 -'!B40) -> 11666432 | F40: =E40/'- 3 -'!D40*100 -> 9.911858666 | G40: =E40/'- 7 -'!E40 -> 1464.528245 | H40: =SUM('- 33 -'!B40,'- 33 -'!D40) -> 2060828 | I40: =H40/'- 3 -'!D40*100 -> 1.750889721 | J40: =H40/'- 7 -'!E40 -> 258.7029877
A41: SUNRISE | B41: =SUM('- 30 -'!D41,'- 30 -'!B41,'- 29 -'!F41,'- 29 -'!D41,'- 29 -'!B41) -> 5458754 | C41: =B41/'- 3 -'!D41*100 -> 7.653035359 | D41: =B41/'- 7 -'!E41 -> 1213.730739 | E41: =SUM('- 32 -'!D41,'- 32 -'!B41,'- 31 -'!F41,'- 31 -'!D41,'- 31 -'!B41) -> 6984686 | F41: =E41/'- 3 -'!D41*100 -> 9.792353517 | G41: =E41/'- 7 -'!E41 -> 1553.015231 | H41: =SUM('- 33 -'!B41,'- 33 -'!D41) -> 1265091 | I41: =H41/'- 3 -'!D41*100 -> 1.773625658 | J41: =H41/'- 7 -'!E41 -> 281.2876042
A42: SWAN VALLEY | B42: =SUM('- 30 -'!D42,'- 30 -'!B42,'- 29 -'!F42,'- 29 -'!D42,'- 29 -'!B42) -> 2090806 | C42: =B42/'- 3 -'!D42*100 -> 8.839087221 | D42: =B42/'- 7 -'!E42 -> 1607.076095 | E42: =SUM('- 32 -'!D42,'- 32 -'!B42,'- 31 -'!F42,'- 31 -'!D42,'- 31 -'!B42) -> 2611340 | F42: =E42/'- 3 -'!D42*100 -> 11.03969571 | G42: =E42/'- 7 -'!E42 -> 2007.179093 | H42: =SUM('- 33 -'!B42,'- 33 -'!D42) -> 400000 | I42: =H42/'- 3 -'!D42*100 -> 1.691039192 | J42: =H42/'- 7 -'!E42 -> 307.4558032
A43: TURTLE MOUNTAIN | B43: =SUM('- 30 -'!D43,'- 30 -'!B43,'- 29 -'!F43,'- 29 -'!D43,'- 29 -'!B43) -> 1213577 | C43: =B43/'- 3 -'!D43*100 -> 8.36801397 | D43: =B43/'- 7 -'!E43 -> 1248.536008 | E43: =SUM('- 32 -'!D43,'- 32 -'!B43,'- 31 -'!F43,'- 31 -'!D43,'- 31 -'!B43) -> 1144886 | F43: =E43/'- 3 -'!D43*100 -> 7.894366853 | G43: =E43/'- 7 -'!E43 -> 1177.866255 | H43: =SUM('- 33 -'!B43,'- 33 -'!D43) -> 296000 | I43: =H43/'- 3 -'!D43*100 -> 2.041017698 | J43: =H43/'- 7 -'!E43 -> 304.526749
A44: TURTLE RIVER | B44: =SUM('- 30 -'!D44,'- 30 -'!B44,'- 29 -'!F44,'- 29 -'!D44,'- 29 -'!B44) -> 1243034 | C44: =B44/'- 3 -'!D44*100 -> 10.30594556 | D44: =B44/'- 7 -'!E44 -> 1915.306626 | E44: =SUM('- 32 -'!D44,'- 32 -'!B44,'- 31 -'!F44,'- 31 -'!D44,'- 31 -'!B44) -> 1204986 | F44: =E44/'- 3 -'!D44*100 -> 9.990491098 | G44: =E44/'- 7 -'!E44 -> 1856.681048 | H44: =SUM('- 33 -'!B44,'- 33 -'!D44) -> 202121 | I44: =H44/'- 3 -'!D44*100 -> 1.675777188 | J44: =H44/'- 7 -'!E44 -> 311.4345146
A45: WESTERN | B45: =SUM('- 30 -'!D45,'- 30 -'!B45,'- 29 -'!F45,'- 29 -'!D45,'- 29 -'!B45) -> 1062069 | C45: =B45/'- 3 -'!D45*100 -> 4.243463403 | D45: =B45/'- 7 -'!E45 -> 517.5774854 | E45: =SUM('- 32 -'!D45,'- 32 -'!B45,'- 31 -'!F45,'- 31 -'!D45,'- 31 -'!B45) -> 2279980 | F45: =E45/'- 3 -'!D45*100 -> 9.109588633 | G45: =E45/'- 7 -'!E45 -> 1111.101365 | H45: =SUM('- 33 -'!B45,'- 33 -'!D45) -> 458958 | I45: =H45/'- 3 -'!D45*100 -> 1.833752305 | J45: =H45/'- 7 -'!E45 -> 223.6637427
A46: WINNIPEG | B46: =SUM('- 30 -'!D46,'- 30 -'!B46,'- 29 -'!F46,'- 29 -'!D46,'- 29 -'!B46) -> 7920429 | C46: =B46/'- 3 -'!D46*100 -> 1.829664673 | D46: =B46/'- 7 -'!E46 -> 289.6852404 | E46: =SUM('- 32 -'!D46,'- 32 -'!B46,'- 31 -'!F46,'- 31 -'!D46,'- 31 -'!B46) -> 57126179 | F46: =E46/'- 3 -'!D46*100 -> 13.19647605 | G46: =E46/'- 7 -'!E46 -> 2089.357899 | H46: =SUM('- 33 -'!B46,'- 33 -'!D46) -> 7722760 | I46: =H46/'- 3 -'!D46*100 -> 1.784001997 | J46: =H46/'- 7 -'!E46 -> 282.4556078
A48: PROVINCE | B48: =SUM(B11:B46) -> 115504071 | C48: =B48/'- 3 -'!D48*100 -> 4.372692821 | D48: =B48/'- 7 -'!E48 -> 643.2560048 | E48: =SUM(E11:E46) -> 296149773 | F48: =E48/'- 3 -'!D48*100 -> 11.2114835 | G48: =E48/'- 7 -'!E48 -> 1649.293554 | H48: =SUM(H11:H46) -> 45091072 | I48: =H48/'- 3 -'!D48*100 -> 1.707034264 | J48: =H48/'- 7 -'!E48 -> 251.1175803
A50: WHITESHELL | B50: =SUM('- 30 -'!D50,'- 30 -'!B50,'- 29 -'!F50,'- 29 -'!D50,'- 29 -'!B50) -> 72848 | C50: =B50/'- 3 -'!D50*100 -> 1.939027565 | D50: =B50/'- 7 -'!E50 -> 402.4751381 | E50: =SUM('- 32 -'!D50,'- 32 -'!B50,'- 31 -'!F50,'- 31 -'!D50,'- 31 -'!B50) -> 574348 | F50: =E50/'- 3 -'!D50*100 -> 15.28767576 | G50: =E50/'- 7 -'!E50 -> 3173.19337 | H50: =SUM('- 33 -'!B50,'- 33 -'!D50) -> 48000 | I50: =H50/'- 3 -'!D50*100 -> 1.277637315 | J50: =H50/'- 7 -'!E50 -> 265.1933702
B52: =B48-'- 10 -'!K22 -> 0

Sheet - 18 -
B2: ANALYSIS OF EXPENSE BY PROGRAM | G2: PAGE 1 OF 16 | BA2: ANALYSIS OF EXPENSE BY PROGRAM | BB2: ANALYSE DES DÉPENSES PAR PROGRAMME
B3: OPERATING FUND 2022/2023 BUDGET
B5: FUNCTION 100: REGULAR INSTRUCTION
B6: ADMINISTRATION | E6: SENIOR YEARS TECHNOLOGY EDUCATION
D8: PER PUPIL | G8: PER PUPIL
A9: DIVISION / DISTRICT | B9: AMOUNT | C9: % | E9: AMOUNT | F9: %
A11: BEAUTIFUL PLAINS | B11: 1708654 | C11: =B11/'- 3 -'!$D11*100 -> 6.904102477 | D11: =B11/'- 7 -'!$C11 -> 833.2865155 | E11: 0 | F11: =E11/'- 3 -'!$D11*100 -> 0 | G11: =IF('- 7 -'!$B11=0,"",E11/'- 7 -'!$B11) -> 
A12: BORDER LAND | B12: 2828548 | C12: =B12/'- 3 -'!$D12*100 -> 7.730443028 | D12: =B12/'- 7 -'!$C12 -> 1333.59799 | E12: 1046601 | F12: =E12/'- 3 -'!$D12*100 -> 2.860368431 | G12: =IF('- 7 -'!$B12=0,"",E12/'- 7 -'!$B12) -> 7386.033874
A13: BRANDON | B13: 8370000 | C13: =B13/'- 3 -'!$D13*100 -> 7.316280078 | D13: =B13/'- 7 -'!$C13 -> 956.8448128 | E13: 3815200 | F13: =E13/'- 3 -'!$D13*100 -> 3.334895072 | G13: =IF('- 7 -'!$B13=0,"",E13/'- 7 -'!$B13) -> 9757.544757
A14: DSFM | B14: 7578901 | C14: =B14/'- 3 -'!$D14*100 -> 7.22457993 | D14: =B14/'- 7 -'!$C14 -> 1281.735329 | E14: 264866 | F14: =E14/'- 3 -'!$D14*100 -> 0.2524832542 | G14: =IF('- 7 -'!$B14=0,"",E14/'- 7 -'!$B14) -> 9558.498737
A15: EVERGREEN | B15: 1843440 | C15: =B15/'- 3 -'!$D15*100 -> 8.330392257 | D15: =B15/'- 7 -'!$C15 -> 1332.928416 | E15: 89000 | F15: =E15/'- 3 -'!$D15*100 -> 0.4021855395 | G15: =IF('- 7 -'!$B15=0,"",E15/'- 7 -'!$B15) -> 4450
A16: FLIN FLON | B16: 1411278 | C16: =B16/'- 3 -'!$D16*100 -> 8.757572551 | D16: =B16/'- 7 -'!$C16 -> 1488.689873 | E16: 0 | F16: =E16/'- 3 -'!$D16*100 -> 0 | G16: =IF('- 7 -'!$B16=0,"",E16/'- 7 -'!$B16) -> 
A17: FORT LA BOSSE | B17: 1432077 | C17: =B17/'- 3 -'!$D17*100 -> 7.053708591 | D17: =B17/'- 7 -'!$C17 -> 969.9133085 | E17: 224000 | F17: =E17/'- 3 -'!$D17*100 -> 1.103314085 | G17: =IF('- 7 -'!$B17=0,"",E17/'- 7 -'!$B17) -> 8960
A18: FRONTIER | B18: 8184398 | C18: =B18/'- 3 -'!$D18*100 -> 5.280697287 | D18: =B18/'- 7 -'!$C18 -> 1305.01443 | E18: 507000 | F18: =E18/'- 3 -'!$D18*100 -> 0.3271240627 | G18: =IF('- 7 -'!$B18=0,"",E18/'- 7 -'!$B18) -> 8593.220339
A19: GARDEN VALLEY | B19: 3518400 | C19: =B19/'- 3 -'!$D19*100 -> 6.824847535 | D19: =B19/'- 7 -'!$C19 -> 852.73873 | E19: 1276400 | F19: =E19/'- 3 -'!$D19*100 -> 2.475908195 | G19: =IF('- 7 -'!$B19=0,"",E19/'- 7 -'!$B19) -> 10130.15873
A20: HANOVER | B20: 6950500 | C20: =B20/'- 3 -'!$D20*100 -> 7.20349391 | D20: =B20/'- 7 -'!$C20 -> 875.874236 | E20: 3239100 | F20: =E20/'- 3 -'!$D20*100 -> 3.357001241 | G20: =IF('- 7 -'!$B20=0,"",E20/'- 7 -'!$B20) -> 6315.266134
A21: INTERLAKE | B21: 3218130 | C21: =B21/'- 3 -'!$D21*100 -> 8.007051295 | D21: =B21/'- 7 -'!$C21 -> 1104.368566 | E21: 0 | F21: =E21/'- 3 -'!$D21*100 -> 0 | G21: =IF('- 7 -'!$B21=0,"",E21/'- 7 -'!$B21) -> 
A22: KELSEY | B22: 1511019 | C22: =B22/'- 3 -'!$D22*100 -> 7.205696539 | D22: =B22/'- 7 -'!$C22 -> 1042.801242 | E22: 0 | F22: =E22/'- 3 -'!$D22*100 -> 0 | G22: =IF('- 7 -'!$B22=0,"",E22/'- 7 -'!$B22) -> 
A23: LAKESHORE | B23: 1146800 | C23: =B23/'- 3 -'!$D23*100 -> 6.877299042 | D23: =B23/'- 7 -'!$C23 -> 1247.878128 | E23: 148000 | F23: =E23/'- 3 -'!$D23*100 -> 0.8875481847 | G23: =IF('- 7 -'!$B23=0,"",E23/'- 7 -'!$B23) -> 10571.42857
A24: LORD SELKIRK | B24: 5386560 | C24: =B24/'- 3 -'!$D24*100 -> 8.73241645 | D24: =B24/'- 7 -'!$C24 -> 1448 | E24: 1962072 | F24: =E24/'- 3 -'!$D24*100 -> 3.180811095 | G24: =IF('- 7 -'!$B24=0,"",E24/'- 7 -'!$B24) -> 9618
A25: LOUIS RIEL | B25: 16445212 | C25: =B25/'- 3 -'!$D25*100 -> 7.929470714 | D25: =B25/'- 7 -'!$C25 -> 1078.869776 | E25: 2140516 | F25: =E25/'- 3 -'!$D25*100 -> 1.032103383 | G25: =IF('- 7 -'!$B25=0,"",E25/'- 7 -'!$B25) -> 18516.57439
A26: MOUNTAIN VIEW | B26: 3933477 | C26: =B26/'- 3 -'!$D26*100 -> 8.835051201 | D26: =B26/'- 7 -'!$C26 -> 1295.61166 | E26: 1128540 | F26: =E26/'- 3 -'!$D26*100 -> 2.53483335 | G26: =IF('- 7 -'!$B26=0,"",E26/'- 7 -'!$B26) -> 7444.195251
A27: MYSTERY LAKE | B27: 3083001 | C27: =B27/'- 3 -'!$D27*100 -> 6.822581751 | D27: =B27/'- 7 -'!$C27 -> 1106.20775 | E27: 1234935 | F27: =E27/'- 3 -'!$D27*100 -> 2.732871314 | G27: =IF('- 7 -'!$B27=0,"",E27/'- 7 -'!$B27) -> 7718.34375
A28: PARK WEST | B28: 2449666 | C28: =B28/'- 3 -'!$D28*100 -> 7.833519178 | D28: =B28/'- 7 -'!$C28 -> 1181.131148 | E28: 0 | F28: =E28/'- 3 -'!$D28*100 -> 0 | G28: =IF('- 7 -'!$B28=0,"",E28/'- 7 -'!$B28) -> 
A29: PEMBINA TRAILS | B29: 15694238 | C29: =B29/'- 3 -'!$D29*100 -> 8.146340185 | D29: =B29/'- 7 -'!$C29 -> 1059.176239 | E29: 0 | F29: =E29/'- 3 -'!$D29*100 -> 0 | G29: =IF('- 7 -'!$B29=0,"",E29/'- 7 -'!$B29) -> 
A30: PINE CREEK | B30: 1170627 | C30: =B30/'- 3 -'!$D30*100 -> 7.091761927 | D30: =B30/'- 7 -'!$C30 -> 1059.39095 | E30: 405832 | F30: =E30/'- 3 -'!$D30*100 -> 2.458566158 | G30: =IF('- 7 -'!$B30=0,"",E30/'- 7 -'!$B30) -> 7657.207547
A31: PORTAGE LA PRAIRIE | B31: 3484322 | C31: =B31/'- 3 -'!$D31*100 -> 7.989843655 | D31: =B31/'- 7 -'!$C31 -> 1026.309867 | E31: 670595 | F31: =E31/'- 3 -'!$D31*100 -> 1.537730785 | G31: =IF('- 7 -'!$B31=0,"",E31/'- 7 -'!$B31) -> 5882.412281
A32: PRAIRIE ROSE | B32: 2822609 | C32: =B32/'- 3 -'!$D32*100 -> 8.542830403 | D32: =B32/'- 7 -'!$C32 -> 1165.404211 | E32: 0 | F32: =E32/'- 3 -'!$D32*100 -> 0 | G32: =IF('- 7 -'!$B32=0,"",E32/'- 7 -'!$B32) -> 
A33: PRAIRIE SPIRIT | B33: 3089477 | C33: =B33/'- 3 -'!$D33*100 -> 10.29088942 | D33: =B33/'- 7 -'!$C33 -> 1481.763549 | E33: 0 | F33: =E33/'- 3 -'!$D33*100 -> 0 | G33: =IF('- 7 -'!$B33=0,"",E33/'- 7 -'!$B33) -> 
A34: RED RIVER VALLEY | B34: 2749302 | C34: =B34/'- 3 -'!$D34*100 -> 8.036043586 | D34: =B34/'- 7 -'!$C34 -> 1234.697984 | E34: 376206 | F34: =E34/'- 3 -'!$D34*100 -> 1.099627401 | G34: =IF('- 7 -'!$B34=0,"",E34/'- 7 -'!$B34) -> 14928.80952
A35: RIVER EAST TRANSCONA | B35: 16116060 | C35: =B35/'- 3 -'!$D35*100 -> 7.495173186 | D35: =B35/'- 7 -'!$C35 -> 977.2639622 | E35: 4256636 | F35: =E35/'- 3 -'!$D35*100 -> 1.979654085 | G35: =IF('- 7 -'!$B35=0,"",E35/'- 7 -'!$B35) -> 4804.329571
A36: ROLLING RIVER | B36: 2162905 | C36: =B36/'- 3 -'!$D36*100 -> 8.458106971 | D36: =B36/'- 7 -'!$C36 -> 1218.538028 | E36: 145590 | F36: =E36/'- 3 -'!$D36*100 -> 0.5693342028 | G36: =IF('- 7 -'!$B36=0,"",E36/'- 7 -'!$B36) -> 12550.86207
A37: SEINE RIVER | B37: 4976818 | C37: =B37/'- 3 -'!$D37*100 -> 8.470245324 | D37: =B37/'- 7 -'!$C37 -> 1138.859954 | E37: 0 | F37: =E37/'- 3 -'!$D37*100 -> 0 | G37: =IF('- 7 -'!$B37=0,"",E37/'- 7 -'!$B37) -> 
A38: SEVEN OAKS | B38: 11754263 | C38: =B38/'- 3 -'!$D38*100 -> 7.333527671 | D38: =B38/'- 7 -'!$C38 -> 1019.14986 | E38: 1816790 | F38: =E38/'- 3 -'!$D38*100 -> 1.133501925 | G38: =IF('- 7 -'!$B38=0,"",E38/'- 7 -'!$B38) -> 9097.596395
A39: SOUTHWEST HORIZON | B39: 1616300 | C39: =B39/'- 3 -'!$D39*100 -> 6.588376283 | D39: =B39/'- 7 -'!$C39 -> 1116.537718 | E39: 0 | F39: =E39/'- 3 -'!$D39*100 -> 0 | G39: =IF('- 7 -'!$B39=0,"",E39/'- 7 -'!$B39) -> 
A40: ST. JAMES-ASSINIBOIA | B40: 9536067 | C40: =B40/'- 3 -'!$D40*100 -> 8.101889964 | D40: =B40/'- 7 -'!$C40 -> 1197.096033 | E40: 2005652 | F40: =E40/'- 3 -'!$D40*100 -> 1.704011917 | G40: =IF('- 7 -'!$B40=0,"",E40/'- 7 -'!$B40) -> 8508.981375
A41: SUNRISE | B41: 4799619 | C41: =B41/'- 3 -'!$D41*100 -> 6.728944722 | D41: =B41/'- 7 -'!$C41 -> 1067.174875 | E41: 0 | F41: =E41/'- 3 -'!$D41*100 -> 0 | G41: =IF('- 7 -'!$B41=0,"",E41/'- 7 -'!$B41) -> 
A42: SWAN VALLEY | B42: 2026340 | C42: =B42/'- 3 -'!$D42*100 -> 8.56655089 | D42: =B42/'- 7 -'!$C42 -> 1557.524981 | E42: 1155559 | F42: =E42/'- 3 -'!$D42*100 -> 4.885238894 | G42: =IF('- 7 -'!$B42=0,"",E42/'- 7 -'!$B42) -> 8895.758276
A43: TURTLE MOUNTAIN | B43: 870814 | C43: =B43/'- 3 -'!$D43*100 -> 6.004549952 | D43: =B43/'- 7 -'!$C43 -> 895.899177 | E43: 85908 | F43: =E43/'- 3 -'!$D43*100 -> 0.592364015 | G43: =IF('- 7 -'!$B43=0,"",E43/'- 7 -'!$B43) -> 3304.153846
A44: TURTLE RIVER | B44: 717096 | C44: =B44/'- 3 -'!$D44*100 -> 5.945414473 | D44: =B44/'- 7 -'!$C44 -> 1104.924499 | E44: 0 | F44: =E44/'- 3 -'!$D44*100 -> 0 | G44: =IF('- 7 -'!$B44=0,"",E44/'- 7 -'!$B44) -> 
A45: WESTERN | B45: 1862221 | C45: =B45/'- 3 -'!$D45*100 -> 7.440445642 | D45: =B45/'- 7 -'!$C45 -> 907.5151072 | E45: 404874 | F45: =E45/'- 3 -'!$D45*100 -> 1.617661378 | G45: =IF('- 7 -'!$B45=0,"",E45/'- 7 -'!$B45) -> 11567.82857
A46: WINNIPEG | B46: 31646894 | C46: =B46/'- 3 -'!$D46*100 -> 7.31061461 | D46: =B46/'- 7 -'!$C46 -> 1157.467366 | E46: 7163432 | F46: =E46/'- 3 -'!$D46*100 -> 1.65479401 | G46: =IF('- 7 -'!$B46=0,"",E46/'- 7 -'!$B46) -> 10262.79656
A48: PROVINCE | B48: =SUM(B11:B46) -> 198096033 | C48: =B48/'- 3 -'!$D48*100 -> 7.499416201 | D48: =B48/'- 7 -'!$C48 -> 1103.220533 | E48: =SUM(E11:E46) -> 35563304 | F48: =E48/'- 3 -'!$D48*100 -> 1.346336997 | G48: =E48/'- 7 -'!$B48 -> 8151.822529
A50: WHITESHELL | B50: 229190 | C50: =B50/'- 3 -'!$D50*100 -> 6.100452003 | D50: =B50/'- 7 -'!$C50 -> 1266.243094 | E50: 0 | F50: =E50/'- 3 -'!$D50*100 -> 0 | G50: =IF('- 7 -'!$B50=0,"",E50/'- 7 -'!$B50) -> 

Sheet - 19 -
B2: =AEXP_BP -> ANALYSIS OF EXPENSE BY PROGRAM | J2: PAGE 2 OF 16
B3: =OPYEAR -> OPERATING FUND 2022/2023 BUDGET
B5: FUNCTION 100: REGULAR INSTRUCTION (CONT'D)
B6: SINGLE TRACK SCHOOLS (1)
B7: ENGLISH LANGUAGE | E7: FRANÇAIS | H7: FRENCH IMMERSION
D8: PER PUPIL | G8: PER PUPIL | J8: PER PUPIL
A9: DIVISION / DISTRICT | B9: AMOUNT | C9: % | E9: AMOUNT | F9: % | H9: AMOUNT | I9: %
A11: BEAUTIFUL PLAINS | B11: 14234603 | C11: =B11/'- 3 -'!$D11*100 -> 57.51729598 | D11: =B11/'- 6 -'!$B11 -> 6942.015606 | E11: 0 | F11: =E11/'- 3 -'!$D11*100 -> 0 | G11: =IF('- 6 -'!$C11=0,"",E11/'- 6 -'!$C11) ->  | H11: 0 | I11: =H11/'- 3 -'!$D11*100 -> 0 | J11: =IF('- 6 -'!$D11=0,"",H11/'- 6 -'!$D11) -> 
A12: BORDER LAND | B12: 13436624 | C12: =B12/'- 3 -'!$D12*100 -> 36.72239479 | D12: =B12/'- 6 -'!$B12 -> 9514.06864 | E12: 0 | F12: =E12/'- 3 -'!$D12*100 -> 0 | G12: =IF('- 6 -'!$C12=0,"",E12/'- 6 -'!$C12) ->  | H12: 0 | I12: =H12/'- 3 -'!$D12*100 -> 0 | J12: =IF('- 6 -'!$D12=0,"",H12/'- 6 -'!$D12) -> 
A13: BRANDON | B13: 47890900 | C13: =B13/'- 3 -'!$D13*100 -> 41.86179661 | D13: =B13/'- 6 -'!$B13 -> 6977.620747 | E13: 0 | F13: =E13/'- 3 -'!$D13*100 -> 0 | G13: =IF('- 6 -'!$C13=0,"",E13/'- 6 -'!$C13) ->  | H13: 2214000 | I13: =H13/'- 3 -'!$D13*100 -> 1.935274085 | J13: =IF('- 6 -'!$D13=0,"",H13/'- 6 -'!$D13) -> 6984.227129
A14: DSFM | B14: 0 | C14: =B14/'- 3 -'!$D14*100 -> 0 | E14: 51181365 | F14: =E14/'- 3 -'!$D14*100 -> 48.78858589 | G14: =IF('- 6 -'!$C14=0,"",E14/'- 6 -'!$C14) -> 8696.489893 | H14: 0 | I14: =H14/'- 3 -'!$D14*100 -> 0 | J14: =IF('- 6 -'!$D14=0,"",H14/'- 6 -'!$D14) -> 
A15: EVERGREEN | B15: 10330950 | C15: =B15/'- 3 -'!$D15*100 -> 46.6849292 | D15: =B15/'- 6 -'!$B15 -> 7579.567131 | E15: 0 | F15: =E15/'- 3 -'!$D15*100 -> 0 | G15: =IF('- 6 -'!$C15=0,"",E15/'- 6 -'!$C15) ->  | H15: 0 | I15: =H15/'- 3 -'!$D15*100 -> 0 | J15: =IF('- 6 -'!$D15=0,"",H15/'- 6 -'!$D15) -> 
A16: FLIN FLON | B16: 5228562 | C16: =B16/'- 3 -'!$D16*100 -> 32.44542256 | D16: =B16/'- 6 -'!$B16 -> 8817.136594 | E16: 0 | F16: =E16/'- 3 -'!$D16*100 -> 0 | G16: =IF('- 6 -'!$C16=0,"",E16/'- 6 -'!$C16) ->  | H16: 0 | I16: =H16/'- 3 -'!$D16*100 -> 0 | J16: =IF('- 6 -'!$D16=0,"",H16/'- 6 -'!$D16) -> 
A17: FORT LA BOSSE | B17: 10678760 | C17: =B17/'- 3 -'!$D17*100 -> 52.59833176 | D17: =B17/'- 6 -'!$B17 -> 7357.051326 | E17: 0 | F17: =E17/'- 3 -'!$D17*100 -> 0 | G17: =IF('- 6 -'!$C17=0,"",E17/'- 6 -'!$C17) ->  | H17: 0 | I17: =H17/'- 3 -'!$D17*100 -> 0 | J17: =IF('- 6 -'!$D17=0,"",H17/'- 6 -'!$D17) -> 
A18: FRONTIER | B18: 57788967 | C18: =B18/'- 3 -'!$D18*100 -> 37.28631492 | D18: =B18/'- 6 -'!$B18 -> 9302.047002 | E18: 0 | F18: =E18/'- 3 -'!$D18*100 -> 0 | G18: =IF('- 6 -'!$C18=0,"",E18/'- 6 -'!$C18) ->  | H18: 0 | I18: =H18/'- 3 -'!$D18*100 -> 0 | J18: =IF('- 6 -'!$D18=0,"",H18/'- 6 -'!$D18) -> 
A19: GARDEN VALLEY | B19: 23964700 | C19: =B19/'- 3 -'!$D19*100 -> 46.48573889 | D19: =B19/'- 6 -'!$B19 -> 5991.175 | E19: 0 | F19: =E19/'- 3 -'!$D19*100 -> 0 | G19: =IF('- 6 -'!$C19=0,"",E19/'- 6 -'!$C19) ->  | H19: 0 | I19: =H19/'- 3 -'!$D19*100 -> 0 | J19: =IF('- 6 -'!$D19=0,"",H19/'- 6 -'!$D19) -> 
A20: HANOVER | B20: 49324200 | C20: =B20/'- 3 -'!$D20*100 -> 51.11957043 | D20: =B20/'- 6 -'!$B20 -> 6645.137822 | E20: 0 | F20: =E20/'- 3 -'!$D20*100 -> 0 | G20: =IF('- 6 -'!$C20=0,"",E20/'- 6 -'!$C20) ->  | H20: 0 | I20: =H20/'- 3 -'!$D20*100 -> 0 | J20: =IF('- 6 -'!$D20=0,"",H20/'- 6 -'!$D20) -> 
A21: INTERLAKE | B21: 12116623 | C21: =B21/'- 3 -'!$D21*100 -> 30.14745268 | D21: =B21/'- 6 -'!$B21 -> 7535.213308 | E21: 0 | F21: =E21/'- 3 -'!$D21*100 -> 0 | G21: =IF('- 6 -'!$C21=0,"",E21/'- 6 -'!$C21) ->  | H21: 0 | I21: =H21/'- 3 -'!$D21*100 -> 0 | J21: =IF('- 6 -'!$D21=0,"",H21/'- 6 -'!$D21) -> 
A22: KELSEY | B22: 4884204.667 | C22: =B22/'- 3 -'!$D22*100 -> 23.29163079 | D22: =B22/'- 6 -'!$B22 -> 5956.347154 | E22: 0 | F22: =E22/'- 3 -'!$D22*100 -> 0 | G22: =IF('- 6 -'!$C22=0,"",E22/'- 6 -'!$C22) ->  | H22: 0 | I22: =H22/'- 3 -'!$D22*100 -> 0 | J22: =IF('- 6 -'!$D22=0,"",H22/'- 6 -'!$D22) -> 
A23: LAKESHORE | B23: 7250534 | C23: =B23/'- 3 -'!$D23*100 -> 43.48106953 | D23: =B23/'- 6 -'!$B23 -> 8011.639779 | E23: 0 | F23: =E23/'- 3 -'!$D23*100 -> 0 | G23: =IF('- 6 -'!$C23=0,"",E23/'- 6 -'!$C23) ->  | H23: 0 | I23: =H23/'- 3 -'!$D23*100 -> 0 | J23: =IF('- 6 -'!$D23=0,"",H23/'- 6 -'!$D23) -> 
A24: LORD SELKIRK | B24: 21830435 | C24: =B24/'- 3 -'!$D24*100 -> 35.39038825 | D24: =B24/'- 6 -'!$B24 -> 8448.310759 | E24: 0 | F24: =E24/'- 3 -'!$D24*100 -> 0 | G24: =IF('- 6 -'!$C24=0,"",E24/'- 6 -'!$C24) ->  | H24: 1780949 | I24: =H24/'- 3 -'!$D24*100 -> 2.887183721 | J24: =IF('- 6 -'!$D24=0,"",H24/'- 6 -'!$D24) -> 8095.222727
A25: LOUIS RIEL | B25: 64364714 | C25: =B25/'- 3 -'!$D25*100 -> 31.03505839 | D25: =B25/'- 6 -'!$B25 -> 6698.099153 | E25: 0 | F25: =E25/'- 3 -'!$D25*100 -> 0 | G25: =IF('- 6 -'!$C25=0,"",E25/'- 6 -'!$C25) ->  | H25: 29619172 | I25: =H25/'- 3 -'!$D25*100 -> 14.28162537 | J25: =IF('- 6 -'!$D25=0,"",H25/'- 6 -'!$D25) -> 6102.013185
A26: MOUNTAIN VIEW | B26: 16452548 | C26: =B26/'- 3 -'!$D26*100 -> 36.95435463 | D26: =B26/'- 6 -'!$B26 -> 7345.215411 | E26: 0 | F26: =E26/'- 3 -'!$D26*100 -> 0 | G26: =IF('- 6 -'!$C26=0,"",E26/'- 6 -'!$C26) ->  | H26: 954864 | I26: =H26/'- 3 -'!$D26*100 -> 2.144736662 | J26: =IF('- 6 -'!$D26=0,"",H26/'- 6 -'!$D26) -> 7152.539326
A27: MYSTERY LAKE | B27: 18332473 | C27: =B27/'- 3 -'!$D27*100 -> 40.56917132 | D27: =B27/'- 6 -'!$B27 -> 8010.693904 | E27: 0 | F27: =E27/'- 3 -'!$D27*100 -> 0 | G27: =IF('- 6 -'!$C27=0,"",E27/'- 6 -'!$C27) ->  | H27: 0 | I27: =H27/'- 3 -'!$D27*100 -> 0 | J27: =IF('- 6 -'!$D27=0,"",H27/'- 6 -'!$D27) -> 
A28: PARK WEST | B28: 16281684 | C28: =B28/'- 3 -'!$D28*100 -> 52.06541784 | D28: =B28/'- 6 -'!$B28 -> 7850.378014 | E28: 0 | F28: =E28/'- 3 -'!$D28*100 -> 0 | G28: =IF('- 6 -'!$C28=0,"",E28/'- 6 -'!$C28) ->  | H28: 0 | I28: =H28/'- 3 -'!$D28*100 -> 0 | J28: =IF('- 6 -'!$D28=0,"",H28/'- 6 -'!$D28) -> 
A29: PEMBINA TRAILS | B29: 58846172 | C29: =B29/'- 3 -'!$D29*100 -> 30.54502778 | D29: =B29/'- 6 -'!$B29 -> 6773.660086 | E29: 0 | F29: =E29/'- 3 -'!$D29*100 -> 0 | G29: =IF('- 6 -'!$C29=0,"",E29/'- 6 -'!$C29) ->  | H29: 9060948 | I29: =H29/'- 3 -'!$D29*100 -> 4.703227057 | J29: =IF('- 6 -'!$D29=0,"",H29/'- 6 -'!$D29) -> 6408.02546
A30: PINE CREEK | B30: 8252668 | C30: =B30/'- 3 -'!$D30*100 -> 49.99539282 | D30: =B30/'- 6 -'!$B30 -> 7844.741445 | E30: 0 | F30: =E30/'- 3 -'!$D30*100 -> 0 | G30: =IF('- 6 -'!$C30=0,"",E30/'- 6 -'!$C30) ->  | H30: 0 | I30: =H30/'- 3 -'!$D30*100 -> 0 | J30: =IF('- 6 -'!$D30=0,"",H30/'- 6 -'!$D30) -> 
A31: PORTAGE LA PRAIRIE | B31: 17628242 | C31: =B31/'- 3 -'!$D31*100 -> 40.42304285 | D31: =B31/'- 6 -'!$B31 -> 7431.805228 | E31: 0 | F31: =E31/'- 3 -'!$D31*100 -> 0 | G31: =IF('- 6 -'!$C31=0,"",E31/'- 6 -'!$C31) ->  | H31: 0 | I31: =H31/'- 3 -'!$D31*100 -> 0 | J31: =IF('- 6 -'!$D31=0,"",H31/'- 6 -'!$D31) -> 
A32: PRAIRIE ROSE | B32: 13001979 | C32: =B32/'- 3 -'!$D32*100 -> 39.35143036 | D32: =B32/'- 6 -'!$B32 -> 7349.903335 | E32: 0 | F32: =E32/'- 3 -'!$D32*100 -> 0 | G32: =IF('- 6 -'!$C32=0,"",E32/'- 6 -'!$C32) ->  | H32: 829623 | I32: =H32/'- 3 -'!$D32*100 -> 2.510914047 | J32: =IF('- 6 -'!$D32=0,"",H32/'- 6 -'!$D32) -> 6690.508065
A33: PRAIRIE SPIRIT | B33: 11176050 | C33: =B33/'- 3 -'!$D33*100 -> 37.2268493 | D33: =B33/'- 6 -'!$B33 -> 6867.004608 | E33: 0 | F33: =E33/'- 3 -'!$D33*100 -> 0 | G33: =IF('- 6 -'!$C33=0,"",E33/'- 6 -'!$C33) ->  | H33: 0 | I33: =H33/'- 3 -'!$D33*100 -> 0 | J33: =IF('- 6 -'!$D33=0,"",H33/'- 6 -'!$D33) -> 
A34: RED RIVER VALLEY | B34: 11858413 | C34: =B34/'- 3 -'!$D34*100 -> 34.66142451 | D34: =B34/'- 6 -'!$B34 -> 7284.037469 | E34: 0 | F34: =E34/'- 3 -'!$D34*100 -> 0 | G34: =IF('- 6 -'!$C34=0,"",E34/'- 6 -'!$C34) ->  | H34: 2435589 | I34: =H34/'- 3 -'!$D34*100 -> 7.119079447 | J34: =IF('- 6 -'!$D34=0,"",H34/'- 6 -'!$D34) -> 7018.988473
A35: RIVER EAST TRANSCONA | B35: 65011772 | C35: =B35/'- 3 -'!$D35*100 -> 30.23533607 | D35: =B35/'- 6 -'!$B35 -> 8227.255378 | E35: 0 | F35: =E35/'- 3 -'!$D35*100 -> 0 | G35: =IF('- 6 -'!$C35=0,"",E35/'- 6 -'!$C35) ->  | H35: 9579383 | I35: =H35/'- 3 -'!$D35*100 -> 4.455129517 | J35: =IF('- 6 -'!$D35=0,"",H35/'- 6 -'!$D35) -> 6369.270612
A36: ROLLING RIVER | B36: 12989580 | C36: =B36/'- 3 -'!$D36*100 -> 50.79615477 | D36: =B36/'- 6 -'!$B36 -> 7366.212998 | E36: 0 | F36: =E36/'- 3 -'!$D36*100 -> 0 | G36: =IF('- 6 -'!$C36=0,"",E36/'- 6 -'!$C36) ->  | H36: 0 | I36: =H36/'- 3 -'!$D36*100 -> 0 | J36: =IF('- 6 -'!$D36=0,"",H36/'- 6 -'!$D36) -> 
A37: SEINE RIVER | B37: 14455494 | C37: =B37/'- 3 -'!$D37*100 -> 24.60238258 | D37: =B37/'- 6 -'!$B37 -> 6825.067989 | E37: 0 | F37: =E37/'- 3 -'!$D37*100 -> 0 | G37: =IF('- 6 -'!$C37=0,"",E37/'- 6 -'!$C37) ->  | H37: 4751138 | I37: =H37/'- 3 -'!$D37*100 -> 8.086151519 | J37: =IF('- 6 -'!$D37=0,"",H37/'- 6 -'!$D37) -> 5779.973236
A38: SEVEN OAKS | B38: 48867559 | C38: =B38/'- 3 -'!$D38*100 -> 30.48864877 | D38: =B38/'- 6 -'!$B38 -> 7105.114862 | E38: 0 | F38: =E38/'- 3 -'!$D38*100 -> 0 | G38: =IF('- 6 -'!$C38=0,"",E38/'- 6 -'!$C38) ->  | H38: 6686383 | I38: =H38/'- 3 -'!$D38*100 -> 4.171658806 | J38: =IF('- 6 -'!$D38=0,"",H38/'- 6 -'!$D38) -> 6242.538512
A39: SOUTHWEST HORIZON | B39: 12206900 | C39: =B39/'- 3 -'!$D39*100 -> 49.7578732 | D39: =B39/'- 6 -'!$B39 -> 8432.50898 | E39: 0 | F39: =E39/'- 3 -'!$D39*100 -> 0 | G39: =IF('- 6 -'!$C39=0,"",E39/'- 6 -'!$C39) ->  | H39: 0 | I39: =H39/'- 3 -'!$D39*100 -> 0 | J39: =IF('- 6 -'!$D39=0,"",H39/'- 6 -'!$D39) -> 
A40: ST. JAMES-ASSINIBOIA | B40: 39531404 | C40: =B40/'- 3 -'!$D40*100 -> 33.5860775 | D40: =B40/'- 6 -'!$B40 -> 7366.328892 | E40: 0 | F40: =E40/'- 3 -'!$D40*100 -> 0 | G40: =IF('- 6 -'!$C40=0,"",E40/'- 6 -'!$C40) ->  | H40: 8991565 | I40: =H40/'- 3 -'!$D40*100 -> 7.639278356 | J40: =IF('- 6 -'!$D40=0,"",H40/'- 6 -'!$D40) -> 6503.844485
A41: SUNRISE | B41: 15846559 | C41: =B41/'- 3 -'!$D41*100 -> 22.21647584 | D41: =B41/'- 6 -'!$B41 -> 7760.312929 | E41: 0 | F41: =E41/'- 3 -'!$D41*100 -> 0 | G41: =IF('- 6 -'!$C41=0,"",E41/'- 6 -'!$C41) ->  | H41: 0 | I41: =H41/'- 3 -'!$D41*100 -> 0 | J41: =IF('- 6 -'!$D41=0,"",H41/'- 6 -'!$D41) -> 
A42: SWAN VALLEY | B42: 7287379 | C42: =B42/'- 3 -'!$D42*100 -> 30.80810874 | D42: =B42/'- 6 -'!$B42 -> 7851.932981 | E42: 0 | F42: =E42/'- 3 -'!$D42*100 -> 0 | G42: =IF('- 6 -'!$C42=0,"",E42/'- 6 -'!$C42) ->  | H42: 0 | I42: =H42/'- 3 -'!$D42*100 -> 0 | J42: =IF('- 6 -'!$D42=0,"",H42/'- 6 -'!$D42) -> 
A43: TURTLE MOUNTAIN | B43: 7263251 | C43: =B43/'- 3 -'!$D43*100 -> 50.08251297 | D43: =B43/'- 6 -'!$B43 -> 7677.85518 | E43: 0 | F43: =E43/'- 3 -'!$D43*100 -> 0 | G43: =IF('- 6 -'!$C43=0,"",E43/'- 6 -'!$C43) ->  | H43: 0 | I43: =H43/'- 3 -'!$D43*100 -> 0 | J43: =IF('- 6 -'!$D43=0,"",H43/'- 6 -'!$D43) -> 
A44: TURTLE RIVER | B44: 5636924 | C44: =B44/'- 3 -'!$D44*100 -> 46.73551314 | D44: =B44/'- 6 -'!$B44 -> 9165.730081 | E44: 0 | F44: =E44/'- 3 -'!$D44*100 -> 0 | G44: =IF('- 6 -'!$C44=0,"",E44/'- 6 -'!$C44) ->  | H44: 359078 | I44: =H44/'- 3 -'!$D44*100 -> 2.977101445 | J44: =IF('- 6 -'!$D44=0,"",H44/'- 6 -'!$D44) -> 10561.11765
A45: WESTERN | B45: 6416399 | C45: =B45/'- 3 -'!$D45*100 -> 25.63652111 | D45: =B45/'- 6 -'!$B45 -> 6929.156587 | E45: 0 | F45: =E45/'- 3 -'!$D45*100 -> 0 | G45: =IF('- 6 -'!$C45=0,"",E45/'- 6 -'!$C45) ->  | H45: 0 | I45: =H45/'- 3 -'!$D45*100 -> 0 | J45: =IF('- 6 -'!$D45=0,"",H45/'- 6 -'!$D45) -> 
A46: WINNIPEG | B46: 128449411 | C46: =B46/'- 3 -'!$D46*100 -> 29.67255304 | D46: =B46/'- 6 -'!$B46 -> 7478.206328 | E46: 0 | F46: =E46/'- 3 -'!$D46*100 -> 0 | G46: =IF('- 6 -'!$C46=0,"",E46/'- 6 -'!$C46) ->  | H46: 9064691 | I46: =H46/'- 3 -'!$D46*100 -> 2.093995779 | J46: =IF('- 6 -'!$D46=0,"",H46/'- 6 -'!$D46) -> 6447.148649
A48: PROVINCE | B48: =SUM(B11:B46) -> 879117637.7 | C48: =B48/'- 3 -'!$D48*100 -> 33.28117658 | D48: =B48/'- 6 -'!$B48 -> 7403.557878 | E48: =SUM(E11:E46) -> 51181365 | F48: =E48/'- 3 -'!$D48*100 -> 1.937597397 | G48: =E48/'- 6 -'!$C48 -> 8696.489893 | H48: =SUM(H11:H46) -> 86327383 | I48: =H48/'- 3 -'!$D48*100 -> 3.268136998 | J48: =H48/'- 6 -'!$D48 -> 6334.04869
A50: WHITESHELL | B50: 1910364.73 | C50: =B50/'- 3 -'!$D50*100 -> 50.84902633 | D50: =B50/'- 6 -'!$B50 -> 10554.50127 | E50: 0 | F50: =E50/'- 3 -'!$D50*100 -> 0 | G50: =IF('- 6 -'!$C50=0,"",E50/'- 6 -'!$C50) ->  | H50: 0 | I50: =H50/'- 3 -'!$D50*100 -> 0 | J50: =IF('- 6 -'!$D50=0,"",H50/'- 6 -'!$D50) -> 
A52: (1) 90% or more of Regular Instruction enrolment is in one language.

Sheet - 20 -
B2: =AEXP_BP -> ANALYSIS OF EXPENSE BY PROGRAM | I2: PAGE 3 OF 16
B3: =OPYEAR -> OPERATING FUND 2022/2023 BUDGET
B5: FUNCTION 100: REGULAR INSTRUCTION (CONT'D)
B6: DUAL TRACK SCHOOLS (1)
D7: PER PUPIL | E7: NO. OF FTE PUPILS | F7: % IN DUAL TRACK SCHOOLS
F8: ENGLISH | G8: FRANÇAIS | H8: FRENCH IMMERSION | I8: OTHER
A9: DIVISION / DISTRICT | B9: AMOUNT | C9: %
A11: BEAUTIFUL PLAINS | B11: 0 | C11: =B11/'- 3 -'!$D11*100 -> 0 | D11: =IF(E11=0,"",B11/E11) ->  | E11: =SUM('- 6 -'!$E11:H11) -> 0 | F11: =IF(E11=0,"",'- 6 -'!$E11/E11*100) ->  | G11: =IF(E11=0,"",'- 6 -'!$F11/E11*100) ->  | H11: =IF(E11=0,"",'- 6 -'!$G11/E11*100) ->  | I11: =IF(E11=0,"",'- 6 -'!$H11/E11*100) -> 
A12: BORDER LAND | B12: 3853683 | C12: =B12/'- 3 -'!$D12*100 -> 10.53214472 | D12: =IF(E12=0,"",B12/E12) -> 6796.619048 | E12: =SUM('- 6 -'!$E12:H12) -> 567 | F12: =IF(E12=0,"",'- 6 -'!$E12/E12*100) -> 77.95414462 | G12: =IF(E12=0,"",'- 6 -'!$F12/E12*100) -> 0 | H12: =IF(E12=0,"",'- 6 -'!$G12/E12*100) -> 22.04585538 | I12: =IF(E12=0,"",'- 6 -'!$H12/E12*100) -> 0
A13: BRANDON | B13: 7714500 | C13: =B13/'- 3 -'!$D13*100 -> 6.743302588 | D13: 6559.94898 | E13: =SUM('- 6 -'!$E13:H13) -> 1176 | F13: =IF(E13=0,"",'- 6 -'!$E13/E13*100) -> 57.99319728 | G13: =IF(E13=0,"",'- 6 -'!$F13/E13*100) -> 0 | H13: =IF(E13=0,"",'- 6 -'!$G13/E13*100) -> 42.00680272 | I13: =IF(E13=0,"",'- 6 -'!$H13/E13*100) -> 0
A14: DSFM | B14: 0 | C14: =B14/'- 3 -'!$D14*100 -> 0 | E14: =SUM('- 6 -'!$E14:H14) -> 0 | F14: =IF(E14=0,"",'- 6 -'!$E14/E14*100) ->  | G14: =IF(E14=0,"",'- 6 -'!$F14/E14*100) ->  | H14: =IF(E14=0,"",'- 6 -'!$G14/E14*100) ->  | I14: =IF(E14=0,"",'- 6 -'!$H14/E14*100) -> 
A15: EVERGREEN | B15: 0 | C15: =B15/'- 3 -'!$D15*100 -> 0 | E15: =SUM('- 6 -'!$E15:H15) -> 0 | F15: =IF(E15=0,"",'- 6 -'!$E15/E15*100) ->  | G15: =IF(E15=0,"",'- 6 -'!$F15/E15*100) ->  | H15: =IF(E15=0,"",'- 6 -'!$G15/E15*100) ->  | I15: =IF(E15=0,"",'- 6 -'!$H15/E15*100) -> 
A16: FLIN FLON | B16: 2640886 | C16: =B16/'- 3 -'!$D16*100 -> 16.38780647 | D16: 7439.115493 | E16: =SUM('- 6 -'!$E16:H16) -> 355 | F16: =IF(E16=0,"",'- 6 -'!$E16/E16*100) -> 66.1971831 | G16: =IF(E16=0,"",'- 6 -'!$F16/E16*100) -> 0 | H16: =IF(E16=0,"",'- 6 -'!$G16/E16*100) -> 33.8028169 | I16: =IF(E16=0,"",'- 6 -'!$H16/E16*100) -> 0
A17: FORT LA BOSSE | B17: 0 | C17: =B17/'- 3 -'!$D17*100 -> 0 | E17: =SUM('- 6 -'!$E17:H17) -> 0 | F17: =IF(E17=0,"",'- 6 -'!$E17/E17*100) ->  | G17: =IF(E17=0,"",'- 6 -'!$F17/E17*100) ->  | H17: =IF(E17=0,"",'- 6 -'!$G17/E17*100) ->  | I17: =IF(E17=0,"",'- 6 -'!$H17/E17*100) -> 
A18: FRONTIER | B18: 0 | C18: =B18/'- 3 -'!$D18*100 -> 0 | E18: =SUM('- 6 -'!$E18:H18) -> 0 | F18: =IF(E18=0,"",'- 6 -'!$E18/E18*100) ->  | G18: =IF(E18=0,"",'- 6 -'!$F18/E18*100) ->  | H18: =IF(E18=0,"",'- 6 -'!$G18/E18*100) ->  | I18: =IF(E18=0,"",'- 6 -'!$H18/E18*100) -> 
A19: GARDEN VALLEY | B19: 0 | C19: =B19/'- 3 -'!$D19*100 -> 0 | E19: =SUM('- 6 -'!$E19:H19) -> 0 | F19: =IF(E19=0,"",'- 6 -'!$E19/E19*100) ->  | G19: =IF(E19=0,"",'- 6 -'!$F19/E19*100) ->  | H19: =IF(E19=0,"",'- 6 -'!$G19/E19*100) ->  | I19: =IF(E19=0,"",'- 6 -'!$H19/E19*100) -> 
A20: HANOVER | B20: 0 | C20: =B20/'- 3 -'!$D20*100 -> 0 | E20: =SUM('- 6 -'!$E20:H20) -> 0 | F20: =IF(E20=0,"",'- 6 -'!$E20/E20*100) ->  | G20: =IF(E20=0,"",'- 6 -'!$F20/E20*100) ->  | H20: =IF(E20=0,"",'- 6 -'!$G20/E20*100) ->  | I20: =IF(E20=0,"",'- 6 -'!$H20/E20*100) -> 
A21: INTERLAKE | B21: 7768247 | C21: =B21/'- 3 -'!$D21*100 -> 19.32822857 | D21: 5948.121746 | E21: =SUM('- 6 -'!$E21:H21) -> 1306 | F21: =IF(E21=0,"",'- 6 -'!$E21/E21*100) -> 71.2863706 | G21: =IF(E21=0,"",'- 6 -'!$F21/E21*100) -> 0 | H21: =IF(E21=0,"",'- 6 -'!$G21/E21*100) -> 28.7136294 | I21: =IF(E21=0,"",'- 6 -'!$H21/E21*100) -> 0
A22: KELSEY | B22: 4732163.333 | C22: =B22/'- 3 -'!$D22*100 -> 22.5665812 | D22: 7523.312136 | E22: =SUM('- 6 -'!$E22:H22) -> 629 | F22: =IF(E22=0,"",'- 6 -'!$E22/E22*100) -> 80.92209857 | G22: =IF(E22=0,"",'- 6 -'!$F22/E22*100) -> 0 | H22: =IF(E22=0,"",'- 6 -'!$G22/E22*100) -> 19.07790143 | I22: =IF(E22=0,"",'- 6 -'!$H22/E22*100) -> 0
A23: LAKESHORE | B23: 0 | C23: =B23/'- 3 -'!$D23*100 -> 0 | E23: =SUM('- 6 -'!$E23:H23) -> 0 | F23: =IF(E23=0,"",'- 6 -'!$E23/E23*100) ->  | G23: =IF(E23=0,"",'- 6 -'!$F23/E23*100) ->  | H23: =IF(E23=0,"",'- 6 -'!$G23/E23*100) ->  | I23: =IF(E23=0,"",'- 6 -'!$H23/E23*100) -> 
A24: LORD SELKIRK | B24: 5468815 | C24: =B24/'- 3 -'!$D24*100 -> 8.865764063 | D24: 7680.919944 | E24: =SUM('- 6 -'!$E24:H24) -> 712 | F24: =IF(E24=0,"",'- 6 -'!$E24/E24*100) -> 74.36797753 | G24: =IF(E24=0,"",'- 6 -'!$F24/E24*100) -> 0 | H24: =IF(E24=0,"",'- 6 -'!$G24/E24*100) -> 13.48314607 | I24: =IF(E24=0,"",'- 6 -'!$H24/E24*100) -> 12.1488764
A25: LOUIS RIEL | B25: 3897754 | C25: =B25/'- 3 -'!$D25*100 -> 1.879399681 | D25: 5870.111446 | E25: =SUM('- 6 -'!$E25:H25) -> 664 | F25: =IF(E25=0,"",'- 6 -'!$E25/E25*100) -> 37.34939759 | G25: =IF(E25=0,"",'- 6 -'!$F25/E25*100) -> 0 | H25: =IF(E25=0,"",'- 6 -'!$G25/E25*100) -> 62.65060241 | I25: =IF(E25=0,"",'- 6 -'!$H25/E25*100) -> 0
A26: MOUNTAIN VIEW | B26: 2944545 | C26: =B26/'- 3 -'!$D26*100 -> 6.613793811 | D26: 5762.318982 | E26: =SUM('- 6 -'!$E26:H26) -> 511 | F26: =IF(E26=0,"",'- 6 -'!$E26/E26*100) -> 74.7553816 | G26: =IF(E26=0,"",'- 6 -'!$F26/E26*100) -> 0 | H26: =IF(E26=0,"",'- 6 -'!$G26/E26*100) -> 13.69863014 | I26: =IF(E26=0,"",'- 6 -'!$H26/E26*100) -> 11.54598826
A27: MYSTERY LAKE | B27: 2590046 | C27: =B27/'- 3 -'!$D27*100 -> 5.73168824 | D27: 7651.539143 | E27: =SUM('- 6 -'!$E27:H27) -> 338.5 | F27: =IF(E27=0,"",'- 6 -'!$E27/E27*100) -> 41.35893648 | G27: =IF(E27=0,"",'- 6 -'!$F27/E27*100) -> 0 | H27: =IF(E27=0,"",'- 6 -'!$G27/E27*100) -> 58.64106352 | I27: =IF(E27=0,"",'- 6 -'!$H27/E27*100) -> 0
A28: PARK WEST | B28: 0 | C28: =B28/'- 3 -'!$D28*100 -> 0 | E28: =SUM('- 6 -'!$E28:H28) -> 0 | F28: =IF(E28=0,"",'- 6 -'!$E28/E28*100) ->  | G28: =IF(E28=0,"",'- 6 -'!$F28/E28*100) ->  | H28: =IF(E28=0,"",'- 6 -'!$G28/E28*100) ->  | I28: =IF(E28=0,"",'- 6 -'!$H28/E28*100) -> 
A29: PEMBINA TRAILS | B29: 28618387 | C29: =B29/'- 3 -'!$D29*100 -> 14.85482226 | D29: 6068.488942 | E29: =SUM('- 6 -'!$E29:H29) -> 4715.9 | F29: =IF(E29=0,"",'- 6 -'!$E29/E29*100) -> 57.01774847 | G29: =IF(E29=0,"",'- 6 -'!$F29/E29*100) -> 0 | H29: =IF(E29=0,"",'- 6 -'!$G29/E29*100) -> 42.98225153 | I29: =IF(E29=0,"",'- 6 -'!$H29/E29*100) -> 0
A30: PINE CREEK | B30: 0 | C30: =B30/'- 3 -'!$D30*100 -> 0 | E30: =SUM('- 6 -'!$E30:H30) -> 0 | F30: =IF(E30=0,"",'- 6 -'!$E30/E30*100) ->  | G30: =IF(E30=0,"",'- 6 -'!$F30/E30*100) ->  | H30: =IF(E30=0,"",'- 6 -'!$G30/E30*100) ->  | I30: =IF(E30=0,"",'- 6 -'!$H30/E30*100) -> 
A31: PORTAGE LA PRAIRIE | B31: 4389099 | C31: =B31/'- 3 -'!$D31*100 -> 10.06457348 | D31: 4828.491749 | E31: =SUM('- 6 -'!$E31:H31) -> 909 | F31: =IF(E31=0,"",'- 6 -'!$E31/E31*100) -> 56.49064906 | G31: =IF(E31=0,"",'- 6 -'!$F31/E31*100) -> 0 | H31: =IF(E31=0,"",'- 6 -'!$G31/E31*100) -> 43.50935094 | I31: =IF(E31=0,"",'- 6 -'!$H31/E31*100) -> 0
A32: PRAIRIE ROSE | B32: 3224425 | C32: =B32/'- 3 -'!$D32*100 -> 9.758955605 | D32: 6095.321361 | E32: =SUM('- 6 -'!$E32:H32) -> 529 | F32: =IF(E32=0,"",'- 6 -'!$E32/E32*100) -> 72.40075614 | G32: =IF(E32=0,"",'- 6 -'!$F32/E32*100) -> 0 | H32: =IF(E32=0,"",'- 6 -'!$G32/E32*100) -> 27.59924386 | I32: =IF(E32=0,"",'- 6 -'!$H32/E32*100) -> 0
A33: PRAIRIE SPIRIT | B33: 3142160 | C33: =B33/'- 3 -'!$D33*100 -> 10.46637379 | D33: 6868.10929 | E33: =SUM('- 6 -'!$E33:H33) -> 457.5 | F33: =IF(E33=0,"",'- 6 -'!$E33/E33*100) -> 52.02185792 | G33: =IF(E33=0,"",'- 6 -'!$F33/E33*100) -> 22.95081967 | H33: =IF(E33=0,"",'- 6 -'!$G33/E33*100) -> 25.0273224 | I33: =IF(E33=0,"",'- 6 -'!$H33/E33*100) -> 0
A34: RED RIVER VALLEY | B34: 2110900 | C34: =B34/'- 3 -'!$D34*100 -> 6.170033123 | D34: 9319.646799 | E34: =SUM('- 6 -'!$E34:H34) -> 226.5 | F34: =IF(E34=0,"",'- 6 -'!$E34/E34*100) -> 37.08609272 | G34: =IF(E34=0,"",'- 6 -'!$F34/E34*100) -> 62.91390728 | H34: =IF(E34=0,"",'- 6 -'!$G34/E34*100) -> 0 | I34: =IF(E34=0,"",'- 6 -'!$H34/E34*100) -> 0
A35: RIVER EAST TRANSCONA | B35: 28845929 | C35: =B35/'- 3 -'!$D35*100 -> 13.41551431 | D35: 4653.319729 | E35: =SUM('- 6 -'!$E35:H35) -> 6199 | F35: =IF(E35=0,"",'- 6 -'!$E35/E35*100) -> 59.94515244 | G35: =IF(E35=0,"",'- 6 -'!$F35/E35*100) -> 0 | H35: =IF(E35=0,"",'- 6 -'!$G35/E35*100) -> 31.51314728 | I35: =IF(E35=0,"",'- 6 -'!$H35/E35*100) -> 8.541700274
A36: ROLLING RIVER | B36: 0 | C36: =B36/'- 3 -'!$D36*100 -> 0 | E36: =SUM('- 6 -'!$E36:H36) -> 0 | F36: =IF(E36=0,"",'- 6 -'!$E36/E36*100) ->  | G36: =IF(E36=0,"",'- 6 -'!$F36/E36*100) ->  | H36: =IF(E36=0,"",'- 6 -'!$G36/E36*100) ->  | I36: =IF(E36=0,"",'- 6 -'!$H36/E36*100) -> 
A37: SEINE RIVER | B37: 8832569 | C37: =B37/'- 3 -'!$D37*100 -> 15.03250195 | D37: 6176.621678 | E37: =SUM('- 6 -'!$E37:H37) -> 1430 | F37: =IF(E37=0,"",'- 6 -'!$E37/E37*100) -> 53.28671329 | G37: =IF(E37=0,"",'- 6 -'!$F37/E37*100) -> 0 | H37: =IF(E37=0,"",'- 6 -'!$G37/E37*100) -> 46.71328671 | I37: =IF(E37=0,"",'- 6 -'!$H37/E37*100) -> 0
A38: SEVEN OAKS | B38: 25065256 | C38: =B38/'- 3 -'!$D38*100 -> 15.63830488 | D38: 7405.239896 | E38: =SUM('- 6 -'!$E38:H38) -> 3384.8 | F38: =IF(E38=0,"",'- 6 -'!$E38/E38*100) -> 55.05495155 | G38: =IF(E38=0,"",'- 6 -'!$F38/E38*100) -> 0 | H38: =IF(E38=0,"",'- 6 -'!$G38/E38*100) -> 36.94457575 | I38: =IF(E38=0,"",'- 6 -'!$H38/E38*100) -> 8.000472701
A39: SOUTHWEST HORIZON | B39: 0 | C39: =B39/'- 3 -'!$D39*100 -> 0 | E39: =SUM('- 6 -'!$E39:H39) -> 0 | F39: =IF(E39=0,"",'- 6 -'!$E39/E39*100) ->  | G39: =IF(E39=0,"",'- 6 -'!$F39/E39*100) ->  | H39: =IF(E39=0,"",'- 6 -'!$G39/E39*100) ->  | I39: =IF(E39=0,"",'- 6 -'!$H39/E39*100) -> 
A40: ST. JAMES-ASSINIBOIA | B40: 5244844 | C40: =B40/'- 3 -'!$D40*100 -> 4.456045555 | D40: 5344.84607 | E40: =SUM('- 6 -'!$E40:H40) -> 981.29 | F40: =IF(E40=0,"",'- 6 -'!$E40/E40*100) -> 54.85534348 | G40: =IF(E40=0,"",'- 6 -'!$F40/E40*100) -> 0 | H40: =IF(E40=0,"",'- 6 -'!$G40/E40*100) -> 45.14465652 | I40: =IF(E40=0,"",'- 6 -'!$H40/E40*100) -> 0
A41: SUNRISE | B41: 18291831 | C41: =B41/'- 3 -'!$D41*100 -> 25.64468548 | D41: 7449.330483 | E41: =SUM('- 6 -'!$E41:H41) -> 2455.5 | F41: =IF(E41=0,"",'- 6 -'!$E41/E41*100) -> 65.93361841 | G41: =IF(E41=0,"",'- 6 -'!$F41/E41*100) -> 0 | H41: =IF(E41=0,"",'- 6 -'!$G41/E41*100) -> 31.05273875 | I41: =IF(E41=0,"",'- 6 -'!$H41/E41*100) -> 3.013642843
A42: SWAN VALLEY | B42: 1907632 | C42: =B42/'- 3 -'!$D42*100 -> 8.064701189 | D42: 7850.337449 | E42: =SUM('- 6 -'!$E42:H42) -> 243 | F42: =IF(E42=0,"",'- 6 -'!$E42/E42*100) -> 79.87654321 | G42: =IF(E42=0,"",'- 6 -'!$F42/E42*100) -> 0 | H42: =IF(E42=0,"",'- 6 -'!$G42/E42*100) -> 20.12345679 | I42: =IF(E42=0,"",'- 6 -'!$H42/E42*100) -> 0
A43: TURTLE MOUNTAIN | B43: 0 | C43: =B43/'- 3 -'!$D43*100 -> 0 | E43: =SUM('- 6 -'!$E43:H43) -> 0 | F43: =IF(E43=0,"",'- 6 -'!$E43/E43*100) ->  | G43: =IF(E43=0,"",'- 6 -'!$F43/E43*100) ->  | H43: =IF(E43=0,"",'- 6 -'!$G43/E43*100) ->  | I43: =IF(E43=0,"",'- 6 -'!$H43/E43*100) -> 
A44: TURTLE RIVER | B44: 0 | C44: =B44/'- 3 -'!$D44*100 -> 0 | E44: =SUM('- 6 -'!$E44:H44) -> 0 | F44: =IF(E44=0,"",'- 6 -'!$E44/E44*100) ->  | G44: =IF(E44=0,"",'- 6 -'!$F44/E44*100) ->  | H44: =IF(E44=0,"",'- 6 -'!$G44/E44*100) ->  | I44: =IF(E44=0,"",'- 6 -'!$H44/E44*100) -> 
A45: WESTERN | B45: 6755044 | C45: =B45/'- 3 -'!$D45*100 -> 26.98956659 | D45: 6191.607699 | E45: =SUM('- 6 -'!$E45:H45) -> 1091 | F45: =IF(E45=0,"",'- 6 -'!$E45/E45*100) -> 73.14390467 | G45: =IF(E45=0,"",'- 6 -'!$F45/E45*100) -> 0 | H45: =IF(E45=0,"",'- 6 -'!$G45/E45*100) -> 26.85609533 | I45: =IF(E45=0,"",'- 6 -'!$H45/E45*100) -> 0
A46: WINNIPEG | B46: 44718065 | C46: =B46/'- 3 -'!$D46*100 -> 10.33013032 | D46: 5547.458752 | E46: =SUM('- 6 -'!$E46:H46) -> 8061 | F46: =IF(E46=0,"",'- 6 -'!$E46/E46*100) -> 58.73961047 | G46: =IF(E46=0,"",'- 6 -'!$F46/E46*100) -> 0 | H46: =IF(E46=0,"",'- 6 -'!$G46/E46*100) -> 35.71517181 | I46: =IF(E46=0,"",'- 6 -'!$H46/E46*100) -> 5.545217715
A48: PROVINCE | B48: =SUM(B11:B46) -> 222756780.3 | C48: =B48/'- 3 -'!$D48*100 -> 8.433009899 | D48: =B48/E48 -> 6029.90744 | E48: =SUM(E11:E46) -> 36941.99 | F48: =IF(E48=0,"",'- 6 -'!$E48/E48*100) -> 60.18027183 | G48: =IF(E48=0,"",'- 6 -'!$F48/E48*100) -> 0.6699693222 | H48: =IF(E48=0,"",'- 6 -'!$G48/E48*100) -> 35.17920935 | I48: =IF(E48=0,"",'- 6 -'!$H48/E48*100) -> 3.970549502
A50: WHITESHELL | B50: 0 | C50: =B50/'- 3 -'!$D50*100 -> 0 | D50: =IF(E50=0,"",B50/E50) ->  | E50: =SUM('- 6 -'!$E50:H50) -> 0 | F50: =IF(E50=0,"",'- 6 -'!$E50/E50*100) ->  | G50: =IF(E50=0,"",'- 6 -'!$F50/E50*100) ->  | H50: =IF(E50=0,"",'- 6 -'!$G50/E50*100) ->  | I50: =IF(E50=0,"",'- 6 -'!$H50/E50*100) -> 
A52: (1) No one language program comprises 90% or more of Regular Instruction enrolment.

Sheet - 21 -
B2: =AEXP_BP -> ANALYSIS OF EXPENSE BY PROGRAM | I2: PAGE 4 OF 16
B3: =OPYEAR -> OPERATING FUND 2022/2023 BUDGET
B5: FUNCTION 200: STUDENT SUPPORT SERVICES
B6: ADMINISTRATION / COORDINATION | E6: CLINICAL AND RELATED SERVICES | H6: SPECIAL PLACEMENT
D8: PER PUPIL | G8: PER PUPIL | I8: %
A9: DIVISION / DISTRICT | B9: AMOUNT | C9: % | E9: AMOUNT | F9: % | H9: AMOUNT
A11: BEAUTIFUL PLAINS | B11: 187348 | C11: =B11/'- 3 -'!$D11*100 -> 0.7570109519 | D11: =B11/'- 7 -'!$E11 -> 91.36698366 | E11: 370323 | F11: =E11/'- 3 -'!$D11*100 -> 1.496352065 | G11: =E11/'- 7 -'!$E11 -> 180.6013168 | H11: 258007 | I11: =H11/'- 3 -'!$D11*100 -> 1.042520468
A12: BORDER LAND | B12: 225165 | C12: =B12/'- 3 -'!$D12*100 -> 0.6153776441 | D12: =B12/'- 7 -'!$E12 -> 106.1603308 | E12: 774259 | F12: =E12/'- 3 -'!$D12*100 -> 2.11605569 | G12: =E12/'- 7 -'!$E12 -> 365.0460398 | H12: 0 | I12: =H12/'- 3 -'!$D12*100 -> 0
A13: BRANDON | B13: 205400 | C13: =B13/'- 3 -'!$D13*100 -> 0.1795416879 | D13: =B13/'- 7 -'!$E13 -> 23.48099457 | E13: 3410900 | F13: =E13/'- 3 -'!$D13*100 -> 2.981493395 | G13: =E13/'- 7 -'!$E13 -> 389.928551 | H13: 817400 | I13: =H13/'- 3 -'!$D13*100 -> 0.7144955001
A14: DSFM | B14: 503906 | C14: =B14/'- 3 -'!$D14*100 -> 0.4803478993 | D14: =B14/'- 7 -'!$E14 -> 85.22002368 | E14: 1359382 | F14: =E14/'- 3 -'!$D14*100 -> 1.295829556 | G14: =E14/'- 7 -'!$E14 -> 229.8971757 | H14: 1091270 | I14: =H14/'- 3 -'!$D14*100 -> 1.040252055
A15: EVERGREEN | B15: 177660 | C15: =B15/'- 3 -'!$D15*100 -> 0.8028346398 | D15: =B15/'- 7 -'!$E15 -> 128.4598698 | E15: 393940 | F15: =E15/'- 3 -'!$D15*100 -> 1.78019069 | G15: =E15/'- 7 -'!$E15 -> 284.8445409 | H15: 0 | I15: =H15/'- 3 -'!$D15*100 -> 0
A16: FLIN FLON | B16: 130604 | C16: =B16/'- 3 -'!$D16*100 -> 0.8104526575 | D16: =B16/'- 7 -'!$E16 -> 137.7679325 | E16: 414341 | F16: =E16/'- 3 -'!$D16*100 -> 2.571159877 | G16: =E16/'- 7 -'!$E16 -> 437.0685654 | H16: 171286 | I16: =H16/'- 3 -'!$D16*100 -> 1.062901549
A17: FORT LA BOSSE | B17: 137810 | C17: =B17/'- 3 -'!$D17*100 -> 0.6787844375 | D17: =B17/'- 7 -'!$E17 -> 93.33559092 | E17: 460390 | F17: =E17/'- 3 -'!$D17*100 -> 2.26765523 | G17: =E17/'- 7 -'!$E17 -> 311.8117169 | H17: 0 | I17: =H17/'- 3 -'!$D17*100 -> 0
A18: FRONTIER | B18: 0 | C18: =B18/'- 3 -'!$D18*100 -> 0 | D18: =B18/'- 7 -'!$E18 -> 0 | E18: 2157415 | F18: =E18/'- 3 -'!$D18*100 -> 1.391996765 | G18: =E18/'- 7 -'!$E18 -> 344.0030296 | H18: 0 | I18: =H18/'- 3 -'!$D18*100 -> 0
A19: GARDEN VALLEY | B19: 154300 | C19: =B19/'- 3 -'!$D19*100 -> 0.2993047904 | D19: =B19/'- 7 -'!$E19 -> 37.39699467 | E19: 1314200 | F19: =E19/'- 3 -'!$D19*100 -> 2.54923108 | G19: =E19/'- 7 -'!$E19 -> 318.5167232 | H19: 1294100 | I19: =H19/'- 3 -'!$D19*100 -> 2.510241927
A20: HANOVER | B20: 501300 | C20: =B20/'- 3 -'!$D20*100 -> 0.5195470106 | D20: =B20/'- 7 -'!$E20 -> 63.17182282 | E20: 2527900 | F20: =E20/'- 3 -'!$D20*100 -> 2.619914 | G20: =E20/'- 7 -'!$E20 -> 318.5558566 | H20: 778100 | I20: =H20/'- 3 -'!$D20*100 -> 0.8064223597
A21: INTERLAKE | B21: 181000 | C21: =B21/'- 3 -'!$D21*100 -> 0.4503473397 | D21: =B21/'- 7 -'!$E21 -> 62.11393274 | E21: 796278 | F21: =E21/'- 3 -'!$D21*100 -> 1.981224746 | G21: =E21/'- 7 -'!$E21 -> 273.2594372 | H21: 229188 | I21: =H21/'- 3 -'!$D21*100 -> 0.5702442326
A22: KELSEY | B22: 41772 | C22: =B22/'- 3 -'!$D22*100 -> 0.1992009074 | D22: =B22/'- 7 -'!$E22 -> 28.82815735 | E22: 328808 | F22: =E22/'- 3 -'!$D22*100 -> 1.568008521 | G22: =E22/'- 7 -'!$E22 -> 226.9206349 | H22: 1019418 | I22: =H22/'- 3 -'!$D22*100 -> 4.86136624
A23: LAKESHORE | B23: 156550 | C23: =B23/'- 3 -'!$D23*100 -> 0.9388220832 | D23: =B23/'- 7 -'!$E23 -> 170.3482046 | E23: 323000 | F23: =E23/'- 3 -'!$D23*100 -> 1.937013944 | G23: =E23/'- 7 -'!$E23 -> 351.468988 | H23: 0 | I23: =H23/'- 3 -'!$D23*100 -> 0
A24: LORD SELKIRK | B24: 366503 | C24: =B24/'- 3 -'!$D24*100 -> 0.5941559783 | D24: =B24/'- 7 -'!$E24 -> 98.52231183 | E24: 2065592 | F24: =E24/'- 3 -'!$D24*100 -> 3.348632441 | G24: =E24/'- 7 -'!$E24 -> 555.2666667 | H24: 341070 | I24: =H24/'- 3 -'!$D24*100 -> 0.5529252953
A25: LOUIS RIEL | B25: 1120109 | C25: =B25/'- 3 -'!$D25*100 -> 0.5400885992 | D25: =B25/'- 7 -'!$E25 -> 73.48350062 | E25: 3905793 | F25: =E25/'- 3 -'!$D25*100 -> 1.883275887 | G25: =E25/'- 7 -'!$E25 -> 256.2351899 | H25: 10949762 | I25: =H25/'- 3 -'!$D25*100 -> 5.279701904
A26: MOUNTAIN VIEW | B26: 159361 | C26: =B26/'- 3 -'!$D26*100 -> 0.3579435178 | D26: =B26/'- 7 -'!$E26 -> 52.49044796 | E26: 899430 | F26: =E26/'- 3 -'!$D26*100 -> 2.020225389 | G26: =E26/'- 7 -'!$E26 -> 296.2549407 | H26: 5000 | I26: =H26/'- 3 -'!$D26*100 -> 0.01123058709
A27: MYSTERY LAKE | B27: 240556 | C27: =B27/'- 3 -'!$D27*100 -> 0.5323426673 | D27: =B27/'- 7 -'!$E27 -> 86.31359885 | E27: 491688 | F27: =E27/'- 3 -'!$D27*100 -> 1.088089681 | G27: =E27/'- 7 -'!$E27 -> 176.4219591 | H27: 2710342 | I27: =H27/'- 3 -'!$D27*100 -> 5.997899407
A28: PARK WEST | B28: 144883 | C28: =B28/'- 3 -'!$D28*100 -> 0.4633055115 | D28: =B28/'- 7 -'!$E28 -> 69.85679846 | E28: 529767 | F28: =E28/'- 3 -'!$D28*100 -> 1.694083991 | G28: =E28/'- 7 -'!$E28 -> 255.4324976 | H28: 0 | I28: =H28/'- 3 -'!$D28*100 -> 0
A29: PEMBINA TRAILS | B29: 614085 | C29: =B29/'- 3 -'!$D29*100 -> 0.3187504428 | D29: =B29/'- 7 -'!$E29 -> 41.44350561 | E29: 3627124 | F29: =E29/'- 3 -'!$D29*100 -> 1.882715554 | G29: =E29/'- 7 -'!$E29 -> 244.7881545 | H29: 736000 | I29: =H29/'- 3 -'!$D29*100 -> 0.3820323342
A30: PINE CREEK | B30: 177876 | C30: =B30/'- 3 -'!$D30*100 -> 1.077588544 | D30: =B30/'- 7 -'!$E30 -> 160.9737557 | E30: 208459 | F30: =E30/'- 3 -'!$D30*100 -> 1.262863064 | G30: =E30/'- 7 -'!$E30 -> 188.6506787 | H30: 0 | I30: =H30/'- 3 -'!$D30*100 -> 0
A31: PORTAGE LA PRAIRIE | B31: 172355 | C31: =B31/'- 3 -'!$D31*100 -> 0.3952245238 | D31: =B31/'- 7 -'!$E31 -> 50.76730486 | E31: 683687 | F31: =E31/'- 3 -'!$D31*100 -> 1.567751844 | G31: =E31/'- 7 -'!$E31 -> 201.3805596 | H31: 1097030 | I31: =H31/'- 3 -'!$D31*100 -> 2.515582138
A32: PRAIRIE ROSE | B32: 147315 | C32: =B32/'- 3 -'!$D32*100 -> 0.4458595083 | D32: =B32/'- 7 -'!$E32 -> 60.82369942 | E32: 644640 | F32: =E32/'- 3 -'!$D32*100 -> 1.951049611 | G32: =E32/'- 7 -'!$E32 -> 266.1601982 | H32: 0 | I32: =H32/'- 3 -'!$D32*100 -> 0
A33: PRAIRIE SPIRIT | B33: 227400 | C33: =B33/'- 3 -'!$D33*100 -> 0.757457736 | D33: =B33/'- 7 -'!$E33 -> 109.0647482 | E33: 512915 | F33: =E33/'- 3 -'!$D33*100 -> 1.708493556 | G33: =E33/'- 7 -'!$E33 -> 246.0023981 | H33: 0 | I33: =H33/'- 3 -'!$D33*100 -> 0
A34: RED RIVER VALLEY | B34: 260276 | C34: =B34/'- 3 -'!$D34*100 -> 0.7607710177 | D34: =B34/'- 7 -'!$E34 -> 116.8886693 | E34: 848884 | F34: =E34/'- 3 -'!$D34*100 -> 2.481236628 | G34: =E34/'- 7 -'!$E34 -> 381.2296223 | H34: 806439 | I34: =H34/'- 3 -'!$D34*100 -> 2.357172458
A35: RIVER EAST TRANSCONA | B35: 1079045 | C35: =B35/'- 3 -'!$D35*100 -> 0.5018366245 | D35: =B35/'- 7 -'!$E35 -> 65.43235704 | E35: 3893353 | F35: =E35/'- 3 -'!$D35*100 -> 1.810700321 | G35: =E35/'- 7 -'!$E35 -> 236.089564 | H35: 3199400 | I35: =H35/'- 3 -'!$D35*100 -> 1.487960276
A36: ROLLING RIVER | B36: 166665 | C36: =B36/'- 3 -'!$D36*100 -> 0.6517486428 | D36: =B36/'- 7 -'!$E36 -> 93.89577465 | E36: 463195 | F36: =E36/'- 3 -'!$D36*100 -> 1.811338389 | G36: =E36/'- 7 -'!$E36 -> 260.9549296 | H36: 0 | I36: =H36/'- 3 -'!$D36*100 -> 0
A37: SEINE RIVER | B37: 250100 | C37: =B37/'- 3 -'!$D37*100 -> 0.4256551788 | D37: =B37/'- 7 -'!$E37 -> 57.23112128 | E37: 1032880 | F37: =E37/'- 3 -'!$D37*100 -> 1.757899724 | G37: =E37/'- 7 -'!$E37 -> 236.3569794 | H37: 0 | I37: =H37/'- 3 -'!$D37*100 -> 0
A38: SEVEN OAKS | B38: 599390 | C38: =B38/'- 3 -'!$D38*100 -> 0.373961613 | D38: =B38/'- 7 -'!$E38 -> 51.96993081 | E38: 2258710 | F38: =E38/'- 3 -'!$D38*100 -> 1.409217429 | G38: =E38/'- 7 -'!$E38 -> 195.8407755 | H38: 508500 | I38: =H38/'- 3 -'!$D38*100 -> 0.3172550096
A39: SOUTHWEST HORIZON | B39: 277050 | C39: =B39/'- 3 -'!$D39*100 -> 1.129313648 | D39: =B39/'- 7 -'!$E39 -> 191.3857419 | E39: 351700 | F39: =E39/'- 3 -'!$D39*100 -> 1.433602635 | G39: =E39/'- 7 -'!$E39 -> 242.9538547 | H39: 0 | I39: =H39/'- 3 -'!$D39*100 -> 0
A40: ST. JAMES-ASSINIBOIA | B40: 213008 | C40: =B40/'- 3 -'!$D40*100 -> 0.1809726565 | D40: =B40/'- 7 -'!$E40 -> 26.73964348 | E40: 3393296 | F40: =E40/'- 3 -'!$D40*100 -> 2.882961163 | G40: =E40/'- 7 -'!$E40 -> 425.9723826 | H40: 591500 | I40: =H40/'- 3 -'!$D40*100 -> 0.5025413426
A41: SUNRISE | B41: 445636 | C41: =B41/'- 3 -'!$D41*100 -> 0.6247704266 | D41: =B41/'- 7 -'!$E41 -> 99.08526959 | E41: 2046013 | F41: =E41/'- 3 -'!$D41*100 -> 2.868458596 | G41: =E41/'- 7 -'!$E41 -> 454.9222902 | H41: 635434 | I41: =H41/'- 3 -'!$D41*100 -> 0.8908624332
A42: SWAN VALLEY | B42: 170855 | C42: =B42/'- 3 -'!$D42*100 -> 0.7223062528 | D42: =B42/'- 7 -'!$E42 -> 131.3259032 | E42: 372256 | F42: =E42/'- 3 -'!$D42*100 -> 1.573748713 | G42: =E42/'- 7 -'!$E42 -> 286.1306687 | H42: 0 | I42: =H42/'- 3 -'!$D42*100 -> 0
A43: TURTLE MOUNTAIN | B43: 134771 | C43: =B43/'- 3 -'!$D43*100 -> 0.9292905278 | D43: =B43/'- 7 -'!$E43 -> 138.6532922 | E43: 327355 | F43: =E43/'- 3 -'!$D43*100 -> 2.257220772 | G43: =E43/'- 7 -'!$E43 -> 336.7849794 | H43: 0 | I43: =H43/'- 3 -'!$D43*100 -> 0
A44: TURTLE RIVER | B44: 94816 | C44: =B44/'- 3 -'!$D44*100 -> 0.7861156926 | D44: =B44/'- 7 -'!$E44 -> 146.0955316 | E44: 175861 | F44: =E44/'- 3 -'!$D44*100 -> 1.458056571 | G44: =E44/'- 7 -'!$E44 -> 270.972265 | H44: 0 | I44: =H44/'- 3 -'!$D44*100 -> 0
A45: WESTERN | B45: 154013 | C45: =B45/'- 3 -'!$D45*100 -> 0.6153541146 | D45: =B45/'- 7 -'!$E45 -> 75.05506823 | E45: 411044 | F45: =E45/'- 3 -'!$D45*100 -> 1.64231342 | G45: =E45/'- 7 -'!$E45 -> 200.3138402 | H45: 272133 | I45: =H45/'- 3 -'!$D45*100 -> 1.087298873
A46: WINNIPEG | B46: 818700 | C46: =B46/'- 3 -'!$D46*100 -> 0.1891244108 | D46: =B46/'- 7 -'!$E46 -> 29.94349249 | E46: 14408810 | F46: =E46/'- 3 -'!$D46*100 -> 3.328518018 | G46: =E46/'- 7 -'!$E46 -> 526.9941298 | H46: 37482434 | I46: =H46/'- 3 -'!$D46*100 -> 8.658657928
A48: PROVINCE | B48: =SUM(B11:B46) -> 10637583 | C48: =B48/'- 3 -'!$D48*100 -> 0.4027120638 | D48: =B48/'- 7 -'!$E48 -> 59.24197374 | E48: =SUM(E11:E46) -> 58183588 | F48: =E48/'- 3 -'!$D48*100 -> 2.2026839 | G48: =E48/'- 7 -'!$E48 -> 324.03137 | H48: =SUM(H11:H46) -> 64993813 | I48: =H48/'- 3 -'!$D48*100 -> 2.460501842
A50: WHITESHELL | B50: 23337 | C50: =B50/'- 3 -'!$D50*100 -> 0.6211712919 | D50: =B50/'- 7 -'!$E50 -> 128.9337017 | E50: 48400 | F50: =E50/'- 3 -'!$D50*100 -> 1.288284292 | G50: =E50/'- 7 -'!$E50 -> 267.4033149 | H50: 0 | I50: =H50/'- 3 -'!$D50*100 -> 0

Sheet - 22 -
B2: =AEXP_BP -> ANALYSIS OF EXPENSE BY PROGRAM | J2: PAGE 5 OF 16
B3: =OPYEAR -> OPERATING FUND 2022/2023 BUDGET
B5: FUNCTION 200: STUDENT SUPPORT SERVICES (CONT'D)
B6: REGULAR PLACEMENT (1) | E6: OTHER RESOURCE SERVICES | H6: COUNSELLING AND GUIDANCE
D8: PER PUPIL | G8: PER PUPIL | J8: PER PUPIL
A9: DIVISION / DISTRICT | B9: AMOUNT | C9: % | E9: AMOUNT | F9: % | H9: AMOUNT | I9: %
A11: BEAUTIFUL PLAINS | B11: 905796 | C11: =B11/'- 3 -'!$D11*100 -> 3.660020348 | D11: =B11/'- 7 -'!$E11 -> 441.7439649 | E11: 1101381 | F11: =E11/'- 3 -'!$D11*100 -> 4.450314277 | G11: =E11/'- 7 -'!$E11 -> 537.1280176 | H11: 319569 | I11: =H11/'- 3 -'!$D11*100 -> 1.291272033 | J11: =H11/'- 7 -'!$E11 -> 155.849305
A12: BORDER LAND | B12: 2921812 | C12: =B12/'- 3 -'!$D12*100 -> 7.985334244 | D12: =B12/'- 7 -'!$E12 -> 1377.569908 | E12: 1467620 | F12: =E12/'- 3 -'!$D12*100 -> 4.011016535 | G12: =E12/'- 7 -'!$E12 -> 691.9504571 | H12: 520380 | I12: =H12/'- 3 -'!$D12*100 -> 1.422202467 | J12: =H12/'- 7 -'!$E12 -> 245.3476914
A13: BRANDON | B13: 11595100 | C13: =B13/'- 3 -'!$D13*100 -> 10.13536429 | D13: =B13/'- 7 -'!$E13 -> 1325.533009 | E13: 4222600 | F13: =E13/'- 3 -'!$D13*100 -> 3.691006482 | G13: =E13/'- 7 -'!$E13 -> 482.7207774 | H13: 3079700 | I13: =H13/'- 3 -'!$D13*100 -> 2.691988979 | J13: =H13/'- 7 -'!$E13 -> 352.0663047
A14: DSFM | B14: 4022832 | C14: =B14/'- 3 -'!$D14*100 -> 3.834760651 | D14: =B14/'- 7 -'!$E14 -> 680.3368848 | E14: 3286870 | F14: =E14/'- 3 -'!$D14*100 -> 3.133205597 | G14: =E14/'- 7 -'!$E14 -> 555.8718079 | H14: 1847402 | I14: =H14/'- 3 -'!$D14*100 -> 1.761034141 | J14: =H14/'- 7 -'!$E14 -> 312.4305767
A15: EVERGREEN | B15: 1443200 | C15: =B15/'- 3 -'!$D15*100 -> 6.521732254 | D15: =B15/'- 7 -'!$E15 -> 1043.528561 | E15: 936800 | F15: =E15/'- 3 -'!$D15*100 -> 4.233341723 | G15: =E15/'- 7 -'!$E15 -> 677.3680405 | H15: 591000 | I15: =H15/'- 3 -'!$D15*100 -> 2.67069274 | J15: =H15/'- 7 -'!$E15 -> 427.3318872
A16: FLIN FLON | B16: 1149811 | C16: =B16/'- 3 -'!$D16*100 -> 7.135060033 | D16: =B16/'- 7 -'!$E16 -> 1212.880802 | E16: 559165 | F16: =E16/'- 3 -'!$D16*100 -> 3.469853605 | G16: =E16/'- 7 -'!$E16 -> 589.8364979 | H16: 228432 | I16: =H16/'- 3 -'!$D16*100 -> 1.417516473 | J16: =H16/'- 7 -'!$E16 -> 240.9620253
A17: FORT LA BOSSE | B17: 869950 | C17: =B17/'- 3 -'!$D17*100 -> 4.284946821 | D17: =B17/'- 7 -'!$E17 -> 589.1974263 | E17: 846490 | F17: =E17/'- 3 -'!$D17*100 -> 4.169394373 | G17: =E17/'- 7 -'!$E17 -> 573.3084998 | H17: 234630 | I17: =H17/'- 3 -'!$D17*100 -> 1.155672249 | J17: =H17/'- 7 -'!$E17 -> 158.9095835
A18: FRONTIER | B18: 14219702 | C18: =B18/'- 3 -'!$D18*100 -> 9.174766643 | D18: =B18/'- 7 -'!$E18 -> 2267.352627 | E18: 4583201 | F18: =E18/'- 3 -'!$D18*100 -> 2.957150555 | G18: =E18/'- 7 -'!$E18 -> 730.7982141 | H18: 4957411 | I18: =H18/'- 3 -'!$D18*100 -> 3.198596502 | J18: =H18/'- 7 -'!$E18 -> 790.4665551
A19: GARDEN VALLEY | B19: 3715300 | C19: =B19/'- 3 -'!$D19*100 -> 7.206786052 | D19: =B19/'- 7 -'!$E19 -> 900.4604944 | E19: 2829300 | F19: =E19/'- 3 -'!$D19*100 -> 5.488159712 | G19: =E19/'- 7 -'!$E19 -> 685.7246728 | H19: 1117900 | I19: =H19/'- 3 -'!$D19*100 -> 2.168456417 | J19: =H19/'- 7 -'!$E19 -> 270.9403781
A20: HANOVER | B20: 4893500 | C20: =B20/'- 3 -'!$D20*100 -> 5.071620379 | D20: =B20/'- 7 -'!$E20 -> 616.6593157 | E20: 5444100 | F20: =E20/'- 3 -'!$D20*100 -> 5.642261879 | G20: =E20/'- 7 -'!$E20 -> 686.0437276 | H20: 2355000 | I20: =H20/'- 3 -'!$D20*100 -> 2.440720546 | J20: =H20/'- 7 -'!$E20 -> 296.7676895
A21: INTERLAKE | B21: 2909000 | C21: =B21/'- 3 -'!$D21*100 -> 7.237902824 | D21: =B21/'- 7 -'!$E21 -> 998.2841455 | E21: 2355534 | F21: =E21/'- 3 -'!$D21*100 -> 5.860820279 | G21: =E21/'- 7 -'!$E21 -> 808.3507207 | H21: 1284000 | I21: =H21/'- 3 -'!$D21*100 -> 3.194729194 | J21: =H21/'- 7 -'!$E21 -> 440.6314345
A22: KELSEY | B22: 839410 | C22: =B22/'- 3 -'!$D22*100 -> 4.00295015 | D22: =B22/'- 7 -'!$E22 -> 579.3029676 | E22: 1420749 | F22: =E22/'- 3 -'!$D22*100 -> 6.775220002 | G22: =E22/'- 7 -'!$E22 -> 980.5031056 | H22: 635402 | I22: =H22/'- 3 -'!$D22*100 -> 3.030083667 | J22: =H22/'- 7 -'!$E22 -> 438.510697
A23: LAKESHORE | B23: 1460000 | C23: =B23/'- 3 -'!$D23*100 -> 8.755542903 | D23: =B23/'- 7 -'!$E23 -> 1588.683351 | E23: 670000 | F23: =E23/'- 3 -'!$D23*100 -> 4.01795462 | G23: =E23/'- 7 -'!$E23 -> 729.0533188 | H23: 348000 | I23: =H23/'- 3 -'!$D23*100 -> 2.086937624 | J23: =H23/'- 7 -'!$E23 -> 378.6724701
A24: LORD SELKIRK | B24: 3536672 | C24: =B24/'- 3 -'!$D24*100 -> 5.733472337 | D24: =B24/'- 7 -'!$E24 -> 950.7182796 | E24: 2820956 | F24: =E24/'- 3 -'!$D24*100 -> 4.573190047 | G24: =E24/'- 7 -'!$E24 -> 758.3215054 | H24: 1641388 | I24: =H24/'- 3 -'!$D24*100 -> 2.660934543 | J24: =H24/'- 7 -'!$E24 -> 441.2333333
A25: LOUIS RIEL | B25: 12344883 | C25: =B25/'- 3 -'!$D25*100 -> 5.952394425 | D25: =B25/'- 7 -'!$E25 -> 809.8722692 | E25: 10924030 | F25: =E25/'- 3 -'!$D25*100 -> 5.267294576 | G25: =E25/'- 7 -'!$E25 -> 716.6587942 | H25: 3541351 | I25: =H25/'- 3 -'!$D25*100 -> 1.707551052 | J25: =H25/'- 7 -'!$E25 -> 232.3263793
A26: MOUNTAIN VIEW | B26: 2142628 | C26: =B26/'- 3 -'!$D26*100 -> 4.81259407 | D26: =B26/'- 7 -'!$E26 -> 705.740448 | E26: 2073313 | F26: =E26/'- 3 -'!$D26*100 -> 4.656904441 | G26: =E26/'- 7 -'!$E26 -> 682.9094203 | H26: 1337978 | I26: =H26/'- 3 -'!$D26*100 -> 3.00525569 | J26: =H26/'- 7 -'!$E26 -> 440.7042161
A27: MYSTERY LAKE | B27: 1651349 | C27: =B27/'- 3 -'!$D27*100 -> 3.654382062 | D27: =B27/'- 7 -'!$E27 -> 592.5184787 | E27: 2747799 | F27: =E27/'- 3 -'!$D27*100 -> 6.080790539 | G27: =E27/'- 7 -'!$E27 -> 985.934338 | H27: 1315860 | I27: =H27/'- 3 -'!$D27*100 -> 2.911955729 | J27: =H27/'- 7 -'!$E27 -> 472.1420883
A28: PARK WEST | B28: 1330858 | C28: =B28/'- 3 -'!$D28*100 -> 4.255805349 | D28: =B28/'- 7 -'!$E28 -> 641.6865959 | E28: 1661828 | F28: =E28/'- 3 -'!$D28*100 -> 5.314178141 | G28: =E28/'- 7 -'!$E28 -> 801.2671167 | H28: 584058 | I28: =H28/'- 3 -'!$D28*100 -> 1.867695247 | J28: =H28/'- 7 -'!$E28 -> 281.6094503
A29: PEMBINA TRAILS | B29: 15151895 | C29: =B29/'- 3 -'!$D29*100 -> 7.864828551 | D29: =B29/'- 7 -'!$E29 -> 1022.574473 | E29: 14297976 | F29: =E29/'- 3 -'!$D29*100 -> 7.421588512 | G29: =E29/'- 7 -'!$E29 -> 964.9449971 | H29: 3906471 | I29: =H29/'- 3 -'!$D29*100 -> 2.027714992 | J29: =H29/'- 7 -'!$E29 -> 263.6407872
A30: PINE CREEK | B30: 500918 | C30: =B30/'- 3 -'!$D30*100 -> 3.034605558 | D30: =B30/'- 7 -'!$E30 -> 453.319457 | E30: 815572 | F30: =E30/'- 3 -'!$D30*100 -> 4.940807326 | G30: =E30/'- 7 -'!$E30 -> 738.0742081 | H30: 316336 | I30: =H30/'- 3 -'!$D30*100 -> 1.916391473 | J30: =H30/'- 7 -'!$E30 -> 286.2769231
A31: PORTAGE LA PRAIRIE | B31: 3035795 | C31: =B31/'- 3 -'!$D31*100 -> 6.961333487 | D31: =B31/'- 7 -'!$E31 -> 894.1958763 | E31: 1769080 | F31: =E31/'- 3 -'!$D31*100 -> 4.056649361 | G31: =E31/'- 7 -'!$E31 -> 521.083947 | H31: 1447971 | I31: =H31/'- 3 -'!$D31*100 -> 3.320319393 | J31: =H31/'- 7 -'!$E31 -> 426.5010309
A32: PRAIRIE ROSE | B32: 1031766 | C32: =B32/'- 3 -'!$D32*100 -> 3.122714465 | D32: =B32/'- 7 -'!$E32 -> 425.9975227 | E32: 2150496 | F32: =E32/'- 3 -'!$D32*100 -> 6.508631769 | G32: =E32/'- 7 -'!$E32 -> 887.9009083 | H32: 811035 | I32: =H32/'- 3 -'!$D32*100 -> 2.45465612 | J32: =H32/'- 7 -'!$E32 -> 334.8616846
A33: PRAIRIE SPIRIT | B33: 1902350 | C33: =B33/'- 3 -'!$D33*100 -> 6.336630273 | D33: =B33/'- 7 -'!$E33 -> 912.3980815 | E33: 1307400 | F33: =E33/'- 3 -'!$D33*100 -> 4.35488234 | G33: =E33/'- 7 -'!$E33 -> 627.0503597 | H33: 522250 | I33: =H33/'- 3 -'!$D33*100 -> 1.739587962 | J33: =H33/'- 7 -'!$E33 -> 250.4796163
A34: RED RIVER VALLEY | B34: 1500312 | C34: =B34/'- 3 -'!$D34*100 -> 4.385321302 | D34: =B34/'- 7 -'!$E34 -> 673.7827278 | E34: 1755519 | F34: =E34/'- 3 -'!$D34*100 -> 5.131275939 | G34: =E34/'- 7 -'!$E34 -> 788.3949342 | H34: 1038413 | I34: =H34/'- 3 -'!$D34*100 -> 3.03521844 | J34: =H34/'- 7 -'!$E34 -> 466.3461625
A35: RIVER EAST TRANSCONA | B35: 18344193 | C35: =B35/'- 3 -'!$D35*100 -> 8.531421669 | D35: =B35/'- 7 -'!$E35 -> 1112.376023 | E35: 12231267 | F35: =E35/'- 3 -'!$D35*100 -> 5.688453906 | G35: =E35/'- 7 -'!$E35 -> 741.6934692 | H35: 3397000 | I35: =H35/'- 3 -'!$D35*100 -> 1.579859055 | J35: =H35/'- 7 -'!$E35 -> 205.9911467
A36: ROLLING RIVER | B36: 736200 | C36: =B36/'- 3 -'!$D36*100 -> 2.878932894 | D36: =B36/'- 7 -'!$E36 -> 414.7605634 | E36: 1462540 | F36: =E36/'- 3 -'!$D36*100 -> 5.719307953 | G36: =E36/'- 7 -'!$E36 -> 823.9661972 | H36: 577455 | I36: =H36/'- 3 -'!$D36*100 -> 2.258155657 | J36: =H36/'- 7 -'!$E36 -> 325.3267606
A37: SEINE RIVER | B37: 4978440 | C37: =B37/'- 3 -'!$D37*100 -> 8.473005871 | D37: =B37/'- 7 -'!$E37 -> 1139.231121 | E37: 2770120 | F37: =E37/'- 3 -'!$D37*100 -> 4.714577864 | G37: =E37/'- 7 -'!$E37 -> 633.8947368 | H37: 1730240 | I37: =H37/'- 3 -'!$D37*100 -> 2.94476456 | J37: =H37/'- 7 -'!$E37 -> 395.9359268
A38: SEVEN OAKS | B38: 16526360 | C38: =B38/'- 3 -'!$D38*100 -> 10.31085644 | D38: =B38/'- 7 -'!$E38 -> 1432.913105 | E38: 5716870 | F38: =E38/'- 3 -'!$D38*100 -> 3.5667761 | G38: =E38/'- 7 -'!$E38 -> 495.6795047 | H38: 3588050 | I38: =H38/'- 3 -'!$D38*100 -> 2.238597516 | J38: =H38/'- 7 -'!$E38 -> 311.1008029
A39: SOUTHWEST HORIZON | B39: 1936800 | C39: =B39/'- 3 -'!$D39*100 -> 7.894801203 | D39: =B39/'- 7 -'!$E39 -> 1337.938657 | E39: 836600 | F39: =E39/'- 3 -'!$D39*100 -> 3.410156282 | G39: =E39/'- 7 -'!$E39 -> 577.9220779 | H39: 460950 | I39: =H39/'- 3 -'!$D39*100 -> 1.878928446 | J39: =H39/'- 7 -'!$E39 -> 318.4235977
A40: ST. JAMES-ASSINIBOIA | B40: 13314466 | C40: =B40/'- 3 -'!$D40*100 -> 11.31203655 | D40: =B40/'- 7 -'!$E40 -> 1671.41175 | E40: 6427477 | F40: =E40/'- 3 -'!$D40*100 -> 5.460816435 | G40: =E40/'- 7 -'!$E40 -> 806.8637961 | H40: 3375824 | I40: =H40/'- 3 -'!$D40*100 -> 2.868116865 | J40: =H40/'- 7 -'!$E40 -> 423.779061
A41: SUNRISE | B41: 5489850 | C41: =B41/'- 3 -'!$D41*100 -> 7.696631167 | D41: =B41/'- 7 -'!$E41 -> 1220.644803 | E41: 4144741 | F41: =E41/'- 3 -'!$D41*100 -> 5.810822292 | G41: =E41/'- 7 -'!$E41 -> 921.5655364 | H41: 1050801 | I41: =H41/'- 3 -'!$D41*100 -> 1.473196486 | J41: =H41/'- 7 -'!$E41 -> 233.641134
A42: SWAN VALLEY | B42: 2806642 | C42: =B42/'- 3 -'!$D42*100 -> 11.86535405 | D42: =B42/'- 7 -'!$E42 -> 2157.295926 | E42: 919000 | F42: =E42/'- 3 -'!$D42*100 -> 3.885162543 | G42: =E42/'- 7 -'!$E42 -> 706.3797079 | H42: 586971 | I42: =H42/'- 3 -'!$D42*100 -> 2.481477414 | J42: =H42/'- 7 -'!$E42 -> 451.1691007
A43: TURTLE MOUNTAIN | B43: 253224 | C43: =B43/'- 3 -'!$D43*100 -> 1.74606306 | D43: =B43/'- 7 -'!$E43 -> 260.5185185 | E43: 1595626 | F43: =E43/'- 3 -'!$D43*100 -> 11.00236793 | G43: =E43/'- 7 -'!$E43 -> 1641.590535 | H43: 263316 | I43: =H43/'- 3 -'!$D43*100 -> 1.815650731 | J43: =H43/'- 7 -'!$E43 -> 270.9012346
A44: TURTLE RIVER | B44: 1005867 | C44: =B44/'- 3 -'!$D44*100 -> 8.339603372 | D44: =B44/'- 7 -'!$E44 -> 1549.872111 | E44: 639816 | F44: =E44/'- 3 -'!$D44*100 -> 5.30468906 | G44: =E44/'- 7 -'!$E44 -> 985.8489985 | H44: 92521 | I44: =H44/'- 3 -'!$D44*100 -> 0.7670879387 | J44: =H44/'- 7 -'!$E44 -> 142.559322
A45: WESTERN | B45: 1164994 | C45: =B45/'- 3 -'!$D45*100 -> 4.654697015 | D45: =B45/'- 7 -'!$E45 -> 567.7358674 | E45: 1306245 | F45: =E45/'- 3 -'!$D45*100 -> 5.219060959 | G45: =E45/'- 7 -'!$E45 -> 636.5716374 | H45: 597437 | I45: =H45/'- 3 -'!$D45*100 -> 2.387040809 | J45: =H45/'- 7 -'!$E45 -> 291.1486355
A46: WINNIPEG | B46: 21808122 | C46: =B46/'- 3 -'!$D46*100 -> 5.037801666 | D46: =B46/'- 7 -'!$E46 -> 797.6198087 | E46: 26393389 | F46: =E46/'- 3 -'!$D46*100 -> 6.097024727 | G46: =E46/'- 7 -'!$E46 -> 965.3233729 | H46: 6749000 | I46: =H46/'- 3 -'!$D46*100 -> 1.559057834 | J46: =H46/'- 7 -'!$E46 -> 246.8408829
A48: PROVINCE | B48: =SUM(B11:B46) -> 183439997 | C48: =B48/'- 3 -'!$D48*100 -> 6.944575641 | D48: =B48/'- 7 -'!$E48 -> 1021.599313 | E48: =SUM(E11:E46) -> 136491470 | F48: =E48/'- 3 -'!$D48*100 -> 5.167222816 | G48: =E48/'- 7 -'!$E48 -> 760.1373434 | H48: =SUM(H11:H46) -> 56451502 | I48: =H48/'- 3 -'!$D48*100 -> 2.137111492 | J48: =H48/'- 7 -'!$E48 -> 314.3851756
A50: WHITESHELL | B50: 245474 | C50: =B50/'- 3 -'!$D50*100 -> 6.533890462 | D50: =B50/'- 7 -'!$E50 -> 1356.209945 | E50: 62012 | F50: =E50/'- 3 -'!$D50*100 -> 1.650600941 | G50: =E50/'- 7 -'!$E50 -> 342.6077348 | H50: 62212 | I50: =H50/'- 3 -'!$D50*100 -> 1.65592443 | J50: =H50/'- 7 -'!$E50 -> 343.7127072
A52: (1) Expenses shown are extra costs associated with special needs students in regular classes, not the total cost of educating those students.

Sheet - 23 -
B2: =AEXP_BP -> ANALYSIS OF EXPENSE BY PROGRAM | F2: PAGE 6 OF 16
B3: =OPYEAR -> OPERATING FUND 2022/2023 BUDGET
B5: FUNCTION 300: ADULT LEARNING CENTRES
B6: ADMINISTRATION AND OTHER | D6: INSTRUCTION
A9: DIVISION / DISTRICT | B9: AMOUNT | C9: % | D9: AMOUNT | E9: %
A11: BEAUTIFUL PLAINS | B11: 0 | C11: =B11/'- 3 -'!$D11*100 -> 0 | D11: 0 | E11: =D11/'- 3 -'!$D11*100 -> 0
A12: BORDER LAND | B12: 85099 | C12: =B12/'- 3 -'!$D12*100 -> 0.2325762092 | D12: 293598 | E12: =D12/'- 3 -'!$D12*100 -> 0.8024055495
A13: BRANDON | B13: 0 | C13: =B13/'- 3 -'!$D13*100 -> 0 | D13: 0 | E13: =D13/'- 3 -'!$D13*100 -> 0
A14: DSFM | B14: 99951 | C14: =B14/'- 3 -'!$D14*100 -> 0.09527819252 | D14: 160629 | E14: =D14/'- 3 -'!$D14*100 -> 0.1531194364
A15: EVERGREEN | B15: 0 | C15: =B15/'- 3 -'!$D15*100 -> 0 | D15: 0 | E15: =D15/'- 3 -'!$D15*100 -> 0
A16: FLIN FLON | B16: 19430 | C16: =B16/'- 3 -'!$D16*100 -> 0.1205713082 | D16: 74570 | E16: =D16/'- 3 -'!$D16*100 -> 0.4627381601
A17: FORT LA BOSSE | B17: 0 | C17: =B17/'- 3 -'!$D17*100 -> 0 | D17: 0 | E17: =D17/'- 3 -'!$D17*100 -> 0
A18: FRONTIER | B18: 259480 | C18: =B18/'- 3 -'!$D18*100 -> 0.1674204177 | D18: 2114011 | E18: =D18/'- 3 -'!$D18*100 -> 1.363991848
A19: GARDEN VALLEY | B19: 0 | C19: =B19/'- 3 -'!$D19*100 -> 0 | D19: 0 | E19: =D19/'- 3 -'!$D19*100 -> 0
A20: HANOVER | B20: 0 | C20: =B20/'- 3 -'!$D20*100 -> 0 | D20: 0 | E20: =D20/'- 3 -'!$D20*100 -> 0
A21: INTERLAKE | B21: 0 | C21: =B21/'- 3 -'!$D21*100 -> 0 | D21: 0 | E21: =D21/'- 3 -'!$D21*100 -> 0
A22: KELSEY | B22: 179113 | C22: =B22/'- 3 -'!$D22*100 -> 0.8541480446 | D22: 530199 | E22: =D22/'- 3 -'!$D22*100 -> 2.528395142
A23: LAKESHORE | B23: 67540 | C23: =B23/'- 3 -'!$D23*100 -> 0.4050338135 | D23: 208110 | E23: =D23/'- 3 -'!$D23*100 -> 1.248024681
A24: LORD SELKIRK | B24: 115559 | C24: =B24/'- 3 -'!$D24*100 -> 0.1873383593 | D24: 258447 | E24: =D24/'- 3 -'!$D24*100 -> 0.4189811001
A25: LOUIS RIEL | B25: 0 | C25: =B25/'- 3 -'!$D25*100 -> 0 | D25: 673708 | E25: =D25/'- 3 -'!$D25*100 -> 0.3248451802
A26: MOUNTAIN VIEW | B26: 0 | C26: =B26/'- 3 -'!$D26*100 -> 0 | D26: 0 | E26: =D26/'- 3 -'!$D26*100 -> 0
A27: MYSTERY LAKE | B27: 0 | C27: =B27/'- 3 -'!$D27*100 -> 0 | D27: 0 | E27: =D27/'- 3 -'!$D27*100 -> 0
A28: PARK WEST | B28: 0 | C28: =B28/'- 3 -'!$D28*100 -> 0 | D28: 78457 | E28: =D28/'- 3 -'!$D28*100 -> 0.2508890658
A29: PEMBINA TRAILS | B29: 0 | C29: =B29/'- 3 -'!$D29*100 -> 0 | D29: 0 | E29: =D29/'- 3 -'!$D29*100 -> 0
A30: PINE CREEK | B30: 0 | C30: =B30/'- 3 -'!$D30*100 -> 0 | D30: 0 | E30: =D30/'- 3 -'!$D30*100 -> 0
A31: PORTAGE LA PRAIRIE | B31: 0 | C31: =B31/'- 3 -'!$D31*100 -> 0 | D31: 0 | E31: =D31/'- 3 -'!$D31*100 -> 0
A32: PRAIRIE ROSE | B32: 85682 | C32: =B32/'- 3 -'!$D32*100 -> 0.2593227736 | D32: 223550 | E32: =D32/'- 3 -'!$D32*100 -> 0.6765902527
A33: PRAIRIE SPIRIT | B33: 0 | C33: =B33/'- 3 -'!$D33*100 -> 0 | D33: 0 | E33: =D33/'- 3 -'!$D33*100 -> 0
A34: RED RIVER VALLEY | B34: 0 | C34: =B34/'- 3 -'!$D34*100 -> 0 | D34: 0 | E34: =D34/'- 3 -'!$D34*100 -> 0
A35: RIVER EAST TRANSCONA | B35: 262787 | C35: =B35/'- 3 -'!$D35*100 -> 0.1222156083 | D35: 1401237 | E35: =D35/'- 3 -'!$D35*100 -> 0.6516800006
A36: ROLLING RIVER | B36: 0 | C36: =B36/'- 3 -'!$D36*100 -> 0 | D36: 0 | E36: =D36/'- 3 -'!$D36*100 -> 0
A37: SEINE RIVER | B37: 111181 | C37: =B37/'- 3 -'!$D37*100 -> 0.1892233844 | D37: 205318 | E37: =D37/'- 3 -'!$D37*100 -> 0.3494389044
A38: SEVEN OAKS | B38: 615278 | C38: =B38/'- 3 -'!$D38*100 -> 0.3838741943 | D38: 1664707 | E38: =D38/'- 3 -'!$D38*100 -> 1.038616785
A39: SOUTHWEST HORIZON | B39: 0 | C39: =B39/'- 3 -'!$D39*100 -> 0 | D39: 0 | E39: =D39/'- 3 -'!$D39*100 -> 0
A40: ST. JAMES-ASSINIBOIA | B40: 0 | C40: =B40/'- 3 -'!$D40*100 -> 0 | D40: 0 | E40: =D40/'- 3 -'!$D40*100 -> 0
A41: SUNRISE | B41: 313413 | C41: =B41/'- 3 -'!$D41*100 -> 0.4393971172 | D41: 725681 | E41: =D41/'- 3 -'!$D41*100 -> 1.01738645
A42: SWAN VALLEY | B42: 0 | C42: =B42/'- 3 -'!$D42*100 -> 0 | D42: 0 | E42: =D42/'- 3 -'!$D42*100 -> 0
A43: TURTLE MOUNTAIN | B43: 0 | C43: =B43/'- 3 -'!$D43*100 -> 0 | D43: 206622 | E43: =D43/'- 3 -'!$D43*100 -> 1.424726888
A44: TURTLE RIVER | B44: 0 | C44: =B44/'- 3 -'!$D44*100 -> 0 | D44: 0 | E44: =D44/'- 3 -'!$D44*100 -> 0
A45: WESTERN | B45: 192090 | C45: =B45/'- 3 -'!$D45*100 -> 0.7674895747 | D45: 226549 | E45: =D45/'- 3 -'!$D45*100 -> 0.9051694292
A46: WINNIPEG | B46: 90687 | C46: =B46/'- 3 -'!$D46*100 -> 0.02094921881 | D46: 694013 | E46: =D46/'- 3 -'!$D46*100 -> 0.1603209964
A48: PROVINCE | B48: =SUM(B11:B46) -> 2497290 | C48: =B48/'- 3 -'!$D48*100 -> 0.0945411011 | D48: =SUM(D11:D46) -> 9739406 | E48: =D48/'- 3 -'!$D48*100 -> 0.3687093479
A50: WHITESHELL | B50: 0 | C50: =B50/'- 3 -'!$D50*100 -> 0 | D50: 0 | E50: =D50/'- 3 -'!$D50*100 -> 0

Sheet - 24 -
B2: =AEXP_BP -> ANALYSIS OF EXPENSE BY PROGRAM | I2: PAGE 7 OF 16
B3: =OPYEAR -> OPERATING FUND 2022/2023 BUDGET
B5: FUNCTION 400: COMMUNITY EDUCATION AND SERVICES
D6: ENGLISH AS AN ADDITIONAL LANGUAGE FOR ADULTS
B7: CONTINUING EDUCATION | F7: COMMUNITY SERVICES & RECREATION | H7: PRE-KINDERGARTEN EDUCATION
A9: DIVISION / DISTRICT | B9: AMOUNT | C9: % | D9: AMOUNT | E9: % | F9: AMOUNT | G9: % | H9: AMOUNT | I9: %
A11: BEAUTIFUL PLAINS | B11: 0 | C11: =B11/'- 3 -'!$D11*100 -> 0 | D11: 0 | E11: =D11/'- 3 -'!$D11*100 -> 0 | F11: 0 | G11: =F11/'- 3 -'!$D11*100 -> 0 | H11: 33320 | I11: =H11/'- 3 -'!$D11*100 -> 0.134635037
A12: BORDER LAND | B12: 0 | C12: =B12/'- 3 -'!$D12*100 -> 0 | D12: 0 | E12: =D12/'- 3 -'!$D12*100 -> 0 | F12: 0 | G12: =F12/'- 3 -'!$D12*100 -> 0 | H12: 57383 | I12: =H12/'- 3 -'!$D12*100 -> 0.156828172
A13: BRANDON | B13: 0 | C13: =B13/'- 3 -'!$D13*100 -> 0 | D13: 0 | E13: =D13/'- 3 -'!$D13*100 -> 0 | F13: 246200 | G13: =F13/'- 3 -'!$D13*100 -> 0.2152052754 | H13: 192400 | I13: =H13/'- 3 -'!$D13*100 -> 0.16817829
A14: DSFM | B14: 0 | C14: =B14/'- 3 -'!$D14*100 -> 0 | D14: 0 | E14: =D14/'- 3 -'!$D14*100 -> 0 | F14: 0 | G14: =F14/'- 3 -'!$D14*100 -> 0 | H14: 1048284 | I14: =H14/'- 3 -'!$D14*100 -> 0.9992756928
A15: EVERGREEN | B15: 0 | C15: =B15/'- 3 -'!$D15*100 -> 0 | D15: 0 | E15: =D15/'- 3 -'!$D15*100 -> 0 | F15: 0 | G15: =F15/'- 3 -'!$D15*100 -> 0 | H15: 59750 | I15: =H15/'- 3 -'!$D15*100 -> 0.2700065841
A16: FLIN FLON | B16: 0 | C16: =B16/'- 3 -'!$D16*100 -> 0 | D16: 0 | E16: =D16/'- 3 -'!$D16*100 -> 0 | F16: 0 | G16: =F16/'- 3 -'!$D16*100 -> 0 | H16: 17661 | I16: =H16/'- 3 -'!$D16*100 -> 0.1095939204
A17: FORT LA BOSSE | B17: 0 | C17: =B17/'- 3 -'!$D17*100 -> 0 | D17: 0 | E17: =D17/'- 3 -'!$D17*100 -> 0 | F17: 80100 | G17: =F17/'- 3 -'!$D17*100 -> 0.3945332954 | H17: 151630 | I17: =H17/'- 3 -'!$D17*100 -> 0.7468549761
A18: FRONTIER | B18: 0 | C18: =B18/'- 3 -'!$D18*100 -> 0 | D18: 0 | E18: =D18/'- 3 -'!$D18*100 -> 0 | F18: 801116 | G18: =F18/'- 3 -'!$D18*100 -> 0.5168921511 | H18: 1734312 | I18: =H18/'- 3 -'!$D18*100 -> 1.119004314
A19: GARDEN VALLEY | B19: 0 | C19: =B19/'- 3 -'!$D19*100 -> 0 | D19: 0 | E19: =D19/'- 3 -'!$D19*100 -> 0 | F19: 0 | G19: =F19/'- 3 -'!$D19*100 -> 0 | H19: 85400 | I19: =H19/'- 3 -'!$D19*100 -> 0.1656554057
A20: HANOVER | B20: 0 | C20: =B20/'- 3 -'!$D20*100 -> 0 | D20: 0 | E20: =D20/'- 3 -'!$D20*100 -> 0 | F20: 0 | G20: =F20/'- 3 -'!$D20*100 -> 0 | H20: 109800 | I20: =H20/'- 3 -'!$D20*100 -> 0.1137966522
A21: INTERLAKE | B21: 0 | C21: =B21/'- 3 -'!$D21*100 -> 0 | D21: 0 | E21: =D21/'- 3 -'!$D21*100 -> 0 | F21: 0 | G21: =F21/'- 3 -'!$D21*100 -> 0 | H21: 0 | I21: =H21/'- 3 -'!$D21*100 -> 0
A22: KELSEY | B22: 0 | C22: =B22/'- 3 -'!$D22*100 -> 0 | D22: 0 | E22: =D22/'- 3 -'!$D22*100 -> 0 | F22: 67781 | G22: =F22/'- 3 -'!$D22*100 -> 0.323231751 | H22: 0 | I22: =H22/'- 3 -'!$D22*100 -> 0
A23: LAKESHORE | B23: 111200 | C23: =B23/'- 3 -'!$D23*100 -> 0.666860528 | D23: 0 | E23: =D23/'- 3 -'!$D23*100 -> 0 | F23: 0 | G23: =F23/'- 3 -'!$D23*100 -> 0 | H23: 0 | I23: =H23/'- 3 -'!$D23*100 -> 0
A24: LORD SELKIRK | B24: 201631 | C24: =B24/'- 3 -'!$D24*100 -> 0.3268738975 | D24: 0 | E24: =D24/'- 3 -'!$D24*100 -> 0 | F24: 248719 | G24: =F24/'- 3 -'!$D24*100 -> 0.4032105624 | H24: 0 | I24: =H24/'- 3 -'!$D24*100 -> 0
A25: LOUIS RIEL | B25: 0 | C25: =B25/'- 3 -'!$D25*100 -> 0 | D25: 0 | E25: =D25/'- 3 -'!$D25*100 -> 0 | F25: 604385 | G25: =F25/'- 3 -'!$D25*100 -> 0.2914193601 | H25: 978881 | I25: =H25/'- 3 -'!$D25*100 -> 0.471991983
A26: MOUNTAIN VIEW | B26: 0 | C26: =B26/'- 3 -'!$D26*100 -> 0 | D26: 0 | E26: =D26/'- 3 -'!$D26*100 -> 0 | F26: 0 | G26: =F26/'- 3 -'!$D26*100 -> 0 | H26: 100485 | I26: =H26/'- 3 -'!$D26*100 -> 0.2257011087
A27: MYSTERY LAKE | B27: 0 | C27: =B27/'- 3 -'!$D27*100 -> 0 | D27: 0 | E27: =D27/'- 3 -'!$D27*100 -> 0 | F27: 0 | G27: =F27/'- 3 -'!$D27*100 -> 0 | H27: 60491 | I27: =H27/'- 3 -'!$D27*100 -> 0.1338646315
A28: PARK WEST | B28: 0 | C28: =B28/'- 3 -'!$D28*100 -> 0 | D28: 0 | E28: =D28/'- 3 -'!$D28*100 -> 0 | F28: 0 | G28: =F28/'- 3 -'!$D28*100 -> 0 | H28: 119853 | I28: =H28/'- 3 -'!$D28*100 -> 0.38326481
A29: PEMBINA TRAILS | B29: 0 | C29: =B29/'- 3 -'!$D29*100 -> 0 | D29: 0 | E29: =D29/'- 3 -'!$D29*100 -> 0 | F29: 253134 | G29: =F29/'- 3 -'!$D29*100 -> 0.1313931697 | H29: 0 | I29: =H29/'- 3 -'!$D29*100 -> 0
A30: PINE CREEK | B30: 0 | C30: =B30/'- 3 -'!$D30*100 -> 0 | D30: 0 | E30: =D30/'- 3 -'!$D30*100 -> 0 | F30: 0 | G30: =F30/'- 3 -'!$D30*100 -> 0 | H30: 14790 | I30: =H30/'- 3 -'!$D30*100 -> 0.08959912841
A31: PORTAGE LA PRAIRIE | B31: 0 | C31: =B31/'- 3 -'!$D31*100 -> 0 | D31: 0 | E31: =D31/'- 3 -'!$D31*100 -> 0 | F31: 0 | G31: =F31/'- 3 -'!$D31*100 -> 0 | H31: 62343 | I31: =H31/'- 3 -'!$D31*100 -> 0.142957747
A32: PRAIRIE ROSE | B32: 0 | C32: =B32/'- 3 -'!$D32*100 -> 0 | D32: 0 | E32: =D32/'- 3 -'!$D32*100 -> 0 | F32: 0 | G32: =F32/'- 3 -'!$D32*100 -> 0 | H32: 38561 | I32: =H32/'- 3 -'!$D32*100 -> 0.116707657
A33: PRAIRIE SPIRIT | B33: 0 | C33: =B33/'- 3 -'!$D33*100 -> 0 | D33: 0 | E33: =D33/'- 3 -'!$D33*100 -> 0 | F33: 0 | G33: =F33/'- 3 -'!$D33*100 -> 0 | H33: 31500 | I33: =H33/'- 3 -'!$D33*100 -> 0.1049248843
A34: RED RIVER VALLEY | B34: 0 | C34: =B34/'- 3 -'!$D34*100 -> 0 | D34: 0 | E34: =D34/'- 3 -'!$D34*100 -> 0 | F34: 0 | G34: =F34/'- 3 -'!$D34*100 -> 0 | H34: 65372 | I34: =H34/'- 3 -'!$D34*100 -> 0.1910784051
A35: RIVER EAST TRANSCONA | B35: 369100 | C35: =B35/'- 3 -'!$D35*100 -> 0.1716591042 | D35: 0 | E35: =D35/'- 3 -'!$D35*100 -> 0 | F35: 0 | G35: =F35/'- 3 -'!$D35*100 -> 0 | H35: 225938 | I35: =H35/'- 3 -'!$D35*100 -> 0.1050780674
A36: ROLLING RIVER | B36: 0 | C36: =B36/'- 3 -'!$D36*100 -> 0 | D36: 0 | E36: =D36/'- 3 -'!$D36*100 -> 0 | F36: 0 | G36: =F36/'- 3 -'!$D36*100 -> 0 | H36: 29430 | I36: =H36/'- 3 -'!$D36*100 -> 0.1150869262
A37: SEINE RIVER | B37: 0 | C37: =B37/'- 3 -'!$D37*100 -> 0 | D37: 0 | E37: =D37/'- 3 -'!$D37*100 -> 0 | F37: 5000 | G37: =F37/'- 3 -'!$D37*100 -> 0.008509699696 | H37: 701044 | I37: =H37/'- 3 -'!$D37*100 -> 1.193134783
A38: SEVEN OAKS | B38: 0 | C38: =B38/'- 3 -'!$D38*100 -> 0 | D38: 707860 | E38: =D38/'- 3 -'!$D38*100 -> 0.4416364426 | F38: 1380937 | G38: =F38/'- 3 -'!$D38*100 -> 0.8615716444 | H38: 540000 | I38: =H38/'- 3 -'!$D38*100 -> 0.3369079748
A39: SOUTHWEST HORIZON | B39: 0 | C39: =B39/'- 3 -'!$D39*100 -> 0 | D39: 0 | E39: =D39/'- 3 -'!$D39*100 -> 0 | F39: 0 | G39: =F39/'- 3 -'!$D39*100 -> 0 | H39: 174900 | I39: =H39/'- 3 -'!$D39*100 -> 0.7129289191
A40: ST. JAMES-ASSINIBOIA | B40: 439206 | C40: =B40/'- 3 -'!$D40*100 -> 0.3731516026 | D40: 0 | E40: =D40/'- 3 -'!$D40*100 -> 0 | F40: 385442 | G40: =F40/'- 3 -'!$D40*100 -> 0.3274734407 | H40: 91155 | I40: =H40/'- 3 -'!$D40*100 -> 0.07744574149
A41: SUNRISE | B41: 0 | C41: =B41/'- 3 -'!$D41*100 -> 0 | D41: 0 | E41: =D41/'- 3 -'!$D41*100 -> 0 | F41: 0 | G41: =F41/'- 3 -'!$D41*100 -> 0 | H41: 68130 | I41: =H41/'- 3 -'!$D41*100 -> 0.09551654078
A42: SWAN VALLEY | B42: 0 | C42: =B42/'- 3 -'!$D42*100 -> 0 | D42: 0 | E42: =D42/'- 3 -'!$D42*100 -> 0 | F42: 0 | G42: =F42/'- 3 -'!$D42*100 -> 0 | H42: 104594 | I42: =H42/'- 3 -'!$D42*100 -> 0.4421813831
A43: TURTLE MOUNTAIN | B43: 0 | C43: =B43/'- 3 -'!$D43*100 -> 0 | D43: 0 | E43: =D43/'- 3 -'!$D43*100 -> 0 | F43: 0 | G43: =F43/'- 3 -'!$D43*100 -> 0 | H43: 15131 | I43: =H43/'- 3 -'!$D43*100 -> 0.1043332392
A44: TURTLE RIVER | B44: 0 | C44: =B44/'- 3 -'!$D44*100 -> 0 | D44: 0 | E44: =D44/'- 3 -'!$D44*100 -> 0 | F44: 0 | G44: =F44/'- 3 -'!$D44*100 -> 0 | H44: 29468 | I44: =H44/'- 3 -'!$D44*100 -> 0.2443180184
A45: WESTERN | B45: 0 | C45: =B45/'- 3 -'!$D45*100 -> 0 | D45: 0 | E45: =D45/'- 3 -'!$D45*100 -> 0 | F45: 0 | G45: =F45/'- 3 -'!$D45*100 -> 0 | H45: 47655 | I45: =H45/'- 3 -'!$D45*100 -> 0.1904040589
A46: WINNIPEG | B46: 0 | C46: =B46/'- 3 -'!$D46*100 -> 0 | D46: 3296500 | E46: =D46/'- 3 -'!$D46*100 -> 0.7615104681 | F46: 201300 | G46: =F46/'- 3 -'!$D46*100 -> 0.04650145828 | H46: 4848179 | I46: =H46/'- 3 -'!$D46*100 -> 1.119957245
A48: PROVINCE | B48: =SUM(B11:B46) -> 1121137 | C48: =B48/'- 3 -'!$D48*100 -> 0.04244341925 | D48: =SUM(D11:D46) -> 4004360 | E48: =D48/'- 3 -'!$D48*100 -> 0.1515949704 | F48: =SUM(F11:F46) -> 4274114 | G48: =F48/'- 3 -'!$D48*100 -> 0.1618071765 | H48: =SUM(H11:H46) -> 11837840 | I48: =H48/'- 3 -'!$D48*100 -> 0.4481507667
A50: WHITESHELL | B50: 12000 | C50: =B50/'- 3 -'!$D50*100 -> 0.3194093287 | D50: 0 | E50: =D50/'- 3 -'!$D50*100 -> 0 | F50: 58329 | G50: =F50/'- 3 -'!$D50*100 -> 1.552568894 | H50: 118513 | I50: =H50/'- 3 -'!$D50*100 -> 3.154513147

Sheet - 25 -
B2: =AEXP_BP -> ANALYSIS OF EXPENSE BY PROGRAM | J2: PAGE 8 OF 16
B3: =OPYEAR -> OPERATING FUND 2022/2023 BUDGET
B5: FUNCTION 500: DIVISIONAL ADMINISTRATION
E6: INSTRUCTIONAL MGMT. AND ADMINISTRATION | H6: BUSINESS AND ADMIN. SERVICES
B7: BOARD OF TRUSTEES
D8: PER PUPIL | G8: PER PUPIL | J8: PER PUPIL
A9: DIVISION / DISTRICT | B9: AMOUNT | C9: % | E9: AMOUNT | F9: % | H9: AMOUNT | I9: %
A11: BEAUTIFUL PLAINS | B11: 153284 | C11: =B11/'- 3 -'!$D11*100 -> 0.6193696583 | D11: =B11/'- 7 -'!$E11 -> 74.75445013 | E11: 155527 | F11: =E11/'- 3 -'!$D11*100 -> 0.6284328752 | G11: =E11/'- 7 -'!$E11 -> 75.84832968 | H11: 451130 | I11: =H11/'- 3 -'!$D11*100 -> 1.822866274 | J11: =H11/'- 7 -'!$E11 -> 220.0097537
A12: BORDER LAND | B12: 197455 | C12: =B12/'- 3 -'!$D12*100 -> 0.539646005 | D12: =B12/'- 7 -'!$E12 -> 93.09567702 | E12: 195630 | F12: =E12/'- 3 -'!$D12*100 -> 0.5346582662 | G12: =E12/'- 7 -'!$E12 -> 92.23522977 | H12: 698619 | I12: =H12/'- 3 -'!$D12*100 -> 1.909330999 | J12: =H12/'- 7 -'!$E12 -> 329.3834483
A13: BRANDON | B13: 385900 | C13: =B13/'- 3 -'!$D13*100 -> 0.3373180982 | D13: =B13/'- 7 -'!$E13 -> 44.11546156 | E13: 637100 | F13: =E13/'- 3 -'!$D13*100 -> 0.5568939113 | G13: =E13/'- 7 -'!$E13 -> 72.83223778 | H13: 1805400 | I13: =H13/'- 3 -'!$D13*100 -> 1.578113746 | J13: =H13/'- 7 -'!$E13 -> 206.3903973
A14: DSFM | B14: 904011 | C14: =B14/'- 3 -'!$D14*100 -> 0.8617475973 | D14: =B14/'- 7 -'!$E14 -> 152.8853374 | E14: 1483226 | F14: =E14/'- 3 -'!$D14*100 -> 1.413883727 | G14: =E14/'- 7 -'!$E14 -> 250.8415356 | H14: 1284038 | I14: =H14/'- 3 -'!$D14*100 -> 1.224007962 | J14: =H14/'- 7 -'!$E14 -> 217.155082
A15: EVERGREEN | B15: 176716 | C15: =B15/'- 3 -'!$D15*100 -> 0.7985687618 | D15: =B15/'- 7 -'!$E15 -> 127.7772957 | E15: 226980 | F15: =E15/'- 3 -'!$D15*100 -> 1.025708694 | G15: =E15/'- 7 -'!$E15 -> 164.1214751 | H15: 386830 | I15: =H15/'- 3 -'!$D15*100 -> 1.748061036 | J15: =H15/'- 7 -'!$E15 -> 279.703543
A16: FLIN FLON | B16: 133064 | C16: =B16/'- 3 -'!$D16*100 -> 0.8257179903 | D16: =B16/'- 7 -'!$E16 -> 140.3628692 | E16: 112571 | F16: =E16/'- 3 -'!$D16*100 -> 0.6985503208 | G16: =E16/'- 7 -'!$E16 -> 118.7457806 | H16: 417213 | I16: =H16/'- 3 -'!$D16*100 -> 2.588981843 | J16: =H16/'- 7 -'!$E16 -> 440.0981013
A17: FORT LA BOSSE | B17: 137350 | C17: =B17/'- 3 -'!$D17*100 -> 0.6765187032 | D17: =B17/'- 7 -'!$E17 -> 93.02404335 | E17: 187010 | F17: =E17/'- 3 -'!$D17*100 -> 0.9211194954 | G17: =E17/'- 7 -'!$E17 -> 126.6576363 | H17: 364668 | I17: =H17/'- 3 -'!$D17*100 -> 1.796175628 | J17: =H17/'- 7 -'!$E17 -> 246.9813749
A18: FRONTIER | B18: 1020149 | C18: =B18/'- 3 -'!$D18*100 -> 0.6582155531 | D18: =B18/'- 7 -'!$E18 -> 162.6642749 | E18: 2751495 | F18: =E18/'- 3 -'!$D18*100 -> 1.775306159 | G18: =E18/'- 7 -'!$E18 -> 438.7299689 | H18: 3582153 | I18: =H18/'- 3 -'!$D18*100 -> 2.311259255 | J18: =H18/'- 7 -'!$E18 -> 571.1796221
A19: GARDEN VALLEY | B19: 230000 | C19: =B19/'- 3 -'!$D19*100 -> 0.4461445353 | D19: =B19/'- 7 -'!$E19 -> 55.74406205 | E19: 322900 | F19: =E19/'- 3 -'!$D19*100 -> 0.6263481324 | G19: =E19/'- 7 -'!$E19 -> 78.2598158 | H19: 703100 | I19: =H19/'- 3 -'!$D19*100 -> 1.363844447 | J19: =H19/'- 7 -'!$E19 -> 170.407174
A20: HANOVER | B20: 330300 | C20: =B20/'- 3 -'!$D20*100 -> 0.3423227161 | D20: =B20/'- 7 -'!$E20 -> 41.62308613 | E20: 649650 | F20: =E20/'- 3 -'!$D20*100 -> 0.673296859 | G20: =E20/'- 7 -'!$E20 -> 81.86629702 | H20: 1282050 | I20: =H20/'- 3 -'!$D20*100 -> 1.328715829 | J20: =H20/'- 7 -'!$E20 -> 161.558818
A21: INTERLAKE | B21: 199000 | C21: =B21/'- 3 -'!$D21*100 -> 0.495133263 | D21: =B21/'- 7 -'!$E21 -> 68.29100892 | E21: 429000 | F21: =E21/'- 3 -'!$D21*100 -> 1.067397838 | G21: =E21/'- 7 -'!$E21 -> 147.2203157 | H21: 670000 | I21: =H21/'- 3 -'!$D21*100 -> 1.667031589 | J21: =H21/'- 7 -'!$E21 -> 229.9245024
A22: KELSEY | B22: 109222 | C22: =B22/'- 3 -'!$D22*100 -> 0.5208541967 | D22: =B22/'- 7 -'!$E22 -> 75.37750173 | E22: 148170 | F22: =E22/'- 3 -'!$D22*100 -> 0.7065881079 | G22: =E22/'- 7 -'!$E22 -> 102.2567288 | H22: 593906 | I22: =H22/'- 3 -'!$D22*100 -> 2.832198939 | J22: =H22/'- 7 -'!$E22 -> 409.8730159
A23: LAKESHORE | B23: 111000 | C23: =B23/'- 3 -'!$D23*100 -> 0.6656611385 | D23: =B23/'- 7 -'!$E23 -> 120.7834603 | E23: 140750 | F23: =E23/'- 3 -'!$D23*100 -> 0.8440703176 | G23: =E23/'- 7 -'!$E23 -> 153.1556039 | H23: 329450 | I23: =H23/'- 3 -'!$D23*100 -> 1.975694253 | J23: =H23/'- 7 -'!$E23 -> 358.4874864
A24: LORD SELKIRK | B24: 391068 | C24: =B24/'- 3 -'!$D24*100 -> 0.6339795039 | D24: =B24/'- 7 -'!$E24 -> 105.1258065 | E24: 358647 | F24: =E24/'- 3 -'!$D24*100 -> 0.5814202316 | G24: =E24/'- 7 -'!$E24 -> 96.41048387 | H24: 1107684 | I24: =H24/'- 3 -'!$D24*100 -> 1.795720828 | J24: =H24/'- 7 -'!$E24 -> 297.7645161
A25: LOUIS RIEL | B25: 504721 | C25: =B25/'- 3 -'!$D25*100 -> 0.2433638671 | D25: =B25/'- 7 -'!$E25 -> 33.11165781 | E25: 661063 | F25: =E25/'- 3 -'!$D25*100 -> 0.3187480769 | G25: =E25/'- 7 -'!$E25 -> 43.3683002 | H25: 3943130 | I25: =H25/'- 3 -'!$D25*100 -> 1.901278856 | J25: =H25/'- 7 -'!$E25 -> 258.6846421
A26: MOUNTAIN VIEW | B26: 233909 | C26: =B26/'- 3 -'!$D26*100 -> 0.525387079 | D26: =B26/'- 7 -'!$E26 -> 77.04512516 | E26: 400793 | F26: =E26/'- 3 -'!$D26*100 -> 0.9002281381 | G26: =E26/'- 7 -'!$E26 -> 132.0135046 | H26: 714843 | I26: =H26/'- 3 -'!$D26*100 -> 1.605621313 | J26: =H26/'- 7 -'!$E26 -> 235.4555336
A27: MYSTERY LAKE | B27: 263600 | C27: =B27/'- 3 -'!$D27*100 -> 0.5833382959 | D27: =B27/'- 7 -'!$E27 -> 94.5819878 | E27: 487665 | F27: =E27/'- 3 -'!$D27*100 -> 1.079186912 | G27: =E27/'- 7 -'!$E27 -> 174.9784715 | H27: 865539 | I27: =H27/'- 3 -'!$D27*100 -> 1.915409884 | J27: =H27/'- 7 -'!$E27 -> 310.5629709
A28: PARK WEST | B28: 151967 | C28: =B28/'- 3 -'!$D28*100 -> 0.4859586609 | D28: =B28/'- 7 -'!$E28 -> 73.27242044 | E28: 386364 | F28: =E28/'- 3 -'!$D28*100 -> 1.23551121 | G28: =E28/'- 7 -'!$E28 -> 186.289296 | H28: 505486 | I28: =H28/'- 3 -'!$D28*100 -> 1.616438435 | J28: =H28/'- 7 -'!$E28 -> 243.7251688
A29: PEMBINA TRAILS | B29: 704705 | C29: =B29/'- 3 -'!$D29*100 -> 0.365788174 | D29: =B29/'- 7 -'!$E29 -> 47.5592884 | E29: 2217499 | F29: =E29/'- 3 -'!$D29*100 -> 1.151027607 | G29: =E29/'- 7 -'!$E29 -> 149.6550677 | H29: 1990992 | I29: =H29/'- 3 -'!$D29*100 -> 1.033455599 | J29: =H29/'- 7 -'!$E29 -> 134.3685127
A30: PINE CREEK | B30: 124794 | C30: =B30/'- 3 -'!$D30*100 -> 0.756013092 | D30: =B30/'- 7 -'!$E30 -> 112.9357466 | E30: 124220 | F30: =E30/'- 3 -'!$D30*100 -> 0.7525357492 | G30: =E30/'- 7 -'!$E30 -> 112.4162896 | H30: 295617 | I30: =H30/'- 3 -'!$D30*100 -> 1.790873938 | J30: =H30/'- 7 -'!$E30 -> 267.5266968
A31: PORTAGE LA PRAIRIE | B31: 192962 | C31: =B31/'- 3 -'!$D31*100 -> 0.4424781095 | D31: =B31/'- 7 -'!$E31 -> 56.8371134 | E31: 283330 | F31: =E31/'- 3 -'!$D31*100 -> 0.6496995406 | G31: =E31/'- 7 -'!$E31 -> 83.455081 | H31: 571881 | I31: =H31/'- 3 -'!$D31*100 -> 1.311371274 | J31: =H31/'- 7 -'!$E31 -> 168.4480118
A32: PRAIRIE ROSE | B32: 204830 | C32: =B32/'- 3 -'!$D32*100 -> 0.619932818 | D32: =B32/'- 7 -'!$E32 -> 84.57060281 | E32: 190565 | F32: =E32/'- 3 -'!$D32*100 -> 0.5767587631 | G32: =E32/'- 7 -'!$E32 -> 78.68084228 | H32: 576515 | I32: =H32/'- 3 -'!$D32*100 -> 1.744864368 | J32: =H32/'- 7 -'!$E32 -> 238.0326177
A33: PRAIRIE SPIRIT | B33: 211500 | C33: =B33/'- 3 -'!$D33*100 -> 0.7044956516 | D33: =B33/'- 7 -'!$E33 -> 101.4388489 | E33: 223875 | F33: =E33/'- 3 -'!$D33*100 -> 0.7457161418 | G33: =E33/'- 7 -'!$E33 -> 107.3741007 | H33: 437375 | I33: =H33/'- 3 -'!$D33*100 -> 1.456873691 | J33: =H33/'- 7 -'!$E33 -> 209.7721823
A34: RED RIVER VALLEY | B34: 171331 | C34: =B34/'- 3 -'!$D34*100 -> 0.5007901583 | D34: =B34/'- 7 -'!$E34 -> 76.94390803 | E34: 281138 | F34: =E34/'- 3 -'!$D34*100 -> 0.8217493828 | G34: =E34/'- 7 -'!$E34 -> 126.2576908 | H34: 685681 | I34: =H34/'- 3 -'!$D34*100 -> 2.004204122 | J34: =H34/'- 7 -'!$E34 -> 307.935959
A35: RIVER EAST TRANSCONA | B35: 497980 | C35: =B35/'- 3 -'!$D35*100 -> 0.2315979429 | D35: =B35/'- 7 -'!$E35 -> 30.19707719 | E35: 1274164 | F35: =E35/'- 3 -'!$D35*100 -> 0.5925815521 | G35: =E35/'- 7 -'!$E35 -> 77.26420472 | H35: 2526623 | I35: =H35/'- 3 -'!$D35*100 -> 1.175068656 | J35: =H35/'- 7 -'!$E35 -> 153.212237
A36: ROLLING RIVER | B36: 177475 | C36: =B36/'- 3 -'!$D36*100 -> 0.6940214825 | D36: =B36/'- 7 -'!$E36 -> 99.98591549 | E36: 172165 | F36: =E36/'- 3 -'!$D36*100 -> 0.6732565631 | G36: =E36/'- 7 -'!$E36 -> 96.9943662 | H36: 563650 | I36: =H36/'- 3 -'!$D36*100 -> 2.204170777 | J36: =H36/'- 7 -'!$E36 -> 317.5492958
A37: SEINE RIVER | B37: 224080 | C37: =B37/'- 3 -'!$D37*100 -> 0.3813707016 | D37: =B37/'- 7 -'!$E37 -> 51.27688787 | E37: 463600 | F37: =E37/'- 3 -'!$D37*100 -> 0.7890193558 | G37: =E37/'- 7 -'!$E37 -> 106.0869565 | H37: 996583 | I37: =H37/'- 3 -'!$D37*100 -> 1.69612441 | J37: =H37/'- 7 -'!$E37 -> 228.0510297
A38: SEVEN OAKS | B38: 436250 | C38: =B38/'- 3 -'!$D38*100 -> 0.2721779704 | D38: =B38/'- 7 -'!$E38 -> 37.82492587 | E38: 1239300 | F38: =E38/'- 3 -'!$D38*100 -> 0.7732038021 | G38: =E38/'- 7 -'!$E38 -> 107.4531361 | H38: 2006350 | I38: =H38/'- 3 -'!$D38*100 -> 1.251769102 | J38: =H38/'- 7 -'!$E38 -> 173.9599771
A39: SOUTHWEST HORIZON | B39: 152000 | C39: =B39/'- 3 -'!$D39*100 -> 0.6195837376 | D39: =B39/'- 7 -'!$E39 -> 105.0013816 | E39: 214900 | F39: =E39/'- 3 -'!$D39*100 -> 0.8759772711 | G39: =E39/'- 7 -'!$E39 -> 148.4526112 | H39: 384100 | I39: =H39/'- 3 -'!$D39*100 -> 1.5656718 | J39: =H39/'- 7 -'!$E39 -> 265.3357281
A40: ST. JAMES-ASSINIBOIA | B40: 543755 | C40: =B40/'- 3 -'!$D40*100 -> 0.4619769531 | D40: =B40/'- 7 -'!$E40 -> 68.25947778 | E40: 1023001 | F40: =E40/'- 3 -'!$D40*100 -> 0.8691467389 | G40: =E40/'- 7 -'!$E40 -> 128.4209139 | H40: 1499264 | I40: =H40/'- 3 -'!$D40*100 -> 1.273782153 | J40: =H40/'- 7 -'!$E40 -> 188.2078835
A41: SUNRISE | B41: 297695 | C41: =B41/'- 3 -'!$D41*100 -> 0.4173608778 | D41: =B41/'- 7 -'!$E41 -> 66.19121734 | E41: 403385 | F41: =E41/'- 3 -'!$D41*100 -> 0.5655355908 | G41: =E41/'- 7 -'!$E41 -> 89.69093941 | H41: 1327166 | I41: =H41/'- 3 -'!$D41*100 -> 1.860653242 | J41: =H41/'- 7 -'!$E41 -> 295.0897165
A42: SWAN VALLEY | B42: 177492 | C42: =B42/'- 3 -'!$D42*100 -> 0.7503648206 | D42: =B42/'- 7 -'!$E42 -> 136.4273636 | E42: 207764 | F42: =E42/'- 3 -'!$D42*100 -> 0.8783426666 | G42: =E42/'- 7 -'!$E42 -> 159.6956188 | H42: 371435 | I42: =H42/'- 3 -'!$D42*100 -> 1.570277855 | J42: =H42/'- 7 -'!$E42 -> 285.4996157
A43: TURTLE MOUNTAIN | B43: 77882 | C43: =B43/'- 3 -'!$D43*100 -> 0.5370220959 | D43: =B43/'- 7 -'!$E43 -> 80.1255144 | E43: 138077 | F43: =E43/'- 3 -'!$D43*100 -> 0.952086489 | G43: =E43/'- 7 -'!$E43 -> 142.0545267 | H43: 254391 | I43: =H43/'- 3 -'!$D43*100 -> 1.75410991 | J43: =H43/'- 7 -'!$E43 -> 261.7191358
A44: TURTLE RIVER | B44: 96650 | C44: =B44/'- 3 -'!$D44*100 -> 0.8013213138 | D44: =B44/'- 7 -'!$E44 -> 148.9214176 | E44: 53937 | F44: =E44/'- 3 -'!$D44*100 -> 0.4471895261 | G44: =E44/'- 7 -'!$E44 -> 83.10785824 | H44: 248984 | I44: =H44/'- 3 -'!$D44*100 -> 2.064316461 | J44: =H44/'- 7 -'!$E44 -> 383.642527
A45: WESTERN | B45: 135575 | C45: =B45/'- 3 -'!$D45*100 -> 0.5416856635 | D45: =B45/'- 7 -'!$E45 -> 66.06968811 | E45: 191028 | F45: =E45/'- 3 -'!$D45*100 -> 0.763246387 | G45: =E45/'- 7 -'!$E45 -> 93.09356725 | H45: 446951 | I45: =H45/'- 3 -'!$D45*100 -> 1.785778713 | J45: =H45/'- 7 -'!$E45 -> 217.8123782
A46: WINNIPEG | B46: 1431738 | C46: =B46/'- 3 -'!$D46*100 -> 0.3307397162 | D46: =B46/'- 7 -'!$E46 -> 52.36501289 | E46: 2909860 | F46: =E46/'- 3 -'!$D46*100 -> 0.6721944034 | G46: =E46/'- 7 -'!$E46 -> 106.4264945 | H46: 6802066 | I46: =H46/'- 3 -'!$D46*100 -> 1.571316385 | J46: =H46/'- 7 -'!$E46 -> 248.781742
A48: PROVINCE | B48: =SUM(B11:B46) -> 11491410 | C48: =B48/'- 3 -'!$D48*100 -> 0.4350358007 | D48: =B48/'- 7 -'!$E48 -> 63.99703856 | E48: =SUM(E11:E46) -> 21346349 | F48: =E48/'- 3 -'!$D48*100 -> 0.8081189365 | G48: =E48/'- 7 -'!$E48 -> 118.8803741 | H48: =SUM(H11:H46) -> 41690863 | I48: =H48/'- 3 -'!$D48*100 -> 1.578310927 | J48: =H48/'- 7 -'!$E48 -> 232.1814092
A50: WHITESHELL | B50: 52840 | C50: =B50/'- 3 -'!$D50*100 -> 1.406465744 | D50: =B50/'- 7 -'!$E50 -> 291.9337017 | E50: 24115 | F50: =E50/'- 3 -'!$D50*100 -> 0.6418796634 | G50: =E50/'- 7 -'!$E50 -> 133.2320442 | H50: 61165 | I50: =H50/'- 3 -'!$D50*100 -> 1.628055966 | J50: =H50/'- 7 -'!$E50 -> 337.9281768

Sheet - 26 -
B2: =AEXP_BP -> ANALYSIS OF EXPENSE BY PROGRAM | E2: PAGE 9 OF 16
B3: =OPYEAR -> OPERATING FUND 2022/2023 BUDGET
B5: FUNCTION 500: (CONT'D)
B6: MANAGEMENT INFORMATION SERVICES
D8: PER PUPIL
A9: DIVISION / DISTRICT | B9: AMOUNT | C9: %
A11: BEAUTIFUL PLAINS | B11: 15500 | C11: =B11/'- 3 -'!$D11*100 -> 0.06263034435 | D11: =B11/'- 7 -'!$E11 -> 7.559131919
A12: BORDER LAND | B12: 66717 | C12: =B12/'- 3 -'!$D12*100 -> 0.1823380645 | D12: =B12/'- 7 -'!$E12 -> 31.45559385
A13: BRANDON | B13: 336700 | C13: =B13/'- 3 -'!$D13*100 -> 0.2943120074 | D13: =B13/'- 7 -'!$E13 -> 38.49099743
A14: DSFM | B14: 129219 | C14: =B14/'- 3 -'!$D14*100 -> 0.1231778848 | D14: =B14/'- 7 -'!$E14 -> 21.85337392
A15: EVERGREEN | B15: 50000 | C15: =B15/'- 3 -'!$D15*100 -> 0.2259469323 | D15: =B15/'- 7 -'!$E15 -> 36.15328995
A16: FLIN FLON | B16: 38578 | C16: =B16/'- 3 -'!$D16*100 -> 0.239392688 | D16: =B16/'- 7 -'!$E16 -> 40.69409283
A17: FORT LA BOSSE | B17: 90683 | C17: =B17/'- 3 -'!$D17*100 -> 0.4466599604 | D17: =B17/'- 7 -'!$E17 -> 61.41754148
A18: FRONTIER | B18: 810815 | C18: =B18/'- 3 -'!$D18*100 -> 0.5231500925 | D18: =B18/'- 7 -'!$E18 -> 129.2856573
A19: GARDEN VALLEY | B19: 159000 | C19: =B19/'- 3 -'!$D19*100 -> 0.308421657 | D19: =B19/'- 7 -'!$E19 -> 38.53611246
A20: HANOVER | B20: 106500 | C20: =B20/'- 3 -'!$D20*100 -> 0.1103765343 | D20: =B20/'- 7 -'!$E20 -> 13.42070443
A21: INTERLAKE | B21: 52000 | C21: =B21/'- 3 -'!$D21*100 -> 0.1293815562 | D21: =B21/'- 7 -'!$E21 -> 17.84488675
A22: KELSEY | B22: 15000 | C22: =B22/'- 3 -'!$D22*100 -> 0.07153149503 | D22: =B22/'- 7 -'!$E22 -> 10.35196687
A23: LAKESHORE | B23: 20000 | C23: =B23/'- 3 -'!$D23*100 -> 0.1199389439 | D23: =B23/'- 7 -'!$E23 -> 21.76278564
A24: LORD SELKIRK | B24: 170512 | C24: =B24/'- 3 -'!$D24*100 -> 0.2764253612 | D24: =B24/'- 7 -'!$E24 -> 45.83655914
A25: LOUIS RIEL | B25: 1256604 | C25: =B25/'- 3 -'!$D25*100 -> 0.6059030809 | D25: =B25/'- 7 -'!$E25 -> 82.43810274
A26: MOUNTAIN VIEW | B26: 34000 | C26: =B26/'- 3 -'!$D26*100 -> 0.0763679922 | D26: =B26/'- 7 -'!$E26 -> 11.19894598
A27: MYSTERY LAKE | B27: 258216 | C27: =B27/'- 3 -'!$D27*100 -> 0.5714236776 | D27: =B27/'- 7 -'!$E27 -> 92.65016146
A28: PARK WEST | B28: 85050 | C28: =B28/'- 3 -'!$D28*100 -> 0.2719720999 | D28: =B28/'- 7 -'!$E28 -> 41.00771456
A29: PEMBINA TRAILS | B29: 985744 | C29: =B29/'- 3 -'!$D29*100 -> 0.5116658712 | D29: =B29/'- 7 -'!$E29 -> 66.52611119
A30: PINE CREEK | B30: 23968 | C30: =B30/'- 3 -'!$D30*100 -> 0.1452002644 | D30: =B30/'- 7 -'!$E30 -> 21.69049774
A31: PORTAGE LA PRAIRIE | B31: 68800 | C31: =B31/'- 3 -'!$D31*100 -> 0.1577641916 | D31: =B31/'- 7 -'!$E31 -> 20.26509573
A32: PRAIRIE ROSE | B32: 55000 | C32: =B32/'- 3 -'!$D32*100 -> 0.1664614802 | D32: =B32/'- 7 -'!$E32 -> 22.70850537
A33: PRAIRIE SPIRIT | B33: 40750 | C33: =B33/'- 3 -'!$D33*100 -> 0.1357361598 | D33: =B33/'- 7 -'!$E33 -> 19.54436451
A34: RED RIVER VALLEY | B34: 67647 | C34: =B34/'- 3 -'!$D34*100 -> 0.1977280926 | D34: =B34/'- 7 -'!$E34 -> 30.37993443
A35: RIVER EAST TRANSCONA | B35: 1238857 | C35: =B35/'- 3 -'!$D35*100 -> 0.5761611565 | D35: =B35/'- 7 -'!$E35 -> 75.12321873
A36: ROLLING RIVER | B36: 30000 | C36: =B36/'- 3 -'!$D36*100 -> 0.1173159289 | D36: =B36/'- 7 -'!$E36 -> 16.90140845
A37: SEINE RIVER | B37: 101500 | C37: =B37/'- 3 -'!$D37*100 -> 0.1727469038 | D37: =B37/'- 7 -'!$E37 -> 23.22654462
A38: SEVEN OAKS | B38: 670790 | C38: =B38/'- 3 -'!$D38*100 -> 0.4185083341 | D38: =B38/'- 7 -'!$E38 -> 58.16064647
A39: SOUTHWEST HORIZON | B39: 59400 | C39: =B39/'- 3 -'!$D39*100 -> 0.2421268027 | D39: =B39/'- 7 -'!$E39 -> 41.03343465
A40: ST. JAMES-ASSINIBOIA | B40: 428630 | C40: =B40/'- 3 -'!$D40*100 -> 0.3641661804 | D40: =B40/'- 7 -'!$E40 -> 53.80743158
A41: SUNRISE | B41: 131012 | C41: =B41/'- 3 -'!$D41*100 -> 0.183675518 | D41: =B41/'- 7 -'!$E41 -> 29.12996109
A42: SWAN VALLEY | B42: 17500 | C42: =B42/'- 3 -'!$D42*100 -> 0.07398296464 | D42: =B42/'- 7 -'!$E42 -> 13.45119139
A43: TURTLE MOUNTAIN | B43: 21582 | C43: =B43/'- 3 -'!$D43*100 -> 0.1488150134 | D43: =B43/'- 7 -'!$E43 -> 22.2037037
A44: TURTLE RIVER | B44: 8500 | C44: =B44/'- 3 -'!$D44*100 -> 0.07047316262 | D44: =B44/'- 7 -'!$E44 -> 13.09707242
A45: WESTERN | B45: 58000 | C45: =B45/'- 3 -'!$D45*100 -> 0.2317371822 | D45: =B45/'- 7 -'!$E45 -> 28.26510721
A46: WINNIPEG | B46: 937300 | C46: =B46/'- 3 -'!$D46*100 -> 0.2165216932 | D46: =B46/'- 7 -'!$E46 -> 34.28122085
A48: PROVINCE | B48: =SUM(B11:B46) -> 8640074 | C48: =B48/'- 3 -'!$D48*100 -> 0.3270914109 | D48: =B48/'- 7 -'!$E48 -> 48.11760689
A50: WHITESHELL | B50: 9500 | C50: =B50/'- 3 -'!$D50*100 -> 0.2528657185 | D50: =B50/'- 7 -'!$E50 -> 52.48618785

Sheet - 27 -
B2: =AEXP_BP -> ANALYSIS OF EXPENSE BY PROGRAM | J2: PAGE 10 OF 16
B3: =OPYEAR -> OPERATING FUND 2022/2023 BUDGET
B5: FUNCTION 600: INSTRUCTIONAL & OTHER SUPPORT SERVICES
B6: CURRICULUM CONSULTING AND DEVELOPMENT ADMINISTRATION | E6: CURRICULUM CONSULTING AND DEVELOPMENT | H6: LIBRARY / MEDIA CENTRE
D8: PER PUPIL | G8: PER PUPIL | J8: PER PUPIL
A9: DIVISION / DISTRICT | B9: AMOUNT | C9: % | E9: AMOUNT | F9: % | H9: AMOUNT | I9: %
A11: BEAUTIFUL PLAINS | B11: 0 | C11: =B11/'- 3 -'!$D11*100 -> 0 | D11: =B11/'- 7 -'!$C11 -> 0 | E11: 125602 | F11: =E11/'- 3 -'!$D11*100 -> 0.507515904 | G11: =E11/'- 7 -'!$E11 -> 61.25432821 | H11: 270425 | I11: =H11/'- 3 -'!$D11*100 -> 1.092697476 | J11: =H11/'- 7 -'!$E11 -> 131.8824677
A12: BORDER LAND | B12: 0 | C12: =B12/'- 3 -'!$D12*100 -> 0 | D12: =B12/'- 7 -'!$C12 -> 0 | E12: 0 | F12: =E12/'- 3 -'!$D12*100 -> 0 | G12: =E12/'- 7 -'!$E12 -> 0 | H12: 311419 | I12: =H12/'- 3 -'!$D12*100 -> 0.851110477 | J12: =H12/'- 7 -'!$E12 -> 146.8271892
A13: BRANDON | B13: 134700 | C13: =B13/'- 3 -'!$D13*100 -> 0.1177422851 | D13: =B13/'- 7 -'!$C13 -> 15.39868534 | E13: 348200 | F13: =E13/'- 3 -'!$D13*100 -> 0.3043642441 | G13: =E13/'- 7 -'!$E13 -> 39.80565876 | H13: 786000 | I13: =H13/'- 3 -'!$D13*100 -> 0.6870485235 | J13: =H13/'- 7 -'!$E13 -> 89.85424407
A14: DSFM | B14: 214064 | C14: =B14/'- 3 -'!$D14*100 -> 0.2040562976 | D14: =B14/'- 7 -'!$C14 -> 36.20226619 | E14: 2220369 | F14: =E14/'- 3 -'!$D14*100 -> 2.116564567 | G14: =E14/'- 7 -'!$E14 -> 375.506342 | H14: 907192 | I14: =H14/'- 3 -'!$D14*100 -> 0.8647798825 | J14: =H14/'- 7 -'!$E14 -> 153.4233046
A15: EVERGREEN | B15: 80480 | C15: =B15/'- 3 -'!$D15*100 -> 0.3636841822 | D15: =B15/'- 7 -'!$C15 -> 58.1923355 | E15: 51460 | F15: =E15/'- 3 -'!$D15*100 -> 0.2325445827 | G15: =E15/'- 7 -'!$E15 -> 37.20896602 | H15: 162100 | I15: =H15/'- 3 -'!$D15*100 -> 0.7325199545 | J15: =H15/'- 7 -'!$E15 -> 117.208966
A16: FLIN FLON | B16: 0 | C16: =B16/'- 3 -'!$D16*100 -> 0 | D16: =B16/'- 7 -'!$C16 -> 0 | E16: 0 | F16: =E16/'- 3 -'!$D16*100 -> 0 | G16: =E16/'- 7 -'!$E16 -> 0 | H16: 120434 | I16: =H16/'- 3 -'!$D16*100 -> 0.7473435373 | J16: =H16/'- 7 -'!$E16 -> 127.0400844
A17: FORT LA BOSSE | B17: 0 | C17: =B17/'- 3 -'!$D17*100 -> 0 | D17: =B17/'- 7 -'!$C17 -> 0 | E17: 64350 | F17: =E17/'- 3 -'!$D17*100 -> 0.3169565239 | G17: =E17/'- 7 -'!$E17 -> 43.58279716 | H17: 250590 | I17: =H17/'- 3 -'!$D17*100 -> 1.234283377 | J17: =H17/'- 7 -'!$E17 -> 169.7189299
A18: FRONTIER | B18: 0 | C18: =B18/'- 3 -'!$D18*100 -> 0 | D18: =B18/'- 7 -'!$C18 -> 0 | E18: 3571883 | F18: =E18/'- 3 -'!$D18*100 -> 2.304632896 | G18: =E18/'- 7 -'!$E18 -> 569.5420553 | H18: 2070083 | I18: =H18/'- 3 -'!$D18*100 -> 1.335648838 | J18: =H18/'- 7 -'!$E18 -> 330.0778123
A19: GARDEN VALLEY | B19: 122000 | C19: =B19/'- 3 -'!$D19*100 -> 0.2366505796 | D19: =B19/'- 7 -'!$C19 -> 29.56858943 | E19: 269400 | F19: =E19/'- 3 -'!$D19*100 -> 0.522571034 | G19: =E19/'- 7 -'!$E19 -> 65.29326224 | H19: 511700 | I19: =H19/'- 3 -'!$D19*100 -> 0.9925746031 | J19: =H19/'- 7 -'!$E19 -> 124.0184198
A20: HANOVER | B20: 14200 | C20: =B20/'- 3 -'!$D20*100 -> 0.01471687123 | D20: =B20/'- 7 -'!$C20 -> 1.789427257 | E20: 285000 | F20: =E20/'- 3 -'!$D20*100 -> 0.2953738241 | G20: =E20/'- 7 -'!$E20 -> 35.91456115 | H20: 983000 | I20: =H20/'- 3 -'!$D20*100 -> 1.018780593 | J20: =H20/'- 7 -'!$E20 -> 123.873732
A21: INTERLAKE | B21: 0 | C21: =B21/'- 3 -'!$D21*100 -> 0 | D21: =B21/'- 7 -'!$C21 -> 0 | E21: 0 | F21: =E21/'- 3 -'!$D21*100 -> 0 | G21: =E21/'- 7 -'!$E21 -> 0 | H21: 469675 | I21: =H21/'- 3 -'!$D21*100 -> 1.168601584 | J21: =H21/'- 7 -'!$E21 -> 161.178792
A22: KELSEY | B22: 22882 | C22: =B22/'- 3 -'!$D22*100 -> 0.1091189113 | D22: =B22/'- 7 -'!$C22 -> 15.7915804 | E22: 79262 | F22: =E22/'- 3 -'!$D22*100 -> 0.3779819573 | G22: =E22/'- 7 -'!$E22 -> 54.70117322 | H22: 196321 | I22: =H22/'- 3 -'!$D22*100 -> 0.9362089757 | J22: =H22/'- 7 -'!$E22 -> 135.4872326
A23: LAKESHORE | B23: 0 | C23: =B23/'- 3 -'!$D23*100 -> 0 | D23: =B23/'- 7 -'!$C23 -> 0 | E23: 88000 | F23: =E23/'- 3 -'!$D23*100 -> 0.5277313531 | G23: =E23/'- 7 -'!$E23 -> 95.7562568 | H23: 108300 | I23: =H23/'- 3 -'!$D23*100 -> 0.6494693811 | J23: =H23/'- 7 -'!$E23 -> 117.8454842
A24: LORD SELKIRK | B24: 0 | C24: =B24/'- 3 -'!$D24*100 -> 0 | D24: =B24/'- 7 -'!$C24 -> 0 | E24: 0 | F24: =E24/'- 3 -'!$D24*100 -> 0 | G24: =E24/'- 7 -'!$E24 -> 0 | H24: 618662 | I24: =H24/'- 3 -'!$D24*100 -> 1.002943293 | J24: =H24/'- 7 -'!$E24 -> 166.3069892
A25: LOUIS RIEL | B25: 554478 | C25: =B25/'- 3 -'!$D25*100 -> 0.2673554505 | D25: =B25/'- 7 -'!$C25 -> 36.37591025 | E25: 1704988 | F25: =E25/'- 3 -'!$D25*100 -> 0.822102653 | G25: =E25/'- 7 -'!$E25 -> 111.8538345 | H25: 4525390 | I25: =H25/'- 3 -'!$D25*100 -> 2.182030093 | J25: =H25/'- 7 -'!$E25 -> 296.8831595
A26: MOUNTAIN VIEW | B26: 21054 | C26: =B26/'- 3 -'!$D26*100 -> 0.04728975611 | D26: =B26/'- 7 -'!$C26 -> 6.934782609 | E26: 365913 | F26: =E26/'- 3 -'!$D26*100 -> 0.8218835626 | G26: =E26/'- 7 -'!$E26 -> 120.5247036 | H26: 569020 | I26: =H26/'- 3 -'!$D26*100 -> 1.278085733 | J26: =H26/'- 7 -'!$E26 -> 187.4242424
A27: MYSTERY LAKE | B27: 0 | C27: =B27/'- 3 -'!$D27*100 -> 0 | D27: =B27/'- 7 -'!$C27 -> 0 | E27: 698626 | F27: =E27/'- 3 -'!$D27*100 -> 1.546036799 | G27: =E27/'- 7 -'!$E27 -> 250.6731252 | H27: 879497 | I27: =H27/'- 3 -'!$D27*100 -> 1.946298487 | J27: =H27/'- 7 -'!$E27 -> 315.5712235
A28: PARK WEST | B28: 46256 | C28: =B28/'- 3 -'!$D28*100 -> 0.1479170071 | D28: =B28/'- 7 -'!$C28 -> 22.30279653 | E28: 911 | F28: =E28/'- 3 -'!$D28*100 -> 0.002913187337 | G28: =E28/'- 7 -'!$E28 -> 0.4392478303 | H28: 322296 | I28: =H28/'- 3 -'!$D28*100 -> 1.030635155 | J28: =H28/'- 7 -'!$E28 -> 155.3982642
A29: PEMBINA TRAILS | B29: 407036 | C29: =B29/'- 3 -'!$D29*100 -> 0.2112784146 | D29: =B29/'- 7 -'!$C29 -> 27.47013646 | E29: 587722 | F29: =E29/'- 3 -'!$D29*100 -> 0.3050663145 | G29: =E29/'- 7 -'!$E29 -> 39.66431358 | H29: 4161327 | I29: =H29/'- 3 -'!$D29*100 -> 2.160001993 | J29: =H29/'- 7 -'!$E29 -> 280.8405658
A30: PINE CREEK | B30: 0 | C30: =B30/'- 3 -'!$D30*100 -> 0 | D30: =B30/'- 7 -'!$C30 -> 0 | E30: 0 | F30: =E30/'- 3 -'!$D30*100 -> 0 | G30: =E30/'- 7 -'!$E30 -> 0 | H30: 329176 | I30: =H30/'- 3 -'!$D30*100 -> 1.994177329 | J30: =H30/'- 7 -'!$E30 -> 297.8968326
A31: PORTAGE LA PRAIRIE | B31: 84080 | C31: =B31/'- 3 -'!$D31*100 -> 0.1928025178 | D31: =B31/'- 7 -'!$C31 -> 24.76583211 | E31: 115455 | F31: =E31/'- 3 -'!$D31*100 -> 0.264748034 | G31: =E31/'- 7 -'!$E31 -> 34.00736377 | H31: 449128 | I31: =H31/'- 3 -'!$D31*100 -> 1.029888311 | J31: =H31/'- 7 -'!$E31 -> 132.2910162
A32: PRAIRIE ROSE | B32: 0 | C32: =B32/'- 3 -'!$D32*100 -> 0 | D32: =B32/'- 7 -'!$C32 -> 0 | E32: 142100 | F32: =E32/'- 3 -'!$D32*100 -> 0.4300759334 | G32: =E32/'- 7 -'!$E32 -> 58.67052023 | H32: 343974 | I32: =H32/'- 3 -'!$D32*100 -> 1.041062203 | J32: =H32/'- 7 -'!$E32 -> 142.0206441
A33: PRAIRIE SPIRIT | B33: 0 | C33: =B33/'- 3 -'!$D33*100 -> 0 | D33: =B33/'- 7 -'!$C33 -> 0 | E33: 128525 | F33: =E33/'- 3 -'!$D33*100 -> 0.4281101826 | G33: =E33/'- 7 -'!$E33 -> 61.64268585 | H33: 440200 | I33: =H33/'- 3 -'!$D33*100 -> 1.466283621 | J33: =H33/'- 7 -'!$E33 -> 211.1270983
A34: RED RIVER VALLEY | B34: 7945 | C34: =B34/'- 3 -'!$D34*100 -> 0.02322275483 | D34: =B34/'- 7 -'!$C34 -> 3.568060358 | E34: 110432 | F34: =E34/'- 3 -'!$D34*100 -> 0.3227860618 | G34: =E34/'- 7 -'!$E34 -> 49.59446715 | H34: 207666 | I34: =H34/'- 3 -'!$D34*100 -> 0.6069951673 | J34: =H34/'- 7 -'!$E34 -> 93.26177752
A35: RIVER EAST TRANSCONA | B35: 535402 | C35: =B35/'- 3 -'!$D35*100 -> 0.2490019716 | D35: =B35/'- 7 -'!$C35 -> 32.46631496 | E35: 1364900 | F35: =E35/'- 3 -'!$D35*100 -> 0.634780578 | G35: =E35/'- 7 -'!$E35 -> 82.76635741 | H35: 4869656 | I35: =H35/'- 3 -'!$D35*100 -> 2.264754231 | J35: =H35/'- 7 -'!$E35 -> 295.2917349
A36: ROLLING RIVER | B36: 24280 | C36: =B36/'- 3 -'!$D36*100 -> 0.09494769176 | D36: =B36/'- 7 -'!$C36 -> 13.67887324 | E36: 106165 | F36: =E36/'- 3 -'!$D36*100 -> 0.4151615196 | G36: =E36/'- 7 -'!$E36 -> 59.81126761 | H36: 237625 | I36: =H36/'- 3 -'!$D36*100 -> 0.9292399199 | J36: =H36/'- 7 -'!$E36 -> 133.8732394
A37: SEINE RIVER | B37: 112240 | C37: =B37/'- 3 -'!$D37*100 -> 0.1910257388 | D37: =B37/'- 7 -'!$C37 -> 25.68421053 | E37: 614240 | F37: =E37/'- 3 -'!$D37*100 -> 1.045399588 | G37: =E37/'- 7 -'!$E37 -> 140.5583524 | H37: 654790 | I37: =H37/'- 3 -'!$D37*100 -> 1.114413253 | J37: =H37/'- 7 -'!$E37 -> 149.8375286
A38: SEVEN OAKS | B38: 92190 | C38: =B38/'- 3 -'!$D38*100 -> 0.05751767814 | D38: =B38/'- 7 -'!$C38 -> 7.993306397 | E38: 493020 | F38: =E38/'- 3 -'!$D38*100 -> 0.307596981 | G38: =E38/'- 7 -'!$E38 -> 42.74715175 | H38: 1913120 | I38: =H38/'- 3 -'!$D38*100 -> 1.193602564 | J38: =H38/'- 7 -'!$E38 -> 165.8764978
A39: SOUTHWEST HORIZON | B39: 0 | C39: =B39/'- 3 -'!$D39*100 -> 0 | D39: =B39/'- 7 -'!$C39 -> 0 | E39: 138150 | F39: =E39/'- 3 -'!$D39*100 -> 0.5631282457 | G39: =E39/'- 7 -'!$E39 -> 95.4338215 | H39: 239400 | I39: =H39/'- 3 -'!$D39*100 -> 0.9758443867 | J39: =H39/'- 7 -'!$E39 -> 165.377176
A40: ST. JAMES-ASSINIBOIA | B40: 45269 | C40: =B40/'- 3 -'!$D40*100 -> 0.03846076761 | D40: =B40/'- 7 -'!$C40 -> 5.682776801 | E40: 770507 | F40: =E40/'- 3 -'!$D40*100 -> 0.6546265804 | G40: =E40/'- 7 -'!$E40 -> 96.72445393 | H40: 1361907 | I40: =H40/'- 3 -'!$D40*100 -> 1.157082963 | J40: =H40/'- 7 -'!$E40 -> 170.9649761
A41: SUNRISE | B41: 0 | C41: =B41/'- 3 -'!$D41*100 -> 0 | D41: =B41/'- 7 -'!$C41 -> 0 | E41: 540736 | F41: =E41/'- 3 -'!$D41*100 -> 0.7580982268 | G41: =E41/'- 7 -'!$E41 -> 120.2303502 | H41: 630718 | I41: =H41/'- 3 -'!$D41*100 -> 0.8842507202 | J41: =H41/'- 7 -'!$E41 -> 140.2374653
A42: SWAN VALLEY | B42: 17969 | C42: =B42/'- 3 -'!$D42*100 -> 0.07596570809 | D42: =B42/'- 7 -'!$C42 -> 13.81168332 | E42: 0 | F42: =E42/'- 3 -'!$D42*100 -> 0 | G42: =E42/'- 7 -'!$E42 -> 0 | H42: 276156 | I42: =H42/'- 3 -'!$D42*100 -> 1.167476548 | J42: =H42/'- 7 -'!$E42 -> 212.264412
A43: TURTLE MOUNTAIN | B43: 0 | C43: =B43/'- 3 -'!$D43*100 -> 0 | D43: =B43/'- 7 -'!$C43 -> 0 | E43: 22479 | F43: =E43/'- 3 -'!$D43*100 -> 0.1550001245 | G43: =E43/'- 7 -'!$E43 -> 23.12654321 | H43: 144841 | I43: =H43/'- 3 -'!$D43*100 -> 0.9987265015 | J43: =H43/'- 7 -'!$E43 -> 149.0133745
A44: TURTLE RIVER | B44: 0 | C44: =B44/'- 3 -'!$D44*100 -> 0 | D44: =B44/'- 7 -'!$C44 -> 0 | E44: 0 | F44: =E44/'- 3 -'!$D44*100 -> 0 | G44: =E44/'- 7 -'!$E44 -> 0 | H44: 140597 | I44: =H44/'- 3 -'!$D44*100 -> 1.165684146 | J44: =H44/'- 7 -'!$E44 -> 216.6363636
A45: WESTERN | B45: 0 | C45: =B45/'- 3 -'!$D45*100 -> 0 | D45: =B45/'- 7 -'!$C45 -> 0 | E45: 0 | F45: =E45/'- 3 -'!$D45*100 -> 0 | G45: =E45/'- 7 -'!$E45 -> 0 | H45: 259581 | I45: =H45/'- 3 -'!$D45*100 -> 1.03714775 | J45: =H45/'- 7 -'!$E45 -> 126.501462
A46: WINNIPEG | B46: 966200 | C46: =B46/'- 3 -'!$D46*100 -> 0.2231977595 | D46: =B46/'- 7 -'!$C46 -> 35.33822212 | E46: 2235325 | F46: =E46/'- 3 -'!$D46*100 -> 0.5163729371 | G46: =E46/'- 7 -'!$E46 -> 81.7557559 | H46: 1811550 | I46: =H46/'- 3 -'!$D46*100 -> 0.4184784737 | J46: =H46/'- 7 -'!$E46 -> 66.25642339
A48: PROVINCE | B48: =SUM(B11:B46) -> 3502725 | C48: =B48/'- 3 -'!$D48*100 -> 0.1326043344 | D48: =B48/'- 7 -'!$C48 -> 19.50709503 | E48: =SUM(E11:E46) -> 17243720 | F48: =E48/'- 3 -'!$D48*100 -> 0.6528037496 | G48: =E48/'- 7 -'!$E48 -> 96.03234188 | H48: =SUM(H11:H46) -> 32533516 | I48: =H48/'- 3 -'!$D48*100 -> 1.231636865 | J48: =H48/'- 7 -'!$E48 -> 181.183047
A50: WHITESHELL | B50: 0 | C50: =B50/'- 3 -'!$D50*100 -> 0 | D50: =B50/'- 7 -'!$C50 -> 0 | E50: 0 | F50: =E50/'- 3 -'!$D50*100 -> 0 | G50: =E50/'- 7 -'!$E50 -> 0 | H50: 14200 | I50: =H50/'- 3 -'!$D50*100 -> 0.3779677056 | J50: =H50/'- 7 -'!$E50 -> 78.45303867

Sheet - 28 -
B2: =AEXP_BP -> ANALYSIS OF EXPENSE BY PROGRAM | G2: PAGE 11 OF 16
B3: =OPYEAR -> OPERATING FUND 2022/2023 BUDGET
B5: FUNCTION 600: INSTRUCTIONAL & OTHER SUPPORT SERVICES
B6: PROFESSIONAL AND STAFF DEVELOPMENT
E7: OTHER (1)
D8: PER PUPIL | G8: PER PUPIL
A9: DIVISION / DISTRICT | B9: AMOUNT | C9: % | E9: AMOUNT | F9: %
A11: BEAUTIFUL PLAINS | B11: 171000 | C11: =B11/'- 3 -'!$D11*100 -> 0.6909541216 | D11: =B11/'- 7 -'!$E11 -> 83.39429407 | E11: 16255 | F11: =E11/'- 3 -'!$D11*100 -> 0.06568104822 | G11: =E11/'- 7 -'!$E11 -> 7.927334796
A12: BORDER LAND | B12: 347352 | C12: =B12/'- 3 -'!$D12*100 -> 0.9493156371 | D12: =B12/'- 7 -'!$E12 -> 163.7688061 | E12: 138609 | F12: =E12/'- 3 -'!$D12*100 -> 0.378819443 | G12: =E12/'- 7 -'!$E12 -> 65.35108605
A13: BRANDON | B13: 1459400 | C13: =B13/'- 3 -'!$D13*100 -> 1.275672538 | D13: =B13/'- 7 -'!$E13 -> 166.8362389 | E13: 113800 | F13: =E13/'- 3 -'!$D13*100 -> 0.09947343762 | G13: =E13/'- 7 -'!$E13 -> 13.00943127
A14: DSFM | B14: 684371 | C14: =B14/'- 3 -'!$D14*100 -> 0.6523759832 | D14: =B14/'- 7 -'!$E14 -> 115.7400643 | E14: 156515 | F14: =E14/'- 3 -'!$D14*100 -> 0.1491977699 | G14: =E14/'- 7 -'!$E14 -> 26.46964316
A15: EVERGREEN | B15: 179313 | C15: =B15/'- 3 -'!$D15*100 -> 0.8103044454 | D15: =B15/'- 7 -'!$E15 -> 129.6550976 | E15: 4200 | F15: =E15/'- 3 -'!$D15*100 -> 0.01897954231 | G15: =E15/'- 7 -'!$E15 -> 3.036876356
A16: FLIN FLON | B16: 92102 | C16: =B16/'- 3 -'!$D16*100 -> 0.5715315814 | D16: =B16/'- 7 -'!$E16 -> 97.15400844 | E16: 45018 | F16: =E16/'- 3 -'!$D16*100 -> 0.279355592 | G16: =E16/'- 7 -'!$E16 -> 47.48734177
A17: FORT LA BOSSE | B17: 97940 | C17: =B17/'- 3 -'!$D17*100 -> 0.4824043815 | D17: =B17/'- 7 -'!$E17 -> 66.33254318 | E17: 1500 | F17: =E17/'- 3 -'!$D17*100 -> 0.007388263959 | G17: =E17/'- 7 -'!$E17 -> 1.015916018
A18: FRONTIER | B18: 1029603 | C18: =B18/'- 3 -'!$D18*100 -> 0.6643154168 | D18: =B18/'- 7 -'!$E18 -> 164.1717293 | E18: 1887121 | F18: =E18/'- 3 -'!$D18*100 -> 1.217598991 | G18: =E18/'- 7 -'!$E18 -> 300.9042494
A19: GARDEN VALLEY | B19: 455150 | C19: =B19/'- 3 -'!$D19*100 -> 0.8828812402 | D19: =B19/'- 7 -'!$E19 -> 110.3126515 | E19: 275650 | F19: =E19/'- 3 -'!$D19*100 -> 0.5346945268 | G19: =E19/'- 7 -'!$E19 -> 66.80804653
A20: HANOVER | B20: 607200 | C20: =B20/'- 3 -'!$D20*100 -> 0.6293017052 | D20: =B20/'- 7 -'!$E20 -> 76.51691765 | E20: 247500 | F20: =E20/'- 3 -'!$D20*100 -> 0.2565088472 | G20: =E20/'- 7 -'!$E20 -> 31.188961
A21: INTERLAKE | B21: 455827 | C21: =B21/'- 3 -'!$D21*100 -> 1.134146281 | D21: =B21/'- 7 -'!$E21 -> 156.4265614 | E21: 160698 | F21: =E21/'- 3 -'!$D21*100 -> 0.3998337945 | G21: =E21/'- 7 -'!$E21 -> 55.14687714
A22: KELSEY | B22: 72344 | C22: =B22/'- 3 -'!$D22*100 -> 0.3449916318 | D22: =B22/'- 7 -'!$E22 -> 49.9268461 | E22: 0 | F22: =E22/'- 3 -'!$D22*100 -> 0 | G22: =E22/'- 7 -'!$E22 -> 0
A23: LAKESHORE | B23: 198000 | C23: =B23/'- 3 -'!$D23*100 -> 1.187395544 | D23: =B23/'- 7 -'!$E23 -> 215.4515778 | E23: 7000 | F23: =E23/'- 3 -'!$D23*100 -> 0.04197863036 | G23: =E23/'- 7 -'!$E23 -> 7.616974973
A24: LORD SELKIRK | B24: 376600 | C24: =B24/'- 3 -'!$D24*100 -> 0.6105247199 | D24: =B24/'- 7 -'!$E24 -> 101.2365591 | E24: 82174 | F24: =E24/'- 3 -'!$D24*100 -> 0.1332162993 | G24: =E24/'- 7 -'!$E24 -> 22.08978495
A25: LOUIS RIEL | B25: 1312179 | C25: =B25/'- 3 -'!$D25*100 -> 0.6326999587 | D25: =B25/'- 7 -'!$E25 -> 86.08403858 | E25: 864440 | F25: =E25/'- 3 -'!$D25*100 -> 0.4168113895 | G25: =E25/'- 7 -'!$E25 -> 56.71062127
A26: MOUNTAIN VIEW | B26: 368995 | C26: =B26/'- 3 -'!$D26*100 -> 0.8288060965 | D26: =B26/'- 7 -'!$E26 -> 121.5398551 | E26: 295865 | F26: =E26/'- 3 -'!$D26*100 -> 0.6645475298 | G26: =E26/'- 7 -'!$E26 -> 97.45223979
A27: MYSTERY LAKE | B27: 139000 | C27: =B27/'- 3 -'!$D27*100 -> 0.3076025157 | D27: =B27/'- 7 -'!$E27 -> 49.87441694 | E27: 9000 | F27: =E27/'- 3 -'!$D27*100 -> 0.01991670965 | G27: =E27/'- 7 -'!$E27 -> 3.229278794
A28: PARK WEST | B28: 345179 | C28: =B28/'- 3 -'!$D28*100 -> 1.1038102 | D28: =B28/'- 7 -'!$E28 -> 166.4315333 | E28: 0 | F28: =E28/'- 3 -'!$D28*100 -> 0 | G28: =E28/'- 7 -'!$E28 -> 0
A29: PEMBINA TRAILS | B29: 1568485 | C29: =B29/'- 3 -'!$D29*100 -> 0.8141467196 | D29: =B29/'- 7 -'!$E29 -> 105.8542659 | E29: 556908 | F29: =E29/'- 3 -'!$D29*100 -> 0.2890718249 | G29: =E29/'- 7 -'!$E29 -> 37.58473146
A30: PINE CREEK | B30: 149099 | C30: =B30/'- 3 -'!$D30*100 -> 0.9032549322 | D30: =B30/'- 7 -'!$E30 -> 134.9312217 | E30: 87359 | F30: =E30/'- 3 -'!$D30*100 -> 0.5292285503 | G30: =E30/'- 7 -'!$E30 -> 79.05791855
A31: PORTAGE LA PRAIRIE | B31: 437422 | C31: =B31/'- 3 -'!$D31*100 -> 1.003045468 | D31: =B31/'- 7 -'!$E31 -> 128.8430044 | E31: 659915 | F31: =E31/'- 3 -'!$D31*100 -> 1.513240646 | G31: =E31/'- 7 -'!$E31 -> 194.3784978
A32: PRAIRIE ROSE | B32: 281222 | C32: =B32/'- 3 -'!$D32*100 -> 0.8511387342 | D32: =B32/'- 7 -'!$E32 -> 116.1114781 | E32: 2000 | F32: =E32/'- 3 -'!$D32*100 -> 0.006053144734 | G32: =E32/'- 7 -'!$E32 -> 0.8257638315
A33: PRAIRIE SPIRIT | B33: 154440 | C33: =B33/'- 3 -'!$D33*100 -> 0.5144317183 | D33: =B33/'- 7 -'!$E33 -> 74.07194245 | E33: 12750 | F33: =E33/'- 3 -'!$D33*100 -> 0.04246959602 | G33: =E33/'- 7 -'!$E33 -> 6.115107914
A34: RED RIVER VALLEY | B34: 220392 | C34: =B34/'- 3 -'!$D34*100 -> 0.6441924961 | D34: =B34/'- 7 -'!$E34 -> 98.97696142 | E34: 52809 | F34: =E34/'- 3 -'!$D34*100 -> 0.1543575154 | G34: =E34/'- 7 -'!$E34 -> 23.71626173
A35: RIVER EAST TRANSCONA | B35: 1627651 | C35: =B35/'- 3 -'!$D35*100 -> 0.7569794436 | D35: =B35/'- 7 -'!$E35 -> 98.69935116 | E35: 614137 | F35: =E35/'- 3 -'!$D35*100 -> 0.285619635 | G35: =E35/'- 7 -'!$E35 -> 37.24073737
A36: ROLLING RIVER | B36: 127500 | C36: =B36/'- 3 -'!$D36*100 -> 0.4985926977 | D36: =B36/'- 7 -'!$E36 -> 71.83098592 | E36: 20400 | F36: =E36/'- 3 -'!$D36*100 -> 0.07977483163 | G36: =E36/'- 7 -'!$E36 -> 11.49295775
A37: SEINE RIVER | B37: 393577 | C37: =B37/'- 3 -'!$D37*100 -> 0.6698444155 | D37: =B37/'- 7 -'!$E37 -> 90.06338673 | E37: 86500 | F37: =E37/'- 3 -'!$D37*100 -> 0.1472178047 | G37: =E37/'- 7 -'!$E37 -> 19.79405034
A38: SEVEN OAKS | B38: 1199720 | C38: =B38/'- 3 -'!$D38*100 -> 0.7485096954 | D38: =B38/'- 7 -'!$E38 -> 104.021364 | E38: 2052027 | F38: =E38/'- 3 -'!$D38*100 -> 1.28026715 | G38: =E38/'- 7 -'!$E38 -> 177.9203877
A39: SOUTHWEST HORIZON | B39: 79150 | C39: =B39/'- 3 -'!$D39*100 -> 0.3226319265 | D39: =B39/'- 7 -'!$E39 -> 54.67670627 | E39: 29900 | F39: =E39/'- 3 -'!$D39*100 -> 0.1218786431 | G39: =E39/'- 7 -'!$E39 -> 20.65487704
A40: ST. JAMES-ASSINIBOIA | B40: 1747375 | C40: =B40/'- 3 -'!$D40*100 -> 1.484578493 | D40: =B40/'- 7 -'!$E40 -> 219.3541301 | E40: 340788 | F40: =E40/'- 3 -'!$D40*100 -> 0.2895351802 | G40: =E40/'- 7 -'!$E40 -> 42.78031634
A41: SUNRISE | B41: 397990 | C41: =B41/'- 3 -'!$D41*100 -> 0.557971937 | D41: =B41/'- 7 -'!$E41 -> 88.4913841 | E41: 33019 | F41: =E41/'- 3 -'!$D41*100 -> 0.04629180478 | G41: =E41/'- 7 -'!$E41 -> 7.341634241
A42: SWAN VALLEY | B42: 121718 | C42: =B42/'- 3 -'!$D42*100 -> 0.5145747709 | D42: =B42/'- 7 -'!$E42 -> 93.55726364 | E42: 24686 | F42: =E42/'- 3 -'!$D42*100 -> 0.1043624837 | G42: =E42/'- 7 -'!$E42 -> 18.9746349
A43: TURTLE MOUNTAIN | B43: 156750 | C43: =B43/'- 3 -'!$D43*100 -> 1.080842987 | D43: =B43/'- 7 -'!$E43 -> 161.2654321 | E43: 16086 | F43: =E43/'- 3 -'!$D43*100 -> 0.1109182794 | G43: =E43/'- 7 -'!$E43 -> 16.54938272
A44: TURTLE RIVER | B44: 31073 | C44: =B44/'- 3 -'!$D44*100 -> 0.2576250096 | D44: =B44/'- 7 -'!$E44 -> 47.87827427 | E44: 80000 | F44: =E44/'- 3 -'!$D44*100 -> 0.6632768246 | G44: =E44/'- 7 -'!$E44 -> 123.2665639
A45: WESTERN | B45: 129883 | C45: =B45/'- 3 -'!$D45*100 -> 0.5189434558 | D45: =B45/'- 7 -'!$E45 -> 63.29580897 | E45: 195630 | F45: =E45/'- 3 -'!$D45*100 -> 0.7816335338 | G45: =E45/'- 7 -'!$E45 -> 95.33625731
A46: WINNIPEG | B46: 2613499 | C46: =B46/'- 3 -'!$D46*100 -> 0.6037333071 | D46: =B46/'- 7 -'!$E46 -> 95.58725747 | E46: 2579117 | F46: =E46/'- 3 -'!$D46*100 -> 0.5957908673 | G46: =E46/'- 7 -'!$E46 -> 94.32975513
A48: PROVINCE | B48: =SUM(B11:B46) -> 19828501 | C48: =B48/'- 3 -'!$D48*100 -> 0.7506570393 | D48: =B48/'- 7 -'!$E48 -> 110.4272968 | E48: =SUM(E11:E46) -> 11749376 | F48: =E48/'- 3 -'!$D48*100 -> 0.4448017428 | G48: =E48/'- 7 -'!$E48 -> 65.43368211
A50: WHITESHELL | B50: 49065 | C50: =B50/'- 3 -'!$D50*100 -> 1.305984893 | D50: =B50/'- 7 -'!$E50 -> 271.0773481 | E50: 81022 | F50: =E50/'- 3 -'!$D50*100 -> 2.156598552 | G50: =E50/'- 7 -'!$E50 -> 447.6353591
A52: (1) Includes food services, health services, and other activities related to instructional and other support not included in previous programs.

Sheet - 29 -
B2: =AEXP_BP -> ANALYSIS OF EXPENSE BY PROGRAM | G2: PAGE 12 OF 16
B3: =OPYEAR -> OPERATING FUND 2022/2023 BUDGET
B6: FUNCTION 700: TRANSPORTATION OF PUPILS
F7: ALLOWANCES IN LIEU OF TRANSPORTATION
B8: ADMINISTRATION | D8: REGULAR
A9: DIVISION / DISTRICT | B9: AMOUNT | C9: % | D9: AMOUNT | E9: % | F9: AMOUNT | G9: %
A11: BEAUTIFUL PLAINS | B11: 99384 | C11: =B11/'- 3 -'!$D11*100 -> 0.4015776867 | D11: 1233495 | E11: =D11/'- 3 -'!$D11*100 -> 4.984143007 | F11: 8000 | G11: =F11/'- 3 -'!$D11*100 -> 0.03232533902
A12: BORDER LAND | B12: 143368 | C12: =B12/'- 3 -'!$D12*100 -> 0.3918258259 | D12: 2179945 | E12: =D12/'- 3 -'!$D12*100 -> 5.957806135 | F12: 0 | G12: =F12/'- 3 -'!$D12*100 -> 0
A13: BRANDON | B13: 236100 | C13: =B13/'- 3 -'!$D13*100 -> 0.2063767893 | D13: 2591000 | E13: =D13/'- 3 -'!$D13*100 -> 2.264812626 | F13: 1700 | G13: =F13/'- 3 -'!$D13*100 -> 0.001485982812
A14: DSFM | B14: 344305 | C14: =B14/'- 3 -'!$D14*100 -> 0.3282084029 | D14: 10320877 | E14: =D14/'- 3 -'!$D14*100 -> 9.838365857 | F14: 258481 | G14: =F14/'- 3 -'!$D14*100 -> 0.2463967592
A15: EVERGREEN | B15: 210480 | C15: =B15/'- 3 -'!$D15*100 -> 0.9511462062 | D15: 1503513 | E15: =D15/'- 3 -'!$D15*100 -> 6.794283 | F15: 2500 | G15: =F15/'- 3 -'!$D15*100 -> 0.01129734661
A16: FLIN FLON | B16: 0 | C16: =B16/'- 3 -'!$D16*100 -> 0 | D16: 386867 | E16: =D16/'- 3 -'!$D16*100 -> 2.400672171 | F16: 375 | G16: =F16/'- 3 -'!$D16*100 -> 0.002327032453
A17: FORT LA BOSSE | B17: 75485 | C17: =B17/'- 3 -'!$D17*100 -> 0.37180207 | D17: 1438562 | E17: =D17/'- 3 -'!$D17*100 -> 7.085650519 | F17: 1500 | G17: =F17/'- 3 -'!$D17*100 -> 0.007388263959
A18: FRONTIER | B18: 392288 | C18: =B18/'- 3 -'!$D18*100 -> 0.2531101465 | D18: 8108492 | E18: =D18/'- 3 -'!$D18*100 -> 5.231721588 | F18: 28829 | G18: =F18/'- 3 -'!$D18*100 -> 0.01860090651
A19: GARDEN VALLEY | B19: 177750 | C19: =B19/'- 3 -'!$D19*100 -> 0.3447921354 | D19: 2862900 | E19: =D19/'- 3 -'!$D19*100 -> 5.553335609 | F19: 26800 | G19: =F19/'- 3 -'!$D19*100 -> 0.05198553716
A20: HANOVER | B20: 302500 | C20: =B20/'- 3 -'!$D20*100 -> 0.3135108133 | D20: 3500685 | E20: =D20/'- 3 -'!$D20*100 -> 3.628107773 | F20: 1500 | G20: =F20/'- 3 -'!$D20*100 -> 0.001554599074
A21: INTERLAKE | B21: 145000 | C21: =B21/'- 3 -'!$D21*100 -> 0.3607754931 | D21: 2156000 | E21: =D21/'- 3 -'!$D21*100 -> 5.364358367 | F21: 0 | G21: =F21/'- 3 -'!$D21*100 -> 0
A22: KELSEY | B22: 88810 | C22: =B22/'- 3 -'!$D22*100 -> 0.4235141382 | D22: 438398 | E22: =D22/'- 3 -'!$D22*100 -> 2.090617624 | F22: 4000 | G22: =F22/'- 3 -'!$D22*100 -> 0.01907506534
A23: LAKESHORE | B23: 101500 | C23: =B23/'- 3 -'!$D23*100 -> 0.6086901402 | D23: 1661990 | E23: =D23/'- 3 -'!$D23*100 -> 9.966866267 | F23: 4500 | G23: =F23/'- 3 -'!$D23*100 -> 0.02698626237
A24: LORD SELKIRK | B24: 200598 | C24: =B24/'- 3 -'!$D24*100 -> 0.3251992506 | D24: 2626035 | E24: =D24/'- 3 -'!$D24*100 -> 4.25719406 | F24: 5000 | G24: =F24/'- 3 -'!$D24*100 -> 0.008105745086
A25: LOUIS RIEL | B25: 469987 | C25: =B25/'- 3 -'!$D25*100 -> 0.2266159994 | D25: 5180680 | E25: =D25/'- 3 -'!$D25*100 -> 2.497994574 | F25: 10000 | G25: =F25/'- 3 -'!$D25*100 -> 0.004821750376
A26: MOUNTAIN VIEW | B26: 218486 | C26: =B26/'- 3 -'!$D26*100 -> 0.4907452101 | D26: 2723267 | E26: =D26/'- 3 -'!$D26*100 -> 6.116777441 | F26: 10500 | G26: =F26/'- 3 -'!$D26*100 -> 0.02358423288
A27: MYSTERY LAKE | B27: 0 | C27: =B27/'- 3 -'!$D27*100 -> 0 | D27: 50000 | E27: =D27/'- 3 -'!$D27*100 -> 0.1106483869 | F27: 235000 | G27: =F27/'- 3 -'!$D27*100 -> 0.5200474186
A28: PARK WEST | B28: 62598 | C28: =B28/'- 3 -'!$D28*100 -> 0.2001753029 | D28: 1974306 | E28: =D28/'- 3 -'!$D28*100 -> 6.313417386 | F28: 4500 | G28: =F28/'- 3 -'!$D28*100 -> 0.0143900582
A29: PEMBINA TRAILS | B29: 343477 | C29: =B29/'- 3 -'!$D29*100 -> 0.1782871196 | D29: 3375043 | E29: =D29/'- 3 -'!$D29*100 -> 1.751868961 | F29: 115000 | G29: =F29/'- 3 -'!$D29*100 -> 0.05969255221
A30: PINE CREEK | B30: 166952 | C30: =B30/'- 3 -'!$D30*100 -> 1.011409986 | D30: 1306924 | E30: =D30/'- 3 -'!$D30*100 -> 7.91746121 | F30: 0 | G30: =F30/'- 3 -'!$D30*100 -> 0
A31: PORTAGE LA PRAIRIE | B31: 161160 | C31: =B31/'- 3 -'!$D31*100 -> 0.3695534464 | D31: 1131288 | E31: =D31/'- 3 -'!$D31*100 -> 2.594138615 | F31: 5000 | G31: =F31/'- 3 -'!$D31*100 -> 0.0114654209
A32: PRAIRIE ROSE | B32: 146865 | C32: =B32/'- 3 -'!$D32*100 -> 0.4444975507 | D32: 2178443 | E32: =D32/'- 3 -'!$D32*100 -> 6.593215387 | F32: 0 | G32: =F32/'- 3 -'!$D32*100 -> 0
A33: PRAIRIE SPIRIT | B33: 130025 | C33: =B33/'- 3 -'!$D33*100 -> 0.4331066056 | D33: 2328550 | E33: =D33/'- 3 -'!$D33*100 -> 7.756280612 | F33: 0 | G33: =F33/'- 3 -'!$D33*100 -> 0
A34: RED RIVER VALLEY | B34: 173667 | C34: =B34/'- 3 -'!$D34*100 -> 0.5076181451 | D34: 2562470 | E34: =D34/'- 3 -'!$D34*100 -> 7.489944942 | F34: 0 | G34: =F34/'- 3 -'!$D34*100 -> 0
A35: RIVER EAST TRANSCONA | B35: 428950 | C35: =B35/'- 3 -'!$D35*100 -> 0.1994938303 | D35: 4705311 | E35: =D35/'- 3 -'!$D35*100 -> 2.188321515 | F35: 10000 | G35: =F35/'- 3 -'!$D35*100 -> 0.004650747879
A36: ROLLING RIVER | B36: 65165 | C36: =B36/'- 3 -'!$D36*100 -> 0.2548297501 | D36: 1656160 | E36: =D36/'- 3 -'!$D36*100 -> 6.476464958 | F36: 6000 | G36: =F36/'- 3 -'!$D36*100 -> 0.02346318577
A37: SEINE RIVER | B37: 264023 | C37: =B37/'- 3 -'!$D37*100 -> 0.4493512886 | D37: 3501254 | E37: =D37/'- 3 -'!$D37*100 -> 5.95892402 | F37: 2000 | G37: =F37/'- 3 -'!$D37*100 -> 0.003403879878
A38: SEVEN OAKS | B38: 330210 | C38: =B38/'- 3 -'!$D38*100 -> 0.2060192266 | D38: 3351604 | E38: =D38/'- 3 -'!$D38*100 -> 2.091077992 | F38: 200000 | G38: =F38/'- 3 -'!$D38*100 -> 0.1247807314
A39: SOUTHWEST HORIZON | B39: 128900 | C39: =B39/'- 3 -'!$D39*100 -> 0.5254233143 | D39: 2264000 | E39: =D39/'- 3 -'!$D39*100 -> 9.228536723 | F39: 900 | G39: =F39/'- 3 -'!$D39*100 -> 0.00366858792
A40: ST. JAMES-ASSINIBOIA | B40: 173578 | C40: =B40/'- 3 -'!$D40*100 -> 0.1474727323 | D40: 2368923 | E40: =D40/'- 3 -'!$D40*100 -> 2.012648766 | F40: 2000 | G40: =F40/'- 3 -'!$D40*100 -> 0.00169920995
A41: SUNRISE | B41: 516184 | C41: =B41/'- 3 -'!$D41*100 -> 0.7236769424 | D41: 4746570 | E41: =D41/'- 3 -'!$D41*100 -> 6.654571363 | F41: 38000 | G41: =F41/'- 3 -'!$D41*100 -> 0.05327504109
A42: SWAN VALLEY | B42: 135535 | C42: =B42/'- 3 -'!$D42*100 -> 0.5729874921 | D42: 1863347 | E42: =D42/'- 3 -'!$D42*100 -> 7.877482012 | F42: 0 | G42: =F42/'- 3 -'!$D42*100 -> 0
A43: TURTLE MOUNTAIN | B43: 73151 | C43: =B43/'- 3 -'!$D43*100 -> 0.5044002894 | D43: 1100256 | E43: =D43/'- 3 -'!$D43*100 -> 7.586628273 | F43: 0 | G43: =F43/'- 3 -'!$D43*100 -> 0
A44: TURTLE RIVER | B44: 53871 | C44: =B44/'- 3 -'!$D44*100 -> 0.4466423227 | D44: 1136363 | E44: =D44/'- 3 -'!$D44*100 -> 9.421540528 | F44: 0 | G44: =F44/'- 3 -'!$D44*100 -> 0
A45: WESTERN | B45: 54116 | C45: =B45/'- 3 -'!$D45*100 -> 0.216218782 | D45: 904885 | E45: =D45/'- 3 -'!$D45*100 -> 3.615439658 | F45: 20000 | G45: =F45/'- 3 -'!$D45*100 -> 0.07990937318
A46: WINNIPEG | B46: 715100 | C46: =B46/'- 3 -'!$D46*100 -> 0.1651922147 | D46: 6801894 | E46: =D46/'- 3 -'!$D46*100 -> 1.571276652 | F46: 0 | G46: =F46/'- 3 -'!$D46*100 -> 0
A48: PROVINCE | B48: =SUM(B11:B46) -> 7329568 | C48: =B48/'- 3 -'!$D48*100 -> 0.2774789589 | D48: =SUM(D11:D46) -> 98220297 | E48: =D48/'- 3 -'!$D48*100 -> 3.718372728 | F48: =SUM(F11:F46) -> 1002085 | G48: =F48/'- 3 -'!$D48*100 -> 0.03793641079
A50: WHITESHELL | B50: 0 | C50: =B50/'- 3 -'!$D50*100 -> 0 | D50: 0 | E50: =D50/'- 3 -'!$D50*100 -> 0 | F50: 12800 | G50: =F50/'- 3 -'!$D50*100 -> 0.3407032839

Sheet - 30 -
B2: =AEXP_BP -> ANALYSIS OF EXPENSE BY PROGRAM | F2: PAGE 13 OF 16
B3: =OPYEAR -> OPERATING FUND 2022/2023 BUDGET
B6: FUNCTION 700: TRANSPORTATION (CONT'D)
B7: BOARDING OF STUDENTS | D7: FIELD TRIPS AND OTHER
A9: DIVISION / DISTRICT | B9: AMOUNT | C9: % | D9: AMOUNT | E9: %
A11: BEAUTIFUL PLAINS | B11: 0 | C11: =B11/'- 3 -'!$D11*100 -> 0 | D11: 140000 | E11: =D11/'- 3 -'!$D11*100 -> 0.5656934329
A12: BORDER LAND | B12: 1200 | C12: =B12/'- 3 -'!$D12*100 -> 0.003279609055 | D12: 305398 | E12: =D12/'- 3 -'!$D12*100 -> 0.8346550386
A13: BRANDON | B13: 0 | C13: =B13/'- 3 -'!$D13*100 -> 0 | D13: 79400 | E13: =D13/'- 3 -'!$D13*100 -> 0.06940413837
A14: DSFM | B14: 0 | C14: =B14/'- 3 -'!$D14*100 -> 0 | D14: 317949 | E14: =D14/'- 3 -'!$D14*100 -> 0.3030845718
A15: EVERGREEN | B15: 0 | C15: =B15/'- 3 -'!$D15*100 -> 0 | D15: 88415 | E15: =D15/'- 3 -'!$D15*100 -> 0.3995419604
A16: FLIN FLON | B16: 0 | C16: =B16/'- 3 -'!$D16*100 -> 0 | D16: 170118 | E16: =D16/'- 3 -'!$D16*100 -> 1.055653618
A17: FORT LA BOSSE | B17: 0 | C17: =B17/'- 3 -'!$D17*100 -> 0 | D17: 36750 | E17: =D17/'- 3 -'!$D17*100 -> 0.181012467
A18: FRONTIER | B18: 2792437 | C18: =B18/'- 3 -'!$D18*100 -> 1.801722557 | D18: 1202683 | E18: =D18/'- 3 -'!$D18*100 -> 0.7759892487
A19: GARDEN VALLEY | B19: 0 | C19: =B19/'- 3 -'!$D19*100 -> 0 | D19: 267400 | E19: =D19/'- 3 -'!$D19*100 -> 0.5186915163
A20: HANOVER | B20: 0 | C20: =B20/'- 3 -'!$D20*100 -> 0 | D20: 520015 | E20: =D20/'- 3 -'!$D20*100 -> 0.538943225
A21: INTERLAKE | B21: 0 | C21: =B21/'- 3 -'!$D21*100 -> 0 | D21: 140000 | E21: =D21/'- 3 -'!$D21*100 -> 0.3483349589
A22: KELSEY | B22: 0 | C22: =B22/'- 3 -'!$D22*100 -> 0 | D22: 36650 | E22: =D22/'- 3 -'!$D22*100 -> 0.1747752862
A23: LAKESHORE | B23: 0 | C23: =B23/'- 3 -'!$D23*100 -> 0 | D23: 20000 | E23: =D23/'- 3 -'!$D23*100 -> 0.1199389439
A24: LORD SELKIRK | B24: 0 | C24: =B24/'- 3 -'!$D24*100 -> 0 | D24: 93000 | E24: =D24/'- 3 -'!$D24*100 -> 0.1507668586
A25: LOUIS RIEL | B25: 0 | C25: =B25/'- 3 -'!$D25*100 -> 0 | D25: 78829 | E25: =D25/'- 3 -'!$D25*100 -> 0.03800937604
A26: MOUNTAIN VIEW | B26: 0 | C26: =B26/'- 3 -'!$D26*100 -> 0 | D26: 219298 | E26: =D26/'- 3 -'!$D26*100 -> 0.4925690574
A27: MYSTERY LAKE | B27: 0 | C27: =B27/'- 3 -'!$D27*100 -> 0 | D27: 105000 | E27: =D27/'- 3 -'!$D27*100 -> 0.2323616126
A28: PARK WEST | B28: 0 | C28: =B28/'- 3 -'!$D28*100 -> 0 | D28: 55663 | E28: =D28/'- 3 -'!$D28*100 -> 0.1779986243
A29: PEMBINA TRAILS | B29: 0 | C29: =B29/'- 3 -'!$D29*100 -> 0 | D29: 200000 | E29: =D29/'- 3 -'!$D29*100 -> 0.1038131343
A30: PINE CREEK | B30: 0 | C30: =B30/'- 3 -'!$D30*100 -> 0 | D30: 59896 | E30: =D30/'- 3 -'!$D30*100 -> 0.3628552668
A31: PORTAGE LA PRAIRIE | B31: 0 | C31: =B31/'- 3 -'!$D31*100 -> 0 | D31: 37600 | E31: =D31/'- 3 -'!$D31*100 -> 0.08621996515
A32: PRAIRIE ROSE | B32: 0 | C32: =B32/'- 3 -'!$D32*100 -> 0 | D32: 72718 | E32: =D32/'- 3 -'!$D32*100 -> 0.2200862894
A33: PRAIRIE SPIRIT | B33: 0 | C33: =B33/'- 3 -'!$D33*100 -> 0 | D33: 62000 | E33: =D33/'- 3 -'!$D33*100 -> 0.2065188198
A34: RED RIVER VALLEY | B34: 0 | C34: =B34/'- 3 -'!$D34*100 -> 0 | D34: 156409 | E34: =D34/'- 3 -'!$D34*100 -> 0.4571740541
A35: RIVER EAST TRANSCONA | B35: 0 | C35: =B35/'- 3 -'!$D35*100 -> 0 | D35: 183649 | E35: =D35/'- 3 -'!$D35*100 -> 0.08541051972
A36: ROLLING RIVER | B36: 0 | C36: =B36/'- 3 -'!$D36*100 -> 0 | D36: 97500 | E36: =D36/'- 3 -'!$D36*100 -> 0.3812767688
A37: SEINE RIVER | B37: 0 | C37: =B37/'- 3 -'!$D37*100 -> 0 | D37: 50851 | E37: =D37/'- 3 -'!$D37*100 -> 0.08654534785
A38: SEVEN OAKS | B38: 0 | C38: =B38/'- 3 -'!$D38*100 -> 0 | D38: 387400 | E38: =D38/'- 3 -'!$D38*100 -> 0.2417002767
A39: SOUTHWEST HORIZON | B39: 0 | C39: =B39/'- 3 -'!$D39*100 -> 0 | D39: 15900 | E39: =D39/'- 3 -'!$D39*100 -> 0.06481171992
A40: ST. JAMES-ASSINIBOIA | B40: 0 | C40: =B40/'- 3 -'!$D40*100 -> 0 | D40: 128596 | E40: =D40/'- 3 -'!$D40*100 -> 0.1092558014
A41: SUNRISE | B41: 0 | C41: =B41/'- 3 -'!$D41*100 -> 0 | D41: 158000 | E41: =D41/'- 3 -'!$D41*100 -> 0.221512013
A42: SWAN VALLEY | B42: 0 | C42: =B42/'- 3 -'!$D42*100 -> 0 | D42: 91924 | E42: =D42/'- 3 -'!$D42*100 -> 0.3886177167
A43: TURTLE MOUNTAIN | B43: 0 | C43: =B43/'- 3 -'!$D43*100 -> 0 | D43: 40170 | E43: =D43/'- 3 -'!$D43*100 -> 0.2769854086
A44: TURTLE RIVER | B44: 0 | C44: =B44/'- 3 -'!$D44*100 -> 0 | D44: 52800 | E44: =D44/'- 3 -'!$D44*100 -> 0.4377627043
A45: WESTERN | B45: 0 | C45: =B45/'- 3 -'!$D45*100 -> 0 | D45: 83068 | E45: =D45/'- 3 -'!$D45*100 -> 0.3318955906
A46: WINNIPEG | B46: 0 | C46: =B46/'- 3 -'!$D46*100 -> 0 | D46: 403435 | E46: =D46/'- 3 -'!$D46*100 -> 0.09319580637
A48: PROVINCE | B48: =SUM(B11:B46) -> 2793637 | C48: =B48/'- 3 -'!$D48*100 -> 0.1057600511 | D48: =SUM(D11:D46) -> 6158484 | E48: =D48/'- 3 -'!$D48*100 -> 0.2331446722
A50: WHITESHELL | B50: 0 | C50: =B50/'- 3 -'!$D50*100 -> 0 | D50: 60048 | E50: =D50/'- 3 -'!$D50*100 -> 1.598324281

Sheet - 31 -
B2: =AEXP_BP -> ANALYSIS OF EXPENSE BY PROGRAM | G2: PAGE 14 OF 16
B3: =OPYEAR -> OPERATING FUND 2022/2023 BUDGET
B6: FUNCTION 800: OPERATIONS AND MAINTENANCE
D7: SCHOOL BUILDINGS
B8: ADMINISTRATION | D8: MAINTENANCE | F8: REPAIRS
A9: DIVISION / DISTRICT | B9: AMOUNT | C9: % | D9: AMOUNT | E9: % | F9: AMOUNT | G9: %
A11: BEAUTIFUL PLAINS | B11: 93917 | C11: =B11/'- 3 -'!$D11*100 -> 0.3794873581 | D11: 1900673 | E11: =D11/'- 3 -'!$D11*100 -> 7.679987387 | F11: 267800 | G11: =F11/'- 3 -'!$D11*100 -> 1.082090724
A12: BORDER LAND | B12: 133372 | C12: =B12/'- 3 -'!$D12*100 -> 0.3645066824 | D12: 2981558 | E12: =D12/'- 3 -'!$D12*100 -> 8.148620513 | F12: 215100 | G12: =F12/'- 3 -'!$D12*100 -> 0.5878699232
A13: BRANDON | B13: 336700 | C13: =B13/'- 3 -'!$D13*100 -> 0.2943120074 | D13: 8226300 | E13: =D13/'- 3 -'!$D13*100 -> 7.190670825 | F13: 547400 | G13: =F13/'- 3 -'!$D13*100 -> 0.4784864653
A14: DSFM | B14: 402768 | C14: =B14/'- 3 -'!$D14*100 -> 0.3839382002 | D14: 9522425 | E14: =D14/'- 3 -'!$D14*100 -> 9.077242273 | F14: 600000 | G14: =F14/'- 3 -'!$D14*100 -> 0.5719494104
A15: EVERGREEN | B15: 50030 | C15: =B15/'- 3 -'!$D15*100 -> 0.2260825005 | D15: 2386370 | E15: =D15/'- 3 -'!$D15*100 -> 10.78385962 | F15: 140000 | G15: =F15/'- 3 -'!$D15*100 -> 0.6326514104
A16: FLIN FLON | B16: 116077 | C16: =B16/'- 3 -'!$D16*100 -> 0.7203065229 | D16: 2033275 | E16: =D16/'- 3 -'!$D16*100 -> 12.6173251 | F16: 80000 | G16: =F16/'- 3 -'!$D16*100 -> 0.4964335901
A17: FORT LA BOSSE | B17: 75185 | C17: =B17/'- 3 -'!$D17*100 -> 0.3703244172 | D17: 1719074 | E17: =D17/'- 3 -'!$D17*100 -> 8.467314985 | F17: 70000 | G17: =F17/'- 3 -'!$D17*100 -> 0.3447856514
A18: FRONTIER | B18: 1165096 | C18: =B18/'- 3 -'!$D18*100 -> 0.7517375482 | D18: 19508055 | E18: =D18/'- 3 -'!$D18*100 -> 12.58689193 | F18: 2421578 | G18: =F18/'- 3 -'!$D18*100 -> 1.562438725
A19: GARDEN VALLEY | B19: 137550 | C19: =B19/'- 3 -'!$D19*100 -> 0.2668138297 | D19: 4584200 | E19: =D19/'- 3 -'!$D19*100 -> 8.892242516 | F19: 107000 | G19: =F19/'- 3 -'!$D19*100 -> 0.2075541969
A20: HANOVER | B20: 238700 | C20: =B20/'- 3 -'!$D20*100 -> 0.2473885327 | D20: 8322200 | E20: =D20/'- 3 -'!$D20*100 -> 8.625122943 | F20: 556500 | G20: =F20/'- 3 -'!$D20*100 -> 0.5767562565
A21: INTERLAKE | B21: 164000 | C21: =B21/'- 3 -'!$D21*100 -> 0.4080495233 | D21: 3103000 | E21: =D21/'- 3 -'!$D21*100 -> 7.720595553 | F21: 130000 | G21: =F21/'- 3 -'!$D21*100 -> 0.3234538904
A22: KELSEY | B22: 96093 | C22: =B22/'- 3 -'!$D22*100 -> 0.4582450635 | D22: 2345473 | E22: =D22/'- 3 -'!$D22*100 -> 11.18501268 | F22: 38000 | G22: =F22/'- 3 -'!$D22*100 -> 0.1812131207
A23: LAKESHORE | B23: 80295 | C23: =B23/'- 3 -'!$D23*100 -> 0.4815248749 | D23: 1454250 | E23: =D23/'- 3 -'!$D23*100 -> 8.721060457 | F23: 140382 | G23: =F23/'- 3 -'!$D23*100 -> 0.841863441
A24: LORD SELKIRK | B24: 156723 | C24: =B24/'- 3 -'!$D24*100 -> 0.2540713374 | D24: 5726798 | E24: =D24/'- 3 -'!$D24*100 -> 9.28399295 | F24: 305800 | G24: =F24/'- 3 -'!$D24*100 -> 0.4957473695
A25: LOUIS RIEL | B25: 745224 | C25: =B25/'- 3 -'!$D25*100 -> 0.3593284102 | D25: 19140148 | E25: =D25/'- 3 -'!$D25*100 -> 9.228901581 | F25: 430020 | G25: =F25/'- 3 -'!$D25*100 -> 0.2073449097
A26: MOUNTAIN VIEW | B26: 160556 | C26: =B26/'- 3 -'!$D26*100 -> 0.3606276281 | D26: 4717924 | E26: =D26/'- 3 -'!$D26*100 -> 10.59701127 | F26: 259700 | G26: =F26/'- 3 -'!$D26*100 -> 0.5833166933
A27: MYSTERY LAKE | B27: 217632 | C27: =B27/'- 3 -'!$D27*100 -> 0.4816125949 | D27: 4850078 | E27: =D27/'- 3 -'!$D27*100 -> 10.73306614 | F27: 606000 | G27: =F27/'- 3 -'!$D27*100 -> 1.34105845
A28: PARK WEST | B28: 77610 | C28: =B28/'- 3 -'!$D28*100 -> 0.248180537 | D28: 3233583 | E28: =D28/'- 3 -'!$D28*100 -> 10.34032168 | F28: 156017 | G28: =F28/'- 3 -'!$D28*100 -> 0.4989097133
A29: PEMBINA TRAILS | B29: 1180896 | C29: =B29/'- 3 -'!$D29*100 -> 0.6129625751 | D29: 16941311 | E29: =D29/'- 3 -'!$D29*100 -> 8.793652969 | F29: 1252600 | G29: =F29/'- 3 -'!$D29*100 -> 0.65018166
A30: PINE CREEK | B30: 151363 | C30: =B30/'- 3 -'!$D30*100 -> 0.9169704445 | D30: 1338855 | E30: =D30/'- 3 -'!$D30*100 -> 8.110902033 | F30: 119273 | G30: =F30/'- 3 -'!$D30*100 -> 0.7225663856
A31: PORTAGE LA PRAIRIE | B31: 81951 | C31: =B31/'- 3 -'!$D31*100 -> 0.1879205416 | D31: 3745685 | E31: =D31/'- 3 -'!$D31*100 -> 8.589171015 | F31: 155000 | G31: =F31/'- 3 -'!$D31*100 -> 0.3554280478
A32: PRAIRIE ROSE | B32: 163180 | C32: =B32/'- 3 -'!$D32*100 -> 0.4938760789 | D32: 2671590 | E32: =D32/'- 3 -'!$D32*100 -> 8.08576047 | F32: 135864 | G32: =F32/'- 3 -'!$D32*100 -> 0.4112022281
A33: PRAIRIE SPIRIT | B33: 127200 | C33: =B33/'- 3 -'!$D33*100 -> 0.4236966755 | D33: 2841400 | E33: =D33/'- 3 -'!$D33*100 -> 9.464557657 | F33: 301435 | G33: =F33/'- 3 -'!$D33*100 -> 1.004064524
A34: RED RIVER VALLEY | B34: 74758 | C34: =B34/'- 3 -'!$D34*100 -> 0.2185131158 | D34: 2462241 | E34: =D34/'- 3 -'!$D34*100 -> 7.196981632 | F34: 266567 | G34: =F34/'- 3 -'!$D34*100 -> 0.7791592305
A35: RIVER EAST TRANSCONA | B35: 1031040 | C35: =B35/'- 3 -'!$D35*100 -> 0.4795107093 | D35: 20608786 | E35: =D35/'- 3 -'!$D35*100 -> 9.584626778 | F35: 523200 | G35: =F35/'- 3 -'!$D35*100 -> 0.243327129
A36: ROLLING RIVER | B36: 69355 | C36: =B36/'- 3 -'!$D36*100 -> 0.2712148749 | D36: 2643225 | E36: =D36/'- 3 -'!$D36*100 -> 10.3364132 | F36: 110000 | G36: =F36/'- 3 -'!$D36*100 -> 0.4301584058
A37: SEINE RIVER | B37: 135443 | C37: =B37/'- 3 -'!$D37*100 -> 0.2305158512 | D37: 4609137 | E37: =D37/'- 3 -'!$D37*100 -> 7.844474346 | F37: 455000 | G37: =F37/'- 3 -'!$D37*100 -> 0.7743826723
A38: SEVEN OAKS | B38: 763920 | C38: =B38/'- 3 -'!$D38*100 -> 0.4766124817 | D38: 11848000 | E38: =D38/'- 3 -'!$D38*100 -> 7.392010528 | F38: 885000 | G38: =F38/'- 3 -'!$D38*100 -> 0.5521547364
A39: SOUTHWEST HORIZON | B39: 117000 | C39: =B39/'- 3 -'!$D39*100 -> 0.4769164296 | D39: 2095200 | E39: =D39/'- 3 -'!$D39*100 -> 8.540472677 | F39: 160000 | G39: =F39/'- 3 -'!$D39*100 -> 0.652193408
A40: ST. JAMES-ASSINIBOIA | B40: 507080 | C40: =B40/'- 3 -'!$D40*100 -> 0.4308176907 | D40: 8886215 | E40: =D40/'- 3 -'!$D40*100 -> 7.549772472 | F40: 1238498 | G40: =F40/'- 3 -'!$D40*100 -> 1.052234062
A41: SUNRISE | B41: 200478 | C41: =B41/'- 3 -'!$D41*100 -> 0.2810650971 | D41: 5499575 | E41: =D41/'- 3 -'!$D41*100 -> 7.710265371 | F41: 625000 | G41: =F41/'- 3 -'!$D41*100 -> 0.8762342285
A42: SWAN VALLEY | B42: 102126 | C42: =B42/'- 3 -'!$D42*100 -> 0.4317476712 | D42: 2047840 | E42: =D42/'- 3 -'!$D42*100 -> 8.657444246 | F42: 173661 | G42: =F42/'- 3 -'!$D42*100 -> 0.7341688927
A43: TURTLE MOUNTAIN | B43: 48194 | C43: =B43/'- 3 -'!$D43*100 -> 0.332313537 | D43: 823331 | E43: =D43/'- 3 -'!$D43*100 -> 5.677138995 | F43: 130783 | G43: =F43/'- 3 -'!$D43*100 -> 0.9017919515
A44: TURTLE RIVER | B44: 59350 | C44: =B44/'- 3 -'!$D44*100 -> 0.4920684943 | D44: 1022126 | E44: =D44/'- 3 -'!$D44*100 -> 8.474406096 | F44: 50340 | G44: =F44/'- 3 -'!$D44*100 -> 0.4173669419
A45: WESTERN | B45: 54116 | C45: =B45/'- 3 -'!$D45*100 -> 0.216218782 | D45: 1937844 | E45: =D45/'- 3 -'!$D45*100 -> 7.742594968 | F45: 138820 | G45: =F45/'- 3 -'!$D45*100 -> 0.5546509593
A46: WINNIPEG | B46: 1355900 | C46: =B46/'- 3 -'!$D46*100 -> 0.3132207019 | D46: 44790176 | E46: =D46/'- 3 -'!$D46*100 -> 10.34678838 | F46: 6692483 | G46: =F46/'- 3 -'!$D46*100 -> 1.546002082
A48: PROVINCE | B48: =SUM(B11:B46) -> 10670878 | C48: =B48/'- 3 -'!$D48*100 -> 0.4039725286 | D48: =SUM(D11:D46) -> 242567921 | E48: =D48/'- 3 -'!$D48*100 -> 9.18300972 | F48: =SUM(F11:F46) -> 20484821 | G48: =F48/'- 3 -'!$D48*100 -> 0.7755036593
A50: WHITESHELL | B50: 32574 | C50: =B50/'- 3 -'!$D50*100 -> 0.8670366227 | D50: 502774 | E50: =D50/'- 3 -'!$D50*100 -> 13.38255882 | F50: 22000 | G50: =F50/'- 3 -'!$D50*100 -> 0.5855837692

Sheet - 32 -
B2: =AEXP_BP -> ANALYSIS OF EXPENSE BY PROGRAM | F2: PAGE 15 OF 16
B3: =OPYEAR -> OPERATING FUND 2022/2023 BUDGET
B6: FUNCTION 800: (CONT'D)
B8: OTHER BUILDINGS | D8: GROUNDS
A9: DIVISION / DISTRICT | B9: AMOUNT | C9: % | D9: AMOUNT | E9: %
A11: BEAUTIFUL PLAINS | B11: 71846 | C11: =B11/'- 3 -'!$D11*100 -> 0.2903057884 | D11: 34400 | E11: =D11/'- 3 -'!$D11*100 -> 0.1389989578
A12: BORDER LAND | B12: 347155 | C12: =B12/'- 3 -'!$D12*100 -> 0.9487772347 | D12: 206058 | E12: =D12/'- 3 -'!$D12*100 -> 0.5631580689
A13: BRANDON | B13: 321200 | C13: =B13/'- 3 -'!$D13*100 -> 0.2807633406 | D13: 269800 | E13: =D13/'- 3 -'!$D13*100 -> 0.2358342133
A14: DSFM | B14: 398141 | C14: =B14/'- 3 -'!$D14*100 -> 0.379527517 | D14: 750000 | E14: =D14/'- 3 -'!$D14*100 -> 0.7149367629
A15: EVERGREEN | B15: 119200 | C15: =B15/'- 3 -'!$D15*100 -> 0.5386574866 | D15: 90020 | E15: =D15/'- 3 -'!$D15*100 -> 0.4067948569
A16: FLIN FLON | B16: 20814 | C16: =B16/'- 3 -'!$D16*100 -> 0.1291596093 | D16: 27431 | E16: =D16/'- 3 -'!$D16*100 -> 0.1702208726
A17: FORT LA BOSSE | B17: 105985 | C17: =B17/'- 3 -'!$D17*100 -> 0.5220301038 | D17: 57000 | E17: =D17/'- 3 -'!$D17*100 -> 0.2807540305
A18: FRONTIER | B18: 4025707 | C18: =B18/'- 3 -'!$D18*100 -> 2.597447 | D18: 36590 | E18: =D18/'- 3 -'!$D18*100 -> 0.02360842101
A19: GARDEN VALLEY | B19: 115300 | C19: =B19/'- 3 -'!$D19*100 -> 0.2236541953 | D19: 63000 | E19: =D19/'- 3 -'!$D19*100 -> 0.1222048075
A20: HANOVER | B20: 198300 | C20: =B20/'- 3 -'!$D20*100 -> 0.2055179976 | D20: 396800 | E20: =D20/'- 3 -'!$D20*100 -> 0.4112432751
A21: INTERLAKE | B21: 177000 | C21: =B21/'- 3 -'!$D21*100 -> 0.4403949123 | D21: 112000 | E21: =D21/'- 3 -'!$D21*100 -> 0.2786679671
A22: KELSEY | B22: 93822 | C22: =B22/'- 3 -'!$D22*100 -> 0.4474151951 | D22: 25000 | E22: =D22/'- 3 -'!$D22*100 -> 0.1192191584
A23: LAKESHORE | B23: 57300 | C23: =B23/'- 3 -'!$D23*100 -> 0.3436250742 | D23: 12700 | E23: =D23/'- 3 -'!$D23*100 -> 0.07616122936
A24: LORD SELKIRK | B24: 164775 | C24: =B24/'- 3 -'!$D24*100 -> 0.2671248293 | D24: 171500 | E24: =D24/'- 3 -'!$D24*100 -> 0.2780270565
A25: LOUIS RIEL | B25: 585000 | C25: =B25/'- 3 -'!$D25*100 -> 0.282072397 | D25: 240000 | E25: =D25/'- 3 -'!$D25*100 -> 0.115722009
A26: MOUNTAIN VIEW | B26: 189553 | C26: =B26/'- 3 -'!$D26*100 -> 0.4257582949 | D26: 100250 | E26: =D26/'- 3 -'!$D26*100 -> 0.2251732711
A27: MYSTERY LAKE | B27: 141852 | C27: =B27/'- 3 -'!$D27*100 -> 0.3139138997 | D27: 139440 | E27: =D27/'- 3 -'!$D27*100 -> 0.3085762215
A28: PARK WEST | B28: 79150 | C28: =B28/'- 3 -'!$D28*100 -> 0.2531051347 | D28: 97000 | E28: =D28/'- 3 -'!$D28*100 -> 0.3101856989
A29: PEMBINA TRAILS | B29: 660983 | C29: =B29/'- 3 -'!$D29*100 -> 0.3430935847 | D29: 1105742 | E29: =D29/'- 3 -'!$D29*100 -> 0.5739527136
A30: PINE CREEK | B30: 52606 | C30: =B30/'- 3 -'!$D30*100 -> 0.3186918018 | D30: 49500 | E30: =D30/'- 3 -'!$D30*100 -> 0.2998753791
A31: PORTAGE LA PRAIRIE | B31: 87600 | C31: =B31/'- 3 -'!$D31*100 -> 0.2008741741 | D31: 137500 | E31: =D31/'- 3 -'!$D31*100 -> 0.3152990747
A32: PRAIRIE ROSE | B32: 121705 | C32: =B32/'- 3 -'!$D32*100 -> 0.3683489899 | D32: 125980 | E32: =D32/'- 3 -'!$D32*100 -> 0.3812875868
A33: PRAIRIE SPIRIT | B33: 116500 | C33: =B33/'- 3 -'!$D33*100 -> 0.3880555244 | D33: 46450 | E33: =D33/'- 3 -'!$D33*100 -> 0.1547225674
A34: RED RIVER VALLEY | B34: 110508 | C34: =B34/'- 3 -'!$D34*100 -> 0.3230082052 | D34: 108732 | E34: =D34/'- 3 -'!$D34*100 -> 0.3178170646
A35: RIVER EAST TRANSCONA | B35: 305275 | C35: =B35/'- 3 -'!$D35*100 -> 0.1419757059 | D35: 730500 | E35: =D35/'- 3 -'!$D35*100 -> 0.3397371326
A36: ROLLING RIVER | B36: 169650 | C36: =B36/'- 3 -'!$D36*100 -> 0.6634215777 | D36: 86000 | E36: =D36/'- 3 -'!$D36*100 -> 0.3363056627
A37: SEINE RIVER | B37: 149320 | C37: =B37/'- 3 -'!$D37*100 -> 0.2541336717 | D37: 212000 | E37: =D37/'- 3 -'!$D37*100 -> 0.3608112671
A38: SEVEN OAKS | B38: 728770 | C38: =B38/'- 3 -'!$D38*100 -> 0.4546822681 | D38: 486890 | E38: =D38/'- 3 -'!$D38*100 -> 0.3037724516
A39: SOUTHWEST HORIZON | B39: 88200 | C39: =B39/'- 3 -'!$D39*100 -> 0.3595216161 | D39: 70100 | E39: =D39/'- 3 -'!$D39*100 -> 0.2857422369
A40: ST. JAMES-ASSINIBOIA | B40: 568407 | C40: =B40/'- 3 -'!$D40*100 -> 0.482921415 | D40: 466232 | E40: =D40/'- 3 -'!$D40*100 -> 0.3961130267
A41: SUNRISE | B41: 339633 | C41: =B41/'- 3 -'!$D41*100 -> 0.4761568956 | D41: 320000 | E41: =D41/'- 3 -'!$D41*100 -> 0.448631925
A42: SWAN VALLEY | B42: 173009 | C42: =B42/'- 3 -'!$D42*100 -> 0.7314124988 | D42: 114704 | E42: =D42/'- 3 -'!$D42*100 -> 0.4849223986
A43: TURTLE MOUNTAIN | B43: 125100 | C43: =B43/'- 3 -'!$D43*100 -> 0.8626057907 | D43: 17478 | E43: =D43/'- 3 -'!$D43*100 -> 0.1205165788
A44: TURTLE RIVER | B44: 44170 | C44: =B44/'- 3 -'!$D44*100 -> 0.3662117168 | D44: 29000 | E44: =D44/'- 3 -'!$D44*100 -> 0.2404378489
A45: WESTERN | B45: 52200 | C45: =B45/'- 3 -'!$D45*100 -> 0.208563464 | D45: 97000 | E45: =D45/'- 3 -'!$D45*100 -> 0.3875604599
A46: WINNIPEG | B46: 2688865 | C46: =B46/'- 3 -'!$D46*100 -> 0.6211432867 | D46: 1598755 | E46: =D46/'- 3 -'!$D46*100 -> 0.3693216042
A48: PROVINCE | B48: =SUM(B11:B46) -> 13794601 | C48: =B48/'- 3 -'!$D48*100 -> 0.5222288032 | D48: =SUM(D11:D46) -> 8631552 | E48: =D48/'- 3 -'!$D48*100 -> 0.3267687895
A50: WHITESHELL | B50: 0 | C50: =B50/'- 3 -'!$D50*100 -> 0 | D50: 17000 | E50: =D50/'- 3 -'!$D50*100 -> 0.452496549

Sheet - 33 -
B2: =AEXP_BP -> ANALYSIS OF EXPENSE BY PROGRAM | F2: PAGE 16 OF 16
B3: =OPYEAR -> OPERATING FUND 2022/2023 BUDGET
B6: FUNCTION 900: FISCAL
D7: HEALTH AND EDUCATION LEVY
B8: DEBT SERVICES
A9: DIVISION / DISTRICT | B9: AMOUNT | C9: % | D9: AMOUNT | E9: %
A11: BEAUTIFUL PLAINS | B11: 7500 | C11: =B11/'- 3 -'!$D11*100 -> 0.03030500533 | D11: 413648 | E11: =D11/'- 3 -'!$D11*100 -> 1.671413979
A12: BORDER LAND | B12: 30000 | C12: =B12/'- 3 -'!$D12*100 -> 0.08199022638 | D12: 580000 | E12: =D12/'- 3 -'!$D12*100 -> 1.585144377
A13: BRANDON | B13: 25100 | C13: =B13/'- 3 -'!$D13*100 -> 0.02194009916 | D13: 1986200 | E13: =D13/'- 3 -'!$D13*100 -> 1.736152388
A14: DSFM | B14: 49508 | C14: =B14/'- 3 -'!$D14*100 -> 0.04719345235 | D14: 1511266 | E14: =D14/'- 3 -'!$D14*100 -> 1.440612829
A15: EVERGREEN | B15: 0 | C15: =B15/'- 3 -'!$D15*100 -> 0 | D15: 354743 | E15: =D15/'- 3 -'!$D15*100 -> 1.603061852
A16: FLIN FLON | B16: 20000 | C16: =B16/'- 3 -'!$D16*100 -> 0.1241083975 | D16: 254982 | E16: =D16/'- 3 -'!$D16*100 -> 1.582270371
A17: FORT LA BOSSE | B17: 70000 | C17: =B17/'- 3 -'!$D17*100 -> 0.3447856514 | D17: 343000 | E17: =D17/'- 3 -'!$D17*100 -> 1.689449692
A18: FRONTIER | B18: 0 | C18: =B18/'- 3 -'!$D18*100 -> 0 | D18: 1275000 | E18: =D18/'- 3 -'!$D18*100 -> 0.82264927
A19: GARDEN VALLEY | B19: 32000 | C19: =B19/'- 3 -'!$D19*100 -> 0.06207228317 | D19: 860000 | E19: =D19/'- 3 -'!$D19*100 -> 1.66819261
A20: HANOVER | B20: 176400 | C20: =B20/'- 3 -'!$D20*100 -> 0.1828208511 | D20: 1645400 | E20: =D20/'- 3 -'!$D20*100 -> 1.705291544
A21: INTERLAKE | B21: 60000 | C21: =B21/'- 3 -'!$D21*100 -> 0.149286411 | D21: 710000 | E21: =D21/'- 3 -'!$D21*100 -> 1.766555863
A22: KELSEY | B22: 10000 | C22: =B22/'- 3 -'!$D22*100 -> 0.04768766335 | D22: 366392 | E22: =D22/'- 3 -'!$D22*100 -> 1.747237835
A23: LAKESHORE | B23: 5000 | C23: =B23/'- 3 -'!$D23*100 -> 0.02998473597 | D23: 245000 | E23: =D23/'- 3 -'!$D23*100 -> 1.469252063
A24: LORD SELKIRK | B24: 75000 | C24: =B24/'- 3 -'!$D24*100 -> 0.1215861763 | D24: 1028700 | E24: =D24/'- 3 -'!$D24*100 -> 1.667675994
A25: LOUIS RIEL | B25: 214200 | C25: =B25/'- 3 -'!$D25*100 -> 0.1032818931 | D25: 3462214 | E25: =D25/'- 3 -'!$D25*100 -> 1.669393166
A26: MOUNTAIN VIEW | B26: 80000 | C26: =B26/'- 3 -'!$D26*100 -> 0.1796893934 | D26: 705175 | E26: =D26/'- 3 -'!$D26*100 -> 1.58390585
A27: MYSTERY LAKE | B27: 49600 | C27: =B27/'- 3 -'!$D27*100 -> 0.1097631998 | D27: 733902 | E27: =D27/'- 3 -'!$D27*100 -> 1.624101449
A28: PARK WEST | B28: 92600 | C28: =B28/'- 3 -'!$D28*100 -> 0.2961154198 | D28: 414000 | E28: =D28/'- 3 -'!$D28*100 -> 1.323885354
A29: PEMBINA TRAILS | B29: 0 | C29: =B29/'- 3 -'!$D29*100 -> 0 | D29: 3491950 | E29: =D29/'- 3 -'!$D29*100 -> 1.812551371
A30: PINE CREEK | B30: 0 | C30: =B30/'- 3 -'!$D30*100 -> 0 | D30: 264177 | E30: =D30/'- 3 -'!$D30*100 -> 1.600407637
A31: PORTAGE LA PRAIRIE | B31: 15113 | C31: =B31/'- 3 -'!$D31*100 -> 0.03465538121 | D31: 748000 | E31: =D31/'- 3 -'!$D31*100 -> 1.715226966
A32: PRAIRIE ROSE | B32: 75000 | C32: =B32/'- 3 -'!$D32*100 -> 0.2269929275 | D32: 541445 | E32: =D32/'- 3 -'!$D32*100 -> 1.638722475
A33: PRAIRIE SPIRIT | B33: 45000 | C33: =B33/'- 3 -'!$D33*100 -> 0.1498926918 | D33: 462000 | E33: =D33/'- 3 -'!$D33*100 -> 1.538898303
A34: RED RIVER VALLEY | B34: 124000 | C34: =B34/'- 3 -'!$D34*100 -> 0.3624445058 | D34: 562116 | E34: =D34/'- 3 -'!$D34*100 -> 1.643031095
A35: RIVER EAST TRANSCONA | B35: 59000 | C35: =B35/'- 3 -'!$D35*100 -> 0.02743941249 | D35: 3671000 | E35: =D35/'- 3 -'!$D35*100 -> 1.707289546
A36: ROLLING RIVER | B36: 55000 | C36: =B36/'- 3 -'!$D36*100 -> 0.2150792029 | D36: 421100 | E36: =D36/'- 3 -'!$D36*100 -> 1.646724588
A37: SEINE RIVER | B37: 30000 | C37: =B37/'- 3 -'!$D37*100 -> 0.05105819818 | D37: 900000 | E37: =D37/'- 3 -'!$D37*100 -> 1.531745945
A38: SEVEN OAKS | B38: 244163 | C38: =B38/'- 3 -'!$D38*100 -> 0.1523341886 | D38: 2655520 | E38: =D38/'- 3 -'!$D38*100 -> 1.656788639
A39: SOUTHWEST HORIZON | B39: 40000 | C39: =B39/'- 3 -'!$D39*100 -> 0.163048352 | D39: 394200 | E39: =D39/'- 3 -'!$D39*100 -> 1.606841509
A40: ST. JAMES-ASSINIBOIA | B40: 78600 | C40: =B40/'- 3 -'!$D40*100 -> 0.06677895103 | D40: 1982228 | E40: =D40/'- 3 -'!$D40*100 -> 1.68411077
A41: SUNRISE | B41: 103000 | C41: =B41/'- 3 -'!$D41*100 -> 0.1444034009 | D41: 1162091 | E41: =D41/'- 3 -'!$D41*100 -> 1.629222257
A42: SWAN VALLEY | B42: 5000 | C42: =B42/'- 3 -'!$D42*100 -> 0.0211379899 | D42: 395000 | E42: =D42/'- 3 -'!$D42*100 -> 1.669901202
A43: TURTLE MOUNTAIN | B43: 56000 | C43: =B43/'- 3 -'!$D43*100 -> 0.3861384835 | D43: 240000 | E43: =D43/'- 3 -'!$D43*100 -> 1.654879215
A44: TURTLE RIVER | B44: 3000 | C44: =B44/'- 3 -'!$D44*100 -> 0.02487288092 | D44: 199121 | E44: =D44/'- 3 -'!$D44*100 -> 1.650904307
A45: WESTERN | B45: 35000 | C45: =B45/'- 3 -'!$D45*100 -> 0.1398414031 | D45: 423958 | E45: =D45/'- 3 -'!$D45*100 -> 1.693910902
A46: WINNIPEG | B46: 206600 | C46: =B46/'- 3 -'!$D46*100 -> 0.04772578878 | D46: 7516160 | E46: =D46/'- 3 -'!$D46*100 -> 1.736276208
A48: PROVINCE | B48: =SUM(B11:B46) -> 2171384 | C48: =B48/'- 3 -'!$D48*100 -> 0.0822031219 | D48: =SUM(D11:D46) -> 42919688 | E48: =D48/'- 3 -'!$D48*100 -> 1.624831142
A50: WHITESHELL | B50: 0 | C50: =B50/'- 3 -'!$D50*100 -> 0 | D50: 48000 | E50: =D50/'- 3 -'!$D50*100 -> 1.277637315

Sheet - 34 -
B2: ANALYSIS OF TRANSPORTATION EXPENSES | BA2: ANALYSIS OF TRANSPORTATION EXPENSES | BB2: ANALYSE DES DÉPENSES DE TRANSPORT
B3: OPERATING FUND 2022/2023 BUDGET
B6: REGULAR TRANSPORTATION
B7: (PROGRAM 720)
C8: TRANSPORTED PUPILS | D8: PER PUPIL | E8: TOTAL KM (ROUTES) | F8: COST PER KM | G8: LOADED KM | H8: COST PER KM
A9: DIVISION / DISTRICT | B9: AMOUNT
A11: BEAUTIFUL PLAINS | B11: ='- 29 -'!$D11 -> 1233495 | C11: 653 | D11: =IF(AND(CELL("type",C11)="v",C11>0),B11/C11,"") -> 1888.966309 | E11: 589443 | F11: =IF(AND(CELL("type",E11)="v",E11>0),B11/E11,"") -> 2.09264509 | G11: 436528 | H11: =IF(AND(CELL("type",G11)="v",G11>0),B11/G11,"") -> 2.82569503
A12: BORDER LAND | B12: ='- 29 -'!$D12 -> 2179945 | C12: 1265 | D12: =IF(AND(CELL("type",C12)="v",C12>0),B12/C12,"") -> 1723.27668 | E12: 1054000 | F12: =IF(AND(CELL("type",E12)="v",E12>0),B12/E12,"") -> 2.068259013 | G12: 679000 | H12: =IF(AND(CELL("type",G12)="v",G12>0),B12/G12,"") -> 3.210522828
A13: BRANDON | B13: ='- 29 -'!$D13 -> 2591000 | C13: 3100 | D13: 835.8064516 | E13: 853000 | F13: 3.037514654 | G13: 530000 | H13: 4.888679245
A14: DSFM | B14: ='- 29 -'!$D14 -> 10320877 | C14: 4368 | D14: 2362.838141 | E14: 3312368 | F14: 3.115860617 | G14: 1729600 | H14: 5.967204556
A15: EVERGREEN | B15: ='- 29 -'!$D15 -> 1503513 | C15: 1037 | D15: 1449.867888 | E15: 745542 | F15: 2.016671093 | G15: 422730 | H15: 3.556674473
A16: FLIN FLON | B16: ='- 29 -'!$D16 -> 386867 | C16: 182 | D16: 2125.642857 | E16: 58622 | F16: 6.599348368 | G16: 36837 | H16: 10.50213101
A17: FORT LA BOSSE | B17: ='- 29 -'!$D17 -> 1438562 | C17: 675 | D17: 2131.202963 | E17: 955000 | F17: 1.506347644 | G17: 600000 | H17: 2.397603333
A18: FRONTIER | B18: ='- 29 -'!$D18 -> 8108492 | C18: 5540 | D18: 1463.626715 | E18: 1730000 | F18: 4.686989595 | G18: 1143000 | H18: 7.094043745
A19: GARDEN VALLEY | B19: ='- 29 -'!$D19 -> 2862900 | C19: 2700 | D19: 1060.333333 | E19: 804500 | F19: 3.558607831 | G19: 451250 | H19: 6.344376731
A20: HANOVER | B20: ='- 29 -'!$D20 -> 3500685 | C20: 4913 | D20: 712.5351109 | E20: 1407673 | F20: 2.486859519 | G20: 780748 | H20: 4.483757883
A21: INTERLAKE | B21: ='- 29 -'!$D21 -> 2156000 | C21: 1500 | D21: 1437.333333 | E21: 820640 | F21: 2.627217781 | G21: 510674 | H21: 4.221871487
A22: KELSEY | B22: ='- 29 -'!$D22 -> 438398 | C22: 447 | D22: 980.7561521 | E22: 159952 | F22: 2.740809743 | G22: 94905 | H22: 4.619335125
A23: LAKESHORE | B23: ='- 29 -'!$D23 -> 1661990 | C23: 649 | D23: 2560.847458 | E23: 836000 | F23: 1.988026316 | G23: 508000 | H23: 3.271633858
A24: LORD SELKIRK | B24: ='- 29 -'!$D24 -> 2626035 | C24: 2355 | D24: 1115.089172 | E24: 1076768 | F24: 2.43881226 | G24: 702144 | H24: 3.740023414
A25: LOUIS RIEL | B25: ='- 29 -'!$D25 -> 5180680 | C25: 3058 | D25: 1694.139961 | E25: 935508 | F25: 5.537825438 | G25: 483140 | H25: 10.72293745
A26: MOUNTAIN VIEW | B26: ='- 29 -'!$D26 -> 2723267 | C26: 1498 | D26: 1817.935247 | E26: 1254018 | F26: 2.171633103 | G26: 921015 | H26: 2.956810693
A27: MYSTERY LAKE | B27: ='- 29 -'!$D27 -> 50000 | C27: N/A | D27: =IF(AND(CELL("type",C27)="v",C27>0),B27/C27,"") ->  | E27: N/A | F27: =IF(AND(CELL("type",E27)="v",E27>0),B27/E27,"") ->  | G27: N/A
A28: PARK WEST | B28: ='- 29 -'!$D28 -> 1974306 | C28: 800 | D28: 2467.8825 | E28: 1000000 | F28: 1.974306 | G28: 700000 | H28: 2.820437143
A29: PEMBINA TRAILS | B29: ='- 29 -'!$D29 -> 3375043 | C29: 2930 | D29: 1151.891809 | E29: 640000 | F29: 5.273504688 | G29: 350000 | H29: 9.64298
A30: PINE CREEK | B30: ='- 29 -'!$D30 -> 1306924 | C30: 552 | D30: 2367.615942 | E30: 554084 | F30: 2.358710954 | G30: 371700 | H30: 3.516072101
A31: PORTAGE LA PRAIRIE | B31: ='- 29 -'!$D31 -> 1131288 | C31: 1051 | D31: 1076.392008 | E31: 598015 | F31: 1.891738502 | G31: 384748 | H31: 2.940334973
A32: PRAIRIE ROSE | B32: ='- 29 -'!$D32 -> 2178443 | C32: 1457 | D32: 1495.156486 | E32: 1168694 | F32: 1.863997762 | G32: 735058 | H32: 2.963634162
A33: PRAIRIE SPIRIT | B33: ='- 29 -'!$D33 -> 2328550 | C33: 1087 | D33: 2142.180313 | E33: 1505750 | F33: 1.546438652 | G33: 907600 | H33: 2.565612605
A34: RED RIVER VALLEY | B34: ='- 29 -'!$D34 -> 2562470 | C34: 1220 | D34: 2100.385246 | E34: 1386481 | F34: 1.848182557 | G34: 850876 | H34: 3.011566903
A35: RIVER EAST TRANSCONA | B35: ='- 29 -'!$D35 -> 4705311 | C35: 3861 | D35: 1218.676768 | E35: 1105770 | F35: 4.255234814 | G35: 502572 | H35: 9.362461498
A36: ROLLING RIVER | B36: ='- 29 -'!$D36 -> 1656160 | C36: 918 | D36: 1804.095861 | E36: 834624 | F36: 1.984318687 | G36: 529920 | H36: 3.125301932
A37: SEINE RIVER | B37: ='- 29 -'!$D37 -> 3501254 | C37: 3040 | D37: 1151.728289 | E37: 1621972 | F37: 2.158640223 | G37: 924856 | H37: 3.785728805
A38: SEVEN OAKS | B38: ='- 29 -'!$D38 -> 3351604 | C38: 2558 | D38: 1310.243941 | E38: 753486 | F38: 4.448130423 | G38: 403434 | H38: 8.307688494
A39: SOUTHWEST HORIZON | B39: ='- 29 -'!$D39 -> 2264000 | C39: 710 | D39: 3188.732394 | E39: 1097000 | F39: 2.063810392 | G39: 660000 | H39: 3.43030303
A40: ST. JAMES-ASSINIBOIA | B40: ='- 29 -'!$D40 -> 2368923 | C40: 1500 | D40: 1579.282 | E40: 640575 | F40: 3.698119658 | G40: 302250 | H40: 7.837627792
A41: SUNRISE | B41: ='- 29 -'!$D41 -> 4746570 | C41: 3533 | D41: 1343.495613 | E41: 2332988 | F41: 2.034545398 | G41: 1386308 | H41: 3.423892815
A42: SWAN VALLEY | B42: ='- 29 -'!$D42 -> 1863347 | C42: 1005 | D42: 1854.076617 | E42: 770886 | F42: 2.417149877 | G42: 664056 | H42: 2.806008831
A43: TURTLE MOUNTAIN | B43: ='- 29 -'!$D43 -> 1100256 | C43: 533 | D43: 2064.270169 | E43: 549424 | F43: 2.002562684 | G43: 374072 | H43: 2.941294724
A44: TURTLE RIVER | B44: ='- 29 -'!$D44 -> 1136363 | C44: 417 | D44: 2725.091127 | E44: 560720 | F44: 2.026613996 | G44: 415776 | H44: 2.733113503
A45: WESTERN | B45: ='- 29 -'!$D45 -> 904885 | C45: 1250 | D45: 723.908 | E45: 273000 | F45: 3.31459707 | G45: 165000 | H45: 5.484151515
A46: WINNIPEG | B46: ='- 29 -'!$D46 -> 6801894 | C46: 1608 | D46: 4230.033582 | E46: 599308 | F46: 11.34957985 | G46: 501319 | H46: 13.56799563
A48: PROVINCE | B48: =SUM(B11:B46) -> 98220297 | C48: =SUM(C11:C46) -> 63970 | D48: =B48/C48 -> 1535.411865 | E48: =SUM(E11:E46) -> 34585811 | F48: =B48/E48 -> 2.839901513 | G48: =SUM(G11:G46) -> 21159116 | H48: =B48/G48 -> 4.641984901
A50: WHITESHELL | B50: ='- 29 -'!$D50 -> 0 | C50: N/A | D50: =IF(AND(CELL("type",C50)="v",C50>0),B50/C50,"") ->  | E50: N/A | F50: =IF(AND(CELL("type",E50)="v",E50>0),B50/E50,"") ->  | G50: N/A | H50: =IF(AND(CELL("type",G50)="v",G50>0),B50/G50,"") -> 

Sheet - 35 -
B2: ANALYSIS OF TRANSPORTATION EXPENSES (CONT'D) | BA2: ANALYSIS OF TRANSPORTATION EXPENSES (CONT'D) | BB2: ANALYSE DES DÉPENSES DE TRANSPORT (SUITE)
B3: OPERATING FUND 2022/2023 BUDGET
B6: ADMINISTRATION, REGULAR AND OTHER
B7: (PROGRAMS 710, 720 AND 790)
C8: TOTAL KM (LOG BOOK) | D8: COST PER KM
A9: DIVISION / DISTRICT | B9: AMOUNT
A11: BEAUTIFUL PLAINS | B11: =SUM('- 29 -'!$B11,'- 29 -'!$D11,'- 30 -'!$D11) -> 1472879 | C11: 654846 | D11: =IF(AND(CELL("type",C11)="v",C11>0),B11/C11,"") -> 2.249199048
A12: BORDER LAND | B12: =SUM('- 29 -'!$B12,'- 29 -'!$D12,'- 30 -'!$D12) -> 2628711 | C12: 1130000 | D12: =IF(AND(CELL("type",C12)="v",C12>0),B12/C12,"") -> 2.32629292
A13: BRANDON | B13: =SUM('- 29 -'!$B13,'- 29 -'!$D13,'- 30 -'!$D13) -> 2906500 | C13: 910000 | D13: 3.193956044
A14: DSFM | B14: =SUM('- 29 -'!$B14,'- 29 -'!$D14,'- 30 -'!$D14) -> 10983131 | C14: N/A
A15: EVERGREEN | B15: =SUM('- 29 -'!$B15,'- 29 -'!$D15,'- 30 -'!$D15) -> 1802408 | C15: 745542 | D15: 2.417580767
A16: FLIN FLON | B16: =SUM('- 29 -'!$B16,'- 29 -'!$D16,'- 30 -'!$D16) -> 556985 | C16: 58622 | D16: 9.501296442
A17: FORT LA BOSSE | B17: =SUM('- 29 -'!$B17,'- 29 -'!$D17,'- 30 -'!$D17) -> 1550797 | C17: 1002000 | D17: 1.547701597
A18: FRONTIER | B18: =SUM('- 29 -'!$B18,'- 29 -'!$D18,'- 30 -'!$D18) -> 9703463 | C18: 1850000 | D18: 5.245115135
A19: GARDEN VALLEY | B19: =SUM('- 29 -'!$B19,'- 29 -'!$D19,'- 30 -'!$D19) -> 3308050 | C19: 725000 | D19: 4.562827586
A20: HANOVER | B20: =SUM('- 29 -'!$B20,'- 29 -'!$D20,'- 30 -'!$D20) -> 4323200 | C20: 1633973 | D20: 2.645820953
A21: INTERLAKE | B21: =SUM('- 29 -'!$B21,'- 29 -'!$D21,'- 30 -'!$D21) -> 2441000 | C21: 800000 | D21: 3.05125
A22: KELSEY | B22: =SUM('- 29 -'!$B22,'- 29 -'!$D22,'- 30 -'!$D22) -> 563858 | C22: 164006 | D22: 3.438032755
A23: LAKESHORE | B23: =SUM('- 29 -'!$B23,'- 29 -'!$D23,'- 30 -'!$D23) -> 1783490 | C23: 755000 | D23: 2.362238411
A24: LORD SELKIRK | B24: =SUM('- 29 -'!$B24,'- 29 -'!$D24,'- 30 -'!$D24) -> 2919633 | C24: 1100000 | D24: 2.654211818
A25: LOUIS RIEL | B25: =SUM('- 29 -'!$B25,'- 29 -'!$D25,'- 30 -'!$D25) -> 5729496 | C25: 1233185 | D25: 4.646096085
A26: MOUNTAIN VIEW | B26: =SUM('- 29 -'!$B26,'- 29 -'!$D26,'- 30 -'!$D26) -> 3161051 | C26: 1329018 | D26: 2.378486221
A27: MYSTERY LAKE | B27: =SUM('- 29 -'!$B27,'- 29 -'!$D27,'- 30 -'!$D27) -> 155000 | C27: N/A
A28: PARK WEST | B28: =SUM('- 29 -'!$B28,'- 29 -'!$D28,'- 30 -'!$D28) -> 2092567 | C28: 900000 | D28: 2.325074444
A29: PEMBINA TRAILS | B29: =SUM('- 29 -'!$B29,'- 29 -'!$D29,'- 30 -'!$D29) -> 3918520 | C29: 700000 | D29: 5.597885714
A30: PINE CREEK | B30: =SUM('- 29 -'!$B30,'- 29 -'!$D30,'- 30 -'!$D30) -> 1533772 | C30: 633899 | D30: 2.419584192
A31: PORTAGE LA PRAIRIE | B31: =SUM('- 29 -'!$B31,'- 29 -'!$D31,'- 30 -'!$D31) -> 1330048 | C31: 526168 | D31: 2.527801007
A32: PRAIRIE ROSE | B32: =SUM('- 29 -'!$B32,'- 29 -'!$D32,'- 30 -'!$D32) -> 2398026 | C32: 989402 | D32: 2.423712505
A33: PRAIRIE SPIRIT | B33: =SUM('- 29 -'!$B33,'- 29 -'!$D33,'- 30 -'!$D33) -> 2520575 | C33: 1555750 | D33: 1.620167122
A34: RED RIVER VALLEY | B34: =SUM('- 29 -'!$B34,'- 29 -'!$D34,'- 30 -'!$D34) -> 2892546 | C34: 1386481 | D34: 2.08625001
A35: RIVER EAST TRANSCONA | B35: =SUM('- 29 -'!$B35,'- 29 -'!$D35,'- 30 -'!$D35) -> 5317910 | C35: 1243544 | D35: 4.276414827
A36: ROLLING RIVER | B36: =SUM('- 29 -'!$B36,'- 29 -'!$D36,'- 30 -'!$D36) -> 1818825 | C36: 872182.08 | D36: 2.085373045
A37: SEINE RIVER | B37: =SUM('- 29 -'!$B37,'- 29 -'!$D37,'- 30 -'!$D37) -> 3816128 | C37: 1630972 | D37: 2.339787562
A38: SEVEN OAKS | B38: =SUM('- 29 -'!$B38,'- 29 -'!$D38,'- 30 -'!$D38) -> 4069214 | C38: 966580 | D38: 4.209909164
A39: SOUTHWEST HORIZON | B39: =SUM('- 29 -'!$B39,'- 29 -'!$D39,'- 30 -'!$D39) -> 2408800 | C39: 1025000 | D39: 2.35004878
A40: ST. JAMES-ASSINIBOIA | B40: =SUM('- 29 -'!$B40,'- 29 -'!$D40,'- 30 -'!$D40) -> 2671097 | C40: 650000 | D40: 4.10938
A41: SUNRISE | B41: =SUM('- 29 -'!$B41,'- 29 -'!$D41,'- 30 -'!$D41) -> 5420754 | C41: 1911332 | D41: 2.836113245
A42: SWAN VALLEY | B42: =SUM('- 29 -'!$B42,'- 29 -'!$D42,'- 30 -'!$D42) -> 2090806 | C42: 715000 | D42: 2.924204196
A43: TURTLE MOUNTAIN | B43: =SUM('- 29 -'!$B43,'- 29 -'!$D43,'- 30 -'!$D43) -> 1213577 | C43: 568139 | D43: 2.136056493
A44: TURTLE RIVER | B44: =SUM('- 29 -'!$B44,'- 29 -'!$D44,'- 30 -'!$D44) -> 1243034 | C44: 560720 | D44: 2.216853331
A45: WESTERN | B45: =SUM('- 29 -'!$B45,'- 29 -'!$D45,'- 30 -'!$D45) -> 1042069 | C45: 315000 | D45: 3.308155556
A46: WINNIPEG | B46: =SUM('- 29 -'!$B46,'- 29 -'!$D46,'- 30 -'!$D46) -> 7920429 | C46: 553617 | D46: 14.30669398
A48: PROVINCE | B48: =SUM(B11:B46) -> 111708349 | C48: =SUM(C11:C46) -> 31794978.08 | D48: =B48/C48 -> 3.513396006
A50: WHITESHELL | B50: =SUM('- 29 -'!$B50,'- 29 -'!$D50,'- 30 -'!$D50) -> 60048 | C50: N/A | D50: =IF(AND(CELL("type",C50)="v",C50>0),B50/C50,"") -> 

Sheet - 36 -
A2: ANALYSIS OF OPERATIONS AND MAINTENANCE EXPENSES FOR SCHOOL BUILDINGS | BA2: ANALYSIS OF OPERATIONS AND MAINTENANCE EXPENSES FOR SCHOOL BUILDINGS | BB2: ANALYSE DES DÉPENSES DE FONCTIONNEMENT ET D'ENTRETIEN DES BÂTIMENTS SCOLAIRES
A3: OPERATING FUND 2022/2023 BUDGET
F6: REPAIRS AND REPLACEMENTS
B7: MAINTENANCE | I7: TOTAL
C8: COST PER PUPIL | D8: COST PER SQ FT (1) | E8: SQ FT PER PUPIL (2) | G8: COST PER SQ FT (1) | I8: AREA
A9: DIVISION / DISTRICT | B9: AMOUNT | F9: AMOUNT | I9: Sep 30, 21
A11: BEAUTIFUL PLAINS | B11: ='- 31 -'!D11 -> 1900673 | C11: =B11/'- 7 -'!E11 -> 926.9314801 | D11: =B11/I11 -> 6.092798938 | E11: =I11/'- 7 -'!E11 -> 152.1355767 | F11: ='- 31 -'!F11 -> 267800 | G11: =F11/I11 -> 0.8584599011 | I11: 311954
A12: BORDER LAND | B12: ='- 31 -'!D12 -> 2981558 | C12: =B12/'- 7 -'!E12 -> 1405.73883 | D12: 6.993298854 | E12: =I12/'- 7 -'!E12 -> 201.0122631 | F12: ='- 31 -'!F12 -> 215100 | G12: 0.5045209865 | I12: 426345
A13: BRANDON | B13: ='- 31 -'!D13 -> 8226300 | C13: =B13/'- 7 -'!E13 -> 940.4172621 | D13: 7.279396149 | E13: =I13/'- 7 -'!E13 -> 129.1889111 | F13: ='- 31 -'!F13 -> 547400 | G13: 0.4843904856 | I13: 1130080
A14: DSFM | B14: ='- 31 -'!D14 -> 9522425 | C14: =B14/'- 7 -'!E14 -> 1610.421952 | D14: 8.804904525 | E14: =I14/'- 7 -'!E14 -> 182.9005581 | F14: ='- 31 -'!F14 -> 600000 | G14: 0.5547896376 | I14: 1081491
A15: EVERGREEN | B15: ='- 31 -'!D15 -> 2386370 | C15: =B15/'- 7 -'!E15 -> 1725.502531 | D15: 8.193432537 | E15: =I15/'- 7 -'!E15 -> 210.5958062 | F15: ='- 31 -'!F15 -> 140000 | G15: 0.4806800937 | I15: 291254
A16: FLIN FLON | B16: ='- 31 -'!D16 -> 2033275 | C16: =B16/'- 7 -'!E16 -> 2144.804852 | D16: 9.694033231 | E16: =I16/'- 7 -'!E16 -> 221.25 | F16: ='- 31 -'!F16 -> 80000 | G16: 0.3814155284 | I16: 209745
A17: FORT LA BOSSE | B17: ='- 31 -'!D17 -> 1719074 | C17: =B17/'- 7 -'!E17 -> 1164.289875 | D17: 6.510287629 | E17: =I17/'- 7 -'!E17 -> 178.8384694 | F17: ='- 31 -'!F17 -> 70000 | G17: 0.2650962868 | I17: 264055
A18: FRONTIER | B18: ='- 31 -'!D18 -> 19508055 | C18: =B18/'- 7 -'!E18 -> 3110.588376 | D18: 13.21734986 | E18: =I18/'- 7 -'!E18 -> 235.3413059 | F18: ='- 31 -'!F18 -> 2421578 | G18: 1.640698862 | I18: 1475943
A19: GARDEN VALLEY | B19: ='- 31 -'!D19 -> 4584200 | C19: =B19/'- 7 -'!E19 -> 1111.051866 | D19: 6.402129481 | E19: =I19/'- 7 -'!E19 -> 173.5441105 | F19: ='- 31 -'!F19 -> 107000 | G19: 0.1494323665 | I19: 716043
A20: HANOVER | B20: ='- 31 -'!D20 -> 8322200 | C20: =B20/'- 7 -'!E20 -> 1048.730389 | D20: 7.394743834 | E20: =I20/'- 7 -'!E20 -> 141.8210573 | F20: ='- 31 -'!F20 -> 556500 | G20: 0.4944816207 | I20: 1125421
A21: INTERLAKE | B21: ='- 31 -'!D21 -> 3103000 | C21: =B21/'- 7 -'!E21 -> 1064.8593 | D21: 6.756315402 | E21: =I21/'- 7 -'!E21 -> 157.6094715 | F21: ='- 31 -'!F21 -> 130000 | G21: 0.283055431 | I21: 459274
A22: KELSEY | B22: ='- 31 -'!D22 -> 2345473 | C22: =B22/'- 7 -'!E22 -> 1618.68392 | D22: 6.880479806 | E22: =I22/'- 7 -'!E22 -> 235.2574189 | F22: ='- 31 -'!F22 -> 38000 | G22: 0.1114735632 | I22: 340888
A23: LAKESHORE | B23: ='- 31 -'!D23 -> 1454250 | C23: =B23/'- 7 -'!E23 -> 1582.426551 | D23: 6.234566313 | E23: =I23/'- 7 -'!E23 -> 253.8150163 | F23: ='- 31 -'!F23 -> 140382 | G23: 0.6018366087 | I23: 233256
A24: LORD SELKIRK | B24: ='- 31 -'!D24 -> 5726798 | C24: =B24/'- 7 -'!E24 -> 1539.461828 | D24: 8.055542583 | E24: =I24/'- 7 -'!E24 -> 191.105914 | F24: ='- 31 -'!F24 -> 305800 | G24: 0.4301504823 | I24: 710914
A25: LOUIS RIEL | B25: ='- 31 -'!D25 -> 19140148 | C25: =B25/'- 7 -'!E25 -> 1255.668044 | D25: 8.249530418 | E25: =I25/'- 7 -'!E25 -> 152.2108509 | F25: ='- 31 -'!F25 -> 430020 | G25: 0.185341465 | I25: 2320150
A26: MOUNTAIN VIEW | B26: ='- 31 -'!D26 -> 4717924 | C26: =B26/'- 7 -'!E26 -> 1553.993412 | D26: 6.128742029 | E26: =I26/'- 7 -'!E26 -> 253.5583004 | F26: ='- 31 -'!F26 -> 259700 | G26: 0.3373590386 | I26: 769803
A27: MYSTERY LAKE | B27: ='- 31 -'!D27 -> 4850078 | C27: =B27/'- 7 -'!E27 -> 1740.250449 | D27: 10.33072265 | E27: =I27/'- 7 -'!E27 -> 168.4538931 | F27: ='- 31 -'!F27 -> 606000 | G27: 1.290787061 | I27: 469481 | L27: AREA
A28: PARK WEST | B28: ='- 31 -'!D28 -> 3233583 | C28: =B28/'- 7 -'!E28 -> 1559.104629 | D28: 7.294821904 | E28: =I28/'- 7 -'!E28 -> 213.7275796 | F28: ='- 31 -'!F28 -> 156017 | G28: 0.3519675323 | I28: 443271 | K28: 50000 | L28: Waywayseecapo Included | N28: 50000
A29: PEMBINA TRAILS | B29: ='- 31 -'!D29 -> 16941311 | C29: =B29/'- 7 -'!E29 -> 1143.33898 | D29: 9.15520877 | E29: =I29/'- 7 -'!E29 -> 124.8839877 | F29: ='- 31 -'!F29 -> 1252600 | G29: 0.6769142309 | I29: 1850456
A30: PINE CREEK | B30: ='- 31 -'!D30 -> 1338855 | C30: =B30/'- 7 -'!E30 -> 1211.633484 | D30: 6.383859816 | E30: =I30/'- 7 -'!E30 -> 189.7963801 | F30: ='- 31 -'!F30 -> 119273 | G30: 0.5687114078 | I30: 209725
A31: PORTAGE LA PRAIRIE | B31: ='- 31 -'!D31 -> 3745685 | C31: =B31/'- 7 -'!E31 -> 1103.294551 | D31: 6.324136732 | E31: =I31/'- 7 -'!E31 -> 174.457732 | F31: ='- 31 -'!F31 -> 155000 | G31: 0.2616987796 | I31: 592284
A32: PRAIRIE ROSE | B32: ='- 31 -'!D32 -> 2671590 | C32: =B32/'- 7 -'!E32 -> 1103.051197 | D32: 6.860503934 | E32: =I32/'- 7 -'!E32 -> 160.7828241 | F32: ='- 31 -'!F32 -> 135864 | G32: 0.3488916737 | I32: 389416
A33: PRAIRIE SPIRIT | B33: ='- 31 -'!D33 -> 2841400 | C33: =B33/'- 7 -'!E33 -> 1362.781775 | D33: 5.77573152 | E33: =I33/'- 7 -'!E33 -> 235.9496403 | F33: ='- 31 -'!F33 -> 301435 | G33: 0.6127288065 | I33: 491955
A34: RED RIVER VALLEY | B34: ='- 31 -'!D34 -> 2462241 | C34: =B34/'- 7 -'!E34 -> 1105.780303 | D34: 6.418755426 | E34: =I34/'- 7 -'!E34 -> 172.2733193 | F34: ='- 31 -'!F34 -> 266567 | G34: 0.6949069476 | I34: 383601
A35: RIVER EAST TRANSCONA | B35: ='- 31 -'!D35 -> 20608786 | C35: =B35/'- 7 -'!E35 -> 1249.698987 | D35: 8.357765048 | E35: =I35/'- 7 -'!E35 -> 149.5254988 | F35: ='- 31 -'!F35 -> 523200 | G35: 0.2121805075 | I35: 2465825
A36: ROLLING RIVER | B36: ='- 31 -'!D36 -> 2643225 | C36: =B36/'- 7 -'!E36 -> 1489.140845 | D36: 8.211348901 | E36: =I36/'- 7 -'!E36 -> 181.3515493 | F36: ='- 31 -'!F36 -> 110000 | G36: 0.341722093 | I36: 321899
A37: SEINE RIVER | B37: ='- 31 -'!D37 -> 4609137 | C37: =B37/'- 7 -'!E37 -> 1054.722426 | D37: 7.814440942 | E37: =I37/'- 7 -'!E37 -> 134.9709382 | F37: ='- 31 -'!F37 -> 455000 | G37: 0.771417866 | I37: 589823
A38: SEVEN OAKS | B38: ='- 31 -'!D38 -> 11848000 | C38: =B38/'- 7 -'!E38 -> 1027.277299 | D38: 8.132720954 | E38: =I38/'- 7 -'!E38 -> 126.3140965 | F38: ='- 31 -'!F38 -> 885000 | G38: 0.6074829544 | I38: 1456831
A39: SOUTHWEST HORIZON | B39: ='- 31 -'!D39 -> 2095200 | C39: =B39/'- 7 -'!E39 -> 1447.361149 | D39: 6.598161509 | E39: =I39/'- 7 -'!E39 -> 219.3582481 | F39: ='- 31 -'!F39 -> 160000 | G39: 0.5038687674 | I39: 317543
A40: ST. JAMES-ASSINIBOIA | B40: ='- 31 -'!D40 -> 8886215 | C40: =B40/'- 7 -'!E40 -> 1115.517826 | D40: 6.090411569 | E40: =I40/'- 7 -'!E40 -> 183.1596786 | F40: ='- 31 -'!F40 -> 1238498 | G40: 0.8488386279 | I40: 1459050
A41: SUNRISE | B41: ='- 31 -'!D41 -> 5499575 | C41: =B41/'- 7 -'!E41 -> 1222.807115 | D41: 7.258948005 | E41: =I41/'- 7 -'!E41 -> 168.4551417 | F41: ='- 31 -'!F41 -> 625000 | G41: 0.8249442008 | I41: 757627
A42: SWAN VALLEY | B42: ='- 31 -'!D42 -> 2047840 | C42: =B42/'- 7 -'!E42 -> 1574.05073 | D42: 7.044343617 | E42: =I42/'- 7 -'!E42 -> 223.4488855 | F42: ='- 31 -'!F42 -> 173661 | G42: 0.5973746762 | I42: 290707
A43: TURTLE MOUNTAIN | B43: ='- 31 -'!D43 -> 823331 | C43: =B43/'- 7 -'!E43 -> 847.0483539 | D43: =B43/I43 -> 4.508981478 | E43: =I43/'- 7 -'!E43 -> 187.8580247 | F43: ='- 31 -'!F43 -> 130783 | G43: =F43/I43 -> 0.7162345699 | I43: 182598
A44: TURTLE RIVER | B44: ='- 31 -'!D44 -> 1022126 | C44: =B44/'- 7 -'!E44 -> 1574.924499 | D44: =B44/I44 -> 5.656261241 | E44: =I44/'- 7 -'!E44 -> 278.4391371 | F44: ='- 31 -'!F44 -> 50340 | G44: =F44/I44 -> 0.2785724958 | I44: 180707
A45: WESTERN | B45: ='- 31 -'!D45 -> 1937844 | C45: =B45/'- 7 -'!E45 -> 944.3684211 | D45: =B45/I45 -> 8.62855489 | E45: =I45/'- 7 -'!E45 -> 109.4468811 | F45: ='- 31 -'!F45 -> 138820 | G45: =F45/I45 -> 0.6181178618 | I45: 224585
A46: WINNIPEG | B46: ='- 31 -'!D46 -> 44790176 | C46: =B46/'- 7 -'!E46 -> 1638.175521 | D46: =B46/I46 -> 8.711457398 | E46: =I46/'- 7 -'!E46 -> 188.048388 | F46: ='- 31 -'!F46 -> 6692483 | G46: =F46/I46 -> 1.301653303 | I46: 5141525
A48: PROVINCE | B48: =SUM(B11:B46) -> 242567921 | C48: =B48/'- 7 -'!E48 -> 1350.889803 | D48: =B48/I48 -> 8.062612203 | E48: =I48/'- 7 -'!E48 -> 167.5498919 | F48: =SUM(F11:F46) -> 20484821 | G48: =F48/I48 -> 0.6808862734 | I48: =SUM(I11:I46) -> 30085525
A50: WHITESHELL | B50: ='- 31 -'!D50 -> 502774 | C50: =B50/'- 7 -'!E50 -> 2777.756906 | D50: =B50/I50 -> 6.882035699 | E50: =I50/'- 7 -'!E50 -> 403.6243094 | F50: ='- 31 -'!F50 -> 22000 | G50: N/A | I50: 73056
A52: (1) Based on area (square footage) of active school buildings as at September 30, 2021. Includes rented and leased space.
A53: (2) Square footage (as per note above) divided by total FTE enrolment (from page 7).

Sheet - 37 -
B2: ANALYSIS OF INFORMATION TECHNOLOGY EXPENSES | BA2: ANALYSIS OF INFORMATION TECHNOLOGY EXPENSES | BB2: ANALYSE DES DÉPENSES DE TECHNOLOGIE DE L'INFORMATION
B3: OPERATING FUND 2022/2023 BUDGET
B6: INFORMATION TECHNOLOGY EXPENSES (1)
B7: SALARIES | E7: SERVICES | H7: EQUIPMENT
D8: PER PUPIL | G8: PER PUPIL | J8: PER PUPIL
A9: DIVISION / DISTRICT | B9: AMOUNT | C9: % | E9: AMOUNT | F9: % | H9: AMOUNT | I9: %
A11: BEAUTIFUL PLAINS | B11: 199118 | C11: =B11/'- 3 -'!$D11*100 -> 0.8045696069 | D11: =B11/'- 7 -'!$E11 -> 97.10704706 | E11: 198421 | F11: =E11/'- 3 -'!$D11*100 -> 0.8017532617 | G11: =E11/'- 7 -'!$E11 -> 96.76712997 | H11: 171501 | I11: =H11/'- 3 -'!$D11*100 -> 0.6929784959 | J11: =H11/'- 7 -'!$E11 -> 83.63862473
A12: BORDER LAND | B12: 346494 | C12: =B12/'- 3 -'!$D12*100 -> 0.9469707167 | D12: =B12/'- 7 -'!$E12 -> 163.364278 | E12: 316676 | F12: =E12/'- 3 -'!$D12*100 -> 0.8654778977 | G12: =E12/'- 7 -'!$E12 -> 149.3057487 | H12: 483517 | I12: =H12/'- 3 -'!$D12*100 -> 1.32145561 | J12: =H12/'- 7 -'!$E12 -> 227.9676
A13: BRANDON | B13: 599300 | C13: =B13/'- 3 -'!$D13*100 -> 0.5238526464 | D13: =B13/'- 7 -'!$E13 -> 68.51100314 | E13: 695300 | F13: =E13/'- 3 -'!$D13*100 -> 0.6077669699 | G13: =E13/'- 7 -'!$E13 -> 79.4855673 | H13: 914700 | I13: =H13/'- 3 -'!$D13*100 -> 0.7995461634 | J13: =H13/'- 7 -'!$E13 -> 104.5670191
A14: DSFM | B14: 572305 | C14: =B14/'- 3 -'!$D14*100 -> 0.5455491788 | D14: =B14/'- 7 -'!$E14 -> 96.78758667 | E14: 573927 | F14: =E14/'- 3 -'!$D14*100 -> 0.5470953487 | G14: =E14/'- 7 -'!$E14 -> 97.06189751 | H14: 774963 | I14: =H14/'- 3 -'!$D14*100 -> 0.7387327182 | J14: =H14/'- 7 -'!$E14 -> 131.0608828
A15: EVERGREEN | B15: 152000 | C15: =B15/'- 3 -'!$D15*100 -> 0.6868786742 | D15: =B15/'- 7 -'!$E15 -> 109.9060014 | E15: 222900 | F15: =E15/'- 3 -'!$D15*100 -> 1.007271424 | G15: =E15/'- 7 -'!$E15 -> 161.1713666 | H15: 26200 | I15: =H15/'- 3 -'!$D15*100 -> 0.1183961925 | J15: =H15/'- 7 -'!$E15 -> 18.94432393
A16: FLIN FLON | B16: 0 | C16: =B16/'- 3 -'!$D16*100 -> 0 | D16: =B16/'- 7 -'!$E16 -> 0 | E16: 186951 | F16: =E16/'- 3 -'!$D16*100 -> 1.160109451 | G16: =E16/'- 7 -'!$E16 -> 197.2056962 | H16: 35513 | I16: =H16/'- 3 -'!$D16*100 -> 0.220373076 | J16: =H16/'- 7 -'!$E16 -> 37.46097046
A17: FORT LA BOSSE | B17: 137000 | C17: =B17/'- 3 -'!$D17*100 -> 0.674794775 | D17: =B17/'- 7 -'!$E17 -> 92.78699627 | E17: 160370 | F17: =E17/'- 3 -'!$D17*100 -> 0.7899039274 | G17: =E17/'- 7 -'!$E17 -> 108.6149678 | H17: 131395 | I17: =H17/'- 3 -'!$D17*100 -> 0.6471872953 | J17: =H17/'- 7 -'!$E17 -> 88.99085676
A18: FRONTIER | B18: 392014 | C18: =B18/'- 3 -'!$D18*100 -> 0.2529333576 | D18: =B18/'- 7 -'!$E18 -> 62.50721518 | E18: 0 | F18: =E18/'- 3 -'!$D18*100 -> 0 | G18: =E18/'- 7 -'!$E18 -> 0 | H18: 1921295 | I18: =H18/'- 3 -'!$D18*100 -> 1.239648572 | J18: =H18/'- 7 -'!$E18 -> 306.3533445
A19: GARDEN VALLEY | B19: 489000 | C19: =B19/'- 3 -'!$D19*100 -> 0.9485420772 | D19: =B19/'- 7 -'!$E19 -> 118.5167232 | E19: 212400 | F19: =E19/'- 3 -'!$D19*100 -> 0.4120047796 | G19: =E19/'- 7 -'!$E19 -> 51.47842947 | H19: 501500 | I19: =H19/'- 3 -'!$D19*100 -> 0.9727890629 | J19: =H19/'- 7 -'!$E19 -> 121.5462918
A20: HANOVER | B20: 738600 | C20: =B20/'- 3 -'!$D20*100 -> 0.7654845841 | D20: =B20/'- 7 -'!$E20 -> 93.07542058 | E20: 387000 | F20: =E20/'- 3 -'!$D20*100 -> 0.4010865611 | G20: =E20/'- 7 -'!$E20 -> 48.76819356 | H20: 2002700 | I20: =H20/'- 3 -'!$D20*100 -> 2.075597044 | J20: =H20/'- 7 -'!$E20 -> 252.3722513
A21: INTERLAKE | B21: 318500 | C21: =B21/'- 3 -'!$D21*100 -> 0.7924620315 | D21: =B21/'- 7 -'!$E21 -> 109.2999314 | E21: 162600 | F21: =E21/'- 3 -'!$D21*100 -> 0.4045661737 | G21: =E21/'- 7 -'!$E21 -> 55.79958819 | H21: 371035 | I21: =H21/'- 3 -'!$D21*100 -> 0.9231747248 | J21: =H21/'- 7 -'!$E21 -> 127.3284146
A22: KELSEY | B22: 94957 | C22: =B22/'- 3 -'!$D22*100 -> 0.4528277449 | D22: =B22/'- 7 -'!$E22 -> 65.53278123 | E22: 20030 | F22: =E22/'- 3 -'!$D22*100 -> 0.0955183897 | G22: =E22/'- 7 -'!$E22 -> 13.82332643 | H22: 227189 | I22: =H22/'- 3 -'!$D22*100 -> 1.083411255 | J22: =H22/'- 7 -'!$E22 -> 156.7902001
A23: LAKESHORE | B23: 132000 | C23: =B23/'- 3 -'!$D23*100 -> 0.7915970296 | D23: =B23/'- 7 -'!$E23 -> 143.6343852 | E23: 90500 | F23: =E23/'- 3 -'!$D23*100 -> 0.5427237211 | G23: =E23/'- 7 -'!$E23 -> 98.47660501 | H23: 150000 | I23: =H23/'- 3 -'!$D23*100 -> 0.8995420791 | J23: =H23/'- 7 -'!$E23 -> 163.2208923
A24: LORD SELKIRK | B24: 530588 | C24: =B24/'- 3 -'!$D24*100 -> 0.8601622148 | D24: =B24/'- 7 -'!$E24 -> 142.6311828 | E24: 461805 | F24: =E24/'- 3 -'!$D24*100 -> 0.7486547219 | G24: =E24/'- 7 -'!$E24 -> 124.141129 | H24: 804456 | I24: =H24/'- 3 -'!$D24*100 -> 1.304143054 | J24: =H24/'- 7 -'!$E24 -> 216.2516129
A25: LOUIS RIEL | B25: 1028906 | C25: =B25/'- 3 -'!$D25*100 -> 0.4961127892 | D25: =B25/'- 7 -'!$E25 -> 67.50022961 | E25: 1495621 | F25: =E25/'- 3 -'!$D25*100 -> 0.7211511119 | G25: =E25/'- 7 -'!$E25 -> 98.11854622 | H25: 1626501 | I25: =H25/'- 3 -'!$D25*100 -> 0.7842581808 | J25: =H25/'- 7 -'!$E25 -> 106.7047825
A26: MOUNTAIN VIEW | B26: 428218 | C26: =B26/'- 3 -'!$D26*100 -> 0.9618279083 | D26: =B26/'- 7 -'!$E26 -> 141.0467721 | E26: 545669 | F26: =E26/'- 3 -'!$D26*100 -> 1.225636645 | G26: =E26/'- 7 -'!$E26 -> 179.7328722 | H26: 356118 | I26: =H26/'- 3 -'!$D26*100 -> 0.7998828425 | J26: =H26/'- 7 -'!$E26 -> 117.298419
A27: MYSTERY LAKE | B27: 138585 | C27: =B27/'- 3 -'!$D27*100 -> 0.3066841341 | D27: =B27/'- 7 -'!$E27 -> 49.7255113 | E27: 192750 | F27: =E27/'- 3 -'!$D27*100 -> 0.4265495316 | G27: =E27/'- 7 -'!$E27 -> 69.16038751 | H27: 170800 | I27: =H27/'- 3 -'!$D27*100 -> 0.3779748898 | J27: =H27/'- 7 -'!$E27 -> 61.28453534
A28: PARK WEST | B28: 266722 | C28: =B28/'- 3 -'!$D28*100 -> 0.8529211338 | D28: =B28/'- 7 -'!$E28 -> 128.6027001 | E28: 238700 | F28: =E28/'- 3 -'!$D28*100 -> 0.7633126426 | G28: =E28/'- 7 -'!$E28 -> 115.0916104 | H28: 318241 | I28: =H28/'- 3 -'!$D28*100 -> 1.017668113 | J28: =H28/'- 7 -'!$E28 -> 153.4431051
A29: PEMBINA TRAILS | B29: 1614981 | C29: =B29/'- 3 -'!$D29*100 -> 0.8382811971 | D29: =B29/'- 7 -'!$E29 -> 108.9921984 | E29: 1498473 | F29: =E29/'- 3 -'!$D29*100 -> 0.7778058938 | G29: =E29/'- 7 -'!$E29 -> 101.1292804 | H29: 1255500 | I29: =H29/'- 3 -'!$D29*100 -> 0.6516869505 | J29: =H29/'- 7 -'!$E29 -> 84.73146436
A30: PINE CREEK | B30: 157313 | C30: =B30/'- 3 -'!$D30*100 -> 0.9530160708 | D30: =B30/'- 7 -'!$E30 -> 142.3647059 | E30: 143090 | F30: =E30/'- 3 -'!$D30*100 -> 0.8668518786 | G30: =E30/'- 7 -'!$E30 -> 129.4932127 | H30: 130297 | I30: =H30/'- 3 -'!$D30*100 -> 0.7893507528 | J30: =H30/'- 7 -'!$E30 -> 117.9158371
A31: PORTAGE LA PRAIRIE | B31: 363000 | C31: =B31/'- 3 -'!$D31*100 -> 0.8323895572 | D31: =B31/'- 7 -'!$E31 -> 106.921944 | E31: 263580 | F31: =E31/'- 3 -'!$D31*100 -> 0.6044111281 | G31: =E31/'- 7 -'!$E31 -> 77.6377025 | H31: 175369 | I31: =H31/'- 3 -'!$D31*100 -> 0.4021358795 | J31: =H31/'- 7 -'!$E31 -> 51.655081
A32: PRAIRIE ROSE | B32: 332900 | C32: =B32/'- 3 -'!$D32*100 -> 1.007545941 | D32: =B32/'- 7 -'!$E32 -> 137.4483898 | E32: 180750 | F32: =E32/'- 3 -'!$D32*100 -> 0.5470529554 | G32: =E32/'- 7 -'!$E32 -> 74.62840628 | H32: 247147 | I32: =H32/'- 3 -'!$D32*100 -> 0.7480082808 | J32: =H32/'- 7 -'!$E32 -> 102.0425268
A33: PRAIRIE SPIRIT | B33: 322000 | C33: =B33/'- 3 -'!$D33*100 -> 1.072565484 | D33: =B33/'- 7 -'!$E33 -> 154.4364508 | E33: 320205 | F33: =E33/'- 3 -'!$D33*100 -> 1.066586431 | G33: =E33/'- 7 -'!$E33 -> 153.5755396 | H33: 149902 | I33: =H33/'- 3 -'!$D33*100 -> 0.4993158731 | J33: =H33/'- 7 -'!$E33 -> 71.89544365
A34: RED RIVER VALLEY | B34: 215996 | C34: =B34/'- 3 -'!$D34*100 -> 0.6313432538 | D34: =B34/'- 7 -'!$E34 -> 97.00273948 | E34: 174642 | F34: =E34/'- 3 -'!$D34*100 -> 0.5104680111 | G34: =E34/'- 7 -'!$E34 -> 78.43086181 | H34: 228948 | I34: =H34/'- 3 -'!$D34*100 -> 0.669201167 | J34: =H34/'- 7 -'!$E34 -> 102.8194189
A35: RIVER EAST TRANSCONA | B35: 943531 | C35: =B35/'- 3 -'!$D35*100 -> 0.4388124797 | D35: =B35/'- 7 -'!$E35 -> 57.2149051 | E35: 828662 | F35: =E35/'- 3 -'!$D35*100 -> 0.3853898039 | G35: =E35/'- 7 -'!$E35 -> 50.24934813 | H35: 1911169 | I35: =H35/'- 3 -'!$D35*100 -> 0.8888365173 | J35: =H35/'- 7 -'!$E35 -> 115.8916379
A36: ROLLING RIVER | B36: 211500 | C36: =B36/'- 3 -'!$D36*100 -> 0.8270772985 | D36: =B36/'- 7 -'!$E36 -> 119.1549296 | E36: 238250 | F36: =E36/'- 3 -'!$D36*100 -> 0.9316840017 | G36: =E36/'- 7 -'!$E36 -> 134.2253521 | H36: 311875 | I36: =H36/'- 3 -'!$D36*100 -> 1.219596844 | J36: =H36/'- 7 -'!$E36 -> 175.7042254
A37: SEINE RIVER | B37: 330000 | C37: =B37/'- 3 -'!$D37*100 -> 0.5616401799 | D37: =B37/'- 7 -'!$E37 -> 75.51487414 | E37: 743700 | F37: =E37/'- 3 -'!$D37*100 -> 1.265732733 | G37: =E37/'- 7 -'!$E37 -> 170.1830664 | H37: 594400 | I37: =H37/'- 3 -'!$D37*100 -> 1.0116331 | J37: =H37/'- 7 -'!$E37 -> 136.0183066
A38: SEVEN OAKS | B38: 346210 | C38: =B38/'- 3 -'!$D38*100 -> 0.2160016851 | D38: =B38/'- 7 -'!$E38 -> 30.01803458 | E38: 780663 | F38: =E38/'- 3 -'!$D38*100 -> 0.4870585006 | G38: =E38/'- 7 -'!$E38 -> 67.6871521 | H38: 1286240 | I38: =H38/'- 3 -'!$D38*100 -> 0.8024898398 | J38: =H38/'- 7 -'!$E38 -> 111.5230548
A39: SOUTHWEST HORIZON | B39: 168800 | C39: =B39/'- 3 -'!$D39*100 -> 0.6880640454 | D39: =B39/'- 7 -'!$E39 -> 116.6067975 | E39: 129400 | F39: =E39/'- 3 -'!$D39*100 -> 0.5274614187 | G39: =E39/'- 7 -'!$E39 -> 89.38933407 | H39: 44100 | I39: =H39/'- 3 -'!$D39*100 -> 0.1797608081 | J39: =H39/'- 7 -'!$E39 -> 30.46421663
A40: ST. JAMES-ASSINIBOIA | B40: 711632 | C40: =B40/'- 3 -'!$D40*100 -> 0.6046060875 | D40: =B40/'- 7 -'!$E40 -> 89.33366809 | E40: 630937 | F40: =E40/'- 3 -'!$D40*100 -> 0.536047214 | G40: =E40/'- 7 -'!$E40 -> 79.2037409 | H40: 953325 | I40: =H40/'- 3 -'!$D40*100 -> 0.8099496627 | J40: =H40/'- 7 -'!$E40 -> 119.6742405
A41: SUNRISE | B41: 461847 | C41: =B41/'- 3 -'!$D41*100 -> 0.6474978396 | D41: =B41/'- 7 -'!$E41 -> 102.6897165 | E41: 719570 | F41: =E41/'- 3 -'!$D41*100 -> 1.008818982 | G41: =E41/'- 7 -'!$E41 -> 159.9933296 | H41: 110802 | I41: =H41/'- 3 -'!$D41*100 -> 0.155341608 | J41: =H41/'- 7 -'!$E41 -> 24.63635353
A42: SWAN VALLEY | B42: 243119 | C42: =B42/'- 3 -'!$D42*100 -> 1.027809393 | D42: =B42/'- 7 -'!$E42 -> 186.8708686 | E42: 243630 | F42: =E42/'- 3 -'!$D42*100 -> 1.029969696 | G42: =E42/'- 7 -'!$E42 -> 187.2636434 | H42: 99250 | I42: =H42/'- 3 -'!$D42*100 -> 0.4195890995 | J42: =H42/'- 7 -'!$E42 -> 76.28747118
A43: TURTLE MOUNTAIN | B43: 47953 | C43: =B43/'- 3 -'!$D43*100 -> 0.3306517625 | D43: =B43/'- 7 -'!$E43 -> 49.33436214 | E43: 103393 | F43: =E43/'- 3 -'!$D43*100 -> 0.7129288611 | G43: =E43/'- 7 -'!$E43 -> 106.3713992 | H43: 204171 | I43: =H43/'- 3 -'!$D43*100 -> 1.407826434 | J43: =H43/'- 7 -'!$E43 -> 210.0524691
A44: TURTLE RIVER | B44: 133813 | C44: =B44/'- 3 -'!$D44*100 -> 1.109438272 | D44: =B44/'- 7 -'!$E44 -> 206.183359 | E44: 79000 | F44: =E44/'- 3 -'!$D44*100 -> 0.6549858643 | G44: =E44/'- 7 -'!$E44 -> 121.7257319 | H44: 136143 | I44: =H44/'- 3 -'!$D44*100 -> 1.128756209 | J44: =H44/'- 7 -'!$E44 -> 209.7734977
A45: WESTERN | B45: 265026 | C45: =B45/'- 3 -'!$D45*100 -> 1.058903077 | D45: =B45/'- 7 -'!$E45 -> 129.1549708 | E45: 102400 | F45: =E45/'- 3 -'!$D45*100 -> 0.4091359907 | G45: =E45/'- 7 -'!$E45 -> 49.90253411 | H45: 165681 | I45: =H45/'- 3 -'!$D45*100 -> 0.6619732429 | J45: =H45/'- 7 -'!$E45 -> 80.74122807
A46: WINNIPEG | B46: 1075300 | C46: =B46/'- 3 -'!$D46*100 -> 0.2484004873 | D46: =B46/'- 7 -'!$E46 -> 39.32849332 | E46: 1392881 | F46: =E46/'- 3 -'!$D46*100 -> 0.3217635256 | G46: =E46/'- 7 -'!$E46 -> 50.94383995 | H46: 2809355 | I46: =H46/'- 3 -'!$D46*100 -> 0.64897717 | J46: =H46/'- 7 -'!$E46 -> 102.7505806
A48: PROVINCE | B48: =SUM(B11:B46) -> 14509228 | C48: =B48/'- 3 -'!$D48*100 -> 0.549282779 | D48: =B48/'- 7 -'!$E48 -> 80.80362844 | E48: =SUM(E11:E46) -> 14734846 | F48: =E48/'- 3 -'!$D48*100 -> 0.5578241075 | G48: =E48/'- 7 -'!$E48 -> 82.0601221 | H48: =SUM(H11:H46) -> 21801298 | I48: =H48/'- 3 -'!$D48*100 -> 0.8253421583 | J48: =H48/'- 7 -'!$E48 -> 121.4140396
A50: WHITESHELL | B50: 0 | C50: =B50/'- 3 -'!$D50*100 -> 0 | D50: =B50/'- 7 -'!$E50 -> 0 | E50: 35000 | F50: =E50/'- 3 -'!$D50*100 -> 0.931610542 | G50: =E50/'- 7 -'!$E50 -> 193.3701657 | H50: 15000 | I50: =H50/'- 3 -'!$D50*100 -> 0.3992616608 | J50: =H50/'- 7 -'!$E50 -> 82.87292818
A52: (1) Excludes information technology expenses in Function 300 (Adult Learning Centres) and Function 400 (Community Education and Services) and Management Information Services in Function 500. Total expenses for Management Information Services are included on page 38 and form part of total Information Technology Expenses.

Sheet - 38 -
B2: =+'- 37 -'!B2 -> ANALYSIS OF INFORMATION TECHNOLOGY EXPENSES
B3: =OPYEAR -> OPERATING FUND 2022/2023 BUDGET
B5: INFORMATION TECHNOLOGY EXPENSES (1)
B6: MANAGEMENT INFORMATION SERVICES (2)
E7: TOTAL
D8: PER PUPIL | G8: PER PUPIL
A9: DIVISION / DISTRICT | B9: AMOUNT | C9: % | E9: AMOUNT | F9: %
A11: BEAUTIFUL PLAINS | B11: ='- 26 -'!B11 -> 15500 | C11: ='- 26 -'!C11 -> 0.06263034435 | D11: ='- 26 -'!D11 -> 7.559131919 | E11: =SUM('- 37 -'!B11,'- 37 -'!E11,'- 37 -'!H11,B11) -> 584540 | F11: =E11/'- 3 -'!D11*100 -> 2.361931709 | G11: =E11/'- 7 -'!E11 -> 285.0719337
A12: BORDER LAND | B12: ='- 26 -'!B12 -> 66717 | C12: ='- 26 -'!C12 -> 0.1823380645 | D12: ='- 26 -'!D12 -> 31.45559385 | E12: =SUM('- 37 -'!B12,'- 37 -'!E12,'- 37 -'!H12,B12) -> 1213404 | F12: =E12/'- 3 -'!D12*100 -> 3.316242288 | G12: =E12/'- 7 -'!E12 -> 572.0932206
A13: BRANDON | B13: ='- 26 -'!B13 -> 336700 | C13: ='- 26 -'!C13 -> 0.2943120074 | D13: ='- 26 -'!D13 -> 38.49099743 | E13: =SUM('- 37 -'!B13,'- 37 -'!E13,'- 37 -'!H13,B13) -> 2546000 | F13: =E13/'- 3 -'!D13*100 -> 2.225477787 | G13: =E13/'- 7 -'!E13 -> 291.054587
A14: DSFM | B14: ='- 26 -'!B14 -> 129219 | C14: ='- 26 -'!C14 -> 0.1231778848 | D14: ='- 26 -'!D14 -> 21.85337392 | E14: =SUM('- 37 -'!B14,'- 37 -'!E14,'- 37 -'!H14,B14) -> 2050414 | F14: =E14/'- 3 -'!D14*100 -> 1.95455513 | G14: =E14/'- 7 -'!E14 -> 346.7637409
A15: EVERGREEN | B15: ='- 26 -'!B15 -> 50000 | C15: ='- 26 -'!C15 -> 0.2259469323 | D15: ='- 26 -'!D15 -> 36.15328995 | E15: =SUM('- 37 -'!B15,'- 37 -'!E15,'- 37 -'!H15,B15) -> 451100 | F15: =E15/'- 3 -'!D15*100 -> 2.038493223 | G15: =E15/'- 7 -'!E15 -> 326.1749819
A16: FLIN FLON | B16: ='- 26 -'!B16 -> 38578 | C16: ='- 26 -'!C16 -> 0.239392688 | D16: ='- 26 -'!D16 -> 40.69409283 | E16: =SUM('- 37 -'!B16,'- 37 -'!E16,'- 37 -'!H16,B16) -> 261042 | F16: =E16/'- 3 -'!D16*100 -> 1.619875215 | G16: =E16/'- 7 -'!E16 -> 275.3607595
A17: FORT LA BOSSE | B17: ='- 26 -'!B17 -> 90683 | C17: ='- 26 -'!C17 -> 0.4466599604 | D17: ='- 26 -'!D17 -> 61.41754148 | E17: =SUM('- 37 -'!B17,'- 37 -'!E17,'- 37 -'!H17,B17) -> 519448 | F17: =E17/'- 3 -'!D17*100 -> 2.558545958 | G17: =E17/'- 7 -'!E17 -> 351.8103623
A18: FRONTIER | B18: ='- 26 -'!B18 -> 810815 | C18: ='- 26 -'!C18 -> 0.5231500925 | D18: ='- 26 -'!D18 -> 129.2856573 | E18: =SUM('- 37 -'!B18,'- 37 -'!E18,'- 37 -'!H18,B18) -> 3124124 | F18: =E18/'- 3 -'!D18*100 -> 2.015732022 | G18: =E18/'- 7 -'!E18 -> 498.146217
A19: GARDEN VALLEY | B19: ='- 26 -'!B19 -> 159000 | C19: ='- 26 -'!C19 -> 0.308421657 | D19: ='- 26 -'!D19 -> 38.53611246 | E19: =SUM('- 37 -'!B19,'- 37 -'!E19,'- 37 -'!H19,B19) -> 1361900 | F19: =E19/'- 3 -'!D19*100 -> 2.641757577 | G19: =E19/'- 7 -'!E19 -> 330.077557
A20: HANOVER | B20: ='- 26 -'!B20 -> 106500 | C20: ='- 26 -'!C20 -> 0.1103765343 | D20: ='- 26 -'!D20 -> 13.42070443 | E20: =SUM('- 37 -'!B20,'- 37 -'!E20,'- 37 -'!H20,B20) -> 3234800 | F20: =E20/'- 3 -'!D20*100 -> 3.352544723 | G20: =E20/'- 7 -'!E20 -> 407.6365698
A21: INTERLAKE | B21: ='- 26 -'!B21 -> 52000 | C21: ='- 26 -'!C21 -> 0.1293815562 | D21: ='- 26 -'!D21 -> 17.84488675 | E21: =SUM('- 37 -'!B21,'- 37 -'!E21,'- 37 -'!H21,B21) -> 904135 | F21: =E21/'- 3 -'!D21*100 -> 2.249584486 | G21: =E21/'- 7 -'!E21 -> 310.2728209
A22: KELSEY | B22: ='- 26 -'!B22 -> 15000 | C22: ='- 26 -'!C22 -> 0.07153149503 | D22: ='- 26 -'!D22 -> 10.35196687 | E22: =SUM('- 37 -'!B22,'- 37 -'!E22,'- 37 -'!H22,B22) -> 357176 | F22: =E22/'- 3 -'!D22*100 -> 1.703288885 | G22: =E22/'- 7 -'!E22 -> 246.4982747
A23: LAKESHORE | B23: ='- 26 -'!B23 -> 20000 | C23: ='- 26 -'!C23 -> 0.1199389439 | D23: ='- 26 -'!D23 -> 21.76278564 | E23: =SUM('- 37 -'!B23,'- 37 -'!E23,'- 37 -'!H23,B23) -> 392500 | F23: =E23/'- 3 -'!D23*100 -> 2.353801774 | G23: =E23/'- 7 -'!E23 -> 427.0946681
A24: LORD SELKIRK | B24: ='- 26 -'!B24 -> 170512 | C24: ='- 26 -'!C24 -> 0.2764253612 | D24: ='- 26 -'!D24 -> 45.83655914 | E24: =SUM('- 37 -'!B24,'- 37 -'!E24,'- 37 -'!H24,B24) -> 1967361 | F24: =E24/'- 3 -'!D24*100 -> 3.189385352 | G24: =E24/'- 7 -'!E24 -> 528.8604839
A25: LOUIS RIEL | B25: ='- 26 -'!B25 -> 1256604 | C25: ='- 26 -'!C25 -> 0.6059030809 | D25: ='- 26 -'!D25 -> 82.43810274 | E25: =SUM('- 37 -'!B25,'- 37 -'!E25,'- 37 -'!H25,B25) -> 5407632 | F25: =E25/'- 3 -'!D25*100 -> 2.607425163 | G25: =E25/'- 7 -'!E25 -> 354.7616611
A26: MOUNTAIN VIEW | B26: ='- 26 -'!B26 -> 34000 | C26: ='- 26 -'!C26 -> 0.0763679922 | D26: ='- 26 -'!D26 -> 11.19894598 | E26: =SUM('- 37 -'!B26,'- 37 -'!E26,'- 37 -'!H26,B26) -> 1364005 | F26: =E26/'- 3 -'!D26*100 -> 3.063715388 | G26: =E26/'- 7 -'!E26 -> 449.2770092
A27: MYSTERY LAKE | B27: ='- 26 -'!B27 -> 258216 | C27: ='- 26 -'!C27 -> 0.5714236776 | D27: ='- 26 -'!D27 -> 92.65016146 | E27: =SUM('- 37 -'!B27,'- 37 -'!E27,'- 37 -'!H27,B27) -> 760351 | F27: =E27/'- 3 -'!D27*100 -> 1.682632233 | G27: =E27/'- 7 -'!E27 -> 272.8205956
A28: PARK WEST | B28: ='- 26 -'!B28 -> 85050 | C28: ='- 26 -'!C28 -> 0.2719720999 | D28: ='- 26 -'!D28 -> 41.00771456 | E28: =SUM('- 37 -'!B28,'- 37 -'!E28,'- 37 -'!H28,B28) -> 908713 | F28: =E28/'- 3 -'!D28*100 -> 2.90587399 | G28: =E28/'- 7 -'!E28 -> 438.1451302
A29: PEMBINA TRAILS | B29: ='- 26 -'!B29 -> 985744 | C29: ='- 26 -'!C29 -> 0.5116658712 | D29: ='- 26 -'!D29 -> 66.52611119 | E29: =SUM('- 37 -'!B29,'- 37 -'!E29,'- 37 -'!H29,B29) -> 5354698 | F29: =E29/'- 3 -'!D29*100 -> 2.779439913 | G29: =E29/'- 7 -'!E29 -> 361.3790544
A30: PINE CREEK | B30: ='- 26 -'!B30 -> 23968 | C30: ='- 26 -'!C30 -> 0.1452002644 | D30: ='- 26 -'!D30 -> 21.69049774 | E30: =SUM('- 37 -'!B30,'- 37 -'!E30,'- 37 -'!H30,B30) -> 454668 | F30: =E30/'- 3 -'!D30*100 -> 2.754418967 | G30: =E30/'- 7 -'!E30 -> 411.4642534
A31: PORTAGE LA PRAIRIE | B31: ='- 26 -'!B31 -> 68800 | C31: ='- 26 -'!C31 -> 0.1577641916 | D31: ='- 26 -'!D31 -> 20.26509573 | E31: =SUM('- 37 -'!B31,'- 37 -'!E31,'- 37 -'!H31,B31) -> 870749 | F31: =E31/'- 3 -'!D31*100 -> 1.996700756 | G31: =E31/'- 7 -'!E31 -> 256.4798233
A32: PRAIRIE ROSE | B32: ='- 26 -'!B32 -> 55000 | C32: ='- 26 -'!C32 -> 0.1664614802 | D32: ='- 26 -'!D32 -> 22.70850537 | E32: =SUM('- 37 -'!B32,'- 37 -'!E32,'- 37 -'!H32,B32) -> 815797 | F32: =E32/'- 3 -'!D32*100 -> 2.469068657 | G32: =E32/'- 7 -'!E32 -> 336.8278282
A33: PRAIRIE SPIRIT | B33: ='- 26 -'!B33 -> 40750 | C33: ='- 26 -'!C33 -> 0.1357361598 | D33: ='- 26 -'!D33 -> 19.54436451 | E33: =SUM('- 37 -'!B33,'- 37 -'!E33,'- 37 -'!H33,B33) -> 832857 | F33: =E33/'- 3 -'!D33*100 -> 2.774203947 | G33: =E33/'- 7 -'!E33 -> 399.4517986
A34: RED RIVER VALLEY | B34: ='- 26 -'!B34 -> 67647 | C34: ='- 26 -'!C34 -> 0.1977280926 | D34: ='- 26 -'!D34 -> 30.37993443 | E34: =SUM('- 37 -'!B34,'- 37 -'!E34,'- 37 -'!H34,B34) -> 687233 | F34: =E34/'- 3 -'!D34*100 -> 2.008740525 | G34: =E34/'- 7 -'!E34 -> 308.6329546
A35: RIVER EAST TRANSCONA | B35: ='- 26 -'!B35 -> 1238857 | C35: ='- 26 -'!C35 -> 0.5761611565 | D35: ='- 26 -'!D35 -> 75.12321873 | E35: =SUM('- 37 -'!B35,'- 37 -'!E35,'- 37 -'!H35,B35) -> 4922219 | F35: =E35/'- 3 -'!D35*100 -> 2.289199957 | G35: =E35/'- 7 -'!E35 -> 298.4791098
A36: ROLLING RIVER | B36: ='- 26 -'!B36 -> 30000 | C36: ='- 26 -'!C36 -> 0.1173159289 | D36: ='- 26 -'!D36 -> 16.90140845 | E36: =SUM('- 37 -'!B36,'- 37 -'!E36,'- 37 -'!H36,B36) -> 791625 | F36: =E36/'- 3 -'!D36*100 -> 3.095674073 | G36: =E36/'- 7 -'!E36 -> 445.9859155
A37: SEINE RIVER | B37: ='- 26 -'!B37 -> 101500 | C37: ='- 26 -'!C37 -> 0.1727469038 | D37: ='- 26 -'!D37 -> 23.22654462 | E37: =SUM('- 37 -'!B37,'- 37 -'!E37,'- 37 -'!H37,B37) -> 1769600 | F37: =E37/'- 3 -'!D37*100 -> 3.011752916 | G37: =E37/'- 7 -'!E37 -> 404.9427918
A38: SEVEN OAKS | B38: ='- 26 -'!B38 -> 670790 | C38: ='- 26 -'!C38 -> 0.4185083341 | D38: ='- 26 -'!D38 -> 58.16064647 | E38: =SUM('- 37 -'!B38,'- 37 -'!E38,'- 37 -'!H38,B38) -> 3083903 | F38: =E38/'- 3 -'!D38*100 -> 1.92405836 | G38: =E38/'- 7 -'!E38 -> 267.3888879
A39: SOUTHWEST HORIZON | B39: ='- 26 -'!B39 -> 59400 | C39: ='- 26 -'!C39 -> 0.2421268027 | D39: ='- 26 -'!D39 -> 41.03343465 | E39: =SUM('- 37 -'!B39,'- 37 -'!E39,'- 37 -'!H39,B39) -> 401700 | F39: =E39/'- 3 -'!D39*100 -> 1.637413075 | G39: =E39/'- 7 -'!E39 -> 277.4937828
A40: ST. JAMES-ASSINIBOIA | B40: ='- 26 -'!B40 -> 428630 | C40: ='- 26 -'!C40 -> 0.3641661804 | D40: ='- 26 -'!D40 -> 53.80743158 | E40: =SUM('- 37 -'!B40,'- 37 -'!E40,'- 37 -'!H40,B40) -> 2724524 | F40: =E40/'- 3 -'!D40*100 -> 2.314769145 | G40: =E40/'- 7 -'!E40 -> 342.0190811
A41: SUNRISE | B41: ='- 26 -'!B41 -> 131012 | C41: ='- 26 -'!C41 -> 0.183675518 | D41: ='- 26 -'!D41 -> 29.12996109 | E41: =SUM('- 37 -'!B41,'- 37 -'!E41,'- 37 -'!H41,B41) -> 1423231 | F41: =E41/'- 3 -'!D41*100 -> 1.995333948 | G41: =E41/'- 7 -'!E41 -> 316.4493608
A42: SWAN VALLEY | B42: ='- 26 -'!B42 -> 17500 | C42: ='- 26 -'!C42 -> 0.07398296464 | D42: ='- 26 -'!D42 -> 13.45119139 | E42: =SUM('- 37 -'!B42,'- 37 -'!E42,'- 37 -'!H42,B42) -> 603499 | F42: =E42/'- 3 -'!D42*100 -> 2.551351153 | G42: =E42/'- 7 -'!E42 -> 463.8731745
A43: TURTLE MOUNTAIN | B43: ='- 26 -'!B43 -> 21582 | C43: ='- 26 -'!C43 -> 0.1488150134 | D43: ='- 26 -'!D43 -> 22.2037037 | E43: =SUM('- 37 -'!B43,'- 37 -'!E43,'- 37 -'!H43,B43) -> 377099 | F43: =E43/'- 3 -'!D43*100 -> 2.600222071 | G43: =E43/'- 7 -'!E43 -> 387.9619342
A44: TURTLE RIVER | B44: ='- 26 -'!B44 -> 8500 | C44: ='- 26 -'!C44 -> 0.07047316262 | D44: ='- 26 -'!D44 -> 13.09707242 | E44: =SUM('- 37 -'!B44,'- 37 -'!E44,'- 37 -'!H44,B44) -> 357456 | F44: =E44/'- 3 -'!D44*100 -> 2.963653508 | G44: =E44/'- 7 -'!E44 -> 550.779661
A45: WESTERN | B45: ='- 26 -'!B45 -> 58000 | C45: ='- 26 -'!C45 -> 0.2317371822 | D45: ='- 26 -'!D45 -> 28.26510721 | E45: =SUM('- 37 -'!B45,'- 37 -'!E45,'- 37 -'!H45,B45) -> 591107 | F45: =E45/'- 3 -'!D45*100 -> 2.361749493 | G45: =E45/'- 7 -'!E45 -> 288.0638402
A46: WINNIPEG | B46: ='- 26 -'!B46 -> 937300 | C46: ='- 26 -'!C46 -> 0.2165216932 | D46: ='- 26 -'!D46 -> 34.28122085 | E46: =SUM('- 37 -'!B46,'- 37 -'!E46,'- 37 -'!H46,B46) -> 6214836 | F46: =E46/'- 3 -'!D46*100 -> 1.435662876 | G46: =E46/'- 7 -'!E46 -> 227.3041347
A48: PROVINCE | B48: =SUM(B11:B46) -> 8640074 | C48: ='- 26 -'!C48 -> 0.3270914109 | D48: ='- 26 -'!D48 -> 48.11760689 | E48: =SUM(E11:E46) -> 59685446 | F48: =E48/'- 3 -'!D48*100 -> 2.259540456 | G48: =E48/'- 7 -'!E48 -> 332.395397
A50: WHITESHELL | B50: ='- 26 -'!B50 -> 9500 | C50: ='- 26 -'!C50 -> 0.2528657185 | D50: ='- 26 -'!D50 -> 52.48618785 | E50: =SUM('- 37 -'!B50,'- 37 -'!E50,'- 37 -'!H50,B50) -> 59500 | F50: =E50/'- 3 -'!D50*100 -> 1.583737921 | G50: =E50/'- 7 -'!E50 -> 328.7292818
A52: (1) Excludes information technology expenses in Function 300 (Adult Learning Centres) and Function 400 (Community Education and Services).
A53: (2) Total Management Information Services expenses in Function 500 (from page 26).

Sheet - 39 -
U23: - 39 -

Sheet - 40 -
A2: SUMMARY OF OPERATING FUND REVENUE: 2022/2023 BUDGET | BA2: =" SUMMARY"&REPLACE(REVYEAR,1,8,"") -> SUMMARY OF OPERATING FUND REVENUE: 2022/23 BUDGET | BB2: ="SOMMAIRE DES RECETTES DU FONDS DE FONCTIONNEMENT : BUDGET "&YEAR&" - "&YEAR+1 -> 
B6: % OF OPERATING FUND REVENUES
B7: GOVERNMENTS | E7: OTHER SCHOOL DIVISIONS | G7: PRIVATE ORG.'S & INDIVIDUALS
F8: FIRST NATIONS
A9: DIVISION / DISTRICT | B9: PROVINCIAL(1) | C9: FEDERAL | D9: MUNICIPAL | H9: OTHER | J9: CHECK
A11: BEAUTIFUL PLAINS | B11: ='- 41 -'!J11 -> 65.19182675 | C11: ='- 42 -'!C11 -> 0 | D11: ='- 42 -'!E11 -> 34.16852086 | E11: ='- 42 -'!G11 -> 0.1404014275 | F11: ='- 42 -'!I11 -> 0 | G11: ='- 43 -'!C11 -> 0.0578123525 | H11: ='- 43 -'!E11 -> 0.4414386059 | J11: =SUM(B11:H11) -> 100 | K11: PROVINCIAL | L11: =B48 -> 57.72851851
A12: BORDER LAND | B12: ='- 41 -'!J12 -> 59.20212703 | C12: ='- 42 -'!C12 -> 0 | D12: ='- 42 -'!E12 -> 36.34695245 | E12: ='- 42 -'!G12 -> 1.086840516 | F12: ='- 42 -'!I12 -> 2.790899103 | G12: ='- 43 -'!C12 -> 0.2093174328 | H12: ='- 43 -'!E12 -> 0.3638634706 | J12: =SUM(B12:H12) -> 100 | K12: FEDERAL | L12: =C48 -> 0.2387658429
A13: BRANDON | B13: ='- 41 -'!J13 -> 60.97779387 | C13: ='- 42 -'!C13 -> 0.02256826901 | D13: ='- 42 -'!E13 -> 37.53252542 | E13: ='- 42 -'!G13 -> 0.3712392779 | F13: ='- 42 -'!I13 -> 0.2865645321 | G13: ='- 43 -'!C13 -> 0.7020656089 | H13: ='- 43 -'!E13 -> 0.1072430148 | J13: 100 | K13: MUNICIPAL | L13: =D48 -> 36.12450457
A14: DSFM | B14: ='- 41 -'!J14 -> 68.39796426 | C14: ='- 42 -'!C14 -> 0.2612671249 | D14: ='- 42 -'!E14 -> 28.79848507 | E14: ='- 42 -'!G14 -> 2.445983391 | F14: ='- 42 -'!I14 -> 0 | G14: ='- 43 -'!C14 -> 0.08667013598 | H14: ='- 43 -'!E14 -> 0.009630015108 | J14: 100 | K14: OTHER DIVISIONS | L14: =E48 -> 0.4606128606
A15: EVERGREEN | B15: ='- 41 -'!J15 -> 57.1645986 | C15: ='- 42 -'!C15 -> 0 | D15: ='- 42 -'!E15 -> 42.41725477 | E15: ='- 42 -'!G15 -> 0.1116844644 | F15: ='- 42 -'!I15 -> 0.178695143 | G15: ='- 43 -'!C15 -> 0 | H15: ='- 43 -'!E15 -> 0.1277670273 | J15: 100 | K15: FIRST NATIONS | L15: =F48 -> 4.447843212
A16: FLIN FLON | B16: ='- 41 -'!J16 -> 72.7095985 | C16: ='- 42 -'!C16 -> 0 | D16: ='- 42 -'!E16 -> 24.51197161 | E16: ='- 42 -'!G16 -> 1.577411756 | F16: ='- 42 -'!I16 -> 0 | G16: ='- 43 -'!C16 -> 0.7023159693 | H16: ='- 43 -'!E16 -> 0.4987021673 | J16: 100 | K16: PRIVATE | L16: =G48 -> 0.7979931968
A17: FORT LA BOSSE | B17: ='- 41 -'!J17 -> 51.81282867 | C17: ='- 42 -'!C17 -> 0 | D17: ='- 42 -'!E17 -> 43.16368641 | E17: ='- 42 -'!G17 -> 0.293435869 | F17: ='- 42 -'!I17 -> 4.624235775 | G17: ='- 43 -'!C17 -> 0.1058132683 | H17: ='- 43 -'!E17 -> 0 | J17: 100 | K17: OTHER | L17: =H48 -> 0.2017618127
A18: FRONTIER | B18: ='- 41 -'!J18 -> 33.67824039 | C18: ='- 42 -'!C18 -> 0 | D18: ='- 42 -'!E18 -> 2.1599603 | E18: ='- 42 -'!G18 -> 0 | F18: ='- 42 -'!I18 -> 61.00763934 | G18: ='- 43 -'!C18 -> 2.938346892 | H18: ='- 43 -'!E18 -> 0.2158130774 | J18: 100
A19: GARDEN VALLEY | B19: ='- 41 -'!J19 -> 64.46226334 | C19: ='- 42 -'!C19 -> 0 | D19: ='- 42 -'!E19 -> 34.05999685 | E19: ='- 42 -'!G19 -> 0.6621041994 | F19: ='- 42 -'!I19 -> 0 | G19: ='- 43 -'!C19 -> 0.02111056868 | H19: ='- 43 -'!E19 -> 0.7945250393 | J19: 100 | L19: =SUM(L11:L17) -> 100
A20: HANOVER | B20: ='- 41 -'!J20 -> 69.01722302 | C20: ='- 42 -'!C20 -> 0 | D20: ='- 42 -'!E20 -> 30.24359375 | E20: ='- 42 -'!G20 -> 0 | F20: ='- 42 -'!I20 -> 0.09725422254 | G20: ='- 43 -'!C20 -> 0.4672213165 | H20: ='- 43 -'!E20 -> 0.1747076859 | J20: 100
